Workbook

Sheet Introduction
F12: Utility-Scale Solar, 2023 Edition
F14: Mark Bolinger1, Joachim Seel1
F15: Julie Mulvaney Kemp, Cody Warner, Anjali Katta, Dana Robson
F17: Lawrence Berkeley National Laboratory
F18: 1 Corresponding authors
F20: October 2023
F24: For additional details and related products, see: utilityscalesolar.lbl.gov
F26: Contact the corresponding authors: Mark Bolinger (mabolinger@lbl.gov) and Joachim Seel (jseel@lbl.gov)
A28: Photo source: Enel Green Power - Roadrunner Solar Project
A30: Purpose, Scope, and Data
A31: Summarize publicly available data on key trends in the U.S. utility-scale solar power sector. Focus on ground-mounted projects >5 MWAC in size (projects below this capacity threshold, as well as rooftop projects, are covered under LBNL's Tracking the Sun series). Focus on historical data, with some emphasis on the most recent year. Data sources include EIA, FERC, SEC, trade press, developers/owners.
A33: Outline of Data File
A34: • Deployment and technology trends
A35: • Installed costs
A36: • Performance (capacity factors)
A37: • Power purchase agreement (PPA) prices and LCOE
A38: • Wholesale market value
A39: • PV, PV+battery, and concentrating solar thermal power (CSP) plants
A40: • Capacity in interconnection queues
A42: Acknowledgments
A43: This material is based upon work supported by the U.S. Department of Energy’s Office of Energy Efficiency and Renewable Energy (EERE) under Solar Energy Technologies Office (SETO) Agreement Number 38444 and Contract No. DE-AC02-05CH11231. The authors thank Ammar Qusaibaty, Juan Botero, Michele Boyd, and Becca Jones-Albertus of the U.S. Department of Energy Solar Energy Technologies Office for supporting this work. The authors are solely responsible for any omissions or errors contained herein.
A45: Disclaimer
A46: This document was prepared as an account of work sponsored by the United States Government. While this document is believed to contain correct information, neither the United States Government nor any agency thereof, nor The Regents of the University of California, nor any of their employees, makes any warranty, express or implied, or assumes any legal responsibility for the accuracy, completeness, or usefulness of any information, apparatus, product, or process disclosed, or represents that its use would not infringe privately owned rights. Reference herein to any specific commercial product, process, or service by its trade name, trademark, manufacturer, or otherwise, does not necessarily constitute or imply its endorsement, recommendation, or favoring by the United States Government or any agency thereof, or The Regents of the University of California. The views and opinions of authors expressed herein do not necessarily state or reflect those of the United States Government or any agency thereof, or The Regents of the University of California.
A48: Ernest Orlando Lawrence Berkeley National Laboratory is an equal opportunity employer.
A50: Copyright Notice
A51: This manuscript has been authored by an author at Lawrence Berkeley National Laboratory under Contract No. DE-AC02-05CH11231 with the U.S. Department of Energy. The U.S. Government retains, and the publisher, by accepting the article for publication, acknowledges, that the U.S. Government retains a non-exclusive, paid-up, irrevocable, worldwide license to publish or reproduce the published form of this manuscript, or allow others to do so, for U.S. Government purposes.

Sheet Table of Contents
B2: Table of Contents
B4: # | C4: Sheet Name
B5: 1 | C5: Introduction
B6: 2 | C6: Regional Definitions
B7: 3 | C7: PV Capacity by Sector
B8: 4 | C8: PV Capacity over Time
B9: 5 | C9: Energy Community
B10: 6 | C10: Capacity Additions by Type
B11: 7 | C11: State Solar Market Penetration
B12: 8 | C12: Solar Capacity&Generation by BA
B13: 9 | C13: PV Capacity by Region
B14: 10 | C14: PV+Storage Capacity by Region
B15: 11 | C15: PV Capacity by Technology
B16: 12 | C16: PV Capacity by Develop-Offtaker
B17: 13 | C17: PV Irradiance
B18: 14 | C18: PV ILR
B19: 15 | C19: CapEx Trend (PV-only)
B20: 16 | C20: CapEx Trend by Mount Type (PV)
B21: 17 | C21: CapEx by Size (PV-only)
B22: 18 | C22: CapEx Trend by Region (PV only)
B23: 19 | C23: CapEx Trend by State (PV only)
B24: 20 | C24: PV+Storage CapEx
B25: 21 | C25: CSP CapEx
B26: 22 | C26: O&M Cost Time Trend
B27: 23 | C27: O&M Cost by Project Age
B28: 24 | C28: CF by GHI, Mount, ILR
B29: 25 | C29: CF by Region
B30: 26 | C30: CF by Project Vintage
B31: 27 | C31: CF for CSP Plants
B32: 28 | C32: PPA Price by Project (PV only)
B33: 29 | C33: PPA Price for CSP Plants
B34: 30 | C34: Annual Average PPA Price
B35: 31 | C35: LevelTen Solar PPA Prices
B36: 32 | C36: PV+Battery Hybrid PPA Price
B37: 33 | C37: LCOE of Utility-Scale PV
B38: 34 | C38: LCOE vs. PPA Price
B39: 35 | C39: PV & Wind PPAs vs. Gas
B40: 36 | C40: Recent PV PPAs vs. Gas Forecast
B41: 37 | C41: PV Curtailment
B42: 38 | C42: Energy and Capacity Value
B43: 39 | C43: Solar Value vs. PPA Prices
B44: 40 | C44: Value Factor vs. Penetration
B45: 41 | C45: Value Difference vs. Flat Block
B46: 42 | C46: All Capacity in Queues
B47: 43 | C47: Solar GW in Queues by Region
B48: 44 | C48: All Hybrid Capacity in Queues
B49: 45 | C49: Individual_Project_Data

Sheet Regional Definitions
A1: Regional boundaries overlaid on a map of average annual global horizontal irradiance (GHI)
A32: Sources: National Renewable Energy Laboratory (NREL)

Sheet PV Capacity by Sector
A1: Historical and projected PV and CSP capacity by sector in the United States
A23: Sources: Total U.S. PV capacity additions are based on Wood Mackenzie and SEIA (2010 - 2022), IREC's data collection, LBNL's Tracking the Sun Database and LBNL's Utility-Scale Solar Database.
A24: Note: Wood Mackenzie and SEIA's definition of utility-scale PV capacity differs from LBNL both in size threshholds and treatment of project phase completion.
A25: We used Woodmac's 2023.03 Base Case Scenario projection.
A27: Installation Year | B27: Residential PV | D27: Commercial PV | F27: Utility PV | H27: Utility CSP
B28: Annual Capacity MWDC | C28: Cumulative Capacity MWDC | D28: Annual Capacity MWDC | E28: Cumulative Capacity MWDC | F28: Annual Capacity MWDC | G28: Cumulative Capacity MWDC | H28: Annual Capacity MWAC | I28: Cumulative Capacity MWAC
A29: 2007 | B29: 58 | C29: 191.1279753 | D29: 93 | E29: 263.74 | F29: 9 | G29: 13.66 | H29: 68.5 | I29: 425.1
A30: 2008 | B30: 77 | C30: =B30+C29 -> 268.1279753 | D30: 190 | E30: =E29+D30 -> 453.74 | F30: 21.5 | G30: =G29+F30 -> 35.16 | H30: 0 | I30: =I29+H30 -> 425.1
A31: 2009 | B31: 157 | C31: =B31+C30 -> 425.1279753 | D31: 208 | E31: =E30+D31 -> 661.74 | F31: 69.5 | G31: =G30+F31 -> 104.66 | H31: 0 | I31: =I30+H31 -> 425.1
A32: 2010 | B32: 245.5368856 | C32: 670.6648609 | D32: 336.801075 | E32: 998.541075 | F32: 264.4 | G32: 369.06 | H32: 75 | I32: 500.1
A33: 2011 | B33: 305.1750616 | C33: 975.8399225 | D33: 849.9675328 | E33: 1848.508608 | F33: 787.09461 | G33: 1156.15461 | H33: 0 | I33: 500.1
A34: 2012 | B34: 495.5294727 | C34: 1471.369395 | D34: 1075.149534 | E34: 2923.658142 | F34: 1802.676 | G34: 2958.83061 | H34: 0 | I34: 500.1
A35: 2013 | B35: 798.950417 | C35: 2270.319812 | D35: 1109.341613 | E35: 4032.999755 | F35: 2889.91 | G35: 5848.74061 | H35: 250 | I35: 750.1 | K35: =F35/SUM(F35,D35,B35) -> 0.6022901874
A36: 2014 | B36: 1267.734564 | C36: 3538.054376 | D36: 1055.174005 | E36: 5088.17376 | F36: 3916.741 | G36: 9765.48161 | H36: 877 | I36: 1627.1 | K36: 0.6277181045
A37: 2015 | B37: 2171.399164 | C37: 5709.453541 | D37: 1069.678716 | E37: 6157.852476 | F37: 4232.88 | G37: 13998.36161 | H37: 110 | I37: 1737.1 | K37: 0.5663505291
A38: 2016 | B38: 2638.464713 | C38: 8347.918253 | D38: 1714.847998 | E38: 7872.700474 | F38: 10871.34843 | G38: 24869.71004 | H38: 0 | I38: 1737.1 | K38: 0.7140617665
A39: 2017 | B39: 2239.175514 | C39: 10587.09377 | D39: 2365.708375 | E39: 10238.40885 | F39: 6475.562176 | G39: 31345.27221 | H39: 0 | I39: 1737.1 | K39: 0.5844134918
A40: 2018 | B40: 2416.620166 | C40: 13003.71393 | D40: 2196.059937 | E40: 12434.46879 | F40: 6118.775097 | G40: 37464.04731 | H40: 0 | I40: 1737.1 | K40: 0.5701719835
A41: 2019 | B41: 2863.779817 | C41: 15867.49375 | D41: 2185.36121 | E41: 14619.83 | F41: 8489.693083 | G41: 45953.74039 | H41: 0 | I41: 1737.1 | K41: 0.6270623463
A42: 2020 | B42: 3253.367597 | C42: 19120.86135 | D42: 2346.987092 | E42: 16966.81709 | F42: 14312.1987 | G42: 60265.93909 | H42: 0 | I42: =I41 -> 1737.1 | K42: 0.7187525588 | L42: 0.6254662839
A43: 2021 | B43: 4250.137145 | C43: 23370.99849 | D43: 2696.170396 | E43: 19662.98748 | F43: 17164.20735 | G43: 77430.14644 | H43: 0 | I43: 1737.1 | K43: 0.7118971713 | L43: 0.6427651525
A44: 2022 | B44: 5938.940147 | C44: =B44+C43 -> 29309.93864 | D44: 2416.043702 | E44: =E43+D44 -> 22079.03119 | F44: 11838.77772 | G44: =G43+F44 -> 89268.92416 | H44: 0 | I44: 1737.1 | K44: =F44/SUM(F44,D44,B44) -> 0.5862591613 | L44: =G44/SUM(G44,E44,C44) -> 0.6346527851 | M44: =(F44-F43)/F43 -> -0.3102636503
A45: 2023e | B45: 6379.347655 | C45: 35689.28629 | D45: 2723.872144 | E45: 24802.90333 | F45: 19330.90697 | G45: 108599.8311 | I45: 1737.1
A46: 2024e | B46: 6193.560701 | C46: 41882.847 | D46: 3237.311504 | E46: 28040.21483 | F46: 23297.76822 | G46: 131897.5993 | I46: 1737.1
A47: 2025e | B47: 6576.091539 | C47: 48458.93853 | D47: 3267.367167 | E47: 31307.582 | F47: 28380.93676 | G47: 160278.5361 | I47: 1737.1 | L47: =G47/SUM(G47,E47,C47) -> 0.6677018821
A48: 2026e | B48: 7114.824798 | C48: 55573.76333 | D48: 3529.974585 | E48: 34837.55659 | F48: 32449.8802 | G48: 192728.4163 | I48: 1737.1
A49: 2027e | B49: 7713.485811 | C49: 63287.24914 | D49: 3945.320516 | E49: 38782.8771 | F49: 35622.6517 | G49: 228351.068 | I49: 1737.1
A50: 2028e | B50: 8439.078705 | C50: 71726.32785 | D50: 4371.278074 | E50: 43154.15518 | F50: 40325.0063 | G50: 268676.0743 | I50: 1737.1
A51: 2029e | B51: 9194.261793 | C51: 80920.58964 | D51: 4725.969523 | E51: 47880.1247 | F51: 44169.80215 | G51: 312845.8765 | I51: 1737.1
A52: 2030e | B52: 10059.44675 | C52: 90980.03639 | D52: 5111.565161 | E52: 52991.68986 | F52: 47919.4652 | G52: 360765.3417 | I52: 1737.1 | L52: =G52/SUM(G52,E52,C52) -> 0.7147589599
A53: 2031e | B53: 10680.62827 | C53: =B53+C52 -> 101660.6647 | D53: 5423.90849 | E53: 58415.59835 | F53: 50585.98993 | G53: 411351.3316 | I53: 1737.1
A54: 2032e | B54: 11071.23436 | C54: =B54+C53 -> 112731.899 | D54: 5595.520111 | E54: =E53+D54 -> 64011.11846 | F54: 52092.03161 | G54: =G53+F54 -> 463443.3632 | I54: =I52 -> 1737.1
A55: 2033e | B55: 11499.63601 | C55: =B55+C54 -> 124231.535 | D55: 5708.383596 | E55: =E54+D55 -> 69719.50206 | F55: 54571.72827 | G55: =G54+F55 -> 518015.0915 | I55: =I53 -> 1737.1 | L55: =G55/SUM(G55,E55,C55) -> 0.7275838986

Sheet PV Capacity over Time
A1: Cumulative monthly capacity additions of utility-scale PV projects
A22: Sources: Berkeley Lab: Historical Capacity, EIA: Capacity Projections
A24: Cumulative Capacity Additions over the Months of a Year (MWAC)
A25: Month | B25: 2007 | C25: 2008 | D25: 2009 | E25: 2010 | F25: 2011 | G25: 2012 | H25: 2013 | I25: 2014 | J25: 2015 | K25: 2016 | L25: 2017 | M25: 2018 | N25: 2019 | O25: 2020 | P25: 2021 | Q25: 2022 | R25: 2023 | S25: 2023 Projections | T25: 2024 Projections
A26: 1 | G26: 20.5 | H26: 80 | I26: 95.29 | J26: 276.9 | K26: 34.4 | L26: 256.15 | M26: 594.6 | N26: 607.7 | O26: 1084.3 | P26: 309.3 | Q26: 981.6 | R26: 1411.1 | T26: 2494.1
A27: 2 | G27: 50.2 | H27: 106 | I27: 491.39 | J27: 357.7 | K27: 145.34 | L27: 461.05 | M27: 645.76 | N27: 757.7 | O27: 1453.2 | P27: 977.4 | Q27: 1158.3 | R27: 1927.1 | T27: 4092.1
A28: 3 | E28: 10.08 | G28: 72 | H28: 172.14 | I28: 704.11 | J28: 377.7 | K28: 347.44 | L28: 822.15 | M28: 1092.22 | N28: 938.7 | O28: 1649 | P28: 2533.6 | Q28: 1955.4 | R28: 2579.6 | T28: 6988.1
A29: 4 | E29: 20.08 | G29: 154 | H29: 192.64 | I29: 744.25 | J29: 409.7 | K29: 563.1 | L29: 1307.99 | M29: 1322.22 | N29: 1030.2 | O29: 2281 | P29: 2906 | Q29: 2619 | R29: 3437.3 | T29: 8876.8
A30: 5 | F30: 7 | G30: 208.8 | I30: 826.02 | J30: 537.92 | K30: 625.1 | L30: 1504.65 | M30: 1672.62 | N30: 1074 | O30: 2612.77 | P30: 3492.7 | Q30: 3239.1 | R30: 4464.5 | T30: 11776.8
A31: 6 | E31: 68.08 | F31: 12.2 | G31: 230.8 | H31: 321.64 | I31: 847.75 | J31: 1185.02 | K31: 1208.2 | L31: 1720.55 | M31: 1784.22 | N31: 1307.9 | O31: 3834.27 | P31: 4082.81 | Q31: 4408.2 | R31: 6059.3 | T31: 15276.8
A32: 7 | E32: 76.33 | F32: 27.24 | G32: 290.8 | H32: 341.64 | I32: 863.57 | J32: 1253.37 | K32: 1857.78 | L32: 1783.59 | M32: 1835.02 | N32: 1511.13 | O32: 4227.07 | P32: 4988.81 | Q32: 4931.3 | R32: 7995.5 | T32: 16541.8
A33: 8 | F33: 101.4 | G33: 334.4 | H33: 608.84 | I33: 1314.67 | J33: 1478.94 | K33: 2291.79 | L33: 2035.25 | M33: 1875.82 | N33: 1689.13 | O33: 4829.07 | P33: 6577.85 | Q33: 5613.7 | R33: 8633.3 | S33: 8633.3 | T33: 17870.6
A34: 9 | E34: 88.93 | F34: 171.2 | G34: 354.4 | H34: 616.34 | I34: 1326.67 | J34: 1523.94 | K34: 3266.4 | L34: 2154.65 | M34: 2148.32 | N34: 1871.98 | O34: 5391.87 | P34: 7556.05 | Q34: 6356.8 | S34: 11802.4 | T34: 18790.6
A35: 10 | D35: 25 | F35: 259.8 | G35: 410.42 | H35: 676.34 | I35: 2511.72 | J35: 1610.82 | K35: 4348.55 | L35: 2445.82 | M35: 2254.82 | N35: 2294.38 | O35: 5693.02 | P35: 8352.45 | Q35: 6852.03 | S35: 14180.3 | T35: 22465.4
A36: 11 | E36: 102.83 | F36: 337.6 | G36: 569.92 | H36: 1193.34 | I36: 2665.21 | J36: 1860.18 | K36: 4871.15 | L36: 2789.94 | M36: 2728.62 | N36: 2845.08 | O36: 6503.93 | P36: 9231.16 | Q36: 7622.43 | S36: 17231.1 | T36: 25849
A37: 12 | B37: 18.9 | C37: 10 | D37: 46 | E37: 175.07 | F37: 485.15 | G37: 961.14 | H37: 1343.79 | I37: 3184.08 | J37: 2886.68 | K37: 7442.26 | L37: 4078.74 | M37: 3963.62 | N37: 4606.16 | O37: 9623.14 | P37: 12448.95 | Q37: 10429.13 | S37: 24148.3 | T37: 35497.8

Sheet Energy Community
A1: Annual capacity additions of utility-scale PV projects built in 2023 Energy Communities
A23: Sources: Berkeley Lab: Capacity Information, DOE: Energy Community Tax Credit Bonus Eligibility Map
A24: Note: 2023 Energy Communities are defined based on fossil fuel employment+unemployment rates and coal closures. PV projects built at brownfield sites are not yet included.
B26: Annual Capacity Additions (MWAC) | D26: Annual Capacity Share
A27: Solar COD | B27: In Energy Community | C27: Not in Energy Community | D27: In Energy Community | E27: Not in Energy Community
A28: 2007 | C28: 87.4 | D28: =B28/SUM(B28:C28) -> 0 | E28: =C28/SUM(B28:C28) -> 1
A29: 2008 | C29: 10 | D29: 0 | E29: 1
A30: 2009 | C30: 54.25 | D30: 0 | E30: 1
A31: 2010 | B31: 54.62 | C31: 89.6 | D31: 0.3787269449 | E31: 0.6212730551
A32: 2011 | B32: 77.86 | C32: 394.68 | D32: 0.1647691201 | E32: 0.8352308799
A33: 2012 | B33: 203.92 | C33: 708.72 | D33: 0.2234396914 | E33: 0.7765603086
A34: 2013 | B34: 534.8 | C34: 1497.55 | D34: 0.2631436514 | E34: 0.7368563486
A35: 2014 | B35: 928.7 | C35: 2671.28 | D35: 0.2579736554 | E35: 0.7420263446
A36: 2015 | B36: 1313.15 | C36: 1790.49 | D36: 0.4230999729 | E36: 0.5769000271
A37: 2016 | B37: 2768.8 | C37: 4726.9 | D37: 0.3693851141 | E37: 0.6306148859
A38: 2017 | B38: 1576.25 | C38: 2466.29 | D38: 0.389915746 | E38: 0.610084254
A39: 2018 | B39: 1059.56 | C39: 2907.25 | D39: 0.2671063146 | E39: 0.7328936854
A40: 2019 | B40: 1628.4 | C40: 3021.85 | D40: 0.3501747218 | E40: 0.6498252782
A41: 2020 | B41: 3010.9 | C41: 6621.24 | D41: 0.3125888951 | E41: 0.6874111049
A42: 2021 | B42: 5060.44 | C42: 7263 | D42: 0.4106353421 | E42: 0.5893646579
A43: 2022 | B43: 4733.2 | C43: 5638.12 | D43: 0.4563739235 | E43: 0.5436260765
A44: 2023* | B44: 3944.8 | C44: 3688.7 | D44: 0.5167747429 | E44: 0.4832252571
A45: * only includes project phases with commercial operation date prior to July 31st 2023

Sheet Capacity Additions by Type
A1: Annual capacity additions of different resources
A21: Sources: Hitachi, ACP, EIA, Berkeley Lab
B23: Nameplate Capacity Additions (GW-AC)
A24: Resource Type | B24: 1998 | C24: 1999 | D24: 2000 | E24: 2001 | F24: 2002 | G24: 2003 | H24: 2004 | I24: 2005 | J24: 2006 | K24: 2007 | L24: 2008 | M24: 2009 | N24: 2010 | O24: 2011 | P24: 2012 | Q24: 2013 | R24: 2014 | S24: 2015 | T24: 2016 | U24: 2017 | V24: 2018 | W24: 2019 | X24: 2020 | Y24: 2021 | Z24: 2022
A25: Wind | B25: 0.14232 | C25: 0.88527 | D25: 0.070955 | E25: 1.692 | F25: 0.409 | G25: 1.665 | H25: 0.396 | I25: 2.382 | J25: 2.466 | K25: 5.253 | L25: 8.37 | M25: 9.997 | N25: 5.218 | O25: 6.604 | P25: 13.34 | Q25: 1.087 | R25: 4.857 | S25: 8.599 | T25: 8.233 | U25: 7.017 | V25: 7.588 | W25: 9.132 | X25: 17.213 | Y25: 13.413 | Z25: 8.511082
A26: Utility-Scale Solar | B26: 0 | C26: 0 | D26: 0 | E26: 0 | F26: 0 | G26: 0 | H26: 0 | I26: 0 | J26: 0 | K26: 0.0829 | L26: 0.01 | M26: 0.055 | N26: 0.1491 | O26: 0.5213 | P26: 1.3217 | Q26: 3.2316 | R26: 3.3719 | S26: 3.1056 | T26: 7.5126 | U26: 4.4804 | V26: 4.126 | W26: 4.9229 | X26: 9.8238 | Y26: 12.7048 | Z26: 10.5396
A27: Distributed Solar | B27: 0.00161169192 | C27: 0.002457953912 | D27: 0.003822710776 | E27: 0.0111271831 | F27: 0.0222809324 | G27: 0.04450486369 | H27: 0.05658720405 | I27: 0.07761603992 | J27: 0.1025865465 | K27: 0.1585410799 | L27: 0.2929607843 | M27: 0.3667609405 | N27: 0.7416457751 | O27: 1.4055 | P27: 1.84582 | Q27: 2.62855 | R27: 2.167448 | S27: 3.648618 | T27: 2.798885 | U27: 4.241003 | V27: 4.221299 | W27: 4.826479 | X27: 5.314715 | Y27: 6.582259 | Z27: 8.761027
A28: Storage | B28: 0 | C28: 0 | D28: 0 | E28: 0 | F28: 0.328 | G28: 0.04 | H28: 0 | I28: 0 | J28: 0 | K28: 0 | L28: 0 | M28: 0 | N28: 0.004 | O28: 0.037 | P28: 0.1265 | Q28: 0.2963 | R28: 0.0313 | S28: 0.251 | T28: 0.23347 | U28: 0.156805 | V28: 0.354718 | W28: 0.358771 | X28: 0.724328 | Y28: 3.850252 | Z28: 4.523928
A29: Other RE | B29: 0.349387 | C29: 0.40942 | D29: 0.17577 | E29: 0.62334 | F29: 0.421315 | G29: 0.33204 | H29: 0.208315 | I29: 0.1166 | J29: 0.422444 | K29: 0.554295 | L29: 0.469208 | M29: 0.69166 | N29: 0.421086 | O29: 0.804604 | P29: 1.165198 | Q29: 1.471947 | R29: 0.681625 | S29: 0.497537 | T29: 0.515588 | U29: 0.535833 | V29: 0.3791 | W29: 0.285273 | X29: 0.33607 | Y29: 0.106618 | Z29: 0.13802
A30: Gas | B30: 3.0109 | C30: 10.600925 | D30: 28.882733 | E30: 49.2994 | F30: 71.517495 | G30: 55.470126 | H30: 27.22913 | I30: 19.47869 | J30: 10.77348 | K30: 8.440016 | L30: 10.521252 | M30: 12.027625 | N30: 7.361112 | O30: 12.032777 | P30: 9.751038 | Q30: 7.874048 | R30: 9.02611 | S30: 6.6868 | T30: 9.5373 | U30: 12.59372 | V30: 21.919692 | W30: 8.928507 | X30: 7.727963 | Y30: 6.380174 | Z30: 6.7992
A31: Coal | B31: 0.0705 | C31: 0.3712 | D31: 0.1805 | E31: 0 | F31: 0.5242 | G31: 0.09 | H31: 0.742 | I31: 0.3727 | J31: 0.6047 | K31: 1.513504 | L31: 1.591 | M31: 3.5987 | N31: 6.004298 | O31: 1.734999 | P31: 4.76 | Q31: 1.8125 | R31: 0.1062 | S31: 0.0055 | T31: 0 | U31: 0 | V31: 0 | W31: 0.017 | X31: 0 | Y31: 0 | Z31: 0
A32: Other non-RE | B32: 0.22756 | C32: 0.301923 | D32: 1.334801 | E32: 0.8195 | F32: 1.23255 | G32: 0.4059 | H32: 0.5243 | I32: 0.25777 | J32: 0.344598 | K32: 0.372985 | L32: 0.145301 | M32: 0.253185 | N32: 1.21899 | O32: 0.843475 | P32: 0.30758 | Q32: 0.30049 | R32: 0.193948 | S32: 0.1889 | T32: 1.4442 | U32: 0.11105 | V32: 0.0914 | W32: 0.0942 | X32: 0.0486 | Y32: 0.03939 | Z32: 0.0386
A33: Total | B33: =SUM(B25:B32) -> 3.802278692 | C33: =SUM(C25:C32) -> 12.57119595 | D33: 30.64858171 | E33: 52.44536718 | F33: 74.45484093 | G33: 58.04757086 | H33: 29.1563322 | I33: 22.68537604 | J33: 14.71380855 | K33: 16.37524108 | L33: 21.39972178 | M33: 26.98993094 | N33: 21.11823178 | O33: 23.983655 | P33: 32.617836 | Q33: 18.702435 | R33: 20.435531 | S33: 22.982955 | T33: 30.275043 | U33: 29.135811 | V33: 38.680209 | W33: =SUM(W25:W32) -> 28.56513 | X33: =SUM(X25:X32) -> 41.188476 | Y33: 43.076493 | Z33: 39.311457
A34: Utility-Scale Solar % of Total | B34: =B26/B33 -> 0 | C34: =C26/C33 -> 0 | D34: 0 | E34: 0 | F34: 0 | G34: 0 | H34: 0 | I34: 0 | J34: 0 | K34: 0.005062520887 | L34: 0.0004672957948 | M34: 0.002037796989 | N34: 0.007060250195 | O34: 0.02173563621 | P34: 0.0405207752 | Q34: 0.1727903345 | R34: 0.1650018294 | S34: 0.1351262272 | T34: 0.248144982 | U34: 0.1537763957 | V34: 0.1066695374 | W34: =W26/W33 -> 0.1723394922 | X34: =X26/X33 -> 0.2385084605 | Y34: 0.2949358018 | Z34: 0.2681050463
A35: Distributed Solar % of Total | B35: =B27/B33 -> 0.0004238752733 | C35: =C27/C33 -> 0.0001955226791 | D35: 0.0001247271672 | E35: 0.0002121671311 | F35: 0.0002992543146 | G35: 0.0007666964013 | H35: 0.00194082039 | I35: 0.003421412975 | J35: 0.006972127318 | K35: 0.009681755471 | L35: 0.01368993426 | M35: 0.01358880618 | N35: 0.03511874398 | O35: 0.05860241068 | P35: 0.05658928446 | Q35: 0.1405458701 | R35: 0.1060627199 | S35: 0.1587532152 | T35: 0.09244858876 | U35: 0.1455598061 | V35: 0.1091333038 | W35: =W27/W33 -> 0.1689640131 | X35: =X27/X33 -> 0.1290340288 | Y35: 0.1528039667 | Z35: 0.2228619255
A36: Total Solar % of Total | B36: =SUM(B26:B27)/B33 -> 0.0004238752733 | C36: =SUM(C26:C27)/C33 -> 0.0001955226791 | D36: 0.0001247271672 | E36: 0.0002121671311 | F36: 0.0002992543146 | G36: 0.0007666964013 | H36: 0.00194082039 | I36: 0.003421412975 | J36: 0.006972127318 | K36: 0.01474427636 | L36: 0.01415723005 | M36: 0.01562660317 | N36: 0.04217899418 | O36: 0.08033804689 | P36: 0.09711005966 | Q36: 0.3133362046 | R36: 0.2710645493 | S36: 0.2938794424 | T36: 0.3405935708 | U36: 0.2993362018 | V36: 0.2158028412 | W36: =SUM(W26:W27)/W33 -> 0.3413035054 | X36: =SUM(X26:X27)/X33 -> 0.3675424893 | Y36: =SUM(Y26:Y27)/Y33 -> 0.4477397684 | Z36: 0.4909669718

Sheet State Solar Market Penetration
A1: U.S. solar penetration rankings in 2022: the top 20 states | I1: U.S. solar penetration rankings in 2022: all 50 states
A3: State | B3: Solar generation as a % of in-state generation | D3: Solar generation as a % of in-state load | I3: State | J3: Solar generation as a % of in-state generation | L3: Solar generation as a % of in-state load
B5: All Solar | C5: Utility-Scale Solar Only | D5: All Solar | E5: Utility-Scale Solar Only | J5: All Solar | K5: Utility-Scale Solar Only | L5: All Solar | M5: Utility-Scale Solar Only
A7: California | B7: 0.2733846983 | C7: 0.1722287682 | D7: 0.2477296542 | E7: 0.1560664275 | I7: California | J7: 0.2733846983 | K7: 0.1722287682 | L7: 0.2477296542 | M7: 0.1560664275
A8: Nevada | B8: 0.2332177107 | C8: 0.2039266363 | D8: 0.2566424669 | E8: 0.2244093506 | I8: Nevada | J8: 0.2332177107 | K8: 0.2039266363 | L8: 0.2566424669 | M8: 0.2244093506
A9: Massachusetts | B9: 0.1932752282 | C9: 0.08467925152 | D9: 0.09220249473 | E9: 0.04039647664 | I9: Massachusetts | J9: 0.1932752282 | K9: 0.08467925152 | L9: 0.09220249473 | M9: 0.04039647664
A10: Vermont | B10: 0.1843625056 | C10: 0.09418036428 | D10: 0.07585450557 | E10: 0.03874977152 | I10: Vermont | J10: 0.1843625056 | K10: 0.09418036428 | L10: 0.07585450557 | M10: 0.03874977152
A11: Hawaii | B11: 0.1702424074 | C11: 0.05275378471 | D11: 0.2038251974 | E11: 0.06316023574 | I11: Hawaii | J11: 0.1702424074 | K11: 0.05275378471 | L11: 0.2038251974 | M11: 0.06316023574
A12: Utah | B12: 0.1153596404 | C12: 0.09607892108 | D12: 0.1395636935 | E12: 0.1162376118 | I12: Utah | J12: 0.1153596404 | K12: 0.09607892108 | L12: 0.1395636935 | M12: 0.1162376118
A13: Rhode Island | B13: 0.1096033403 | C13: 0.04940848991 | D13: 0.1253648183 | E13: 0.0565136641 | I13: Rhode Island | J13: 0.1096033403 | K13: 0.04940848991 | L13: 0.1253648183 | M13: 0.0565136641
A14: Arizona | B14: 0.09856226946 | C14: 0.06510720889 | D14: 0.1279662738 | E14: 0.08453059128 | I14: Arizona | J14: 0.09856226946 | K14: 0.06510720889 | L14: 0.1279662738 | M14: 0.08453059128
A15: North Carolina | B15: 0.08924124988 | C15: 0.08480061474 | D15: 0.08598705709 | E15: 0.08170835024 | I15: North Carolina | J15: 0.08924124988 | K15: 0.08480061474 | L15: 0.08598705709 | M15: 0.08170835024
A16: Maine | B16: 0.07024414632 | C16: 0.04224647946 | D16: 0.07175689479 | E16: 0.04315628192 | I16: Maine | J16: 0.07024414632 | K16: 0.04224647946 | L16: 0.07175689479 | M16: 0.04315628192
A17: New Jersey | B17: 0.06797114862 | C17: 0.0240624036 | D17: 0.0629155732 | E17: 0.02227268401 | I17: New Jersey | J17: 0.06797114862 | K17: 0.0240624036 | L17: 0.0629155732 | M17: 0.02227268401
A18: Colorado | B18: 0.06327312901 | C18: 0.0409434057 | D18: 0.06596052838 | E18: 0.04268239482 | I18: Colorado | J18: 0.06327312901 | K18: 0.0409434057 | L18: 0.06596052838 | M18: 0.04268239482
A19: New Mexico | B19: 0.061370709 | C19: 0.04754782525 | D19: 0.09233114361 | E19: 0.07153486009 | I19: New Mexico | J19: 0.061370709 | K19: 0.04754782525 | L19: 0.09233114361 | M19: 0.07153486009
A20: Georgia | B20: 0.05799746674 | C20: 0.05445719815 | D20: 0.05147829002 | E20: 0.04833596358 | I20: Georgia | J20: 0.05799746674 | K20: 0.05445719815 | L20: 0.05147829002 | M20: 0.04833596358
A21: Virginia | B21: 0.05564198072 | C21: 0.0513694128 | D21: 0.0390368002 | E21: 0.03603929044 | I21: Virginia | J21: 0.05564198072 | K21: 0.0513694128 | L21: 0.0390368002 | M21: 0.03603929044
A22: Florida | B22: 0.05381073229 | C22: 0.0434987311 | D22: 0.05417007044 | E22: 0.0437892076 | I22: Florida | J22: 0.05381073229 | K22: 0.0434987311 | L22: 0.05417007044 | M22: 0.0437892076
A23: Maryland | B23: 0.04852067924 | C23: 0.01984581727 | D23: 0.03125157264 | E23: 0.01278244678 | I23: Maryland | J23: 0.04852067924 | K23: 0.01984581727 | L23: 0.03125157264 | M23: 0.01278244678
A24: Texas | B24: 0.04806976114 | C24: 0.04214703892 | D24: 0.05632792477 | E24: 0.04938770615 | I24: Texas | J24: 0.04806976114 | K24: 0.04214703892 | L24: 0.05632792477 | M24: 0.04938770615
A25: New York | B25: 0.04253532298 | C25: 0.01639981648 | D25: 0.03838354069 | E25: 0.01479906532 | I25: New York | J25: 0.04253532298 | K25: 0.01639981648 | L25: 0.03838354069 | M25: 0.01479906532
A26: Idaho | B26: 0.04121750159 | C26: 0.03089871448 | D26: 0.0274683058 | E26: 0.02059162505 | I26: Idaho | J26: 0.04121750159 | K26: 0.03089871448 | L26: 0.0274683058 | M26: 0.02059162505
A27: Rest of U.S. | B27: 0.01049251189 | C27: 0.007067508417 | D27: 0.01280975494 | E27: 0.008628348654 | I27: Delaware | J27: 0.04010494753 | K27: 0.01255622189 | L27: 0.01846419327 | M27: 0.005780845557
A28: TOTAL U.S. | B28: 0.0474489911 | C28: 0.03384677186 | D28: 0.05221442323 | E28: 0.03724609586 | I28: Minnesota | J28: 0.03780848963 | K28: 0.03381046397 | L28: 0.0345912423 | M28: 0.03093342164
I29: Oregon | J29: 0.03176026428 | K29: 0.02581406324 | L29: 0.03778775969 | M29: 0.03071308254
A30: Source: EIA | I30: Connecticut | J30: 0.03167625867 | K30: 0.009946979653 | L30: 0.05050942987 | M30: 0.01586097261
I31: South Carolina | J31: 0.02850270232 | K31: 0.02361134875 | L31: 0.03387276185 | M31: 0.02805985145
I32: Wisconsin | J32: 0.01712863557 | K32: 0.01351747023 | L32: 0.01501925546 | M32: 0.01185280274
I33: Illinois | J33: 0.01479396922 | K33: 0.008500112671 | L33: 0.02072748098 | M33: 0.01190930717
I34: Arkansas | J34: 0.01470248278 | K34: 0.01117327045 | L34: 0.01931213182 | M34: 0.01467641045
I35: Indiana | J35: 0.01468252352 | K35: 0.01183154808 | L35: 0.01437758612 | M35: 0.01158582183
I36: New Hampshire | J36: 0.01269183793 | K36: 0.0002124156975 | L36: 0.02209689349 | M36: 0.0003698224852
I37: Iowa | J37: 0.009801183961 | K37: 0.005500949402 | L37: 0.01287081515 | M37: 0.00722379084
I38: Michigan | J38: 0.009779174394 | K38: 0.007675664537 | L38: 0.01134801235 | M38: 0.008907043937
I39: Tennessee | J39: 0.009733490744 | K39: 0.008615709226 | L39: 0.007574350805 | M39: 0.006704522132
I40: Ohio | J40: 0.009288016839 | K40: 0.006903454671 | L40: 0.008402801822 | M40: 0.006245505633
I41: Missouri | J41: 0.008670738144 | K41: 0.002023172234 | L41: 0.008588071293 | M41: 0.002003883302
I42: Mississippi | J42: 0.007814688666 | K42: 0.007475560667 | L42: 0.0106725735 | M42: 0.01020942408
I43: Alabama | J43: 0.0063313838 | K43: 0.006165857427 | L43: 0.01048723368 | M43: 0.01021305763
I44: Wyoming | J44: 0.004539530843 | K44: 0.004039965248 | L44: 0.01260478861 | M44: 0.01121765877
I45: Louisiana | J45: 0.004425745301 | K45: 0.00183298035 | L45: 0.004856088869 | M45: 0.002011212772
I46: Pennsylvania | J46: 0.004253321991 | K46: 0.001060187649 | L46: 0.007005266028 | M46: 0.001746140202
I47: Washington | J47: 0.004055359403 | K47: 0.0007827593098 | L47: 0.005394089761 | M47: 0.001041159009
I48: Montana | J48: 0.003111387679 | K48: 0.00117134595 | L48: 0.005460268517 | M48: 0.0020556305
I49: Nebraska | J49: 0.003011230408 | K49: 0.002122670616 | L49: 0.003668069753 | M49: 0.002585688515
I50: Alaska | J50: 0.002764127764 | K50: 0 | L50: 0.002998001332 | M50: 0
I51: Kansas | J51: 0.002457865169 | K51: 0.00106933095 | L51: 0.003654831973 | M51: 0.001590089235
I52: Kentucky | J52: 0.002267704707 | K52: 0.0007366429304 | L52: 0.002090044996 | M52: 0.0006789318139
I53: Oklahoma | J53: 0.001942628481 | K53: 0.0009538654817 | L53: 0.002409638554 | M53: 0.001183175817
I54: West Virginia | J54: 0.0005843396961 | K54: 0 | L54: 0.001000212166 | M54: 0
I55: South Dakota | J55: 0.0002124382601 | K55: 0.0001062191301 | L55: 0.0002978850164 | M55: 0.0001489425082
I56: North Dakota | J56: 4.432722356e-05 | K56: 0 | L56: 7.902951752e-05 | M56: 0
I57: TOTAL U.S. | J57: 0.0474489911 | K57: 0.03384677186 | L57: 0.05221442323 | M57: 0.03724609586
I59: Source: EIA

Sheet Solar Capacity&Generation by BA
A1: Annual solar capacity and generation by balancing authority
A22: Sources: Capacity Information: EIA 860/861, DPV Generation: EIA 861, Utility-Scale Generation: Berkeley Lab hourly modeling
A23: Notes: Capacity penetration based on reported peak load, not including coincident hourly DPV generation. Generation penetration based on annual load, including annual DPV generation. Curtailment based on ISO reports.
A27: Region | B27: BA | C27: Date | D27: Capacity (MWAC) | G27: Generation (MWh)
D28: DPV | E28: Utility-Scale | F28: Penetration (right axis) | G28: DPV | H28: Utility-Scale | I28: Curtailment | J28: Penetration (right axis)
A29: ISOs | B29: CAISO | C29: 2012 | D29: 1354.68 | E29: 1139.82 | F29: 0.05343601388 | G29: 2108116.9 | H29: 1487265.28 | I29: 0 | J29: 0.01509976011
C30: 2013 | D30: 1887.49 | E30: 2425.62 | F30: 0.09600903749 | G30: 2935767.64 | H30: 3632545.029 | I30: 0 | J30: 0.02767962291
C31: 2014 | D31: 2586.72 | E31: 5708.67 | F31: 0.1856996709 | G31: 4253413.26 | H31: 10839276.43 | I31: 0 | J31: 0.06368891767
C32: 2015 | D32: 3588.03 | E32: 7213.33 | F32: 0.2285905359 | G32: 5533132.23 | H32: 16606637.7 | I32: 130976.5126 | J32: 0.09357180757
C33: 2016 | D33: 4837.22 | E33: 10370.32 | F33: 0.3307353037 | G33: 7571800.92 | H33: 21161302.57 | I33: 232936.2077 | J33: 0.1213673522
C34: 2017 | D34: 6088.37 | E34: 10982.11 | F34: 0.3420320984 | G34: 9756830.75 | H34: 26269457.72 | I34: 347795.6786 | J34: 0.1510221433
C35: 2018 | D35: 7239.73 | E35: 11872.71 | F35: 0.4111351561 | G35: 11885158.4 | H35: 28374861.17 | I35: 421968.0342 | J35: 0.1704796982
C36: 2019 | D36: 8418.77 | E36: 12901.51 | F36: 0.4831353532 | G36: 13948585.72 | H36: 28780697.14 | I36: 1053506.947 | J36: 0.1876269974
C37: 2020 | D37: 9702.67 | E37: 14714.41 | F37: 0.5198773607 | G37: 16014711.81 | H37: 31394764.31 | I37: 1661767.579 | J37: 0.2087446447
C38: 2021 | D38: 11314.79 | E38: 15986.51 | F38: 0.6263058888 | G38: 18459155.11 | H38: 35482737.73 | I38: 1425583.114 | J38: 0.2318696868
C39: 2022 | D39: 13213.33 | E39: 17881.11 | F39: 0.6062239725 | G39: 21477638.89 | H39: 39414160.16 | I39: 2057180.258 | J39: 0.2556438419
B40: ERCOT | C40: 2012 | D40: 31.4 | E40: 75.6 | F40: 0.001607853296 | G40: 44805.46 | H40: 121143.2194 | I40: 0 | J40: 0.0005110738984
C41: 2013 | D41: 43.63 | E41: 126.3 | F41: 0.002527043064 | G41: 65711.23 | H41: 161286.0322 | I41: 269.0673131 | J41: 0.0006853047
C42: 2014 | D42: 105.58 | E42: 170.3 | F42: 0.004151630525 | G42: 155498.9 | H42: 284356.0266 | I42: 201.1407026 | J42: 0.001293791887
C43: 2015 | D43: 136.87 | E43: 304.16 | F43: 0.006311609136 | G43: 207839.03 | H43: 393720.3234 | I43: 545.8859257 | J43: 0.001731050433
C44: 2016 | D44: 209.82 | E44: 579.66 | F44: 0.0111023921 | G44: 306376.1 | H44: 704968.5678 | I44: 1809.658371 | J44: 0.00287940875
C45: 2017 | D45: 272.04 | E45: 1248.91 | F45: 0.02188034754 | G45: 419177.26 | H45: 2146005.642 | I45: 40773.5171 | J45: 0.007285111058
C46: 2018 | D46: 412.95 | E46: 1907.51 | F46: 0.03158247319 | G46: 622628 | H46: 3112584.93 | I46: 268076.3822 | J46: 0.01061627468
C47: 2019 | D47: 583.29 | E47: 2406.91 | F47: 0.03996540484 | G47: 870841.25 | H47: 4226457.439 | I47: 265627.8549 | J47: 0.01393243109
C48: 2020 | D48: 938.65 | E48: 4902.31 | F48: 0.07853301845 | G48: 1372067.32 | H48: 8036134.646 | I48: 611066.6587 | J48: 0.02614547889
C49: 2021 | D49: 1059.87 | E49: 8859.55 | F49: 0.1346154029 | G49: 1576102.68 | H49: 15731512.67 | I49: 1880022.551 | J49: 0.04864380231
C50: 2022 | D50: 1497.52 | E50: 11255.45 | F50: 0.1591180549 | G50: 2156229.97 | H50: 22567626.23 | I50: 2797426.769 | J50: 0.0636692277
B51: SPP | C51: 2012 | D51: 6.56 | E51: 0 | F51: 0.0001390346881 | G51: 8628.59 | H51: 122328.3116 | I51: 0 | J51: 0.000572945464
C52: 2013 | D52: 22.21 | E52: 52.96 | F52: 0.001658989308 | G52: 26563.4 | H52: 124032.2545 | I52: 0 | J52: 0.0006520733585
C53: 2014 | D53: 61.18 | E53: 60.66 | F53: 0.002694211426 | G53: 84645.33 | H53: 130009.228 | I53: 0 | J53: 0.0009158095045
C54: 2015 | D54: 66.35 | E54: 69.96 | F54: 0.00298616737 | G54: 102429.68 | H54: 134346.1981 | I54: 0 | J54: 0.000997435243
C55: 2016 | D55: 87.98 | E55: 253.66 | F55: 0.006795280538 | G55: 137049.29 | H55: 193253.6188 | I55: 0 | J55: 0.001280907391
C56: 2017 | D56: 114.05 | E56: 307.44 | F56: 0.008363031231 | G56: 176691.72 | H56: 615176.2585 | I56: 0 | J56: 0.003089657515
C57: 2018 | D57: 148.91 | E57: 328.14 | F57: 0.009693305087 | G57: 228260.27 | H57: 739023.3554 | I57: 0 | J57: 0.003558566071
C58: 2019 | D58: 200.92 | E58: 351.64 | F58: 0.01090815267 | G58: 296778.26 | H58: 704989.1341 | I58: 0 | J58: 0.003699886413
C59: 2020 | D59: 249.22 | E59: 387.54 | F59: 0.0130595978 | G59: 398051.01 | H59: 828065.131 | I59: 0 | J59: 0.004661845416
C60: 2021 | D60: 393.57 | E60: 404.24 | F60: 0.01574516441 | G60: 594194.91 | H60: 894745.5898 | I60: 0 | J60: 0.005542309382
C61: 2022 | D61: 521.68 | E61: 418.54 | F61: 0.01775518906 | G61: 776491.73 | H61: 872172.9361 | I61: 0 | J61: 0.005813735113
B62: MISO | C62: 2012 | D62: 35.85 | E62: 11.3 | F62: 0.0004791715363 | G62: 43998.41 | H62: 7750.684211 | I62: 0 | J62: 0.0001012393745
C63: 2013 | D63: 59.16 | E63: 56.8 | F63: 0.001212996088 | G63: 71885.63 | H63: 40425.07755 | I63: 0 | J63: 0.000217621406
C64: 2014 | D64: 215.65 | E64: 100.81 | F64: 0.002755156232 | G64: 278673.24 | H64: 113121.229 | I64: 0 | J64: 0.000571294613
C65: 2015 | D65: 271.81 | E65: 143.91 | F65: 0.003463640605 | G65: 381430.52 | H65: 170195.8824 | I65: 0 | J65: 0.0008154379296
C66: 2016 | D66: 333.62 | E66: 440.11 | F66: 0.006406959028 | G66: 479570.74 | H66: 264110.2975 | I66: 0 | J66: 0.001100812245
C67: 2017 | D67: 454.37 | E67: 849.1 | F67: 0.0108412 | G67: 614205.89 | H67: 982166.9601 | I67: 0 | J67: 0.00239924191
C68: 2018 | D68: 579.79 | E68: 1203.12 | F68: 0.01469592812 | G68: 818357.72 | H68: 1794431.122 | I68: 0 | J68: 0.003770252576
C69: 2019 | D69: 786.39 | E69: 1426.12 | F69: 0.01823697659 | G69: 1033830.01 | H69: 2014239.872 | I69: 0 | J69: 0.004492728465
C70: 2020 | D70: 1058.35 | E70: 2051.92 | F70: 0.02660169347 | G70: 1394099.52 | H70: 2642106.923 | I70: 0 | J70: 0.00619093158
C71: 2021 | D71: 1531.28 | E71: 3203.02 | F71: 0.03966404155 | G71: 2065525.52 | H71: 4190018.375 | I71: 0 | J71: 0.009305289194
C72: 2022 | D72: 1898.77 | E72: 4321.92 | F72: 0.05122017291 | G72: 2597808.4 | H72: 6644716.901 | I72: 0 | J72: 0.01347454549
B73: PJM | C73: 2012 | D73: 1009.1 | E73: 478.17 | F73: 0.009636401699 | G73: 1180687.77 | H73: 562272.5052 | I73: 0 | J73: 0.002228761999
C74: 2013 | D74: 1296.03 | E74: 609.27 | F74: 0.01209645778 | G74: 1660732.56 | H74: 838125.951 | I74: 0 | J74: 0.003151905258
C75: 2014 | D75: 1467.09 | E75: 772.33 | F75: 0.01580641389 | G75: 2165773.26 | H75: 967536.8608 | I75: 0 | J75: 0.003918517669
C76: 2015 | D76: 1750.88 | E76: 1144.23 | F76: 0.02015625622 | G76: 2357187.98 | H76: 1314315.061 | I76: 0 | J76: 0.004618140769
C77: 2016 | D77: 2022.12 | E77: 1636.16 | F77: 0.02403959856 | G77: 2562752.75 | H77: 2172953.826 | I77: 0 | J77: 0.005957886516
C78: 2017 | D78: 2520.2 | E78: 2250.05 | F78: 0.03271293789 | G78: 3234425.09 | H78: 2909251.536 | I78: 0 | J78: 0.007900728883
C79: 2018 | D79: 2913.07 | E79: 2724.15 | F79: 0.03729923578 | G79: 3768780.47 | H79: 3863102.568 | I79: 0 | J79: 0.009403313564
C80: 2019 | D80: 3460.92 | E80: 3320.77 | F80: 0.04463778128 | G80: 4446073.12 | H80: 4882310.141 | I80: 0 | J80: 0.01174735248
C81: 2020 | D81: 4056.71 | E81: 4644.12 | F81: 0.06002695712 | G81: 5189919.92 | H81: 6094254.094 | I81: 0 | J81: 0.01477167533
C82: 2021 | D82: 4562.76 | E82: 6419.72 | F82: 0.07364905953 | G82: 5849160.63 | H82: 9927679.845 | I82: 0 | J82: 0.01993917736
C83: 2022 | D83: 5295.25 | E83: 7341.22 | F83: 0.0853239431 | G83: 6669852.82 | H83: 12382986.02 | I83: 0 | J83: 0.02368561146
B84: NYISO | C84: 2012 | D84: 106.73 | E84: 43.5 | F84: 0.004631111029 | G84: 120567.79 | H84: 59821.37641 | I84: 0 | J84: 0.001107604794
C85: 2013 | D85: 164.96 | E85: 47.1 | F85: 0.006245177554 | G85: 189856.42 | H85: 66937.11647 | I85: 0 | J85: 0.001568693119
C86: 2014 | D86: 321.59 | E86: 57.8 | F86: 0.01273881715 | G86: 350159.19 | H86: 75313.37197 | I86: 0 | J86: 0.002652931248
C87: 2015 | D87: 536.74 | E87: 83.3 | F87: 0.01991239113 | G87: 588516.52 | H87: 98624.88557 | I87: 0 | J87: 0.004237172623
C88: 2016 | D88: 727.84 | E88: 120.5 | F88: 0.02644822372 | G88: 873428.91 | H88: 151744.1099 | I88: 0 | J88: 0.00634184864
C89: 2017 | D89: 983.54 | E89: 165.9 | F89: 0.03870246537 | G89: 1181575.57 | H89: 186846.9592 | I89: 0 | J89: 0.008686568018
C90: 2018 | D90: 1227.1 | E90: 305.8 | F90: 0.04811226299 | G90: 1496725.1 | H90: 323023.3307 | I90: 0 | J90: 0.01118935093
C91: 2019 | D91: 1515.29 | E91: 529.8 | F91: 0.06727955811 | G91: 1852105.73 | H91: 552355.7432 | I91: 0 | J91: 0.01524865744
C92: 2020 | D92: 1811.61 | E92: 693.5 | F92: 0.08170589193 | G92: 2290435.34 | H92: 933411.9157 | I92: 0 | J92: 0.02114174376
C93: 2021 | D93: 2207.92 | E93: 881.7 | F93: 0.09992645285 | G93: 2702377.67 | H93: 1240404.264 | I93: 0 | J93: 0.02548876275
C94: 2022 | D94: 2642.84 | E94: 1041.62 | F94: 0.1207835923 | G94: 3361159.38 | H94: 1638660.408 | I94: 0 | J94: 0.03204097837
B95: ISO-NE | C95: 2012 | D95: 196.69 | E95: 73.5 | F95: 0.01057383368 | G95: 198408.11 | H95: 54693.11542 | I95: 0 | J95: 0.002006747924
C96: 2013 | D96: 396 | E96: 205.2 | F96: 0.02233466331 | G96: 421291.55 | H96: 149956.4023 | I96: 0 | J96: 0.004476091415
C97: 2014 | D97: 701.35 | E97: 382.65 | F97: 0.04500147376 | G97: 823192.49 | H97: 419882.1922 | I97: 0 | J97: 0.009864480382
C98: 2015 | D98: 1034.03 | E98: 451.45 | F98: 0.06175733261 | G98: 1171252.62 | H98: 605110.749 | I98: 0 | J98: 0.0140773946
C99: 2016 | D99: 1344.11 | E99: 612.66 | F99: 0.07783275724 | G99: 1705874.88 | H99: 759658.5283 | I99: 0 | J99: 0.0198815021
C100: 2017 | D100: 1791.72 | E100: 872.96 | F100: 0.1133265003 | G100: 2216909.46 | H100: 1016040.481 | I100: 0 | J100: 0.02668226395
C101: 2018 | D101: 2308.98 | E101: 1087.25 | F101: 0.1329420238 | G101: 2972212.61 | H101: 1342688.938 | I101: 0 | J101: 0.03469712257
C102: 2019 | D102: 2563.57 | E102: 1317.53 | F102: 0.1621862189 | G102: 3255324.47 | H102: 1733909.026 | I102: 0 | J102: 0.04147616902
C103: 2020 | D103: 2893.37 | E103: 1589.03 | F103: 0.1813767541 | G103: 3776045.52 | H103: 2133131.065 | I103: 0 | J103: 0.04983150304
C104: 2021 | D104: 3345.95 | E104: 2045.83 | F104: 0.2132754344 | G104: 4297958.55 | H104: 2565014.701 | I104: 0 | J104: 0.05671902941
C105: 2022 | D105: 3804.47 | E105: 2196.43 | F105: 0.2455264628 | G105: 4880107.68 | H105: 3440433.949 | I105: 0 | J105: 0.06835054686
A108: Region | B108: BA | C108: Date | D108: Capacity (GWAC) | G108: Generation (TWh)
D109: DPV | E109: Utility-Scale | F109: Penetration (right axis) | G109: DPV | H109: Utility-Scale | I109: Curtailment | J109: Penetration (right axis)
A110: West | B110: AZPS | C110: 2012 | D110: 186.22 | E110: 158.2 | F110: 0.04654324324 | G110: 297171.42 | H110: 239862.5176 | I110: 0 | J110: 0.01676340592
C111: 2013 | D111: 287.24 | E111: 619.84 | F111: 0.1274217837 | G111: 480868.74 | H111: 694920.5758 | I111: 0 | J111: 0.03703174704
C112: 2014 | D112: 381.5 | E112: 656.96 | F112: 0.1444713411 | G112: 682815 | H112: 1572667.534 | I112: 0 | J112: 0.07136125391
C113: 2015 | D113: 453.68 | E113: 679.36 | F113: 0.1547868852 | G113: 808346.03 | H113: 1638216.278 | I113: 0 | J113: 0.07601978988
C114: 2016 | D114: 549.26 | E114: 679.36 | F114: 0.1688824742 | G114: 1010155.26 | H114: 1671444.817 | I114: 0 | J114: 0.08466667626
C115: 2017 | D115: 651.83 | E115: 719.36 | F115: 0.1861765105 | G115: 1154434.71 | H115: 1741898.461 | I115: 0 | J115: 0.09248395351
C116: 2018 | D116: 788.33 | E116: 725.96 | F116: 0.2086373657 | G116: 1427082.67 | H116: 1732161.395 | I116: 0 | J116: 0.1006276014
C117: 2019 | D117: 946.03 | E117: 727.76 | F117: 0.2382280102 | G117: 1697240.67 | H117: 1753621.1 | I117: 0 | J117: 0.1103060787
C118: 2020 | D118: 1088.19 | E118: 727.76 | F118: 0.2419331202 | G118: 1921951.86 | H118: 1765969.724 | I118: 0 | J118: 0.1130527821
C119: 2021 | D119: 1215.01 | E119: 727.76 | F119: 0.2595204382 | G119: 2089776.73 | H119: 1688312.021 | I119: 0 | J119: 0.1148370821
C120: 2022 | D120: 1304.54 | E120: 727.76 | F120: 0.2691431598 | G120: 2255280.58 | H120: 1681151.727 | I120: 0 | J120: 0.1148773246
B121: BPAT | C121: 2012 | D121: 51.59 | E121: 4.4 | F121: 0.006151395298 | G121: 77751.48 | H121: 616.7476387 | I121: 0 | J121: 0.001441630013
C122: 2013 | D122: 71.34 | E122: 4.4 | F122: 0.007170481172 | G122: 107892.48 | H122: 10168.38877 | I122: 0 | J122: 0.00214179295
C123: 2014 | D123: 99.28 | E123: 4.4 | F123: 0.0097832087 | G123: 156591.37 | H123: 10185.43454 | I123: 0 | J123: 0.003022894407
C124: 2015 | D124: 137.1 | E124: 4.4 | F124: 0.01483542637 | G124: 202696.8 | H124: 9957.551849 | I124: 0 | J124: 0.00391694273
C125: 2016 | D125: 186.1 | E125: 4.4 | F125: 0.01971127381 | G125: 280842.11 | H125: 10343.46821 | I125: 0 | J125: 0.005367281934
C126: 2017 | D126: 235.78 | E126: 4.4 | F126: 0.02203544865 | G126: 363647.72 | H126: 9814.128545 | I126: 0 | J126: 0.006575665216
C127: 2018 | D127: 287.35 | E127: 4.4 | F127: 0.02884170525 | G127: 449087.13 | H127: 10052.47327 | I127: 0 | J127: 0.008214256924
C128: 2019 | D128: 337.76 | E128: 14.8 | F128: 0.03448609787 | G128: 533856.62 | H128: 10614.4636 | I128: 0 | J128: 0.009639444987
C129: 2020 | D129: 389.52 | E129: 87.9 | F129: 0.05100188765 | G129: 615156.51 | H129: 139169.6319 | I129: 0 | J129: 0.01357320629
C130: 2021 | D130: 327.14 | E130: 87.9 | F130: 0.04143563121 | G130: 504118.23 | H130: 235538.2608 | I130: 0 | J130: 0.01310995578
C131: 2022 | D131: 392.84 | E131: 137.9 | F131: 0.04827577425 | G131: 597111.49 | H131: 298943.2174 | I131: 0 | J131: 0.01549023735
B132: IPCO | C132: 2012 | D132: 0.08 | E132: 0 | F132: 2.230275997e-05 | G132: 135.8 | H132: 0 | I132: 0 | J132: 7.952238877e-06
C133: 2013 | D133: 0.09 | E133: 0 | F133: 2.384737679e-05 | G133: 142.07 | H133: 0 | I133: 0 | J133: 8.064566453e-06
C134: 2014 | D134: 2.13 | E134: 0 | F134: 0.0006 | G134: 3027.93 | H134: 0 | I134: 0 | J134: 0.0001782814293
C135: 2015 | D135: 4.09 | E135: 0 | F135: 0.001086032926 | G135: 5455.63 | H135: 0 | I135: 0 | J135: 0.0003187671777
C136: 2016 | D136: 6.68 | E136: 169.5 | F136: 0.04817610063 | G136: 9039.99 | H136: 26999.80828 | I136: 0 | J136: 0.002100751676
C137: 2017 | D137: 11.84 | E137: 289.5 | F137: 0.07917498686 | G137: 14455.66 | H137: 595784.5316 | I137: 0 | J137: 0.03460526348
C138: 2018 | D138: 22.58 | E138: 289.5 | F138: 0.08288977424 | G138: 28633.46 | H138: 669331.6632 | I138: 0 | J138: 0.03924186907
C139: 2019 | D139: 37.05 | E139: 291.5 | F139: 0.09347083926 | G139: 48773.68 | H139: 660752.7486 | I139: 0 | J139: 0.04041943047
C140: 2020 | D140: 51.74 | E140: 318.3 | F140: 0.09576604555 | G140: 74023.09 | H140: 751912.8274 | I140: 0 | J140: 0.04707583988
C141: 2021 | D141: 75.61 | E141: 318.3 | F141: 0.09685517581 | G141: 100159.28 | H141: 758919.5505 | I141: 0 | J141: 0.04703339406
C142: 2022 | D142: 104.24 | E142: 438.3 | F142: 0.1395062998 | G142: 150012.48 | H142: 727198.9941 | I142: 0 | J142: 0.0462429346
B143: LDWP | C143: 2012 | D143: 59.55 | E143: 17.1 | F143: 0.01325766748 | G143: 92664.48 | H143: 22609.63767 | I143: 0 | J143: 0.004238054298
C144: 2013 | D144: 103.71 | E144: 30.1 | F144: 0.02282668031 | G144: 161305.91 | H144: 54568.84525 | I144: 0 | J144: 0.00807737686
C145: 2014 | D145: 113.7 | E145: 34.6 | F145: 0.02338154167 | G145: 186963.22 | H145: 62117.95036 | I145: 0 | J145: 0.009052306877
C146: 2015 | D146: 156 | E146: 295.9 | F146: 0.06576419773 | G146: 240570.97 | H146: 598012.2049 | I146: 0 | J146: 0.02875919375
C147: 2016 | D147: 210.31 | E147: 728.2 | F147: 0.1402339349 | G147: 329208.74 | H147: 886365.1729 | I147: 0 | J147: 0.04206395317
C148: 2017 | D148: 264.71 | E148: 878.6 | F148: 0.1611657739 | G148: 424210.03 | H148: 1915503.623 | I148: 0 | J148: 0.07991380687
C149: 2018 | D149: 314.77 | E149: 884.2 | F149: 0.1753649261 | G149: 516746.02 | H149: 2201373.841 | I149: 0 | J149: 0.09615974475
C150: 2019 | D150: 366.03 | E150: 975.1 | F150: 0.2158934321 | G150: 606460.25 | H150: 2274022.394 | I150: 0 | J150: 0.1054403767
C151: 2020 | D151: 421.86 | E151: 987.2 | F151: 0.2241584473 | G151: 696291.82 | H151: 2509656.738 | I151: 0 | J151: 0.1186028208
C152: 2021 | D152: 608.32 | E152: 991.6 | F152: 0.2895258777 | G152: 992427.69 | H152: 2516253.25 | I152: 0 | J152: 0.1314682669
C153: 2022 | D153: 710.39 | E153: 994 | F153: 0.2762382496 | G153: 1154711.77 | H153: 2570893.304 | I153: 0 | J153: 0.1378979011
B154: NEVP | C154: 2012 | D154: 36.05 | E154: 175.3 | F154: 0.02593888071 | G154: 62512.42 | H154: 310732.6988 | I154: 0 | J154: 0.0100357777
C155: 2013 | D155: 43.52 | E155: 208.6 | F155: 0.03093496933 | G155: 75492.43 | H155: 420189.0101 | I155: 0 | J155: 0.01371527894
C156: 2014 | D156: 59.06 | E156: 246.09 | F156: 0.03926273803 | G156: 103524.74 | H156: 531846.5814 | I156: 0 | J156: 0.01756256493
C157: 2015 | D157: 151.41 | E157: 394.49 | F157: 0.06685035513 | G157: 186237.19 | H157: 613547.6463 | I157: 0 | J157: 0.02179344702
C158: 2016 | D158: 209.53 | E158: 761.39 | F158: 0.1138909091 | G158: 372148.41 | H158: 1028014.365 | I158: 0 | J158: 0.03804489057
C159: 2017 | D159: 227.3 | E159: 1065.03 | F159: 0.1526313925 | G159: 412005.82 | H159: 2380444.392 | I159: 0 | J159: 0.07477635514
C160: 2018 | D160: 301.55 | E160: 1088.13 | F160: 0.1615343485 | G160: 496071.72 | H160: 2753453.52 | I160: 0 | J160: 0.08464795656
C161: 2019 | D161: 413.75 | E161: 1405.43 | F161: 0.2193897733 | G161: 680498.05 | H161: 2993172.959 | I161: 0 | J161: 0.09687646433
C162: 2020 | D162: 516.95 | E162: 1560.03 | F162: 0.2399191406 | G162: 872340.55 | H162: 3533551.5 | I162: 0 | J162: 0.1145017884
C163: 2021 | D163: 637.2 | E163: 2011.03 | F163: 0.2830212675 | G163: 1070628.05 | H163: 4575436.359 | I163: 0 | J163: 0.1418857482
C164: 2022 | D164: 773.42 | E164: 2322.73 | F164: 0.3451672241 | G164: 1292352.52 | H164: 5747092.41 | I164: 0 | J164: 0.1725316323
B165: PACE | C165: 2012 | D165: 21.38 | E165: 1.3 | F165: 0.002306873119 | G165: 26200.16 | H165: 1619 | I165: 0 | J165: 0.0004687822122
C166: 2013 | D166: 28.4 | E166: 1.3 | F166: 0.002826665448 | G166: 37727.1 | H166: 2100 | I166: 0 | J166: 0.000657400465
C167: 2014 | D167: 58.26 | E167: 1.3 | F167: 0.005774943957 | G167: 78929.59 | H167: 2235 | I167: 0 | J167: 0.001352192246
C168: 2015 | D168: 88 | E168: 166.4 | F168: 0.02030975571 | G168: 113614.06 | H168: 21837.35914 | I168: 0 | J168: 0.001930363423
C169: 2016 | D169: 175.09 | E169: 855.88 | F169: 0.08521821789 | G169: 225224.6 | H169: 1016456.108 | I169: 0 | J169: 0.01770209212
C170: 2017 | D170: 258.67 | E170: 855.88 | F170: 0.09062118871 | G170: 377891.93 | H170: 2211105 | I170: 0 | J170: 0.03615399582
C171: 2018 | D171: 316.56 | E171: 937.88 | F171: 0.1002990325 | G171: 497615.29 | H171: 2167941.229 | I171: 0 | J171: 0.03706552743
C172: 2019 | D172: 367.06 | E172: 995.48 | F172: 0.1401790123 | G172: 582946.36 | H172: 2350997.819 | I172: 0 | J172: 0.06719742854
C173: 2020 | D173: 431.97 | E173: 1274.48 | F173: 0.1986554133 | G173: 690921.18 | H173: 2632535.371 | I173: 0 | J173: 0.06944243211
C174: 2021 | D174: 518.87 | E174: 1534.58 | F174: 0.2269256271 | G174: 823998.23 | H174: 3470309.674 | I174: 0 | J174: 0.0853747374
C175: 2022 | D175: 636.1 | E175: 1616.08 | F175: 0.237221403 | G175: 983741.51 | H175: 3970680.09 | I175: 0 | J175: 0.0960126932
B176: PACW | C176: 2012 | D176: 0 | E176: 2 | F176: 0.0005162622612 | G176: 0 | H176: 252.4667449 | I176: 0 | J176: 1.225189888e-05
C177: 2013 | D177: 0 | E177: 2 | F177: 0.0005162622612 | G177: 0 | H177: 4648.230832 | I177: 0 | J177: 0.0002245566076
C178: 2014 | D178: 0 | E178: 4.9 | F178: 0.00126484254 | G178: 0 | H178: 8612.470854 | I178: 0 | J178: 0.0004160695344
C179: 2015 | D179: 0 | E179: 11.3 | F179: 0.002916881776 | G179: 0 | H179: 10145.656 | I179: 0 | J179: 0.0004901378987
C180: 2016 | D180: 0 | E180: 42 | F180: 0.01084150749 | G180: 0 | H180: 28454.62326 | I180: 0 | J180: 0.001379438988
C181: 2017 | D181: 0 | E181: 148.7 | F181: 0.03838409912 | G181: 0 | H181: 104382.0557 | I181: 0 | J181: 0.005042710049
C182: 2018 | D182: 0 | E182: 220.6 | F182: 0.05694372741 | G182: 0 | H182: 414867.3135 | I182: 0 | J182: 0.02004229133
C183: 2019 | D183: 0 | E183: 283.5 | F183: 0.07318017553 | G183: 0 | H183: 518858.3985 | I183: 0 | J183: 0.02506611354
C184: 2020 | D184: 0 | E184: 293.5 | F184: 0.07926005941 | G184: 0 | H184: 687411.1679 | I184: 0 | J184: 0.03352977089
C185: 2021 | D185: 0 | E185: 403.2 | F185: 0.0972972973 | G185: 0 | H185: 915250.0453 | I185: 0 | J185: 0.04257862788
C186: 2022 | D186: 0 | E186: 403.2 | F186: 0.101510574 | G186: 0 | H186: 898984.7836 | I186: 0 | J186: 0.0417621774
B187: PNM | C187: 2012 | D187: 18.61 | E187: 18 | F187: 0.01815972222 | G187: 30898.46 | H187: 36398.71262 | I187: 0 | J187: 0.006096021524
C188: 2013 | D188: 30.58 | E188: 54.5 | F188: 0.04076665069 | G188: 49218.37 | H188: 68063.50599 | I188: 0 | J188: 0.01076721736
C189: 2014 | D189: 47.87 | E189: 62.08 | F189: 0.05584052819 | G189: 89763.98 | H189: 126099.2875 | I189: 0 | J189: 0.02048926204
C190: 2015 | D190: 58.47 | E190: 122.6 | F190: 0.09224146714 | G190: 108241.65 | H190: 177667.3944 | I190: 0 | J190: 0.02730266727
C191: 2016 | D191: 69.58 | E191: 122.6 | F191: 0.09628256513 | G191: 123910.03 | H191: 286615.3579 | I191: 0 | J191: 0.03977145631
C192: 2017 | D192: 94.05 | E192: 162.6 | F192: 0.133741532 | G192: 165484.85 | H192: 351361.9888 | I192: 0 | J192: 0.0536597164
C193: 2018 | D193: 111.19 | E193: 196.6 | F193: 0.1573568507 | G193: 205354.57 | H193: 455804.487 | I193: 0 | J193: 0.06718557687
C194: 2019 | D194: 139.78 | E194: 306.3 | F194: 0.1724313877 | G194: 249527.66 | H194: 508668.8784 | I194: 0 | J194: 0.05443090208
C195: 2020 | D195: 169.36 | E195: 368.4 | F195: 0.2058805513 | G195: 299467.49 | H195: 838322.4921 | I195: 0 | J195: 0.08144218668
C196: 2021 | D196: 39.34 | E196: 368.4 | F196: 0.109902965 | G196: 69373.76 | H196: 903830.4572 | I196: 0 | J196: 0.0692236067
C197: 2022 | D197: 47.55 | E197: 485.4 | F197: 0.1912271259 | G197: 85914.86 | H197: 1052033.652 | I197: 0 | J197: 0.07913729787
B198: PSCO | C198: 2012 | D198: 142.44 | E198: 101.2 | F198: 0.02837312216 | G198: 218666.47 | H198: 216905.6827 | I198: 0 | J198: 0.009755479663
C199: 2013 | D199: 184.25 | E199: 102.2 | F199: 0.0339919307 | G199: 281682.02 | H199: 227726.4214 | I199: 0 | J199: 0.01139812785
C200: 2014 | D200: 195.61 | E200: 106.9 | F200: 0.03756488265 | G200: 325033.64 | H200: 231647.8084 | I200: 0 | J200: 0.0130296249
C201: 2015 | D201: 225.63 | E201: 162.8 | F201: 0.04527156177 | G201: 352100.53 | H201: 222432.2472 | I201: 0 | J201: 0.01218145397
C202: 2016 | D202: 250.18 | E202: 372.23 | F202: 0.06867593512 | G202: 410300.63 | H202: 480823.0796 | I202: 0 | J202: 0.0187680375
C203: 2017 | D203: 287.98 | E203: 408.63 | F203: 0.07589170934 | G203: 466960.08 | H203: 862444.3646 | I203: 0 | J203: 0.02797930053
C204: 2018 | D204: 303.88 | E204: 472.13 | F204: 0.08337093572 | G204: 501635.76 | H204: 996768.7031 | I204: 0 | J204: 0.03102892162
C205: 2019 | D205: 313.21 | E205: 506.13 | F205: 0.08499377593 | G205: 513082.9 | H205: 1106718.836 | I205: 0 | J205: 0.03350663225
C206: 2020 | D206: 364.84 | E206: 517.93 | F206: 0.09291337754 | G206: 560548.46 | H206: 1156056.577 | I206: 0 | J206: 0.03504100233
C207: 2021 | D207: 620.95 | E207: 889.83 | F207: 0.151745681 | G207: 908299.99 | H207: 1331626.03 | I207: 0 | J207: 0.04471590062
C208: 2022 | D208: 738.68 | E208: 1089.83 | F208: 0.1999027003 | G208: 1147369.28 | H208: 2010658.03 | I208: 0 | J208: 0.06665374742
B209: WACM | C209: 2012 | D209: 9.13 | E209: 40.14 | F209: 0.00627803262 | G209: 14025.46 | H209: 83347.89816 | I209: 0 | J209: 0.002075039844
C210: 2013 | D210: 13.91 | E210: 40.14 | F210: 0.006622151433 | G210: 21274.43 | H210: 86673.80821 | I210: 0 | J210: 0.002108762059
C211: 2014 | D211: 17.74 | E211: 40.14 | F211: 0.00699601609 | G211: 29355.65 | H211: 83693.03459 | I211: 0 | J211: 0.002204407473
C212: 2015 | D212: 25.9 | E212: 50.14 | F212: 0.009226195893 | G212: 40368.46 | H212: 83902.19859 | I212: 0 | J212: 0.002401692127
C213: 2016 | D213: 31.95 | E213: 68.64 | F213: 0.01206381264 | G213: 52276.27 | H213: 115686.846 | I213: 0 | J213: 0.003287607215
C214: 2017 | D214: 41 | E214: 74.94 | F214: 0.01355622254 | G214: 66103.16 | H214: 158601.42 | I214: 0 | J214: 0.004309523218
C215: 2018 | D215: 57.26 | E215: 81.94 | F215: 0.0156649325 | G215: 93689.17 | H215: 166448.5271 | I215: 0 | J215: 0.004804291573
C216: 2019 | D216: 78.79 | E216: 127.04 | F216: 0.02145179781 | G216: 128232.35 | H216: 183047.2607 | I216: 0 | J216: 0.01381417351
C217: 2020 | D217: 95.89 | E217: 194.64 | F217: 0.04586832965 | G217: 147766.29 | H217: 401648.0276 | I217: 0 | J217: 0.02714792396
C218: 2021 | D218: 107.13 | E218: 201.64 | F218: 0.0574455814 | G218: 156950.67 | H218: 465888.6549 | I218: 0 | J218: 0.02995144761
C219: 2022 | D219: 128.2 | E219: 226.64 | F219: 0.03945296865 | G219: 198536.7 | H219: 503075.0099 | I219: 0 | J219: 0.0265618882
A220: Southeast | B220: CPLE | C220: 2012 | D220: 31.38 | E220: 82.7 | F220: 0.008435997929 | G220: 48948.44 | H220: 81596.61144 | I220: 0 | J220: 0.001964064161
C221: 2013 | D221: 26.98 | E221: 199.1 | F221: 0.01767078318 | G221: 38857.02 | H221: 203415.6126 | I221: 0 | J221: 0.003604164355
C222: 2014 | D222: 31.45 | E222: 375.8 | F222: 0.0286493141 | G222: 39944.53 | H222: 444746.3486 | I222: 0 | J222: 0.007221223866
C223: 2015 | D223: 29.2 | E223: 661.8 | F223: 0.04438306892 | G223: 36437.23 | H223: 758005.6699 | I223: 0 | J223: 0.01195242465
C224: 2016 | D224: 51.39 | E224: 846.16 | F224: 0.06749511205 | G224: 77742.98 | H224: 1338072.122 | I224: 0 | J224: 0.02114825278
C225: 2017 | D225: 64.87 | E225: 1147.94 | F225: 0.08344640154 | G225: 101037.98 | H225: 1732040.981 | I225: 0 | J225: 0.02786649956
... 82 more rows

Sheet PV Capacity by Region
A1: Annual and cumulative utility-scale PV capacity by region
A23: Sources: Berkeley Lab: Capacity Information, NREL: Long-Term Annual Average Solar Resource
B25: Annual Capacity Additions (MWAC) | N25: State-level Statistics (MWAC)
A26: Solar COD | B26: CAISO | C26: ERCOT | D26: HI | E26: ISO-NE | F26: MISO | G26: NYISO | H26: PJM | I26: SPP | J26: Southeast (non-ISO) | K26: West (non-ISO) | L26: Total | N26: State | O26: Cumulative Capacity | P26: 2022 Annual Capacity | Q26: 2022 Annual New Project Count
A27: 2007 | K27: 18.9 | L27: 18.9 | N27: CA | O27: 15614.2 | P27: 2088.4 | Q27: 20
A28: 2008 | B28: 10 | L28: 10 | N28: TX | O28: 11324.07 | P28: 2504.1 | Q28: 14
A29: 2009 | B29: 21 | J29: 25 | L29: 46 | N29: FL | O29: 5935.46 | P29: 1112.2 | Q29: 16
A30: 2010 | B30: 48 | C30: 13.9 | H30: 23.43 | J30: 40.1 | K30: 49.64 | L30: 175.07 | N30: GA | O30: 3500.77 | P30: 547.3 | Q30: 5
A31: 2011 | B31: 95 | C31: 30 | G31: 31.5 | H31: 73.58 | I31: 49.86 | J31: 5.5 | K31: 199.71 | L31: 485.15 | N31: NC | O31: 3432.94 | P31: 208.3 | Q31: 7
A32: 2012 | B32: 425.42 | C32: 30.4 | D32: 5.76 | H32: 107.4 | J32: 40.1 | K32: 352.06 | L32: 961.14 | N32: NV | O32: 3207.13 | P32: 300 | Q32: 2
A33: 2013 | B33: 900.1 | C33: 50.7 | F33: 38.8 | H33: 17.3 | J33: 43.65 | K33: 293.24 | L33: 1343.79 | N33: VA | O33: 2825.3 | P33: 645.6 | Q33: 10
A34: 2014 | B34: 2676.44 | C34: 39.6 | D34: 12 | E34: 20.25 | F34: 16.71 | H34: 102.45 | J34: 61.68 | K34: 254.95 | L34: 3184.08 | N34: AZ | O34: 2573.74 | P34: 212.5 | Q34: 3
A35: 2015 | B35: 1337.16 | C35: 130.26 | D35: 22.2 | F35: 20.4 | H35: 246.15 | J35: 415.1 | K35: 715.41 | L35: 2886.68 | N35: UT | O35: 1487.06 | P35: 80 | Q35: 1
A36: 2016 | B36: 3102.19 | C36: 269.5 | D36: 6.5 | E36: 26.61 | F36: 110.6 | G36: 9.5 | H36: 368.79 | I36: 165 | J36: 1334.89 | K36: 2048.68 | L36: 7442.26 | N36: SC | O36: 1129.59 | P36: 113.2 | Q36: 4
A37: 2017 | B37: 528.89 | C37: 660.75 | D37: 45.6 | E37: 27.2 | F37: 273.29 | G37: 15 | H37: 472.79 | I37: 18.68 | J37: 1200.7 | K37: 835.84 | L37: 4078.74 | N37: CO | O37: 1106.63 | P37: 207.8 | Q37: 2
A38: 2018 | B38: 835.8 | C38: 646 | D38: 20 | E38: 64.59 | F38: 111.62 | G38: 32.6 | H38: 360.9 | I38: 18.4 | J38: 1377.3 | K38: 494.9 | L38: 3962.12 | N38: NM | O38: 779.8 | P38: 114.5 | Q38: 3
A39: 2019 | B39: 978.8 | C39: 497.7 | D39: 129.35 | E39: 110.48 | F39: 13.2 | G39: 65 | H39: 492.13 | I39: 16 | J39: 1548.2 | K39: 755.3 | L39: 4606.16 | N39: WI | O39: 699.5 | P39: 265.5 | Q39: 5
A40: 2020 | B40: 1754.7 | C40: 2495.4 | D40: 14 | E40: 98.1 | F40: 440.9 | G40: 27 | H40: 1131.95 | I40: 30 | J40: 2815.39 | K40: 815.7 | L40: 9623.14 | N40: IL | O40: 665.15 | P40: 219 | Q40: 2
A41: 2021 | B41: 1179 | C41: 3945.34 | E41: 287.31 | F41: 998 | G41: 30 | H41: 1706.9 | I41: 5 | J41: 2567.8 | K41: 1759.6 | L41: 12478.96 | N41: MI | O41: 648.03 | P41: 354 | Q41: 6
A42: 2022 | B42: 2068.4 | C42: 2504.1 | D42: 39 | E42: 85.21 | F42: 1253 | G42: 93.53 | H42: 886.8 | I42: 8 | J42: 2227.8 | K42: 1263.3 | L42: 10429.13 | N42: OR | O42: 623.8 | P42: 50 | Q42: 1
C43: =C42/L42 -> 0.2401063176 | N43: NJ | O43: 531.05 | P43: 17.2 | Q43: 2
B44: Cumulative Capacity (MWAC) | N44: AL | O44: 525.1 | P44: 100 | Q44: 1
A45: Solar COD | B45: CAISO | C45: ERCOT | D45: HI | E45: ISO-NE | F45: MISO | G45: NYISO | H45: PJM | I45: SPP | J45: Southeast (non-ISO) | K45: West (non-ISO) | L45: Total | N45: IN | O45: 513.37 | P45: 19 | Q45: 3
A46: 2007 | K46: 18.9 | L46: 18.9 | N46: OH | O46: 420.58
A47: 2008 | B47: 10 | K47: 18.9 | L47: 28.9 | N47: ID | O47: 360 | P47: 120 | Q47: 1
A48: 2009 | B48: 31 | J48: 25 | K48: 18.9 | L48: 74.9 | N48: TN | O48: 328.08 | P48: 156.8 | Q48: 2
A49: 2010 | B49: 79 | C49: 13.9 | H49: 23.43 | J49: 65.1 | K49: 68.54 | L49: 249.97 | N49: MD | O49: 318.3 | P49: 79.6 | Q49: 1
A50: 2011 | B50: 174 | C50: 43.9 | G50: 31.5 | H50: 97.01 | I50: 49.86 | J50: 70.6 | K50: 268.25 | L50: 735.12 | N50: AR | O50: 308.5 | P50: 100 | Q50: 1
A51: 2012 | B51: 599.42 | C51: 74.3 | D51: 5.76 | G51: 31.5 | H51: 204.41 | I51: 49.86 | J51: 110.7 | K51: 620.31 | L51: 1696.26 | N51: MS | O51: 307.1 | P51: 100 | Q51: 1
A52: 2013 | B52: 1499.52 | C52: 125 | D52: 5.76 | F52: 38.8 | G52: 31.5 | H52: 221.71 | I52: 49.86 | J52: 154.35 | K52: 913.55 | L52: 3040.05 | N52: NY | O52: 304.14 | P52: 93.53 | Q52: 8
A53: 2014 | B53: 4175.96 | C53: 164.6 | D53: 17.76 | E53: 20.25 | F53: 55.51 | G53: 31.5 | H53: 324.16 | I53: 49.86 | J53: 216.03 | K53: 1168.5 | L53: 6224.14 | N53: HI | O53: 294.41 | P53: 39 | Q53: 1
A54: 2015 | B54: 5513.12 | C54: 294.86 | D54: 39.96 | E54: 20.25 | F54: 75.91 | G54: 31.5 | H54: 570.32 | I54: 49.86 | J54: 631.13 | K54: 1883.91 | L54: 9110.82 | N54: MN | O54: 285.68 | P54: 15.6 | Q54: 2
A55: 2016 | B55: 8615.31 | C55: 564.36 | D55: 46.46 | E55: 46.86 | F55: 186.51 | G55: 41 | H55: 939.11 | I55: 214.86 | J55: 1966.01 | K55: 3932.59 | L55: 16553.08 | N55: IA | O55: 231 | P55: 131 | Q55: 3
A56: 2017 | B56: 9144.2 | C56: 1225.11 | D56: 92.06 | E56: 74.06 | F56: 459.8 | G56: 56 | H56: 1411.9 | I56: 233.54 | J56: 3166.71 | K56: 4768.42 | L56: 20631.82 | N56: ME | O56: 193.7 | P56: 21 | Q56: 3
A57: 2018 | B57: 9980 | C57: 1871.11 | D57: 112.06 | E57: 138.65 | F57: 571.43 | G57: 88.6 | H57: 1772.8 | I57: 251.94 | J57: 4544.01 | K57: 5263.32 | L57: 24593.94 | N57: MA | O57: 191.09 | P57: 30.01 | Q57: 6
A58: 2019 | B58: 10958.8 | C58: 2368.81 | D58: 241.41 | E58: 249.13 | F58: 584.63 | G58: 153.6 | H58: 2264.93 | I58: 267.94 | J58: 6092.22 | K58: 6018.62 | L58: 29200.1 | N58: WA | O58: 169.2 | P58: 150 | Q58: 1
A59: 2020 | B59: 12713.5 | C59: 4864.21 | D59: 255.41 | E59: 347.23 | F59: 1025.53 | G59: 180.6 | H59: 3396.88 | I59: 297.95 | J59: 8907.6 | K59: 6834.32 | L59: 38823.24 | N59: CT | O59: 166.5 | P59: 15 | Q59: 1
A60: 2021 | B60: 13892.5 | C60: 8809.55 | D60: 255.41 | E60: 634.55 | F60: 2023.53 | G60: 210.61 | H60: 5103.78 | I60: 302.95 | J60: 11475.4 | K60: 8593.92 | L60: 51302.2 | N60: RI | O60: 138.88 | P60: 19.2 | Q60: 2
A61: 2022 | B61: 15960.9 | C61: 11313.65 | D61: 294.41 | E61: 719.75 | F61: 3276.53 | G61: 304.14 | H61: 5990.58 | I61: 310.95 | J61: 13703.2 | K61: 9857.22 | L61: 61731.33 | M61: =B61-C61 -> 4647.25 | N61: LA | O61: 120 | P61: 50 | Q61: 1
N62: PA | O62: 108.5 | P62: 20 | Q62: 1
B63: Annual Capacity Additions (MWDC) | N63: WY | O63: 80
A64: Solar COD | B64: CAISO | C64: ERCOT | D64: HI | E64: ISO-NE | F64: MISO | G64: NYISO | H64: PJM | I64: SPP | J64: Southeast (non-ISO) | K64: West (non-ISO) | L64: Total | N64: KY | O64: 76.1 | P64: 57.6 | Q64: 1
A65: 2007 | K65: 22.28 | L65: 22.28 | N65: DE | O65: 72 | P65: 50 | Q65: 1
A66: 2008 | B66: 12.14 | L66: 12.14 | N66: MO | O66: 40.02 | P66: 13.7 | Q66: 2
A67: 2009 | B67: 25.2 | J67: 27.6 | L67: 52.8 | N67: VT | O67: 29.59
A68: 2010 | B68: 60.5 | C68: 16.6 | H68: 28.17 | J68: 48.3 | K68: 57.15 | L68: 210.72 | N68: KS | O68: 26
A69: 2011 | B69: 118.41 | C69: 34.99 | G69: 37.69 | H69: 85.32 | I69: 54 | J69: 5.92 | K69: 242.82 | L69: 579.15 | N69: OK | O69: 25
A70: 2012 | B70: 560.55 | C70: 35.43 | D70: 7.2 | H70: 133.73 | J70: 49.31 | K70: 431.2 | L70: 1217.42 | N70: NE | O70: 14.26 | P70: 8.5 | Q70: 1
A71: 2013 | B71: 1171.33 | C71: 61.67 | F71: 52.27 | H71: 21.36 | J71: 55 | K71: 392.52 | L71: 1754.16 | N71: KY | O71: 18.5
A72: 2014 | B72: 3463.02 | C72: 48.1 | D72: 14.26 | E72: 24.66 | F72: 22.06 | H72: 139.33 | J72: 78.6 | K72: 322.1 | L72: 4112.13 | N72: NE | O72: 5.76
A73: 2015 | B73: 1697.12 | C73: 162.37 | D73: 28.83 | F73: 27.27 | H73: 332.86 | J73: 563.24 | K73: 939.58 | L73: 3751.27
A74: 2016 | B74: 3981.58 | C74: 344.1 | D74: 8.13 | E74: 36.54 | F74: 152.15 | G74: 14.25 | H74: 469.58 | I74: 223.6 | J74: 1794.3 | K74: 2647.55 | L74: 9671.78
A75: 2017 | B75: 700.8 | C75: 855.63 | D75: 63.59 | E75: 34.56 | F75: 385.09 | G75: 19.02 | H75: 621.27 | I75: 24.73 | J75: 1628.3 | K75: 1091.58 | L75: 5424.58
A76: 2018 | B76: 1120.33 | C76: 854.69 | D76: 28.19 | E76: 87.95 | F76: 135.64 | G76: 42.4 | H76: 506.69 | I76: 24.07 | J76: 1959.88 | K76: 655.38 | L76: 5415.22
A77: 2019 | B77: 1220.81 | C77: 647.35 | D77: 140.9 | E77: 155.5 | F77: 16.67 | G77: 87.2 | H77: 672.25 | I77: 19.27 | J77: 2156.79 | K77: 978.34 | L77: 6095.07
A78: 2020 | B78: 2277.73 | C78: 3246.09 | D78: 19.3 | E78: 140.9 | F78: 626.48 | G78: 35.48 | H78: 1513.15 | I78: 39.7 | J78: 3858.09 | K78: 1055.44 | L78: 12812.37
A79: 2021 | B79: 1547.8 | C79: 5263.8 | E79: 407.42 | F79: 1319.03 | G79: 41.43 | H79: 2251.81 | I79: 6.42 | J79: 3516.4 | K79: 2275.97 | L79: 16630.08
A80: 2022 | B80: 2599.9 | C80: 3087.44 | D80: 50.1 | E80: 121.24 | F80: 1405.69 | G80: 130.28 | H80: 1137.8 | I80: 10.8 | J80: 2959.39 | K80: 1679.96 | L80: 13182.59
B82: Cumulative Capacity (MWDC)
A83: Solar COD | B83: CAISO | C83: ERCOT | D83: HI | E83: ISO-NE | F83: MISO | G83: NYISO | H83: PJM | I83: SPP | J83: Southeast (non-ISO) | K83: West (non-ISO) | L83: Total
A84: 2007 | K84: 22.28 | L84: 22.28
A85: 2008 | B85: 12.14 | K85: 22.28 | L85: 34.42
A86: 2009 | B86: 37.34 | J86: 27.6 | K86: 22.28 | L86: 87.22
A87: 2010 | B87: 97.84 | C87: 16.6 | H87: 28.17 | J87: 75.9 | K87: 79.43 | L87: 297.94
A88: 2011 | B88: 216.25 | C88: 51.59 | G88: 37.69 | H88: 113.5 | I88: 54 | J88: 81.81 | K88: 322.25 | L88: 877.09
A89: 2012 | B89: 776.79 | C89: 87.02 | D89: 7.2 | G89: 37.69 | H89: 247.23 | I89: 54 | J89: 131.13 | K89: 753.45 | L89: 2094.51
A90: 2013 | B90: 1948.13 | C90: 148.7 | D90: 7.2 | F90: 52.27 | G90: 37.69 | H90: 268.59 | I90: 54 | J90: 186.13 | K90: 1145.97 | L90: 3848.68
A91: 2014 | B91: 5411.14 | C91: 196.8 | D91: 21.46 | E91: 24.66 | F91: 74.33 | G91: 37.69 | H91: 407.92 | I91: 54 | J91: 264.73 | K91: 1468.07 | L91: 7960.81
A92: 2015 | B92: 7108.27 | C92: 359.17 | D92: 50.29 | E92: 24.66 | F92: 101.6 | G92: 37.69 | H92: 740.78 | I92: 54 | J92: 827.97 | K92: 2407.66 | L92: 11712.08
A93: 2016 | B93: 11089.85 | C93: 703.27 | D93: 58.42 | E93: 61.2 | F93: 253.75 | G93: 51.94 | H93: 1210.36 | I93: 277.6 | J93: 2622.27 | K93: 5055.21 | L93: 21383.86
A94: 2017 | B94: 11790.65 | C94: 1558.9 | D94: 122.01 | E94: 95.76 | F94: 638.84 | G94: 70.96 | H94: 1831.63 | I94: 302.33 | J94: 4250.57 | K94: 6146.79 | L94: 26808.44
A95: 2018 | B95: 12910.98 | C95: 2413.59 | D95: 150.2 | E95: 183.72 | F95: 774.48 | G95: 113.36 | H95: 2338.32 | I95: 326.4 | J95: 6210.45 | K95: 6802.17 | L95: 32223.66
A96: 2019 | B96: 14131.78 | C96: 3060.94 | D96: 291.1 | E96: 339.22 | F96: 791.15 | G96: 200.56 | H96: 3010.57 | I96: 345.67 | J96: 8367.23 | K96: 7780.51 | L96: 38318.73
A97: 2020 | B97: 16409.51 | C97: 6307.03 | D97: 310.4 | E97: 480.12 | F97: 1417.63 | G97: 236.04 | H97: 4523.72 | I97: 385.37 | J97: 12225.32 | K97: 8835.95 | L97: 51131.11
A98: 2021 | B98: 17957.31 | C98: 11570.83 | D98: 310.4 | E98: 887.54 | F98: 2736.66 | G98: 277.47 | H98: 6775.53 | I98: 391.79 | J98: 15741.72 | K98: 11111.92 | L98: 67761.18
A99: 2022 | B99: 20557.21 | C99: 14658.27 | D99: 360.5 | E99: 1008.78 | F99: 4142.36 | G99: 407.75 | H99: 7913.32 | I99: 402.59 | J99: 18701.12 | K99: 12791.88 | L99: 80943.78
B101: Annual New Project Count
A102: Solar COD | B102: CAISO | C102: ERCOT | D102: HI | E102: ISO-NE | F102: MISO | G102: NYISO | H102: PJM | I102: SPP | J102: Southeast (non-ISO) | K102: West (non-ISO) | L102: Total
A103: 2007 | K103: 2 | L103: 2
A104: 2008 | B104: 1 | L104: 1
A105: 2009 | B105: 1 | J105: 1 | L105: 2
A106: 2010 | B106: 1 | C106: 1 | H106: 3 | J106: 3 | K106: 2 | L106: 10
A107: 2011 | B107: 6 | C107: 1 | G107: 1 | H107: 7 | I107: 5 | J107: 1 | K107: 14 | L107: 35
A108: 2012 | B108: 10 | C108: 3 | D108: 1 | H108: 9 | J108: 3 | K108: 18 | L108: 44
A109: 2013 | B109: 16 | C109: 2 | F109: 4 | H109: 2 | J109: 3 | K109: 11 | L109: 38
A110: 2014 | B110: 32 | C110: 1 | D110: 1 | E110: 2 | F110: 2 | H110: 9 | J110: 3 | K110: 15 | L110: 65
A111: 2015 | B111: 34 | C111: 3 | D111: 2 | F111: 3 | H111: 13 | J111: 16 | K111: 18 | L111: 89
A112: 2016 | B112: 45 | C112: 2 | D112: 1 | E112: 2 | F112: 3 | G112: 1 | H112: 23 | I112: 3 | J112: 30 | K112: 42 | L112: 152
A113: 2017 | B113: 24 | C113: 15 | D113: 3 | E113: 4 | F113: 17 | G113: 2 | H113: 23 | I113: 3 | J113: 47 | K113: 28 | L113: 166
A114: 2018 | B114: 7 | C114: 10 | D114: 1 | E114: 4 | F114: 4 | G114: 2 | H114: 15 | I114: 2 | J114: 29 | K114: 22 | L114: 96
A115: 2019 | B115: 11 | C115: 9 | D115: 4 | E115: 9 | F115: 2 | G115: 5 | H115: 20 | I115: 3 | J115: 26 | K115: 22 | L115: 111
A116: 2020 | B116: 19 | C116: 16 | D116: 1 | E116: 6 | F116: 11 | G116: 5 | H116: 34 | I116: 3 | J116: 45 | K116: 24 | L116: 164
A117: 2021 | B117: 13 | C117: 20 | E117: 24 | F117: 16 | G117: 3 | H117: 29 | I117: 1 | J117: 32 | K117: 17 | L117: 155
A118: 2022 | B118: 19 | C118: 14 | D118: 1 | E118: 12 | F118: 24 | G118: 8 | H118: 18 | I118: 1 | J118: 34 | K118: 16 | L118: 147
B120: Cumulative Project Count
A121: Solar COD | B121: CAISO | C121: ERCOT | D121: HI | E121: ISO-NE | F121: MISO | G121: NYISO | H121: PJM | I121: SPP | J121: Southeast (non-ISO) | K121: West (non-ISO) | L121: Total
A122: 2007 | K122: 2 | L122: 2
A123: 2008 | B123: 1 | K123: 2 | L123: 3
A124: 2009 | B124: 2 | J124: 1 | K124: 2 | L124: 5
A125: 2010 | B125: 3 | C125: 1 | H125: 3 | J125: 4 | K125: 4 | L125: 15
A126: 2011 | B126: 9 | C126: 2 | G126: 1 | H126: 10 | I126: 5 | J126: 5 | K126: 18 | L126: 50
A127: 2012 | B127: 19 | C127: 5 | D127: 1 | G127: 1 | H127: 19 | I127: 5 | J127: 8 | K127: 36 | L127: 94
A128: 2013 | B128: 35 | C128: 7 | D128: 1 | F128: 4 | G128: 1 | H128: 21 | I128: 5 | J128: 11 | K128: 47 | L128: 132
A129: 2014 | B129: 67 | C129: 8 | D129: 2 | E129: 2 | F129: 6 | G129: 1 | H129: 30 | I129: 5 | J129: 14 | K129: 62 | L129: 197
A130: 2015 | B130: 101 | C130: 11 | D130: 4 | E130: 2 | F130: 9 | G130: 1 | H130: 43 | I130: 5 | J130: 30 | K130: 80 | L130: 286
A131: 2016 | B131: 146 | C131: 13 | D131: 5 | E131: 4 | F131: 12 | G131: 2 | H131: 66 | I131: 8 | J131: 60 | K131: 122 | L131: 438
A132: 2017 | B132: 170 | C132: 28 | D132: 8 | E132: 8 | F132: 29 | G132: 4 | H132: 89 | I132: 11 | J132: 107 | K132: 150 | L132: 604
A133: 2018 | B133: 177 | C133: 38 | D133: 9 | E133: 12 | F133: 33 | G133: 6 | H133: 104 | I133: 13 | J133: 136 | K133: 172 | L133: 700
A134: 2019 | B134: 188 | C134: 47 | D134: 13 | E134: 21 | F134: 35 | G134: 11 | H134: 124 | I134: 16 | J134: 162 | K134: 194 | L134: 811
A135: 2020 | B135: 207 | C135: 63 | D135: 14 | E135: 27 | F135: 46 | G135: 16 | H135: 158 | I135: 19 | J135: 207 | K135: 218 | L135: 975
A136: 2021 | B136: 220 | C136: 83 | D136: 14 | E136: 51 | F136: 62 | G136: 19 | H136: 187 | I136: 20 | J136: 239 | K136: 235 | L136: 1130
A137: 2022 | B137: 239 | C137: 97 | D137: 15 | E137: 63 | F137: 86 | G137: 27 | H137: 205 | I137: 21 | J137: 273 | K137: 251 | L137: 1277

Sheet PV+Storage Capacity by Region
A1: Annual and cumulative storage capacity that is coupled with utility-scale PV by region | O1: Annual and cumulative utility-scale PV capacity with/without hybrid capabilities
A23: Sources: Berkeley Lab
B25: Annual Capacity Additions (Storage MW) | O25: Installation Year | P25: PV standalone | V25: PV-storage hybrid
A26: Storage COD | B26: CAISO | C26: ERCOT | D26: HI | E26: ISO-NE | F26: MISO | G26: NYISO | H26: PJM | I26: SPP | J26: Southeast (non-ISO) | K26: West (non-ISO) | L26: Total | P26: Annual New Project Count | Q26: Annual Retrofit Project Count | R26: Cumulative Net Project Count | S26: Annual New Solar Capacity GWAC | T26: Annual Retrofit Solar Capacity GWAC | U26: Cumulative Net Solar Capacity GWAC | V26: Annual New Project Count | W26: Annual Retrofit Project Count | X26: Cumulative Project Count | Y26: Annual New Solar Capacity GWAC | Z26: Annual Retrofit Solar Capacity GWAC | AA26: Cumulative Solar Capacity GWAC
A27: 2012 | D27: 3 | L27: 3 | O27: 2007 | P27: 2 | R27: 2 | S27: 0.02 | U27: 0.02
A28: 2013 | H28: 33 | L28: 33 | O28: 2008 | P28: 1 | R28: 3 | S28: 0.01 | U28: 0.03
A29: 2015 | D29: 6 | L29: 6 | O29: 2009 | P29: 2 | R29: 5 | S29: 0.05 | U29: 0.07
A30: 2016 | C30: 1 | L30: 1 | O30: 2010 | P30: 10 | R30: 15 | S30: 0.18 | U30: 0.25
A31: 2017 | D31: 13.6 | J31: 1 | L31: 14.6 | O31: 2011 | P31: 35 | R31: 50 | S31: 0.49 | U31: 0.74
A32: 2018 | D32: 20 | F32: 9 | J32: 14 | K32: 46 | L32: 89 | O32: 2012 | P32: 43 | R32: 93 | S32: 0.96 | U32: 1.69 | V32: 1 | X32: 1 | Y32: 0.01 | AA32: 0.01
A33: 2019 | C33: 20 | E33: 13.3 | I33: 12 | J33: 2 | K33: 1.5 | L33: 48.8 | O33: 2013 | P33: 38 | Q33: -1 | R33: 130 | S33: 1.34 | T33: -0.02 | U33: 3.01 | W33: 1 | X33: 2 | Z33: 0.02 | AA33: 0.03
A34: 2020 | E34: 2.2 | G34: 5.82 | L34: 8.02 | O34: 2014 | P34: 65 | R34: 195 | S34: 3.18 | U34: 6.2
A35: 2021 | B35: 1044.7 | C35: 90 | D35: 14 | E35: 50.98 | G35: 7.5 | H35: 10 | J35: 527 | K35: 146 | L35: 1890.18 | O35: 2015 | P35: 87 | R35: 282 | S35: 2.86 | U35: 9.06 | V35: 1 | X35: 3 | Y35: 0.01 | AA35: 0.04
A36: 2022 | B36: 1239.65 | C36: 277 | D36: 39 | E36: 24.19 | F36: 10 | G36: 19 | J36: 40 | K36: 118.5 | L36: 1767.34 | O36: 2016 | P36: 151 | Q36: -1 | R36: 432 | S36: 7.39 | T36: -0.04 | U36: 16.41 | W36: 1 | X36: 4 | Z36: 0.04 | AA36: 0.08
O37: 2017 | P37: 162 | R37: 594 | S37: 4.04 | U37: 20.45 | V37: 2 | X37: 6 | Y37: 0.02 | AA37: 0.1
B38: Cumulative Capacity (Storage MW) | O38: 2018 | P38: 92 | Q38: -3 | R38: 683 | S38: 3.91 | T38: -0.2 | U38: 24.15 | V38: 3 | W38: 3 | X38: 12 | Y38: 0.05 | Z38: 0.2 | AA38: 0.35
A39: Storage COD | B39: CAISO | C39: ERCOT | D39: HI | E39: ISO-NE | F39: MISO | G39: NYISO | H39: PJM | I39: SPP | J39: Southeast (non-ISO) | K39: West (non-ISO) | L39: Total | O39: 2019 | P39: 98 | Q39: -3 | R39: 778 | S39: 4.42 | T39: -0.19 | U39: 28.38 | V39: 8 | W39: 3 | X39: 23 | Y39: 0.13 | Z39: 0.19 | AA39: 0.67
A40: 2012 | D40: 3 | L40: 3 | O40: 2020 | P40: 156 | Q40: -1 | R40: 933 | S40: 9.55 | T40: -0.01 | U40: 37.93 | V40: 2 | W40: 1 | X40: 26 | Y40: 0.01 | Z40: 0.01 | AA40: 0.68
A41: 2013 | D41: 3 | H41: 33 | L41: 36 | O41: 2021 | P41: 129 | Q41: -13 | R41: 1049 | S41: 11.05 | T41: -1.42 | U41: 47.57 | V41: 26 | W41: 13 | X41: 65 | Y41: 1.39 | Z41: 1.42 | AA41: 3.49
A42: 2015 | D42: 9 | H42: 33 | L42: 42 | O42: 2022 | P42: 120 | Q42: -9 | R42: 1160 | S42: 7.99 | T42: -1.34 | U42: 54.21 | V42: 26 | W42: 9 | X42: 100 | Y42: 2.24 | Z42: 1.34 | AA42: 7.07
A43: 2016 | C43: 1 | D43: 9 | H43: 33 | L43: 43
A44: 2017 | C44: 1 | D44: 22.6 | H44: 33 | J44: 1 | L44: 57.6
A45: 2018 | C45: 1 | D45: 42.6 | F45: 9 | H45: 33 | J45: 15 | K45: 46 | L45: 146.6
A46: 2019 | C46: 21 | D46: 42.6 | E46: 13.3 | F46: 9 | H46: 33 | I46: 12 | J46: 17 | K46: 47.5 | L46: 195.4
A47: 2020 | C47: 21 | D47: 42.6 | E47: 15.5 | F47: 9 | G47: 5.82 | H47: 33 | I47: 12 | J47: 17 | K47: 47.5 | L47: 203.42
A48: 2021 | B48: 1044.7 | C48: 111 | D48: 56.6 | E48: 66.48 | F48: 9 | G48: 13.32 | H48: 43 | I48: 12 | J48: 544 | K48: 193.5 | L48: 2093.6
A49: 2022 | B49: 2284.35 | C49: 388 | D49: 95.6 | E49: 90.67 | F49: 19 | G49: 32.32 | H49: 43 | I49: 12 | J49: 584 | K49: 312 | L49: 3860.94 | O49: State-level Hybrid Statistics
O50: State | P50: 2022 Annual New Project Count | Q50: 2022 Annual Capacity MW | R50: Cumulative Capacity MW | S50: 2022 Annual Energy MWh | T50: Cumulative Energy MWh
B51: Annual Energy Additions (Storage MWh) | O51: CA | P51: 13 | Q51: 1239.65 | R51: 2321.85 | S51: 4270.5 | T51: 8451.9
A52: Storage COD | B52: CAISO | C52: ERCOT | D52: HI | E52: ISO-NE | F52: MISO | G52: NYISO | H52: PJM | I52: SPP | J52: Southeast (non-ISO) | K52: West (non-ISO) | L52: Total | O52: FL | R52: 503 | T52: 1146
A53: 2012 | D53: 2.01 | L53: 2.01 | O53: TX | P53: 3 | Q53: 277 | R53: 388 | S53: 326.7 | T53: 493.95
A54: 2013 | H54: 13.5 | L54: 13.5 | O54: NV | P54: 2 | Q54: 75 | R54: 190 | S54: 300 | T54: 760
A55: 2015 | D55: 4.63 | L55: 4.63 | O55: HI | P55: 1 | Q55: 39 | R55: 95.6 | S55: 156 | T55: 389.76
A56: 2016 | C56: 0.25 | L56: 0.25 | O56: MA | P56: 6 | Q56: 24.19 | R56: 86.67 | S56: 47.49 | T56: 214.47
A57: 2017 | D57: 57.12 | J57: 2 | L57: 59.12 | O57: GA | P57: 1 | Q57: 40 | R57: 80 | S57: 80 | T57: 160
A58: 2018 | D58: 100 | F58: 18 | J58: 56 | K58: 58 | L58: 232 | O58: AZ | R58: 40 | T58: 70
A59: 2019 | C59: 52 | E59: 35.2 | I59: 26.2 | J59: 4 | K59: 1.5 | L59: 118.9 | O59: IL | R59: 33 | T59: 13.5
A60: 2020 | E60: 4.7 | G60: 13.2 | L60: 17.9 | O60: NY | P60: 5 | Q60: 19 | R60: 32.32 | S60: 75.6 | T60: 117.8
A61: 2021 | B61: 4161.9 | C61: 115 | D61: 70 | E61: 143.08 | G61: 29 | H61: 10 | J61: 1166 | K61: 492 | L61: 6186.98 | O61: OR | P61: 1 | Q61: 30 | R61: 30 | S61: 120 | T61: 120
A62: 2022 | B62: 4270.5 | C62: 326.7 | D62: 156 | E62: 47.49 | F62: 30 | G62: 75.6 | J62: 80 | K62: 447.1 | L62: 5433.39 | O62: AR | P62: 1 | Q62: 10 | R62: 22 | S62: 30 | T62: 56.2
O63: NM | P63: 1 | Q63: 12.5 | R63: 12.5 | S63: 25 | T63: 25
B64: Cumulative Energy (Storage MWh) | O64: NC | R64: 10 | T64: 10
A65: Storage COD | B65: CAISO | C65: ERCOT | D65: HI | E65: ISO-NE | F65: MISO | G65: NYISO | H65: PJM | I65: SPP | J65: Southeast (non-ISO) | K65: West (non-ISO) | L65: Total | O65: MN | R65: 9 | T65: 18
A66: 2012 | D66: 2.01 | L66: 2.01 | O66: VT | R66: 4 | T66: 16
A67: 2013 | D67: 2.01 | H67: 13.5 | L67: 15.51 | O67: CO | R67: 1 | T67: 2
A68: 2015 | D68: 6.64 | H68: 13.5 | L68: 20.14 | O68: AL | R68: 1 | T68: 2
A69: 2016 | C69: 0.25 | D69: 6.64 | H69: 13.5 | L69: 20.39 | O69: NE | P69: 1 | Q69: 1 | R69: 1 | S69: 2.1 | T69: 2.1
A70: 2017 | C70: 0.25 | D70: 63.76 | H70: 13.5 | J70: 2 | L70: 79.51
A71: 2018 | C71: 0.25 | D71: 163.76 | F71: 18 | H71: 13.5 | J71: 58 | K71: 58 | L71: 311.51
A72: 2019 | C72: 52.25 | D72: 163.76 | E72: 35.2 | F72: 18 | H72: 13.5 | I72: 26.2 | J72: 62 | K72: 59.5 | L72: 430.41
A73: 2020 | C73: 52.25 | D73: 163.76 | E73: 39.9 | F73: 18 | G73: 13.2 | H73: 13.5 | I73: 26.2 | J73: 62 | K73: 59.5 | L73: 448.31
A74: 2021 | B74: 4161.9 | C74: 167.25 | D74: 233.76 | E74: 182.98 | F74: 18 | G74: 42.2 | H74: 23.5 | I74: 26.2 | J74: 1228 | K74: 551.5 | L74: 6635.29
A75: 2022 | B75: 8432.4 | C75: 493.95 | D75: 389.76 | E75: 230.47 | F75: 48 | G75: 117.8 | H75: 23.5 | I75: 26.2 | J75: 1308 | K75: 998.6 | L75: 12068.68
B77: Annual New Project Count
A78: Storage COD | B78: CAISO | C78: ERCOT | D78: HI | E78: ISO-NE | F78: MISO | G78: NYISO | H78: PJM | I78: SPP | J78: Southeast (non-ISO) | K78: West (non-ISO) | L78: Total
A79: 2012 | D79: 1 | L79: 1
A80: 2013 | H80: 1 | L80: 1
A81: 2015 | D81: 1 | L81: 1
A82: 2016 | C82: 1 | L82: 1
A83: 2017 | D83: 1 | J83: 1 | L83: 2
A84: 2018 | D84: 1 | F84: 1 | J84: 2 | K84: 2 | L84: 6
A85: 2019 | C85: 2 | E85: 5 | I85: 2 | J85: 1 | K85: 1 | L85: 11
A86: 2020 | E86: 1 | G86: 2 | L86: 3
A87: 2021 | B87: 10 | C87: 2 | D87: 1 | E87: 14 | G87: 2 | H87: 1 | J87: 5 | K87: 4 | L87: 39
A88: 2022 | B88: 13 | C88: 3 | D88: 1 | E88: 6 | F88: 1 | G88: 5 | J88: 1 | K88: 5 | L88: 35
B90: Cumulative Project Count
A91: Storage COD | B91: CAISO | C91: ERCOT | D91: HI | E91: ISO-NE | F91: MISO | G91: NYISO | H91: PJM | I91: SPP | J91: Southeast (non-ISO) | K91: West (non-ISO) | L91: Total
A92: 2012 | D92: 1 | L92: 1
A93: 2013 | D93: 1 | H93: 1 | L93: 2
A94: 2015 | D94: 2 | H94: 1 | L94: 3
A95: 2016 | C95: 1 | D95: 2 | H95: 1 | L95: 4
A96: 2017 | C96: 1 | D96: 3 | H96: 1 | J96: 1 | L96: 6
A97: 2018 | C97: 1 | D97: 4 | F97: 1 | H97: 1 | J97: 3 | K97: 2 | L97: 12
A98: 2019 | C98: 3 | D98: 4 | E98: 5 | F98: 1 | H98: 1 | I98: 2 | J98: 4 | K98: 3 | L98: 23
A99: 2020 | C99: 3 | D99: 4 | E99: 6 | F99: 1 | G99: 2 | H99: 1 | I99: 2 | J99: 4 | K99: 3 | L99: 26
A100: 2021 | B100: 10 | C100: 5 | D100: 5 | E100: 20 | F100: 1 | G100: 4 | H100: 2 | I100: 2 | J100: 9 | K100: 7 | L100: 65
A101: 2022 | B101: 23 | C101: 8 | D101: 6 | E101: 26 | F101: 2 | G101: 9 | H101: 2 | I101: 2 | J101: 10 | K101: 12 | L101: 100
O501: State | P501: 2021 Annual New Project Count | Q501: 2021 Annual Capacity MW | R501: Cumulative Capacity MW | S501: 2021 Annual Energy MWh | T501: Cumulative Energy MWh
O502: CA | P502: 14 | Q502: 1221.95 | R502: 1259.45 | S502: 4799.4 | T502: 4818.9
O503: FL | P503: 4 | Q503: 487 | R503: 503 | S503: 1086 | T503: 1146
O504: TX | P504: 3 | Q504: 185 | R504: 206 | S504: 231 | T504: 283.25
O505: NV | P505: 2 | Q505: 115 | R505: 115 | S505: 460 | T505: 460
O506: MA | P506: 14 | Q506: 50.88 | R506: 64.28 | S506: 142.88 | T506: 170.58
O507: HI | P507: 1 | Q507: 14 | R507: 56.6 | S507: 70 | T507: 233.76
O508: SC | P508: 1 | Q508: 50 | R508: 50 | S508: 0 | T508: 0
O509: AZ | P509: 1 | Q509: 30 | R509: 40 | S509: 30 | T509: 70
O510: GA | P510: 1 | Q510: 40 | R510: 40 | S510: 80 | T510: 80
O511: IL | R511: 33 | T511: 13.5
O512: NY | P512: 4 | Q512: 13.5 | R512: 19.32 | S512: 37.6 | T512: 50.8
O513: AR | R513: 12 | T513: 26.2
O514: NC | P514: 1 | Q514: 10 | R514: 10 | S514: 10 | T514: 10
O515: MN | R515: 9 | T515: 18
O516: VT | R516: 4 | T516: 16
O517: CO | P517: 1 | Q517: 1 | R517: 1 | S517: 2 | T517: 2
O518: AL | R518: 1 | T518: 2

Sheet PV Capacity by Technology
A1: Annual and cumulative utility-scale PV capacity by module and/or mounting type | J1: Annual and cumulative utility-scale PV capacity by mounting type | T1: Annual and cumulative utility-scale PV capacity by module type | AE1: 2022 utility-scale PV capacity by module manufacturer
A23: Sources: Berkeley Lab
A24: Installation Year | B24: Tracking c-Si | F24: Fixed-Tilt c-Si | J24: Tracking Thin-Film | N24: Fixed-Tilt Thin-Film | R24: Total Tracking | V24: Total Fixed-Tilt | Z24: Total c-Si | AD24: Total Thin-Film
B25: Annual Project Count | C25: Cumulative Project Count | D25: Annual Capacity GWAC | E25: Cumulative Capacity GWAC | F25: Annual Project Count | G25: Cumulative Project Count | H25: Annual Capacity GWAC | I25: Cumulative Capacity GWAC | J25: Annual Project Count | K25: Cumulative Project Count | L25: Annual Capacity GWAC | M25: Cumulative Capacity GWAC | N25: Annual Project Count | O25: Cumulative Project Count | P25: Annual Capacity GWAC | Q25: Cumulative Capacity GWAC | R25: Annual Project Count | S25: Cumulative Project Count | T25: Annual Capacity GWAC | U25: Cumulative Capacity GWAC | V25: Annual Project Count | W25: Cumulative Project Count | X25: Annual Capacity GWAC | Y25: Cumulative Capacity GWAC | Z25: Annual Project Count | AA25: Cumulative Project Count | AB25: Annual Capacity GWAC | AC25: Cumulative Capacity GWAC | AD25: Annual Project Count | AE25: Cumulative Project Count | AF25: Annual Capacity GWAC | AG25: Cumulative Capacity GWAC
A26: 2007 | B26: 1 | C26: 1 | D26: 0.01 | E26: 0.01 | R26: 1 | S26: 1 | T26: 0.01 | U26: 0.01 | Z26: 1 | AA26: 1 | AB26: 0.01 | AC26: 0.01
A27: 2008 | C27: 1 | E27: 0.01 | N27: 1 | O27: 1 | P27: 0.01 | Q27: 0.01 | S27: 1 | U27: 0.01 | V27: 1 | W27: 1 | X27: 0.01 | Y27: 0.01 | AA27: 1 | AC27: 0.01 | AD27: 1 | AE27: 1 | AF27: 0.01 | AG27: 0.01
A28: 2009 | B28: 1 | C28: 2 | D28: 0.02 | E28: 0.04 | N28: 1 | O28: 2 | P28: 0.02 | Q28: 0.03 | R28: 1 | S28: 2 | T28: 0.02 | U28: 0.04 | V28: 1 | W28: 2 | X28: 0.02 | Y28: 0.03 | Z28: 1 | AA28: 2 | AB28: 0.02 | AC28: 0.04 | AD28: 1 | AE28: 2 | AF28: 0.02 | AG28: 0.03
A29: 2010 | B29: 3 | C29: 5 | D29: 0.04 | E29: 0.08 | F29: 2 | G29: 2 | H29: 0.02 | I29: 0.02 | N29: 5 | O29: 7 | P29: 0.12 | Q29: 0.15 | R29: 3 | S29: 5 | T29: 0.04 | U29: 0.08 | V29: 7 | W29: 9 | X29: 0.13 | Y29: 0.16 | Z29: 5 | AA29: 7 | AB29: 0.06 | AC29: 0.1 | AD29: 5 | AE29: 7 | AF29: 0.12 | AG29: 0.15
A30: 2011 | B30: 17 | C30: 22 | D30: 0.23 | E30: 0.31 | F30: 9 | G30: 11 | H30: 0.14 | I30: 0.15 | J30: 1 | K30: 1 | L30: 0.02 | M30: 0.02 | N30: 7 | O30: 14 | P30: 0.1 | Q30: 0.24 | R30: 19 | S30: 24 | T30: 0.25 | U30: 0.33 | V30: 16 | W30: 25 | X30: 0.23 | Y30: 0.39 | Z30: 26 | AA30: 33 | AB30: 0.36 | AC30: 0.46 | AD30: 8 | AE30: 15 | AF30: 0.12 | AG30: 0.26
A31: 2012 | B31: 21 | C31: 43 | D31: 0.35 | E31: 0.66 | F31: 15 | G31: 26 | H31: 0.35 | I31: 0.5 | J31: 1 | K31: 2 | L31: 0.03 | M31: 0.05 | N31: 6 | O31: 20 | P31: 0.2 | Q31: 0.44 | R31: 23 | S31: 47 | T31: 0.41 | U31: 0.74 | V31: 21 | W31: 46 | X31: 0.55 | Y31: 0.95 | Z31: 36 | AA31: 69 | AB31: 0.7 | AC31: 1.16 | AD31: 7 | AE31: 22 | AF31: 0.23 | AG31: 0.49
A32: 2013 | B32: 20 | C32: 63 | D32: 0.74 | E32: 1.4 | F32: 10 | G32: 36 | H32: 0.11 | I32: 0.61 | K32: 2 | M32: 0.05 | N32: 8 | O32: 28 | P32: 0.5 | Q32: 0.94 | R32: 20 | S32: 67 | T32: 0.74 | U32: 1.48 | V32: 18 | W32: 64 | X32: 0.61 | Y32: 1.55 | Z32: 30 | AA32: 99 | AB32: 0.85 | AC32: 2.01 | AD32: 8 | AE32: 30 | AF32: 0.5 | AG32: 0.99
A33: 2014 | B33: 29 | C33: 92 | D33: 0.75 | E33: 2.14 | F33: 18 | G33: 54 | H33: 0.2 | I33: 0.82 | J33: 11 | K33: 13 | L33: 0.53 | M33: 0.58 | N33: 5 | O33: 33 | P33: 1.68 | Q33: 2.62 | R33: 41 | S33: 108 | T33: 1.29 | U33: 2.77 | V33: 23 | W33: 87 | X33: 1.88 | Y33: 3.44 | Z33: 47 | AA33: 146 | AB33: 0.95 | AC33: 2.96 | AD33: 16 | AE33: 46 | AF33: 2.22 | AG33: 3.2
A34: 2015 | B34: 43 | C34: 135 | D34: 1.66 | E34: 3.8 | F34: 26 | G34: 80 | H34: 0.67 | I34: 1.48 | J34: 12 | K34: 25 | L34: 0.34 | M34: 0.92 | N34: 7 | O34: 40 | P34: 0.21 | Q34: 2.83 | R34: 56 | S34: 164 | T34: 2.01 | U34: 4.78 | V34: 33 | W34: 120 | X34: 0.87 | Y34: 4.31 | Z34: 69 | AA34: 215 | AB34: 2.33 | AC34: 5.29 | AD34: 19 | AE34: 65 | AF34: 0.54 | AG34: 3.74
A35: 2016 | B35: 93 | C35: 228 | D35: 4.79 | E35: 8.59 | F35: 38 | G35: 118 | H35: 0.92 | I35: 2.41 | J35: 15 | K35: 40 | L35: 1.11 | M35: 2.02 | N35: 6 | O35: 46 | P35: 0.62 | Q35: 3.45 | R35: 108 | S35: 272 | T35: 5.9 | U35: 10.68 | V35: 44 | W35: 164 | X35: 1.54 | Y35: 5.86 | Z35: 131 | AA35: 346 | AB35: 5.72 | AC35: 11 | AD35: 21 | AE35: 86 | AF35: 1.73 | AG35: 5.47
A36: 2017 | B36: 105 | C36: 333 | D36: 2.54 | E36: 11.13 | F36: 36 | G36: 154 | H36: 0.62 | I36: 3.03 | J36: 16 | K36: 56 | L36: 0.65 | M36: 2.68 | N36: 9 | O36: 55 | P36: 0.26 | Q36: 3.71 | R36: 121 | S36: 393 | T36: 3.2 | U36: 13.87 | V36: 45 | W36: 209 | X36: 0.88 | Y36: 6.74 | Z36: 141 | AA36: 487 | AB36: 3.17 | AC36: 14.17 | AD36: 25 | AE36: 111 | AF36: 0.91 | AG36: 6.38
A37: 2018 | B37: 41 | C37: 374 | D37: 1.75 | E37: 12.89 | F37: 33 | G37: 187 | H37: 1.22 | I37: 4.26 | J37: 21 | K37: 77 | L37: 0.94 | M37: 3.62 | N37: 1 | O37: 56 | P37: 0.05 | Q37: 3.76 | R37: 62 | S37: 455 | T37: 2.69 | U37: 16.56 | V37: 34 | W37: 243 | X37: 1.27 | Y37: 8.01 | Z37: 74 | AA37: 561 | AB37: 2.98 | AC37: 17.14 | AD37: 22 | AE37: 133 | AF37: 0.99 | AG37: 7.37
A38: 2019 | B38: 60 | C38: 434 | D38: 2.36 | E38: 15.24 | F38: 28 | G38: 215 | H38: 0.56 | I38: 4.82 | J38: 22 | K38: 99 | L38: 1.64 | M38: 5.26 | N38: 1 | O38: 57 | P38: 0.04 | Q38: 3.8 | R38: 82 | S38: 537 | T38: 4 | U38: 20.56 | V38: 29 | W38: 272 | X38: 0.61 | Y38: 8.62 | Z38: 88 | AA38: 649 | AB38: 2.92 | AC38: 20.06 | AD38: 23 | AE38: 156 | AF38: 1.69 | AG38: 9.06
A39: 2020 | B39: 102 | C39: 536 | D39: 6.15 | E39: 21.39 | F39: 25 | G39: 240 | H39: 0.75 | I39: 5.57 | J39: 33 | K39: 132 | L39: 2.55 | M39: 7.81 | N39: 4 | O39: 61 | P39: 0.17 | Q39: 3.97 | R39: 135 | S39: 672 | T39: 8.7 | U39: 29.26 | V39: 29 | W39: 301 | X39: 0.92 | Y39: 9.54 | Z39: 127 | AA39: 776 | AB39: 6.9 | AC39: 26.96 | AD39: 37 | AE39: 193 | AF39: 2.73 | AG39: 11.78
A40: 2021 | B40: 83 | C40: 619 | D40: 7.32 | E40: 28.7 | F40: 39 | G40: 279 | H40: 1.29 | I40: 6.86 | J40: 33 | K40: 165 | L40: 3.87 | M40: 11.68 | O40: 61 | Q40: 3.97 | R40: 116 | S40: 788 | T40: 11.19 | U40: 40.45 | V40: 39 | W40: 340 | X40: 1.29 | Y40: 10.84 | Z40: 122 | AA40: 898 | AB40: 8.61 | AC40: 35.57 | AD40: 33 | AE40: 226 | AF40: 3.87 | AG40: 15.65
A41: 2022 | B41: 84 | C41: 703 | D41: 6.2 | E41: 34.9 | F41: 22 | G41: 301 | H41: 0.28 | I41: 7.15 | J41: 35 | K41: 200 | L41: 3.57 | M41: 15.25 | N41: 6 | O41: 67 | P41: 0.38 | Q41: 4.35 | R41: 119 | S41: 907 | T41: 9.77 | U41: 50.21 | V41: 28 | W41: 368 | X41: 0.66 | Y41: 11.5 | Z41: 106 | AA41: 1004 | AB41: 6.48 | AC41: 42.05 | AD41: 41 | AE41: 267 | AF41: 3.95 | AG41: 19.6
A47: Installation Year | B47: Project Capacity MWAC by Module Manufacturer
B48: 2007 | C48: 2008 | D48: 2009 | E48: 2010 | F48: 2011 | G48: 2012 | H48: 2013 | I48: 2014 | J48: 2015 | K48: 2016 | L48: 2017 | M48: 2018 | N48: 2019 | O48: 2020 | P48: 2021 | Q48: 2022
A49: ASE | I49: 14
A50: AUO | I50: 6
A51: Adani | M51: 20
A52: Amonix | F52: 5 | G52: 30
A53: Astroenergy | G53: 5 | N53: 16 | P53: 330 | Q53: 5
A54: BP Solar | F54: 32 | I54: 14
A55: BYD | I55: 49 | J55: 79 | K55: 166 | L55: 28
A56: Bosch | G56: 12
A57: Boviet | M57: 10 | N57: 23 | O57: 77 | Q57: 20
A58: CSUN | K58: 6 | M58: 7 | N58: 9 | O58: 8
A59: Canadian Solar | G59: 82 | H59: 55 | I59: 175 | J59: 113 | K59: 826 | L59: 175 | M59: 295 | N59: 400 | O59: 200 | P59: 654 | Q59: 547
A60: Chaori | K60: 7
A61: ET Solar | G61: 6 | I61: 30 | K61: 39 | M61: 6 | O61: 65
A62: EcoSolargy | K62: 7
A63: First Solar | C63: 10 | D63: 21 | E63: 115 | F63: 72 | G63: 203 | H63: 469 | I63: 2229 | J63: 496 | K63: 1682 | L63: 882 | M63: 819 | N63: 1394 | O63: 2420 | P63: 3048 | Q63: 2367
A64: Flextronics | L64: 5
A65: GCL | L65: 50
A66: GE | G66: 20 | H66: 10 | J66: 10
A67: GES | H67: 10 | J67: 10
A68: Gloria Solar | I68: 14
A69: HT Solar | Q69: 5
A70: Hanwha | G70: 39 | I70: 8 | J70: 100 | K70: 259 | L70: 459 | M70: 877 | N70: 215 | O70: 434 | P70: 313 | Q70: 469
A71: Hyundai | H71: 129 | K71: 15 | L71: 28 | P71: 14
A72: JA Solar | G72: 8 | H72: 9 | I72: 40 | J72: 30 | K72: 80 | L72: 63 | M72: 57 | N72: 110 | O72: 21 | P72: 451 | Q72: 217
A73: Jinko Solar | H73: 29 | I73: 143 | J73: 495 | K73: 912 | L73: 542 | M73: 316 | N73: 230 | O73: 659 | P73: 1246 | Q73: 20
A74: Kyocera | H74: 129
A75: LDK | F75: 12 | G75: 6 | I75: 8
A76: LG | K76: 12 | L76: 13 | M76: 9 | N76: 30 | Q76: 5
A77: LG Solar | N77: 14
A78: LONGi | N78: 400 | O78: 221 | P78: 579 | Q78: 594
A79: Lightway | I79: 7
A80: MEMC | F80: 20 | G80: 67 | H80: 30
A81: Mission Solar Energy | J81: 100 | L81: 160 | M81: 50
A82: Phono Solar | K82: 20
A83: REC | J83: 12 | K83: 265 | L83: 20 | M83: 12 | N83: 20 | P83: 5
A84: Renesola | I84: 59 | J84: 14 | K84: 14
A85: Risen Energy | M85: 122 | O85: 100 | P85: 100
A86: S-Energy | K86: 62
A87: SAAE | N87: 13
A88: Seraphim | L88: 10 | M88: 10
A89: Sharp | F89: 45 | H89: 38
A90: Soitec | I90: 6
A91: Solar Frontier | H91: 110 | J91: 45 | K91: 45 | L91: 30 | M91: 168
A92: SolarWorld | G92: 16 | H92: 20 | J92: 13 | K92: 56 | L92: 55
A93: Solarfun Power | F93: 20
A94: Solon | B94: 7 | F94: 32
A95: SunEdison | I95: 131 | J95: 20 | K95: 245
A96: SunModule | K96: 12
A97: SunPower | B97: 12 | D97: 25 | E97: 37 | F97: 74 | G97: 57 | H97: 296 | J97: 794 | K97: 429 | L97: 151 | M97: 30 | N97: 46 | O97: 30
A98: Suniva | H98: 16 | I98: 12 | K98: 5 | L98: 48
A99: Suntech Power | F99: 68 | G99: 253 | H99: 37 | I99: 6 | J99: 27
A100: Talesun | M100: 75 | Q100: 19
A101: Topoint | I101: 7
A102: Trina | F102: 50 | G102: 90 | H102: 14 | I102: 37 | J102: 596 | K102: 1220 | L102: 299 | M102: 56 | N102: 80 | O102: 400 | P102: 40 | Q102: 348
A103: VSUN | P103: 130 | Q103: 367
A104: Vikram | P104: 5 | Q104: 5
A105: Waaree Solar | P105: 290
A106: Yes! Solar | F106: 10
A107: Yingli | E107: 5 | F107: 20 | G107: 67 | H107: 110 | I107: 262 | J107: 85 | K107: 382 | M107: 65 | P107: 16
A108: ZNShine | Q108: 56
A109: Unknown | E109: 18 | F109: 25 | G109: 82 | H109: 131 | I109: 157 | J109: 135 | K109: 864 | L109: 1185 | M109: 958 | N109: 2021 | O109: 5238 | P109: 5919 | Q109: 5397
A110: All PV Projects | B110: 19 | C110: 10 | D110: 46 | E110: 175 | F110: 485 | G110: 961 | H110: 1344 | I110: 3184 | J110: 2887 | K110: 7442 | L110: 4079 | M110: 3962 | N110: 4606 | O110: 9623 | P110: 12479 | Q110: 10429
A111: Note: Some projects are assigned to multiple modules manufacturers. The sum of the annual project capacity may thus exceed the capacity of "All PV Projects".
B114: 2022
A115: ZNShine | B115: 56
A116: Other | B116: 79
A117: JA Solar | B117: 217
A118: Trina | B118: 348
A119: VSUN | B119: 367
A120: Hanwha | B120: 469
A121: Canadian Solar | B121: 547
A122: LONGi | B122: 594
A123: First Solar | B123: 2367
A124: Unknown | B124: 5397

Sheet PV Capacity by Develop-Offtaker
A1: Developers of utility-scale solar project capacity coming online in 2022 | I1: PPA Offtakers of utility-scale solar project capacity coming online in 2022
A27: Installation Year | B27: Project Capacity MWAC by Developer
B28: 2007 | C28: 2008 | D28: 2009 | E28: 2010 | F28: 2011 | G28: 2012 | H28: 2013 | I28: 2014 | J28: 2015 | K28: 2016 | L28: 2017 | M28: 2018 | N28: 2019 | O28: 2020 | P28: 2021 | Q28: 2022 | R28: Total | V28: 2022
A29: Advanced Power | Q29: 111 | R29: 111 | U29: Idemitsu Renewables | V29: 56
A30: Southern Current | N30: 28 | O30: 65 | Q30: 18 | R30: 112 | U30: Ecoplexus | V30: 90
A31: Indiana Municipal Power Agency | L31: 13 | M31: 8 | N31: 15 | O31: 24 | P31: 35 | Q31: 19 | R31: 113 | U31: Recurrent | V31: 100
A32: Duke Energy Carolinas | K32: 15 | M32: 6 | O32: 25 | P32: 69 | R32: 116 | U32: Engie | V32: 101
A33: Geronimo Energy | L33: 76 | O33: 40 | R33: 116 | U33: Advanced Power | V33: 111
A34: Virginia Solar | K34: 17 | L34: 80 | Q34: 20 | R34: 117 | U34: Open Road Renewables | V34: 120
A35: NJR Clean Energy | F35: 12 | I35: 8 | K35: 6 | L35: 18 | M35: 44 | N35: 15 | O35: 17 | R35: 119 | U35: Avangrid | V35: 150
A36: NRG Energy | F36: 20 | G36: 26 | H36: 26 | I36: 6 | K36: 20 | L36: 21 | R36: 120 | U36: SunEnergy1 | V36: 150
A37: McCarthy | P37: 135 | R37: 135 | U37: 174 Power Global | V37: 180
A38: Energix | O38: 67 | P38: 49 | Q38: 20 | R38: 136 | U38: RWE Renewables | V38: 196
A39: Gulf Power | O39: 74 | P39: 74 | R39: 149 | U39: Calhoun Solar Energy LLC | V39: 200
A40: Florida Municipal Power Agency | O40: 149 | R40: 149 | U40: Tampa Electric | V40: 217
A41: Sun Streams 2 LLC | P41: 150 | R41: 150 | U41: Duke Energy Florida | V41: 225
A42: Avangrid | M42: 10 | Q42: 150 | R42: 160 | U42: Plus Renewable Technologies | V42: 228
A43: Scatec Solar | J43: 80 | K43: 80 | R43: 160 | U43: Avondale Solar | V43: 228
A44: Lendlease Energy | P44: 160 | R44: 160 | U44: Ranger Power | V44: 228
A45: D.E. Shaw | O45: 180 | R45: 180 | U45: Alpin Sun | V45: 250
A46: Skylar Resources | P46: 180 | R46: 180 | U46: EDF Renewables | V46: 277
A47: GCL New Energy | G47: 70 | H47: 20 | L47: 60 | M47: 38 | R47: 188 | U47: Canadian Solar | V47: 300
A48: ConEdison Development | O48: 10 | P48: 181 | R48: 191 | U48: LightSource BP | V48: 320
A49: Open Road Renewables | M49: 75 | Q49: 120 | R49: 195 | U49: National Grid Renewables | V49: 325
A50: Calhoun Solar Energy LLC | Q50: 200 | R50: 200 | U50: Silicon Ranch Corporation | V50: 405
A51: RES Americas | F51: 30 | L51: 102 | N51: 73 | R51: 205 | U51: AES | V51: 417
A52: PNM | J52: 20 | L52: 10 | M52: 20 | N52: 100 | O52: 55 | R52: 205 | U52: Duke Energy Corp | V52: 445
A53: Abengoa | I53: 207 | R53: 207 | U53: Cypress Creek Renewables/ Pine Gate Renewables | V53: 449
A54: Hecate | K54: 126 | L54: 86 | R54: 212 | U54: Intersect Power | V54: 474
A55: Plus Renewable Technologies | Q55: 228 | R55: 228 | U55: Pine Gate Renewables | V55: 489
A56: Avondale Solar | Q56: 228 | R56: 228 | U56: Invenergy | V56: 500
A57: EDP Renewables | I57: 30 | P57: 200 | R57: 230 | U57: Savion | V57: 553
A58: Copenhagen Infrastructure Partners | O58: 240 | R58: 240 | U58: Terra Gen Power | V58: 644
A59: Belltown Power | O59: 120 | P59: 124 | R59: 243 | U59: NextEra | V59: 1433
A60: Ecoplexus | J60: 20 | K60: 20 | L60: 49 | N60: 10 | O60: 59 | Q60: 90 | R60: 249 | U60: Other | V60: 1517
A61: Skyline Renewables | P61: 250 | R61: 250
A62: CIM Group | P62: 250 | R62: 250
A63: Alpin Sun | Q63: 250 | R63: 250
A64: OnPeak | P64: 255 | R64: 255
A65: SunEnergy1 | O65: 25 | P65: 80 | Q65: 150 | R65: 255
A66: 7X Energy | P66: 255 | R66: 255
A67: SunPin / Intersect Power | P67: 260 | R67: 260
A68: Urban Grid Solar | N68: 142 | O68: 98 | P68: 20 | R68: 260
A69: LS Power Group | H69: 129 | I69: 170 | R69: 299
A70: Signal Energy / Intersect Power | P70: 300 | R70: 300
A71: Swinerton | I71: 18 | J71: 55 | K71: 30 | P71: 203 | R71: 306
A72: Juwi | E72: 37 | G72: 31 | H72: 15 | I72: 10 | J72: 70 | K72: 145 | R72: 308
A73: Strata Solar | I73: 32 | J73: 65 | K73: 22 | L73: 146 | M73: 25 | O73: 12 | P73: 20 | R73: 322
A74: RWE Renewables | I74: 18 | J74: 19 | N74: 100 | Q74: 196 | R74: 332
A75: DEPCOM Power | J75: 15 | K75: 40 | L75: 55 | M75: 52 | O75: 70 | P75: 102 | R75: 334
A76: Dominion Resources | H76: 36 | K76: 20 | M76: 20 | N76: 20 | O76: 160 | P76: 88 | R76: 345
A77: Coronal Energy | J77: 40 | K77: 94 | L77: 140 | M77: 67 | N77: 10 | R77: 351
A78: Southern Company | J78: 54 | K78: 90 | L78: 7 | M78: 31 | O78: 50 | P78: 128 | Q78: 11 | R78: 371
A79: SunPin | M79: 75 | O79: 75 | P79: 260 | R79: 410
A80: BayWa RE | L80: 56 | N80: 40 | O80: 100 | P80: 223 | R80: 419
A81: Canadian Solar | P81: 144 | Q81: 300 | R81: 444
A82: Duke Energy Corp | Q82: 445 | R82: 445
A83: Idemitsu Renewables | K83: 20 | L83: 30 | M83: 70 | O83: 150 | P83: 120 | Q83: 56 | R83: 446
A84: Innergex Renewable Energy | N84: 250 | P84: 200 | R84: 450
A85: Sunenergy1 | G85: 12 | I85: 40 | J85: 128 | K85: 75 | L85: 60 | M85: 80 | O85: 80 | R85: 475
A86: Ranger Power | O86: 50 | P86: 209 | Q86: 228 | R86: 487
A87: Clearway | M87: 154 | N87: 109 | O87: 192 | P87: 5 | Q87: 39 | R87: 499
A88: OCI Solar Power | H88: 41 | I88: 40 | J88: 100 | K88: 112 | L88: 160 | M88: 50 | R88: 503
A89: Origis Energy | H89: 16 | L89: 144 | M89: 18 | N89: 42 | O89: 304 | R89: 524
A90: National Grid Renewables | P90: 200 | Q90: 325 | R90: 525
A91: Savion | Q91: 553 | R91: 553
A92: Duke Energy Renewables | F92: 6 | J92: 105 | K92: 45 | L92: 28 | N92: 121 | O92: 260 | R92: 564
A93: Orsted | P93: 647 | R93: 647
A94: Longroad Energy | O94: 403 | P94: 250 | R94: 653
A95: Duke Energy Florida | K95: 5 | M95: 75 | N95: 75 | O95: 74 | P95: 224 | Q95: 225 | R95: 678
A96: Engie | L96: 50 | M96: 7 | O96: 225 | P96: 300 | Q96: 101 | R96: 683
A97: Clenera | I97: 29 | J97: 20 | K97: 160 | L97: 113 | M97: 80 | N97: 200 | P97: 100 | R97: 702
A98: Community Energy | I98: 7 | J98: 15 | K98: 403 | L98: 104 | N98: 8 | P98: 180 | R98: 716
A99: Terra Gen Power | P99: 165 | Q99: 644 | R99: 809
A100: Enel Green Power | G100: 22 | M100: 40 | O100: 410 | P100: 371 | R100: 843
A101: Tampa Electric | L101: 19 | M101: 145 | N101: 203 | O101: 149 | P101: 134 | Q101: 217 | R101: 867
A102: 174 Power Global | G102: 30 | I102: 8 | L102: 7 | M102: 182 | N102: 300 | O102: 280 | Q102: 180 | R102: 987
A103: LightSource BP | N103: 14 | O103: 287 | P103: 367 | Q103: 320 | R103: 988
A104: Sempra | G104: 170 | J104: 316 | K104: 348 | M104: 200 | R104: 1034
A105: Consolidated Edison | F105: 26 | J105: 40 | K105: 96 | L105: 193 | M105: 320 | O105: 152 | P105: 250 | R105: 1078
A106: SunEdison | B106: 7 | E106: 18 | F106: 76 | G106: 132 | H106: 44 | I106: 337 | J106: 40 | K106: 545 | R106: 1199
A107: Unknown | H107: 10 | I107: 20 | J107: 91 | K107: 5 | L107: 239 | M107: 21 | N107: 313 | O107: 41 | P107: 501 | Q107: 5 | R107: 1246
A108: 8 Minute Solar Energy | I108: 207 | J108: 58 | K108: 260 | L108: 20 | M108: 252 | N108: 90 | O108: 408 | R108: 1295
A109: EDF Renewables | H109: 130 | I109: 20 | J109: 42 | M109: 111 | N109: 111 | O109: 375 | P109: 253 | Q109: 277 | R109: 1320
A110: Silicon Ranch Corporation | I110: 30 | J110: 34 | K110: 96 | L110: 32 | M110: 69 | N110: 195 | O110: 186 | P110: 277 | Q110: 405 | R110: 1324
A111: Intersect Power | P111: 940 | Q111: 474 | R111: 1414
A112: Invenergy | G112: 20 | J112: 20 | L112: 50 | M112: 25 | N112: 155 | O112: 171 | P112: 538 | Q112: 500 | R112: 1479
A113: Recurrent | F113: 24 | G113: 60 | H113: 35 | I113: 225 | K113: 905 | L113: 71 | M113: 95 | P113: 250 | Q113: 100 | R113: 1764
A114: SunPower | B114: 12 | D114: 25 | E114: 37 | F114: 66 | G114: 57 | H114: 270 | J114: 822 | K114: 429 | L114: 151 | M114: 10 | O114: 30 | R114: 1910
A115: AES | I115: 26 | J115: 153 | K115: 335 | L115: 91 | M115: 125 | N115: 140 | O115: 374 | P115: 345 | Q115: 417 | R115: 2006
A116: Cypress Creek Renewables/ Pine Gate Renewables | J116: 22 | K116: 207 | L116: 445 | M116: 265 | N116: 183 | O116: 449 | P116: 245 | Q116: 449 | R116: 2265
A117: Pine Gate Renewables | J117: 22 | K117: 207 | L117: 445 | M117: 265 | N117: 183 | O117: 449 | P117: 245 | Q117: 489 | R117: 2305
A118: Other | B118: 0 | C118: 0 | D118: 0 | E118: 0 | F118: 235 | G118: 164 | H118: 263 | I118: 217 | J118: 210 | K118: 465 | L118: 459 | M118: 367 | N118: 270 | O118: 591 | P118: 596 | Q118: 1385 | R118: 5222
A119: First Solar | C119: 10 | D119: 21 | E119: 79 | F119: 34 | G119: 177 | H119: 359 | I119: 1911 | J119: 205 | K119: 1105 | L119: 600 | N119: 592 | O119: 446 | R119: 5539
A120: NextEra | E120: 5 | F120: 5 | I120: 20 | J120: 47 | K120: 1189 | L120: 122 | M120: 807 | N120: 682 | O120: 1975 | P120: 1511 | Q120: 1433 | R120: 7796
A121: All PV Projects | B121: 19 | C121: 10 | D121: 46 | E121: 175 | F121: 485 | G121: 961 | H121: 1344 | I121: 3184 | J121: 2887 | K121: 7442 | L121: 4079 | M121: 3962 | N121: 4606 | O121: 9623 | P121: 12479 | Q121: 10429 | R121: 61731
A122: Note: Some projects are assigned to multiple developers. The sum of annual project capacity may thus exceed the capacity of "All PV Projects".
B125: Project Capacity MWAC by Offtaker Type
B126: 2007 | C126: 2008 | D126: 2009 | E126: 2010 | F126: 2011 | G126: 2012 | H126: 2013 | I126: 2014 | J126: 2015 | K126: 2016 | L126: 2017 | M126: 2018 | N126: 2019 | O126: 2020 | P126: 2021 | Q126: 2022 | R126: Total | V126: 2022
A127: Other | G127: 21 | I127: 15 | J127: 45 | K127: 38 | M127: 36 | O127: 10 | Q127: 20 | R127: 185 | U127: Other | V127: 20
A128: Non-IOU Retailer | M128: 85 | O128: 20 | Q128: 443 | R128: 548 | U128: Education | V128: 186
A129: Military | B129: 12 | G129: 11 | I129: 30 | J129: 41 | K129: 170 | L129: 116 | M129: 88 | O129: 70 | P129: 128 | R129: 665 | U129: Non-IOU Retailer | V129: 443
A130: Education | G130: 18 | H130: 8 | I130: 34 | J130: 46 | K130: 60 | L130: 20 | M130: 32 | N130: 19 | O130: 71 | P130: 247 | Q130: 186 | R130: 740 | U130: Unknown | V130: 914
A131: Unknown | H131: 10 | K131: 58 | L131: 74 | M131: 38 | N131: 354 | O131: 1075 | P131: 2930 | Q131: 914 | R131: 5453 | U131: Monopoly Investor-owned Utility | V131: 1734
A132: Corporate | F132: 20 | G132: 28 | H132: 10 | I132: 13 | J132: 112 | K132: 411 | L132: 841 | M132: 405 | N132: 684 | O132: 2282 | P132: 3948 | Q132: 2861 | R132: 11614 | U132: Public Utilities (Munis, Coops...) | V132: 2217
A133: Monopoly Investor-owned Utility | D133: 25 | E133: 28 | F133: 92 | G133: 34 | H133: 133 | I133: 110 | J133: 478 | K133: 1193 | L133: 1026 | M133: 1325 | N133: 1525 | O133: 2543 | P133: 1725 | Q133: 1734 | R133: 11969 | U133: Corporate | V133: 2861
A134: Public Utilities (Munis, Coops...) | E134: 57 | F134: 147 | G134: 204 | H134: 77 | I134: 119 | J134: 336 | K134: 1992 | L134: 1177 | M134: 935 | N134: 734 | O134: 1769 | P134: 2692 | Q134: 2217 | R134: 12455 | U134: Investor-owned Utility | V134: 4232
A135: Investor-owned Utility | B135: 7 | C135: 10 | D135: 46 | E135: 118 | F135: 318 | G135: 679 | H135: 1240 | I135: 2973 | J135: 2307 | K135: 4714 | L135: 1852 | M135: 2429 | N135: 2815 | O135: 4132 | P135: 2264 | Q135: 4232 | R135: 30134
A136: All PV Projects | B136: 19 | C136: 10 | D136: 46 | E136: 175 | F136: 485 | G136: 961 | H136: 1344 | I136: 3184 | J136: 2887 | K136: 7442 | L136: 4079 | M136: 3962 | N136: 4606 | O136: 9623 | P136: 12479 | Q136: 10429 | R136: 61731
A137: Note: Some projects are assigned to multiple offtakers. The sum of annual project capacity may thus exceed the capacity of "All PV Projects".

Sheet PV Irradiance
A1: Global horizontal irradiance by mounting type and installation year
K2: Graph Support | L2: Fixed-Tilt | M2: Tracking | N2: x-Axis | O2: Fixed Tilt 20th Perc Error | P2: Fixed Tilt 80th Perc Error | Q2: Tracking 20th Perc Error | R2: Tracking 80th Perc Error
K3: 2010 | L3: 0.55 | M3: 1.3 | N3: =A30&" "&B30&" "&TEXT(ROUND(C30/1000,1),"0#.##")&"" -> 2010 10 0.2 | O3: 0.62 | P3: 0.5 | Q3: 0.35 | R3: 0.53
K4: 2011 | L4: =L3+2 -> 2.55 | M4: =M3+2 -> 3.3 | N4: =A31&" "&B31&" "&TEXT(ROUND(C31/1000,1),"0#.##")&"" -> 2011 35 0.5 | O4: 1.32 | P4: 0.04 | Q4: 0.72 | R4: 0.2
K5: 2012 | L5: =L4+2 -> 4.55 | M5: 5.3 | N5: =A32&" "&B32&" "&TEXT(ROUND(C32/1000,1),"##")&"" -> 2012 44 1 | O5: 1.23 | P5: 0.25 | Q5: 0.44 | R5: 0.45
K6: 2013 | L6: 6.55 | M6: 7.3 | N6: =A33&" "&B33&" "&TEXT(ROUND(C33/1000,1),"#.##")&"" -> 2013 38 1.3 | O6: 1.31 | P6: 0.33 | Q6: 0.49 | R6: 0.05
K7: 2014 | L7: 8.55 | M7: 9.3 | N7: 2014 65 3.2 | O7: 0.4 | P7: 1.34 | Q7: 0.31 | R7: 0.15
K8: 2015 | L8: 10.55 | M8: 11.3 | N8: 2015 89 2.9 | O8: 0.29 | P8: 0.98 | Q8: 0.47 | R8: 0.41
K9: 2016 | L9: 12.55 | M9: 13.3 | N9: 2016 152 7.4 | O9: 0.48 | P9: 0.34 | Q9: 0.75 | R9: 0.45
K10: 2017 | L10: 14.55 | M10: 15.3 | N10: 2017 166 4.1 | O10: 0.49 | P10: 0.23 | Q10: 0.28 | R10: 0.8
K11: 2018 | L11: 16.55 | M11: 17.3 | N11: =A38&" "&B38&" "&TEXT(ROUND(C38/1000,1),"##")&"" -> 2018 96 4 | O11: 0.48 | P11: 0.49 | Q11: 0.3 | R11: 0.91
K12: 2019 | L12: 18.55 | M12: 19.3 | N12: 2019 111 4.6 | O12: 0.12 | P12: 0.82 | Q12: 0.4 | R12: 0.59
K13: 2020 | L13: 20.55 | M13: 21.3 | N13: 2020 164 9.6 | O13: 0.55 | P13: 0.53 | Q13: 0.36 | R13: 0.66
K14: 2021 | L14: 22.55 | M14: 23.3 | N14: 2021 155 12.5 | O14: 0.05 | P14: 0.68 | Q14: 0.54 | R14: 0.68
K15: 2022 | L15: 24.55 | M15: 25.3 | N15: 2022 147 10.4 | O15: 0.21 | P15: 0.89 | Q15: 0.51 | R15: 0.72
N16: Total 1277 61.7
A23: Sources: Berkeley Lab: Project Information, NREL: Long-Term Annual Average Solar Resource
D25: Long-Term Average Global Horizontal Irradiance (kWh/m2/day)
A26: Installation Year | B26: All Count | C26: All Capacity MWAC | D26: All Median | E26: All 20th Percentile | F26: All 80th Percentile | G26: Fixed Tilt Median | H26: Fixed Tilt 20th Percentile | I26: Fixed Tilt 80th Percentile | J26: Tracking Median | K26: Tracking 20th Percentile | L26: Tracking 80th Percentile
A27: 2007 | B27: 2 | C27: 18.9 | D27: 5.5 | E27: 5.42 | F27: 5.57 | J27: 5.62 | K27: 5.62 | L27: 5.62
A28: 2008 | B28: 1 | C28: 10 | D28: 5.66 | E28: 5.66 | F28: 5.66 | G28: 5.66 | H28: 5.66 | I28: 5.66
A29: 2009 | B29: 2 | C29: 46 | D29: 5.36 | E29: 5.17 | F29: 5.55 | G29: 5.68 | H29: 5.68 | I29: 5.68 | J29: 5.04 | K29: 5.04 | L29: 5.04
A30: 2010 | B30: 10 | C30: 175.07 | D30: 4.76 | E30: 4 | F30: 5.36 | G30: 4.79 | H30: 4.16 | I30: 5.29 | J30: 4.48 | K30: 4.13 | L30: 5.02
A31: 2011 | B31: 35 | C31: 485.15 | D31: 5.35 | E31: 4.15 | F31: 5.65 | G31: 5.32 | H31: 4 | I31: 5.36 | J31: 5.58 | K31: 4.86 | L31: 5.78
A32: 2012 | B32: 44 | C32: 961.14 | D32: 5.32 | E32: 4.28 | F32: 5.79 | G32: 5.27 | H32: 4.04 | I32: 5.51 | J32: 5.34 | K32: 4.9 | L32: 5.8
A33: 2013 | B33: 38 | C33: 1343.79 | D33: 5.62 | E33: 4.72 | F33: 5.82 | G33: 5.35 | H33: 4.03 | I33: 5.68 | J33: 5.8 | K33: 5.31 | L33: 5.85
A34: 2014 | B34: 65 | C34: 3184.08 | D34: 5.55 | E34: 4.43 | F34: 5.84 | G34: 4.37 | H34: 3.98 | I34: 5.71 | J34: 5.69 | K34: 5.38 | L34: 5.84
A35: 2015 | B35: 89 | C35: 2886.68 | D35: 5.28 | E35: 4.43 | F35: 5.64 | G35: 4.48 | H35: 4.19 | I35: 5.47 | J35: 5.36 | K35: 4.89 | L35: 5.78
A36: 2016 | B36: 152 | C36: 7442.26 | D36: 5.06 | E36: 4.41 | F36: 5.76 | G36: 4.45 | H36: 3.97 | I36: 4.79 | J36: 5.33 | K36: 4.58 | L36: 5.78
A37: 2017 | B37: 166 | C37: 4078.74 | D37: 4.63 | E37: 4.26 | F37: 5.37 | G37: 4.44 | H37: 3.95 | I37: 4.68 | J37: 4.68 | K37: 4.4 | L37: 5.48
A38: 2018 | B38: 96 | C38: 3962.12 | D38: 4.63 | E38: 4.24 | F38: 5.3 | G38: 4.43 | H38: 3.95 | I38: 4.92 | J38: 4.69 | K38: 4.39 | L38: 5.6
A39: 2019 | B39: 111 | C39: 4606.16 | D39: 4.74 | E39: 3.98 | F39: 5.44 | G39: 3.93 | H39: 3.81 | I39: 4.75 | J39: 4.89 | K39: 4.5 | L39: 5.48
A40: 2020 | B40: 164 | C40: 9623.14 | D40: 4.65 | E40: 4.08 | F40: 5.27 | G40: 4.42 | H40: 3.88 | I40: 4.95 | J40: 4.67 | K40: 4.31 | L40: 5.32
A41: 2021 | B41: 155 | C41: 12478.96 | D41: 4.44 | E41: 3.86 | F41: 5.07 | G41: 3.88 | H41: 3.83 | I41: 4.56 | J41: 4.68 | K41: 4.13 | L41: 5.36
A42: 2022 | B42: 147 | C42: 10429.13 | D42: 4.56 | E42: 3.87 | F42: 5.07 | G42: 3.92 | H42: 3.71 | I42: 4.81 | J42: 4.59 | K42: 4.08 | L42: 5.32
A43: Total | B43: 1277 | C43: 61731.33

Sheet PV ILR
A1: Inverter loading ratio by mounting type and installation year
K2: Graph Support | L2: Fixed-Tilt | M2: Tracking | N2: x-Axis | O2: Fixed Tilt 20th Perc Error | P2: Fixed Tilt 80th Perc Error | Q2: Tracking 20th Perc Error | R2: Tracking 80th Perc Error
K3: 2010 | L3: 0.55 | M3: 1.3 | N3: =A30&" "&B30&" "&TEXT(ROUND(C30/1000,1),"#.##") -> 2010 10 .2 | O3: 0 | P3: 0.01 | Q3: 0.08 | R3: 0.04
K4: 2011 | L4: =L3+2 -> 2.55 | M4: =M3+2 -> 3.3 | N4: =A31&" "&B31&" "&TEXT(ROUND(C31/1000,1),"0#.##") -> 2011 35 0.5 | O4: 0.06 | P4: 0.05 | Q4: 0.06 | R4: 0.07
K5: 2012 | L5: =L4+2 -> 4.55 | M5: 5.3 | N5: =A32&" "&B32&" "&TEXT(ROUND(C32/1000,1),"##") -> 2012 44 1 | O5: 0.05 | P5: 0.05 | Q5: 0.09 | R5: 0.06
K6: 2013 | L6: 6.55 | M6: 7.3 | N6: =A33&" "&B33&" "&TEXT(ROUND(C33/1000,1),"#.##") -> 2013 38 1.3 | O6: 0.03 | P6: 0.08 | Q6: 0.03 | R6: 0.07
K7: 2014 | L7: 8.55 | M7: 9.3 | N7: 2014 65 3.2 | O7: 0.06 | P7: 0.06 | Q7: 0.05 | R7: 0.07
K8: 2015 | L8: 10.55 | M8: 11.3 | N8: 2015 89 2.9 | O8: 0.04 | P8: 0.08 | Q8: 0.06 | R8: 0.07
K9: 2016 | L9: 12.55 | M9: 13.3 | N9: 2016 150 7.4 | O9: 0.08 | P9: 0.12 | Q9: 0.06 | R9: 0.04
K10: 2017 | L10: 14.55 | M10: 15.3 | N10: 2017 166 4.1 | O10: 0.06 | P10: 0.13 | Q10: 0.08 | R10: 0.09
K11: 2018 | L11: 16.55 | M11: 17.3 | N11: =A38&" "&B38&" "&TEXT(ROUND(C38/1000,1),"##") -> 2018 96 4 | O11: 0.12 | P11: 0.14 | Q11: 0.06 | R11: 0.11
K12: 2019 | L12: 18.55 | M12: 19.3 | N12: 2019 111 4.6 | O12: 0.05 | P12: 0.18 | Q12: 0.12 | R12: 0.09
K13: 2020 | L13: 20.55 | M13: 21.3 | N13: 2020 164 9.6 | O13: 0.11 | P13: 0.12 | Q13: 0.08 | R13: 0.09
K14: 2021 | L14: 22.55 | M14: 23.3 | N14: 2021 155 12.5 | O14: 0.07 | P14: 0.13 | Q14: 0.06 | R14: 0.08
K15: 2022 | L15: 24.55 | M15: 25.3 | N15: 2022 146 10.2 | O15: 0.06 | P15: 0.11 | Q15: 0.08 | R15: 0.09
N16: Total 1274 61.5
A23: Sources: Berkeley Lab
A24: Notes: The Inverter Loading Ratio describes the ratio of project capacity measured in MWDC at the inverter to the nominal inverter capacity measured in MWAC
D25: Inverter Loading Ratio
A26: Installation Year | B26: All Count | C26: All Capacity MWAC | D26: All Median | E26: All 20th Percentile | F26: All 80th Percentile | G26: Fixed Tilt Median | H26: Fixed Tilt 20th Percentile | I26: Fixed Tilt 80th Percentile | J26: Tracking Median | K26: Tracking 20th Percentile | L26: Tracking 80th Percentile
A27: 2007 | B27: 2 | C27: 18.9 | D27: 1.18 | E27: 1.18 | F27: 1.19 | J27: 1.17 | K27: 1.17 | L27: 1.17
A28: 2008 | B28: 1 | C28: 10 | D28: 1.21 | E28: 1.21 | F28: 1.21 | G28: 1.21 | H28: 1.21 | I28: 1.21
A29: 2009 | B29: 2 | C29: 46 | D29: 1.15 | E29: 1.12 | F29: 1.18 | G29: 1.2 | H29: 1.2 | I29: 1.2 | J29: 1.1 | K29: 1.1 | L29: 1.1
A30: 2010 | B30: 10 | C30: 175.07 | D30: 1.2 | E30: 1.17 | F30: 1.22 | G30: 1.19 | H30: 1.19 | I30: 1.21 | J30: 1.21 | K30: 1.13 | L30: 1.25
A31: 2011 | B31: 35 | C31: 485.15 | D31: 1.18 | E31: 1.11 | F31: 1.25 | G31: 1.23 | H31: 1.17 | I31: 1.28 | J31: 1.15 | K31: 1.09 | L31: 1.22
A32: 2012 | B32: 44 | C32: 961.14 | D32: 1.24 | E32: 1.16 | F32: 1.29 | G32: 1.24 | H32: 1.2 | I32: 1.29 | J32: 1.22 | K32: 1.13 | L32: 1.29
A33: 2013 | B33: 38 | C33: 1343.79 | D33: 1.29 | E33: 1.25 | F33: 1.36 | G33: 1.3 | H33: 1.26 | I33: 1.37 | J33: 1.29 | K33: 1.25 | L33: 1.35
A34: 2014 | B34: 65 | C34: 3184.08 | D34: 1.28 | E34: 1.22 | F34: 1.34 | G34: 1.26 | H34: 1.2 | I34: 1.33 | J34: 1.29 | K34: 1.24 | L34: 1.36
A35: 2015 | B35: 89 | C35: 2886.68 | D35: 1.3 | E35: 1.24 | F35: 1.38 | G35: 1.3 | H35: 1.26 | I35: 1.38 | J35: 1.29 | K35: 1.23 | L35: 1.36
A36: 2016 | B36: 150 | C36: 7381.8 | D36: 1.31 | E36: 1.25 | F36: 1.37 | G36: 1.3 | H36: 1.23 | I36: 1.43 | J36: 1.31 | K36: 1.25 | L36: 1.35
A37: 2017 | B37: 166 | C37: 4078.74 | D37: 1.33 | E37: 1.24 | F37: 1.41 | G37: 1.27 | H37: 1.21 | I37: 1.4 | J37: 1.33 | K37: 1.25 | L37: 1.42
A38: 2018 | B38: 96 | C38: 3962.12 | D38: 1.33 | E38: 1.26 | F38: 1.46 | G38: 1.38 | H38: 1.26 | I38: 1.52 | J38: 1.32 | K38: 1.26 | L38: 1.43
A39: 2019 | B39: 111 | C39: 4606.16 | D39: 1.31 | E39: 1.21 | F39: 1.42 | G39: 1.31 | H39: 1.26 | I39: 1.49 | J39: 1.31 | K39: 1.19 | L39: 1.4
A40: 2020 | B40: 164 | C40: 9623.14 | D40: 1.34 | E40: 1.26 | F40: 1.45 | G40: 1.35 | H40: 1.24 | I40: 1.47 | J40: 1.34 | K40: 1.26 | L40: 1.43
A41: 2021 | B41: 155 | C41: 12478.96 | D41: 1.34 | E41: 1.27 | F41: 1.43 | G41: 1.37 | H41: 1.3 | I41: 1.5 | J41: 1.33 | K41: 1.27 | L41: 1.41
A42: 2022 | B42: 146 | C42: 10229.13 | D42: 1.32 | E42: 1.23 | F42: 1.4 | G42: 1.4 | H42: 1.34 | I42: 1.51 | J42: 1.3 | K42: 1.22 | L42: 1.39
A43: Total | B43: 1274 | C43: 61470.87

Sheet CapEx Trend (PV-only)
A1: Installed costs by year (in both DC and AC terms) | L1: Installed costs by year (in both DC and AC Watt as well as nominal and real $ terms)
A24: Sources: Berkeley Lab, Energy Information Administration | L24: Sources: Berkeley Lab, Energy Information Administration
A27: Installed Costs 2022 $/WAC
A28: Commercial Operation Year | B28: All Count | C28: All Capacity (MWAC) | D28: All Capacity-weighted Mean | E28: All Median | F28: All 20th Percentile | G28: All 80th Percentile | L28: Commercial Operation Year | M28: Count | N28: Capacity (MWAC) | O28: Median nominal $/WDC | P28: Median 2022 $/WDC | Q28: Median nominal $/WAC | R28: Median 2022 $/WAC
A29: 2007 | B29: 2 | C29: 18.9 | D29: 11.64 | E29: 11.71 | F29: 11.56 | G29: 11.86 | L29: 2007 | M29: 2 | N29: 18.9 | O29: 7.21 | P29: 9.91 | Q29: 8.51 | R29: 11.71
A30: 2008 | B30: 1 | C30: 10 | D30: 5.4 | E30: 5.4 | F30: 5.4 | G30: 5.4 | L30: 2008 | M30: 1 | N30: 10 | O30: 3.3 | P30: 4.45 | Q30: 4 | R30: 5.4
A31: 2009 | B31: 2 | C31: 46 | D31: 5.98 | E31: 5.81 | F31: 4.63 | G31: 6.99 | L31: 2009 | M31: 2 | N31: 46 | O31: 3.83 | P31: 5.12 | Q31: 4.34 | R31: 5.81
A32: 2010 | B32: 10 | C32: 175.07 | D32: 5.57 | E32: 6.03 | F32: 5.34 | G32: 7.73 | L32: 2010 | M32: 10 | N32: 175.07 | O32: 3.93 | P32: 5.23 | Q32: 4.55 | R32: 6.03
A33: 2011 | B33: 29 | C33: 427.79 | D33: 5.26 | E33: 5.28 | F33: 4.57 | G33: 5.96 | L33: 2011 | M33: 29 | N33: 427.79 | O33: 3.35 | P33: 4.35 | Q33: 4.08 | R33: 5.28
A34: 2012 | B34: 41 | C34: 929.64 | D34: 4.3 | E34: 4.89 | F34: 4.12 | G34: 5.39 | L34: 2012 | M34: 41 | N34: 929.64 | O34: 3.12 | P34: 3.96 | Q34: 3.84 | R34: 4.89
A35: 2013 | B35: 38 | C35: 1343.79 | D35: 4.65 | E35: 4.35 | F35: 3.75 | G35: 5.15 | L35: 2013 | M35: 38 | N35: 1343.79 | O35: 2.72 | P35: 3.4 | Q35: 3.48 | R35: 4.35
A36: 2014 | B36: 65 | C36: 3184.08 | D36: 4.49 | E36: 3.79 | F36: 3.07 | G36: 4.94 | L36: 2014 | M36: 65 | N36: 3184.08 | O36: 2.37 | P36: 2.9 | Q36: 3.09 | R36: 3.79
A37: 2015 | B37: 87 | C37: 2869.68 | D37: 3.69 | E37: 3.31 | F37: 2.61 | G37: 4.06 | L37: 2015 | M37: 87 | N37: 2869.68 | O37: 2.07 | P37: 2.52 | Q37: 2.73 | R37: 3.31
A38: 2016 | B38: 146 | C38: 7389.29 | D38: 2.74 | E38: 2.74 | F38: 2.37 | G38: 3.23 | L38: 2016 | M38: 146 | N38: 7389.29 | O38: 1.75 | P38: 2.1 | Q38: 2.28 | R38: 2.74
A39: 2017 | B39: 163 | C39: 4045.84 | D39: 2.58 | E39: 2.54 | F39: 1.97 | G39: 3.22 | L39: 2017 | M39: 163 | N39: 4045.84 | O39: 1.63 | P39: 1.93 | Q39: 2.15 | R39: 2.54
A40: 2018 | B40: 94 | C40: 3950.92 | D40: 2.18 | E40: 2.06 | F40: 1.67 | G40: 3 | L40: 2018 | M40: 94 | N40: 3950.92 | O40: 1.31 | P40: 1.52 | Q40: 1.78 | R40: 2.06
A41: 2019 | B41: 103 | C41: 4532.66 | D41: 1.86 | E41: 1.77 | F41: 1.42 | G41: 2.51 | L41: 2019 | M41: 103 | N41: 4532.66 | O41: 1.22 | P41: 1.39 | Q41: 1.56 | R41: 1.77
A42: 2020 | B42: 158 | C42: 9441.54 | D42: 1.66 | E42: 1.81 | F42: 1.46 | G42: 2.54 | L42: 2020 | M42: 158 | N42: 9441.54 | O42: 1.22 | P42: 1.36 | Q42: 1.62 | R42: 1.81
A43: 2021 | B43: 128 | C43: 11228.24 | D43: 1.56 | E43: 1.52 | F43: 1.23 | G43: 1.98 | L43: 2021 | M43: 128 | N43: 11228.24 | O43: 1.08 | P43: 1.16 | Q43: 1.42 | R43: 1.52
A44: 2022 | B44: 59 | C44: 4621.5 | D44: 1.27 | E44: 1.32 | F44: 1.06 | G44: 1.74 | L44: 2022 | M44: 59 | N44: 4621.5 | O44: 1.02 | P44: 1.07 | Q44: 1.3 | R44: 1.32
A45: Total | B45: 1126 | C45: 54214.96
A47: Installed Costs 2022 $/WDC
A48: Commercial Operation Year | B48: All Count | C48: All Capacity (MWDC) | D48: All Capacity-weighted Mean | E48: All Median | F48: All 20th Percentile | G48: All 80th Percentile
A49: 2007 | B49: 2 | C49: 22.28 | D49: 9.88 | E49: 9.91 | F49: 9.83 | G49: 9.99
A50: 2008 | B50: 1 | C50: 12.14 | D50: 4.45 | E50: 4.45 | F50: 4.45 | G50: 4.45
A51: 2009 | B51: 2 | C51: 52.8 | D51: 5.21 | E51: 5.12 | F51: 3.97 | G51: 6.28
A52: 2010 | B52: 10 | C52: 210.72 | D52: 4.63 | E52: 5.23 | F52: 4.46 | G52: 6.27
A53: 2011 | B53: 29 | C53: 516.7 | D53: 4.36 | E53: 4.35 | F53: 3.84 | G53: 4.98
A54: 2012 | B54: 41 | C54: 1181.41 | D54: 3.39 | E54: 3.96 | F54: 3.19 | G54: 4.37
A55: 2013 | B55: 38 | C55: 1754.16 | D55: 3.57 | E55: 3.4 | F55: 2.91 | G55: 3.93
A56: 2014 | B56: 65 | C56: 4112.13 | D56: 3.48 | E56: 2.9 | F56: 2.34 | G56: 3.88
A57: 2015 | B57: 87 | C57: 3728.47 | D57: 2.84 | E57: 2.52 | F57: 1.96 | G57: 3.23
A58: 2016 | B58: 145 | C58: 9618.47 | D58: 2.1 | E58: 2.1 | F58: 1.79 | G58: 2.52
A59: 2017 | B59: 163 | C59: 5381.86 | D59: 1.94 | E59: 1.93 | F59: 1.54 | G59: 2.26
A60: 2018 | B60: 94 | C60: 5400.59 | D60: 1.59 | E60: 1.52 | F60: 1.22 | G60: 2.29
A61: 2019 | B61: 103 | C61: 5996.07 | D61: 1.4 | E61: 1.39 | F61: 1.12 | G61: 1.83
A62: 2020 | B62: 158 | C62: 12521.67 | D62: 1.25 | E62: 1.36 | F62: 1.08 | G62: 1.93
A63: 2021 | B63: 128 | C63: 15012.66 | D63: 1.16 | E63: 1.16 | F63: 0.94 | G63: 1.45
A64: 2022 | B64: 59 | C64: 5954.16 | D64: 0.98 | E64: 1.07 | F64: 0.79 | G64: 1.33
A65: Total | B65: 1125 | C65: 71476.3
A69: Graph Support | B69: x-Axis | C69: DC-Annual | D69: AC
A70: 2010 | B70: =A32&" "&B32&" "&TEXT(ROUND(C32/1000,1),"0#.##") -> 2010 10 0.2 | C70: 0.7 | D70: =C70+0.6 -> 1.3
A71: 2011 | B71: =A33&" "&B33&" "&TEXT(ROUND(C33/1000,1),"0#.##") -> 2011 29 0.4 | C71: =C70+2 -> 2.7 | D71: 3.3
A72: 2012 | B72: 2012 41 0.9 | C72: 4.7 | D72: 5.3
A73: 2013 | B73: =A35&" "&B35&" "&TEXT(ROUND(C35/1000,1),"#.##") -> 2013 38 1.3 | C73: 6.7 | D73: 7.3
A74: 2014 | B74: =A36&" "&B36&" "&TEXT(ROUND(C36/1000,1),"#.##") -> 2014 65 3.2 | C74: 8.7 | D74: 9.3
A75: 2015 | B75: 2015 87 2.9 | C75: 10.7 | D75: 11.3
A76: 2016 | B76: 2016 146 7.4 | C76: 12.7 | D76: 13.3
A77: 2017 | B77: =A39&" "&B39&" "&TEXT(ROUND(C39/1000,1),"##") -> 2017 163 4 | C77: 14.7 | D77: 15.3
A78: 2018 | B78: 2018 94 4. | C78: 16.7 | D78: 17.3
A79: 2019 | B79: 2019 103 4.5 | C79: 18.7 | D79: 19.3
A80: 2020 | B80: 2020 158 9.4 | C80: 20.7 | D80: 21.3
A81: 2021 | B81: 2021 128 11.2 | C81: 22.7 | D81: 23.3
A82: 2022 | B82: 2022 59 4.6 | C82: 24.7 | D82: 25.3

Sheet CapEx Trend by Mount Type (PV)
A1: Installed costs by mounting type and installation year | X1: $/WAC
T2: Graph Support | U2: Fixed-Tilt | V2: Tracking | W2: x-Axis | X2: Fixed Tilt 20th Perc Error | Y2: Fixed Tilt 80th Perc Error | Z2: Tracking 20th Perc Error | AA2: Tracking 80th Perc Error
T3: 2010 | U3: 0.55 | V3: 1.3 | W3: =A30&" "&B30&" "&TEXT(ROUND(C30/1000,1),"0#.##") -> 2010 10 0.2 | X3: 1.1 | Y3: 0.59 | Z3: 1.03 | AA3: 1.4
T4: 2011 | U4: =U3+2 -> 2.55 | V4: =V3+2 -> 3.3 | W4: =A31&" "&B31&" "&TEXT(ROUND(C31/1000,1),"0#.##") -> 2011 29 0.4 | X4: 0.86 | Y4: 0.62 | Z4: 0.54 | AA4: 0.69
T5: 2012 | U5: =U4+2 -> 4.55 | V5: 5.3 | W5: 2012 41 0.9 | X5: 0.59 | Y5: 0.91 | Z5: 0.1 | AA5: 0.66
T6: 2013 | U6: 6.55 | V6: 7.3 | W6: =A33&" "&B33&" "&TEXT(ROUND(C33/1000,1),"#.##") -> 2013 38 1.3 | X6: 0.76 | Y6: 0.74 | Z6: 0.51 | AA6: 0.64
T7: 2014 | U7: 8.55 | V7: 9.3 | W7: =A34&" "&B34&" "&TEXT(ROUND(C34/1000,1),"#.##") -> 2014 65 3.2 | X7: 0.56 | Y7: 0.98 | Z7: 0.74 | AA7: 1.18
T8: 2015 | U8: 10.55 | V8: 11.3 | W8: 2015 87 2.9 | X8: 0.57 | Y8: 0.87 | Z8: 0.71 | AA8: 0.76
T9: 2016 | U9: 12.55 | V9: 13.3 | W9: 2016 146 7.4 | X9: 0.43 | Y9: 0.9 | Z9: 0.34 | AA9: 0.4
T10: 2017 | U10: 14.55 | V10: 15.3 | W10: =A37&" "&B37&" "&TEXT(ROUND(C37/1000,1),"#.0") -> 2017 163 4.0 | X10: 0.46 | Y10: 0.45 | Z10: 0.62 | AA10: 0.72
T11: 2018 | U11: 16.55 | V11: 17.3 | W11: 2018 94 4. | X11: 0.68 | Y11: 0.98 | Z11: 0.3 | AA11: 0.83
T12: 2019 | U12: 18.55 | V12: 19.3 | W12: 2019 103 4.5 | X12: 0.53 | Y12: 1 | Z12: 0.32 | AA12: 0.43
T13: 2020 | U13: 20.55 | V13: 21.3 | W13: 2020 158 9.4 | X13: 0.6 | Y13: 0.65 | Z13: 0.33 | AA13: 0.68
T14: 2021 | U14: 22.55 | V14: 23.3 | W14: 2021 128 11.2 | X14: 0.3 | Y14: 0.8 | Z14: 0.28 | AA14: 0.39
T15: 2022 | U15: 24.55 | V15: 25.3 | W15: 2022 59 4.6 | X15: 0.1 | Y15: 0.7 | Z15: 0.33 | AA15: 0.37
X19: $/WDC
W20: x-Axis | X20: Fixed Tilt 20th Perc Error | Y20: Fixed Tilt 80th Perc Error | Z20: Tracking 20th Perc Error | AA20: Tracking 80th Perc Error
W21: =A50&" "&B50&" "&TEXT(ROUND(C50/1000,1),"0#.##") -> 2010 10 0.2 | X21: 0.88 | Y21: 0.56 | Z21: 0.28 | AA21: 1.34
W22: =A51&" "&B51&" "&TEXT(ROUND(C51/1000,1),"0#.##") -> 2011 29 0.5 | X22: 0.72 | Y22: 0.74 | Z22: 0.32 | AA22: 0.42
A23: Sources: Berkeley Lab, Energy Information Administration | W23: =A52&" "&B52&" "&TEXT(ROUND(C52/1000,1),"#.##") -> 2012 41 1.2 | X23: 0.33 | Y23: 0.78 | Z23: 0.34 | AA23: 0.3
A24: Note: | W24: =A53&" "&B53&" "&TEXT(ROUND(C53/1000,1),"#.##") -> 2013 38 1.8 | X24: 0.66 | Y24: 0.58 | Z24: 0.38 | AA24: 0.49
D25: Installed Costs 2022 $/WAC | W25: 2014 65 4.1 | X25: 0.54 | Y25: 0.81 | Z25: 0.55 | AA25: 0.97
A26: Commercial Operation Year | B26: All Count | C26: All Capacity (MWAC) | D26: All Capacity-weighted Mean | E26: All Median | F26: All 20th Percentile | G26: All 80th Percentile | H26: Fixed-Tilt Capacity-weighted Mean | I26: Fixed Tilt Median | J26: Fixed Tilt 20th Percentile | K26: Fixed Tilt 80th Percentile | L26: Tracking Capacity-weighted Mean | M26: Tracking Median | N26: Tracking 20th Percentile | O26: Tracking 80th Percentile | W26: 2015 87 3.7 | X26: 0.29 | Y26: 0.64 | Z26: 0.57 | AA26: 0.66
A27: 2007 | B27: 2 | C27: 18.9 | D27: 11.64 | E27: 11.71 | F27: 11.56 | G27: 11.86 | L27: 11.46 | M27: 11.46 | N27: 11.46 | O27: 11.46 | W27: 2016 145 9.6 | X27: 0.39 | Y27: 0.89 | Z27: 0.27 | AA27: 0.37
A28: 2008 | B28: 1 | C28: 10 | D28: 5.4 | E28: 5.4 | F28: 5.4 | G28: 5.4 | H28: 5.4 | I28: 5.4 | J28: 5.4 | K28: 5.4 | W28: 2017 163 5.4 | X28: 0.28 | Y28: 0.36 | Z28: 0.41 | AA28: 0.33
A29: 2009 | B29: 2 | C29: 46 | D29: 5.98 | E29: 5.81 | F29: 4.63 | G29: 6.99 | H29: 3.85 | I29: 3.85 | J29: 3.85 | K29: 3.85 | L29: 7.78 | M29: 7.78 | N29: 7.78 | O29: 7.78 | W29: 2018 94 5.4 | X29: 0.52 | Y29: 0.97 | Z29: 0.24 | AA29: 0.7
A30: 2010 | B30: 10 | C30: 175.07 | D30: 5.57 | E30: 6.03 | F30: 5.34 | G30: 7.73 | H30: 4.98 | I30: 5.67 | J30: 4.57 | K30: 6.26 | L30: 7.31 | M30: 7.61 | N30: 6.58 | O30: 9.01 | W30: 2019 103 6. | X30: 0.38 | Y30: 0.59 | Z30: 0.24 | AA30: 0.33
A31: 2011 | B31: 29 | C31: 427.79 | D31: 5.26 | E31: 5.28 | F31: 4.57 | G31: 5.96 | H31: 5.2 | I31: 5.28 | J31: 4.42 | K31: 5.91 | L31: 5.34 | M31: 5.27 | N31: 4.73 | O31: 5.96 | W31: 2020 158 12.5 | X31: 0.45 | Y31: 0.78 | Z31: 0.26 | AA31: 0.45
A32: 2012 | B32: 41 | C32: 929.64 | D32: 4.3 | E32: 4.89 | F32: 4.12 | G32: 5.39 | H32: 3.74 | I32: 4.28 | J32: 3.69 | K32: 5.19 | L32: 5.13 | M32: 4.98 | N32: 4.88 | O32: 5.64 | W32: 2021 128 15. | X32: 0.22 | Y32: 0.61 | Z32: 0.22 | AA32: 0.24
A33: 2013 | B33: 38 | C33: 1343.79 | D33: 4.65 | E33: 4.35 | F33: 3.75 | G33: 5.15 | H33: 4.43 | I33: 4.32 | J33: 3.56 | K33: 5.06 | L33: 4.84 | M33: 4.51 | N33: 4.01 | O33: 5.15 | W33: 2022 59 6. | X33: 0.11 | Y33: 0.39 | Z33: 0.33 | AA33: 0.2
A34: 2014 | B34: 65 | C34: 3184.08 | D34: 4.49 | E34: 3.79 | F34: 3.07 | G34: 4.94 | H34: 4.5 | I34: 3.7 | J34: 3.14 | K34: 4.68 | L34: 4.46 | M34: 3.8 | N34: 3.06 | O34: 4.98
A35: 2015 | B35: 87 | C35: 2869.68 | D35: 3.69 | E35: 3.31 | F35: 2.61 | G35: 4.06 | H35: 2.91 | I35: 2.96 | J35: 2.39 | K35: 3.83 | L35: 4.03 | M35: 3.45 | N35: 2.74 | O35: 4.21
A36: 2016 | B36: 146 | C36: 7389.29 | D36: 2.74 | E36: 2.74 | F36: 2.37 | G36: 3.23 | H36: 2.9 | I36: 2.68 | J36: 2.24 | K36: 3.58 | L36: 2.71 | M36: 2.74 | N36: 2.41 | O36: 3.14
A37: 2017 | B37: 163 | C37: 4045.84 | D37: 2.58 | E37: 2.54 | F37: 1.97 | G37: 3.22 | H37: 2.63 | I37: 2.54 | J37: 2.08 | K37: 2.99 | L37: 2.57 | M37: 2.53 | N37: 1.92 | O37: 3.26
A38: 2018 | B38: 94 | C38: 3950.92 | D38: 2.18 | E38: 2.06 | F38: 1.67 | G38: 3 | H38: 1.83 | I38: 2.04 | J38: 1.35 | K38: 3.01 | L38: 2.35 | M38: 2.08 | N38: 1.78 | O38: 2.92
A39: 2019 | B39: 103 | C39: 4532.66 | D39: 1.86 | E39: 1.77 | F39: 1.42 | G39: 2.51 | H39: 1.68 | I39: 1.89 | J39: 1.36 | K39: 2.89 | L39: 1.88 | M39: 1.74 | N39: 1.43 | O39: 2.18
A40: 2020 | B40: 158 | C40: 9441.54 | D40: 1.66 | E40: 1.81 | F40: 1.46 | G40: 2.54 | H40: 1.67 | I40: 1.97 | J40: 1.38 | K40: 2.62 | L40: 1.66 | M40: 1.8 | N40: 1.47 | O40: 2.48
A41: 2021 | B41: 128 | C41: 11228.24 | D41: 1.56 | E41: 1.52 | F41: 1.23 | G41: 1.98 | H41: 1.48 | I41: 1.4 | J41: 1.09 | K41: 2.19 | L41: 1.57 | M41: 1.55 | N41: 1.27 | O41: 1.93
A42: 2022 | B42: 59 | C42: 4621.5 | D42: 1.27 | E42: 1.32 | F42: 1.06 | G42: 1.74 | H42: 1.17 | I42: 1.19 | J42: 1.09 | K42: 1.89 | L42: 1.28 | M42: 1.36 | N42: 1.03 | O42: 1.73
A43: Total | B43: 1126 | C43: 54214.96
D45: Installed Costs 2022 $/WDC
A46: Commercial Operation Year | B46: All Count | C46: All Capacity (MWDC) | D46: All Capacity-weighted Mean | E46: All Median | F46: All 20th Percentile | G46: All 80th Percentile | H46: Fixed-Tilt Capacity-weighted Mean | I46: Fixed Tilt Median | J46: Fixed Tilt 20th Percentile | K46: Fixed Tilt 80th Percentile | L46: Tracking Capacity-weighted Mean | M46: Tracking Median | N46: Tracking 20th Percentile | O46: Tracking 80th Percentile
A47: 2007 | B47: 2 | C47: 22.28 | D47: 9.88 | E47: 9.91 | F47: 9.83 | G47: 9.99 | L47: 9.78 | M47: 9.78 | N47: 9.78 | O47: 9.78
A48: 2008 | B48: 1 | C48: 12.14 | D48: 4.45 | E48: 4.45 | F48: 4.45 | G48: 4.45 | H48: 4.45 | I48: 4.45 | J48: 4.45 | K48: 4.45
A49: 2009 | B49: 2 | C49: 52.8 | D49: 5.21 | E49: 5.12 | F49: 3.97 | G49: 6.28 | H49: 3.2 | I49: 3.2 | J49: 3.2 | K49: 3.2 | L49: 7.04 | M49: 7.04 | N49: 7.04 | O49: 7.04
A50: 2010 | B50: 10 | C50: 210.72 | D50: 4.63 | E50: 5.23 | F50: 4.46 | G50: 6.27 | H50: 4.1 | I50: 4.7 | J50: 3.81 | K50: 5.26 | L50: 6.21 | M50: 5.97 | N50: 5.69 | O50: 7.31
A51: 2011 | B51: 29 | C51: 516.7 | D51: 4.36 | E51: 4.35 | F51: 3.84 | G51: 4.98 | H51: 4.25 | I51: 4.27 | J51: 3.55 | K51: 5 | L51: 4.48 | M51: 4.45 | N51: 4.14 | O51: 4.87
A52: 2012 | B52: 41 | C52: 1181.41 | D52: 3.39 | E52: 3.96 | F52: 3.19 | G52: 4.37 | H52: 2.9 | I52: 3.37 | J52: 3.04 | K52: 4.15 | L52: 4.11 | M52: 4.2 | N52: 3.86 | O52: 4.5
A53: 2013 | B53: 38 | C53: 1754.16 | D53: 3.57 | E53: 3.4 | F53: 2.91 | G53: 3.93 | H53: 3.36 | I53: 3.26 | J53: 2.61 | K53: 3.85 | L53: 3.73 | M53: 3.46 | N53: 3.08 | O53: 3.95
A54: 2014 | B54: 65 | C54: 4112.13 | D54: 3.48 | E54: 2.9 | F54: 2.34 | G54: 3.88 | H54: 3.47 | I54: 2.87 | J54: 2.33 | K54: 3.69 | L54: 3.47 | M54: 2.9 | N54: 2.35 | O54: 3.88
A55: 2015 | B55: 87 | C55: 3728.47 | D55: 2.84 | E55: 2.52 | F55: 1.96 | G55: 3.23 | H55: 2.19 | I55: 2.19 | J55: 1.9 | K55: 2.82 | L55: 3.13 | M55: 2.68 | N55: 2.12 | O55: 3.35
A56: 2016 | B56: 145 | C56: 9618.47 | D56: 2.1 | E56: 2.1 | F56: 1.79 | G56: 2.52 | H56: 2.15 | I56: 2.08 | J56: 1.69 | K56: 2.97 | L56: 2.08 | M56: 2.1 | N56: 1.84 | O56: 2.48
A57: 2017 | B57: 163 | C57: 5381.86 | D57: 1.94 | E57: 1.93 | F57: 1.54 | G57: 2.26 | H57: 1.94 | I57: 1.95 | J57: 1.68 | K57: 2.32 | L57: 1.94 | M57: 1.93 | N57: 1.52 | O57: 2.26
A58: 2018 | B58: 94 | C58: 5400.59 | D58: 1.59 | E58: 1.52 | F58: 1.22 | G58: 2.29 | H58: 1.28 | I58: 1.41 | J58: 0.89 | K58: 2.37 | L58: 1.75 | M58: 1.55 | N58: 1.31 | O58: 2.24
A59: 2019 | B59: 103 | C59: 5996.07 | D59: 1.4 | E59: 1.39 | F59: 1.12 | G59: 1.83 | H59: 1.16 | I59: 1.46 | J59: 1.09 | K59: 2.05 | L59: 1.44 | M59: 1.36 | N59: 1.13 | O59: 1.69
A60: 2020 | B60: 158 | C60: 12521.67 | D60: 1.25 | E60: 1.36 | F60: 1.08 | G60: 1.93 | H60: 1.2 | I60: 1.45 | J60: 1 | K60: 2.24 | L60: 1.26 | M60: 1.36 | N60: 1.09 | O60: 1.81
A61: 2021 | B61: 128 | C61: 15012.66 | D61: 1.16 | E61: 1.16 | F61: 0.94 | G61: 1.45 | H61: 1.08 | I61: 1.02 | J61: 0.8 | K61: 1.63 | L61: 1.17 | M61: 1.19 | N61: 0.97 | O61: 1.43
A62: 2022 | B62: 59 | C62: 5954.16 | D62: 0.98 | E62: 1.07 | F62: 0.79 | G62: 1.33 | H62: 0.84 | I62: 0.9 | J62: 0.79 | K62: 1.28 | L62: 1 | M62: 1.12 | N62: 0.79 | O62: 1.32
A63: Total | B63: 1125 | C63: 71476.3

Sheet CapEx by Size (PV-only)
A1: Installed costs by project size in 2022
A23: Sources: Berkeley Lab
B25: Installed Costs in $2022/WAC
A26: Project Size Bin | B26: Project Count in 2022 | C26: Project Capacity MWAC | D26: Median | E26: 20th Percentile | F26: 80th Percentile | G26: 20th Error | H26: 80th Error | I26: x-Axis
A27: 5-20 MW | B27: 14 | C27: 108.3 | D27: 1.68 | E27: 1.31 | F27: 2.04 | G27: 0.37 | H27: 0.35 | I27: =A27&" n="&B27&" "&TEXT(C27,"0#")&" MW" -> 5-20 MW n=14 108 MW
A28: 20-50 MW | B28: 8 | C28: 189.8 | D28: 1.28 | E28: 1.07 | F28: 1.54 | G28: 0.21 | H28: 0.26 | I28: =A28&" n="&B28&" "&TEXT(C28,"0#")&" MW" -> 20-50 MW n=8 190 MW
A29: 50-100 MW | B29: 20 | C29: 1325.5 | D29: 1.29 | E29: 1.08 | F29: 1.5 | G29: 0.21 | H29: 0.22 | I29: =A29&" n="&B29&" "&TEXT(C29,"0#")&" MW" -> 50-100 MW n=20 1326 MW
A30: 100-300 MW | B30: 17 | C30: 2997.9 | D30: 1.22 | E30: 0.92 | F30: 1.69 | G30: 0.3 | H30: 0.47 | I30: =A30&" n="&B30&" "&TEXT(C30,"0#")&" MW" -> 100-300 MW n=17 2998 MW
B32: Installed Costs in $2022/WDC
A33: Project Size Bin | B33: Project Count in 2022 | C33: Project Capacity MWDC | D33: Median | E33: 20th Percentile | F33: 80th Percentile | G33: 20th Error | H33: 80th Error | I33: x-Axis
A34: 5-20 MW | B34: 14 | C34: 143.55 | D34: 1.26 | E34: 0.99 | F34: 1.55 | G34: 0.28 | H34: 0.29 | I34: =A34&" n="&B34&" "&TEXT(C34,"0#")&" MW" -> 5-20 MW n=14 144 MW
A35: 20-50 MW | B35: 7 | C35: 187.5 | D35: 1.02 | E35: 0.79 | F35: 1.21 | G35: 0.23 | H35: 0.19 | I35: =A35&" n="&B35&" "&TEXT(C35,"0#")&" MW" -> 20-50 MW n=7 188 MW
A36: 50-100 MW | B36: 13 | C36: 968.82 | D36: 1.2 | E36: 0.92 | F36: 1.33 | G36: 0.28 | H36: 0.13 | I36: =A36&" n="&B36&" "&TEXT(C36,"0#")&" MW" -> 50-100 MW n=13 969 MW
A37: 100-400 MW | B37: 25 | C37: 4654.28 | D37: 0.82 | E37: 0.72 | F37: 1.23 | G37: 0.1 | H37: 0.4 | I37: =A37&" n="&B37&" "&TEXT(C37,"0#")&" MW" -> 100-400 MW n=25 4654 MW

Sheet CapEx Trend by Region (PV only)
A1: Installed costs by region and installation year
A3: Sources: Berkeley Lab (some data points suppressed to protect confidentiality), Energy Information Administration
B5: Median Project Cost (2022 $/WAC) | O5: Median Project Cost (2022 $/WDC)
A6: Commercial Operation Year | B6: National | C6: CAISO | D6: ERCOT | E6: Hawaii | F6: ISO-NE | G6: MISO | H6: NYISO | I6: PJM | J6: SPP | K6: Southeast (non-ISO) | L6: West (non-ISO) | N6: Commercial Operation Year | O6: National | P6: CAISO | Q6: ERCOT | R6: HI | S6: ISO-NE | T6: MISO | U6: NYISO | V6: PJM | W6: SPP | X6: Southeast (non-ISO) | Y6: West (non-ISO)
A7: 2007 | B7: 11.71 | N7: 2007 | O7: 9.91
A8: 2008 | B8: 5.4 | N8: 2008 | O8: 4.45
A9: 2009 | B9: 5.81 | N9: 2009 | O9: 5.12
A10: 2010 | B10: 6.03 | I10: 6.16 | K10: 7.61 | N10: 2010 | O10: 5.23 | V10: 5.17 | X10: 5.97
A11: 2011 | B11: 5.28 | C11: 4.98 | I11: 5.71 | L11: 4.96 | N11: 2011 | O11: 4.35 | P11: 4.05 | V11: 5.04 | Y11: 4.3
A12: 2012 | B12: 4.89 | C12: 4.12 | D12: 4.9 | I12: 4.98 | K12: 4.24 | L12: 4.96 | N12: 2012 | O12: 3.96 | P12: 3.19 | Q12: 4.2 | V12: 3.99 | X12: 3.37 | Y12: 3.98
A13: 2013 | B13: 4.35 | C13: 4.48 | G13: 3.62 | K13: 4.31 | L13: 4.11 | N13: 2013 | O13: 3.4 | P13: 3.46 | T13: 2.62 | X13: 3.4 | Y13: 3.08
A14: 2014 | B14: 3.79 | C14: 3.86 | I14: 3.33 | K14: 2.42 | L14: 3.66 | N14: 2014 | O14: 2.9 | P14: 2.97 | V14: 2.61 | X14: 1.91 | Y14: 2.91
A15: 2015 | B15: 3.31 | C15: 3.53 | D15: 3.88 | G15: 4.44 | I15: 3.2 | K15: 2.65 | L15: 3.31 | N15: 2015 | O15: 2.52 | P15: 2.73 | Q15: 3.12 | T15: 3.33 | V15: 2.35 | X15: 1.95 | Y15: 2.43
A16: 2016 | B16: 2.74 | C16: 2.87 | G16: 2.81 | I16: 2.96 | J16: 2.37 | K16: 2.47 | L16: 2.59 | N16: 2016 | O16: 2.1 | P16: 2.19 | T16: 2.08 | V16: 2.3 | W16: 1.73 | X16: 1.87 | Y16: 2.1
A17: 2017 | B17: 2.54 | C17: 3.02 | D17: 2.3 | E17: 4.74 | F17: 2.87 | G17: 3.39 | I17: 2.41 | J17: 2.58 | K17: 2.27 | L17: 2.65 | N17: 2017 | O17: 1.93 | P17: 2.23 | Q17: 1.69 | R17: 3.32 | S17: 2.27 | T17: 2.23 | V17: 1.84 | W17: 1.84 | X17: 1.69 | Y17: 1.99
A18: 2018 | B18: 2.06 | C18: 3.26 | D18: 1.78 | F18: 2.67 | G18: 1.68 | I18: 2.57 | K18: 1.71 | L18: 2.28 | N18: 2018 | O18: 1.52 | P18: 2.43 | Q18: 1.31 | S18: 1.91 | T18: 1.32 | V18: 2.27 | X18: 1.29 | Y18: 1.76
A19: 2019 | B19: 1.77 | C19: 1.91 | D19: 1.81 | E19: 3.24 | F19: 2.66 | H19: 2.07 | I19: 1.95 | J19: 1.42 | K19: 1.61 | L19: 1.57 | N19: 2019 | O19: 1.39 | P19: 1.52 | Q19: 1.3 | R19: 3.23 | S19: 1.79 | U19: 1.48 | V19: 1.45 | W19: 1.22 | X19: 1.14 | Y19: 1.22
A20: 2020 | B20: 1.81 | C20: 1.86 | D20: 1.43 | F20: 2.62 | G20: 1.73 | H20: 3.19 | I20: 2.23 | J20: 1.71 | K20: 1.54 | L20: 2.1 | N20: 2020 | O20: 1.36 | P20: 1.37 | Q20: 1.06 | S20: 1.75 | T20: 1.37 | U20: 2.36 | V20: 1.7 | W20: 1.4 | X20: 1.1 | Y20: 1.68
A21: 2021 | B21: 1.52 | C21: 1.81 | D21: 1.47 | F21: 2.05 | G21: 1.41 | I21: 1.65 | K21: 1.41 | L21: 1.39 | N21: 2021 | O21: 1.16 | P21: 1.33 | Q21: 1.07 | S21: 1.46 | T21: 1.11 | V21: 1.24 | X21: 1.04 | Y21: 1.05
A22: 2022 | B22: 1.32 | D22: 1.07 | G22: 1.72 | H22: 1.48 | I22: 1.46 | K22: 1.12 | L22: 1.25 | N22: 2022 | O22: 1.07 | Q22: 0.71 | T22: 1.35 | U22: 1.06 | V22: 1.14 | X22: 0.88 | Y22: 0.93
B24: $/WAC Cost Sample Project Capacity | O24: $/WDC Cost Sample Project Capacity
A25: Commercial Operation Year | B25: National | C25: CAISO | D25: ERCOT | E25: Hawaii | F25: ISO-NE | G25: MISO | H25: NYISO | I25: PJM | J25: SPP | K25: Southeast (non-ISO) | L25: West (non-ISO) | N25: Commercial Operation Year | O25: National | P25: CAISO | Q25: ERCOT | R25: Hawaii | S25: ISO-NE | T25: MISO | U25: NYISO | V25: PJM | W25: SPP | X25: Southeast (non-ISO) | Y25: West (non-ISO)
A26: 2007 | B26: 19 | N26: 2007 | O26: 22
A27: 2008 | B27: 10 | N27: 2008 | O27: 12
A28: 2009 | B28: 46 | N28: 2009 | O28: 53
A29: 2010 | B29: 175 | I29: 23 | K29: 40 | N29: 2010 | O29: 211 | V29: 28 | X29: 48
A30: 2011 | B30: 428 | C30: 95 | I30: 66 | L30: 200 | N30: 2011 | O30: 517 | P30: 118 | V30: 77 | Y30: 243
A31: 2012 | B31: 930 | C31: 419 | D31: 30 | I31: 107 | K31: 40 | L31: 327 | N31: 2012 | O31: 1181 | P31: 553 | Q31: 35 | V31: 134 | X31: 49 | Y31: 403
A32: 2013 | B32: 1344 | C32: 900 | G32: 39 | K32: 44 | L32: 293 | N32: 2013 | O32: 1754 | P32: 1171 | T32: 52 | X32: 55 | Y32: 393
A33: 2014 | B33: 3184 | C33: 2676 | I33: 102 | K33: 62 | L33: 255 | N33: 2014 | O33: 4112 | P33: 3463 | V33: 139 | X33: 79 | Y33: 322
A34: 2015 | B34: 2870 | C34: 1337 | D34: 130 | G34: 20 | I34: 239 | K34: 415 | L34: 715 | N34: 2015 | O34: 3728 | P34: 1697 | Q34: 162 | T34: 27 | V34: 324 | X34: 563 | Y34: 940
A35: 2016 | B35: 7389 | C35: 3102 | G35: 111 | I35: 327 | J35: 165 | K35: 1335 | L35: 2038 | N35: 2016 | O35: 9618 | P35: 3982 | T35: 152 | V35: 430 | W35: 224 | X35: 1794 | Y35: 2634
A36: 2017 | B36: 4046 | C36: 529 | D36: 651 | E36: 46 | F36: 27 | G36: 273 | I36: 464 | J36: 19 | K36: 1201 | L36: 822 | N36: 2017 | O36: 5382 | P36: 701 | Q36: 841 | R36: 64 | S36: 35 | T36: 385 | V36: 610 | W36: 25 | X36: 1628 | Y36: 1074
A37: 2018 | B37: 3951 | C37: 837 | D37: 646 | F37: 60 | G37: 112 | I37: 361 | K37: 1377 | L37: 495 | N37: 2018 | O37: 5401 | P37: 1122 | Q37: 855 | S37: 82 | T37: 136 | V37: 507 | X37: 1960 | Y37: 655
A38: 2019 | B38: 4533 | C38: 979 | D38: 488 | E38: 129 | F38: 94 | H38: 65 | I38: 456 | J38: 16 | K38: 1548 | L38: 743 | N38: 2019 | O38: 5996 | P38: 1221 | Q38: 633 | R38: 141 | S38: 134 | U38: 87 | V38: 625 | W38: 19 | X38: 2157 | Y38: 962
A39: 2020 | B39: 9442 | C39: 1755 | D39: 2495 | F39: 74 | G39: 441 | H39: 27 | I39: 1052 | J39: 30 | K39: 2738 | L39: 816 | N39: 2020 | O39: 12522 | P39: 2278 | Q39: 3246 | S39: 108 | T39: 626 | U39: 35 | V39: 1363 | W39: 40 | X39: 3751 | Y39: 1055
A40: 2021 | B40: 11228 | C40: 1059 | D40: 3319 | F40: 189 | G40: 898 | I40: 1446 | K40: 2558 | L40: 1730 | N40: 2021 | O40: 15013 | P40: 1392 | Q40: 4452 | S40: 263 | T40: 1192 | V40: 1929 | X40: 3502 | Y40: 2242
A41: 2022 | B41: 4622 | D41: 1571 | G41: 622 | H41: 55 | I41: 571 | K41: 1198 | L41: 240 | N41: 2022 | O41: 5954 | Q41: 1953 | T41: 825 | U41: 76 | V41: 732 | X41: 1515 | Y41: 344
B43: $/WAC Cost Sample Project Count | O43: $/WDC Cost Sample Project Count
A44: Commercial Operation Year | B44: National | C44: CAISO | D44: ERCOT | E44: Hawaii | F44: ISO-NE | G44: MISO | H44: NYISO | I44: PJM | J44: SPP | K44: Southeast (non-ISO) | L44: West (non-ISO) | N44: Commercial Operation Year | O44: National | P44: CAISO | Q44: ERCOT | R44: Hawaii | S44: ISO-NE | T44: MISO | U44: NYISO | V44: PJM | W44: SPP | X44: Southeast (non-ISO) | Y44: West (non-ISO)
A45: 2007 | B45: 2 | L45: 2 | N45: 2007 | O45: 2 | Y45: 2
A46: 2008 | B46: 1 | C46: 1 | N46: 2008 | O46: 1 | P46: 1
A47: 2009 | B47: 2 | C47: 1 | K47: 1 | N47: 2009 | O47: 2 | P47: 1 | X47: 1
A48: 2010 | B48: 10 | C48: 1 | D48: 1 | I48: 3 | K48: 3 | L48: 2 | N48: 2010 | O48: 10 | P48: 1 | Q48: 1 | V48: 3 | X48: 3 | Y48: 2
A49: 2011 | B49: 29 | C49: 6 | D49: 1 | H49: 1 | I49: 6 | K49: 1 | L49: 14 | N49: 2011 | O49: 29 | P49: 6 | Q49: 1 | U49: 1 | V49: 6 | X49: 1 | Y49: 14
A50: 2012 | B50: 41 | C50: 9 | D50: 3 | E50: 1 | I50: 9 | K50: 3 | L50: 16 | N50: 2012 | O50: 41 | P50: 9 | Q50: 3 | R50: 1 | V50: 9 | X50: 3 | Y50: 16
A51: 2013 | B51: 38 | C51: 16 | D51: 2 | G51: 4 | I51: 2 | K51: 3 | L51: 11 | N51: 2013 | O51: 38 | P51: 16 | Q51: 2 | T51: 4 | V51: 2 | X51: 3 | Y51: 11
A52: 2014 | B52: 65 | C52: 32 | D52: 1 | E52: 1 | F52: 2 | G52: 2 | I52: 9 | K52: 3 | L52: 15 | N52: 2014 | O52: 65 | P52: 32 | Q52: 1 | R52: 1 | S52: 2 | T52: 2 | V52: 9 | X52: 3 | Y52: 15
A53: 2015 | B53: 87 | C53: 34 | D53: 3 | E53: 1 | G53: 3 | I53: 12 | K53: 16 | L53: 18 | N53: 2015 | O53: 87 | P53: 34 | Q53: 3 | R53: 1 | T53: 3 | V53: 12 | X53: 16 | Y53: 18
A54: 2016 | B54: 146 | C54: 45 | D54: 2 | E54: 1 | F54: 2 | G54: 3 | H54: 1 | I54: 18 | J54: 3 | K54: 30 | L54: 41 | N54: 2016 | O54: 145 | P54: 45 | Q54: 2 | R54: 1 | S54: 2 | T54: 3 | U54: 1 | V54: 18 | W54: 3 | X54: 29 | Y54: 41
A55: 2017 | B55: 163 | C55: 24 | D55: 14 | E55: 3 | F55: 4 | G55: 17 | H55: 2 | I55: 22 | J55: 3 | K55: 47 | L55: 27 | N55: 2017 | O55: 163 | P55: 24 | Q55: 14 | R55: 3 | S55: 4 | T55: 17 | U55: 2 | V55: 22 | W55: 3 | X55: 47 | Y55: 27
A56: 2018 | B56: 94 | C56: 7 | D56: 10 | E56: 1 | F56: 3 | G56: 4 | H56: 1 | I56: 15 | J56: 2 | K56: 29 | L56: 22 | N56: 2018 | O56: 94 | P56: 7 | Q56: 10 | R56: 1 | S56: 3 | T56: 4 | U56: 1 | V56: 15 | W56: 2 | X56: 29 | Y56: 22
A57: 2019 | B57: 103 | C57: 11 | D57: 8 | E57: 4 | F57: 8 | G57: 2 | H57: 5 | I57: 16 | J57: 3 | K57: 26 | L57: 20 | N57: 2019 | O57: 103 | P57: 11 | Q57: 8 | R57: 4 | S57: 8 | T57: 2 | U57: 5 | V57: 16 | W57: 3 | X57: 26 | Y57: 20
A58: 2020 | B58: 158 | C58: 19 | D58: 16 | E58: 1 | F58: 3 | G58: 11 | H58: 5 | I58: 33 | J58: 3 | K58: 43 | L58: 24 | N58: 2020 | O58: 158 | P58: 19 | Q58: 16 | R58: 1 | S58: 3 | T58: 11 | U58: 5 | V58: 33 | W58: 3 | X58: 43 | Y58: 24
A59: 2021 | B59: 128 | C59: 10 | D59: 17 | F59: 8 | G59: 15 | H59: 2 | I59: 27 | J59: 1 | K59: 31 | L59: 17 | N59: 2021 | O59: 128 | P59: 10 | Q59: 17 | S59: 8 | T59: 15 | U59: 2 | V59: 27 | W59: 1 | X59: 31 | Y59: 17
A60: 2022 | B60: 59 | C60: 2 | D60: 8 | F60: 2 | G60: 10 | H60: 4 | I60: 10 | K60: 19 | L60: 4 | N60: 2022 | O60: 59 | P60: 2 | Q60: 8 | S60: 2 | T60: 10 | U60: 4 | V60: 10 | X60: 19 | Y60: 4

Sheet CapEx Trend by State (PV only)
A1: Installed costs by state and installation year
A3: Sources: Berkeley Lab (some data points suppressed to protect confidentiality), Energy Information Administration
B6: Median Project Cost (2021 $/WAC) | AW6: Median Project Cost (2021 $/WDC)
A7: Solar COD | B7: National | C7: AL | D7: AR | E7: AZ | F7: CA | G7: CO | H7: CT | I7: DE | J7: FL | K7: GA | L7: HI | M7: IA | N7: ID | O7: IL | P7: IN | Q7: KS | R7: KY | S7: LA | T7: MA | U7: MD | V7: ME | W7: MI | X7: MN | Y7: MO | Z7: MS | AA7: NC | AB7: NE | AC7: NJ | AD7: NM | AE7: NV | AF7: NY | AG7: OH | AH7: OK | AI7: OR | AJ7: PA | AK7: RI | AL7: SC | AM7: TN | AN7: TX | AO7: UT | AP7: VA | AQ7: VT | AR7: WA | AS7: WI | AT7: WY | AU7: Solar COD | AV7: National | AW7: AL | AX7: AR | AY7: AZ | AZ7: CA | BA7: CO | BB7: CT | BC7: DE | BD7: FL | BE7: GA | BF7: HI | BG7: IA | BH7: ID | BI7: IL | BJ7: IN | BK7: KS | BL7: KY | BM7: LA | BN7: MA | BO7: MD | BP7: ME | BQ7: MI | BR7: MN | BS7: MO | BT7: MS | BU7: NC | BV7: NE | BW7: NJ | BX7: NM | BY7: NV | BZ7: NY | CA7: OH | CB7: OK | CC7: OR | CD7: PA | CE7: RI | CF7: SC | CG7: TN | CH7: TX | CI7: UT | CJ7: VA | CK7: VT | CL7: WA | CM7: WI | CN7: WY | CO7: WI
A8: 2007 | B8: 11.71 | AU8: 2007 | AV8: 9.91
A9: 2008 | B9: 5.4 | AU9: 2008 | AV9: 4.45
A10: 2009 | B10: 5.81 | AU10: 2009 | AV10: 5.12
A11: 2010 | B11: 6.03 | AU11: 2010 | AV11: 5.23
A12: 2011 | B12: 5.28 | E12: 5.68 | F12: 5.08 | AC12: 5.94 | AD12: 4.58 | AU12: 2011 | AV12: 4.35 | AY12: 4.43 | AZ12: 4.06 | BW12: 5.04 | BX12: 3.73
A13: 2012 | B13: 4.89 | E13: 4.86 | F13: 4.85 | U13: 4.56 | AC13: 5.34 | AE13: 4.25 | AN13: 4.9 | AU13: 2012 | AV13: 3.96 | AY13: 3.81 | AZ13: 3.73 | BO13: 3.78 | BW13: 4.28 | BY13: 3.51 | CH13: 4.2
A14: 2013 | B14: 4.35 | E14: 4.39 | F14: 4.48 | P14: 3.62 | AU14: 2013 | AV14: 3.4 | AY14: 3.22 | AZ14: 3.46 | BJ14: 2.62
A15: 2014 | B15: 3.79 | E15: 4.64 | F15: 3.86 | AA15: 3.18 | AC15: 3.41 | AD15: 2.51 | AU15: 2014 | AV15: 2.9 | AY15: 3.54 | AZ15: 2.99 | BU15: 2.26 | BW15: 2.81 | BX15: 2.05
A16: 2015 | B16: 3.31 | E16: 3.41 | F16: 3.62 | K16: 2.73 | P16: 4.44 | AA16: 2.88 | AC16: 3.73 | AD16: 2.27 | AE16: 3.22 | AN16: 3.88 | AU16: 2015 | AV16: 2.52 | AY16: 2.46 | AZ16: 2.79 | BE16: 1.89 | BJ16: 3.33 | BU16: 2.03 | BW16: 2.87 | BX16: 1.85 | BY16: 2.56 | CH16: 3.12
A17: 2016 | B17: 2.74 | E17: 2.39 | F17: 2.91 | G17: 2.54 | J17: 2.21 | K17: 2.57 | P17: 2.81 | U17: 3.06 | AA17: 2.48 | AC17: 3.54 | AD17: 2.37 | AE17: 2.83 | AI17: 2.76 | AO17: 2.22 | AP17: 2.81 | AU17: 2016 | AV17: 2.1 | AY17: 1.87 | AZ17: 2.26 | BA17: 1.95 | BD17: 1.34 | BE17: 1.92 | BJ17: 2.09 | BO17: 2.33 | BU17: 1.91 | BW17: 3.06 | BX17: 1.73 | BY17: 2.18 | CC17: 2.1 | CI17: 1.73 | CJ17: 2.09
A18: 2017 | B18: 2.54 | C18: 3.27 | E18: 2.27 | F18: 2.98 | J18: 2.69 | L18: 4.74 | N18: 2.91 | P18: 1.81 | T18: 2.85 | X18: 3.39 | Z18: 2.3 | AA18: 2.36 | AC18: 3.2 | AE18: 2.77 | AI18: 2.44 | AL18: 1.67 | AN18: 2.3 | AP18: 2.27 | AU18: 2017 | AV18: 1.93 | AW18: 2.64 | AY18: 1.65 | AZ18: 2.23 | BD18: 2.01 | BF18: 3.32 | BH18: 2.18 | BJ18: 1.46 | BN18: 2.43 | BR18: 2.23 | BT18: 1.71 | BU18: 1.76 | BW18: 2.64 | BY18: 2.08 | CC18: 1.82 | CF18: 1.2 | CH18: 1.69 | CJ18: 1.68
A19: 2018 | B19: 2.06 | F19: 3.16 | J19: 1.34 | AA19: 2.1 | AC19: 3.01 | AD19: 1.87 | AI19: 2.25 | AL19: 1.88 | AN19: 1.78 | AP19: 2.05 | AU19: 2018 | AV19: 1.52 | AZ19: 2.39 | BD19: 0.89 | BU19: 1.43 | BW19: 2.42 | BX19: 1.51 | CC19: 1.72 | CF19: 1.29 | CH19: 1.31 | CJ19: 1.6
A20: 2019 | B20: 1.77 | F20: 1.91 | J20: 1.65 | K20: 1.27 | L20: 3.24 | P20: 1.67 | AA20: 1.87 | AC20: 3.28 | AD20: 1.42 | AE20: 1.75 | AF20: 2.07 | AI20: 2.54 | AK20: 1.9 | AL20: 1.67 | AN20: 1.81 | AU20: 2019 | AV20: 1.39 | AZ20: 1.56 | BD20: 1.19 | BE20: 0.88 | BF20: 3.23 | BJ20: 1.29 | BU20: 1.39 | BW20: 2.49 | BX20: 1.12 | BY20: 1.33 | BZ20: 1.48 | CC20: 1.86 | CE20: 1.5 | CF20: 1.26 | CH20: 1.3
A21: 2020 | B21: 1.81 | E21: 1.39 | F21: 1.86 | J21: 1.34 | K21: 1.76 | P21: 1.61 | W21: 2.34 | AA21: 2.09 | AC21: 2.55 | AE21: 1.83 | AF21: 3.19 | AI21: 3.16 | AJ21: 1.67 | AL21: 1.85 | AN21: 1.43 | AO21: 1.7 | AP21: 1.84 | AS21: 1.73 | AU21: 2020 | AV21: 1.36 | AY21: 1.08 | AZ21: 1.37 | BD21: 1 | BE21: 1.23 | BJ21: 1.17 | BQ21: 1.71 | BU21: 1.53 | BW21: 2.23 | BY21: 1.4 | BZ21: 2.36 | CC21: 2.2 | CD21: 1.25 | CF21: 1.34 | CH21: 1.06 | CI21: 1.32 | CJ21: 1.47 | CM21: 1.37 | CO21: 1.37
A22: 2021 | B22: 1.52 | E22: 1.48 | F22: 1.79 | G22: 2.18 | J22: 1.13 | K22: 2.59 | O22: 1.41 | P22: 1.39 | V22: 1.91 | AA22: 1.62 | AE22: 1.49 | AG22: 1.4 | AI22: 0.73 | AN22: 1.47 | AO22: 1.36 | AP22: 1.69 | AS22: 1.49 | AU22: 2021 | AV22: 1.16 | AY22: 1.1 | AZ22: 1.32 | BA22: 1.61 | BD22: 0.92 | BE22: 1.81 | BI22: 1.11 | BJ22: 1.05 | BP22: 1.42 | BU22: 1.23 | BY22: 1.14 | CA22: 1.09 | CC22: 0.62 | CH22: 1.07 | CI22: 0.97 | CJ22: 1.28 | CM22: 1.17
A23: 2022 | B23: 1.32 | F23: 1.32 | J23: 1.26 | M23: 1.7 | AF23: 1.48 | AN23: 1.07 | AP23: 1.7 | AS23: 1.75 | AU23: 2022 | AV23: 1.07 | AZ23: 1.06 | BD23: 1.07 | BG23: 1.44 | BZ23: 1.06 | CH23: 0.71 | CJ23: 1.31 | CM23: 1.35 | CO23: 1.35
B25: $/WAC Cost Sample Project Capacity | AW25: $/WDC Cost Sample Project Capacity
A26: Solar COD | B26: National | C26: AL | D26: AR | E26: AZ | F26: CA | G26: CO | H26: CT | I26: DE | J26: FL | K26: GA | L26: HI | M26: IA | N26: ID | O26: IL | P26: IN | Q26: KS | R26: KY | S26: LA | T26: MA | U26: MD | V26: ME | W26: MI | X26: MN | Y26: MO | Z26: MS | AA26: NC | AB26: NE | AC26: NJ | AD26: NM | AE26: NV | AF26: NY | AG26: OH | AH26: OK | AI26: OR | AJ26: PA | AK26: RI | AL26: SC | AM26: TN | AN26: TX | AO26: UT | AP26: VA | AQ26: VT | AR26: WA | AS26: WI | AT26: WY | AU26: Solar COD | AV26: National | AW26: AL | AX26: AR | AY26: AZ | AZ26: CA | BA26: CO | BB26: CT | BC26: DE | BD26: FL | BE26: GA | BF26: HI | BG26: IA | BH26: ID | BI26: IL | BJ26: IN | BK26: KS | BL26: KY | BM26: LA | BN26: MA | BO26: MD | BP26: ME | BQ26: MI | BR26: MN | BS26: MO | BT26: MS | BU26: NC | BV26: NE | BW26: NJ | BX26: NM | BY26: NV | BZ26: NY | CA26: OH | CB26: OK | CC26: OR | CD26: PA | CE26: RI | CF26: SC | CG26: TN | CH26: TX | CI26: UT | CJ26: VA | CK26: VT | CL26: WA | CM26: WI | CN26: WY | CO26: WI
A27: 2007 | B27: 19 | AU27: 2007 | AV27: 22
A28: 2008 | B28: 10 | AU28: 2008 | AV28: 12
A29: 2009 | B29: 46 | AU29: 2009 | AV29: 53
A30: 2010 | B30: 175 | AU30: 2010 | AV30: 211
A31: 2011 | B31: 428 | E31: 96 | F31: 122 | AC31: 48 | AD31: 41 | AU31: 2011 | AV31: 517 | AY31: 118 | AZ31: 152 | BW31: 56 | BX31: 50
A32: 2012 | B32: 930 | E32: 269 | F32: 250 | U32: 38 | AC32: 27 | AE32: 186 | AN32: 30 | AU32: 2012 | AV32: 1181 | AY32: 357 | AZ32: 320 | BO32: 52 | BW32: 33 | BY32: 229 | CH32: 35
A33: 2013 | B33: 1344 | E33: 219 | F33: 929 | P33: 39 | AU33: 2013 | AV33: 1754 | AY33: 300 | AZ33: 1206 | BJ33: 52
A34: 2014 | B34: 3184 | E34: 406 | F34: 2402 | AA34: 59 | AC34: 43 | AD34: 75 | AU34: 2014 | AV34: 4112 | AY34: 547 | AZ34: 3085 | BU34: 86 | BW34: 54 | BX34: 93
A35: 2015 | B35: 2870 | E35: 122 | F35: 1346 | K35: 177 | P35: 20 | AA35: 420 | AC35: 41 | AD35: 40 | AE35: 349 | AN35: 130 | AU35: 2015 | AV35: 3728 | AY35: 165 | AZ35: 1714 | BE35: 246 | BJ35: 27 | BU35: 568 | BW35: 53 | BX35: 49 | BY35: 462 | CH35: 162
A36: 2016 | B36: 7389 | E36: 371 | F36: 2963 | G36: 225 | J36: 229 | K36: 726 | P36: 16 | U36: 39 | AA36: 349 | AC36: 51 | AD36: 165 | AE36: 708 | AI36: 73 | AO36: 680 | AP36: 137 | AU36: 2016 | AV36: 9618 | AY36: 491 | AZ36: 3736 | BA36: 287 | BD36: 376 | BE36: 925 | BJ36: 21 | BO36: 50 | BU36: 456 | BW36: 62 | BX36: 224 | BY36: 960 | CC36: 97 | CI36: 882 | CJ36: 180
A37: 2017 | B37: 4046 | C37: 107 | E37: 87 | F37: 696 | J37: 175 | L37: 46 | N37: 120 | P37: 30 | T37: 17 | X37: 156 | Z37: 155 | AA37: 675 | AC37: 39 | AE37: 290 | AI37: 104 | AL37: 223 | AN37: 651 | AP37: 271 | AU37: 2017 | AV37: 5382 | AW37: 146 | AY37: 120 | AZ37: 913 | BD37: 237 | BF37: 64 | BH37: 160 | BJ37: 41 | BN37: 21 | BR37: 229 | BT37: 216 | BU37: 910 | BW37: 46 | BY37: 378 | CC37: 136 | CF37: 305 | CH37: 841 | CJ37: 356
A38: 2018 | B38: 3951 | F38: 982 | J38: 875 | AA38: 472 | AC38: 54 | AD38: 33 | AI38: 82 | AL38: 71 | AN38: 646 | AP38: 58 | AU38: 2018 | AV38: 5401 | AZ38: 1311 | BD38: 1262 | BU38: 682 | BW38: 67 | BX38: 41 | CC38: 109 | CF38: 101 | CH38: 855 | CJ38: 77
A39: 2019 | B39: 4533 | F39: 999 | J39: 743 | K39: 412 | L39: 129 | P39: 20 | AA39: 297 | AC39: 21 | AD39: 100 | AE39: 417 | AF39: 65 | AI39: 73 | AK39: 48 | AL39: 270 | AN39: 488 | AU39: 2019 | AV39: 5996 | AZ39: 1255 | BD39: 1008 | BE39: 594 | BF39: 141 | BJ39: 25 | BU39: 407 | BW39: 26 | BX39: 131 | BY39: 529 | BZ39: 87 | CC39: 96 | CE39: 59 | CF39: 374 | CH39: 633
A40: 2020 | B40: 9442 | E40: 290 | F40: 1610 | J40: 1639 | K40: 610 | P40: 24 | W40: 105 | AA40: 281 | AC40: 66 | AE40: 155 | AF40: 27 | AI40: 115 | AJ40: 65 | AL40: 426 | AN40: 2495 | AO40: 279 | AP40: 665 | AS40: 164 | AU40: 2020 | AV40: 12522 | AY40: 363 | AZ40: 2095 | BD40: 2260 | BE40: 816 | BJ40: 32 | BQ40: 150 | BU40: 379 | BW40: 86 | BY40: 192 | BZ40: 35 | CC40: 168 | CD40: 83 | CF40: 587 | CH40: 3246 | CI40: 358 | CJ40: 854 | CM40: 231 | CO40: 231
A41: 2021 | B41: 11228 | E41: 350 | F41: 1069 | G41: 351 | J41: 1104 | K41: 866 | O41: 418 | P41: 321 | V41: 113 | AA41: 522 | AE41: 631 | AG41: 364 | AI41: 128 | AN41: 3319 | AO41: 260 | AP41: 647 | AS41: 270 | AU41: 2021 | AV41: 15013 | AY41: 468 | AZ41: 1405 | BA41: 451 | BD41: 1483 | BE41: 1216 | BI41: 548 | BJ41: 424 | BP41: 165 | BU41: 731 | BY41: 810 | CA41: 477 | CC41: 150 | CH41: 4452 | CI41: 349 | CJ41: 860 | CM41: 357
A42: 2022 | B42: 4622 | F42: 370 | J42: 888 | M42: 131 | AF42: 55 | AN42: 1571 | AP42: 401 | AS42: 258 | AU42: 2022 | AV42: 5954 | AZ42: 515 | BD42: 1146 | BG42: 157 | BZ42: 76 | CH42: 1953 | CJ42: 518 | CM42: 337 | CO42: 337
B45: $/WAC Cost Sample Project Count | AW45: $/WDC Cost Sample Project Count
A46: Solar COD | B46: National | C46: AL | D46: AR | E46: AZ | F46: CA | G46: CO | H46: CT | I46: DE | J46: FL | K46: GA | L46: HI | M46: IA | N46: ID | O46: IL | P46: IN | Q46: KS | R46: KY | S46: LA | T46: MA | U46: MD | V46: ME | W46: MI | X46: MN | Y46: MO | Z46: MS | AA46: NC | AB46: NE | AC46: NJ | AD46: NM | AE46: NV | AF46: NY | AG46: OH | AH46: OK | AI46: OR | AJ46: PA | AK46: RI | AL46: SC | AM46: TN | AN46: TX | AO46: UT | AP46: VA | AQ46: VT | AR46: WA | AS46: WI | AT46: WY | AU46: Solar COD | AV46: National | AW46: AL | AX46: AR | AY46: AZ | AZ46: CA | BA46: CO | BB46: CT | BC46: DE | BD46: FL | BE46: GA | BF46: HI | BG46: IA | BH46: ID | BI46: IL | BJ46: IN | BK46: KS | BL46: KY | BM46: LA | BN46: MA | BO46: MD | BP46: ME | BQ46: MI | BR46: MN | BS46: MO | BT46: MS | BU46: NC | BV46: NE | BW46: NJ | BX46: NM | BY46: NV | BZ46: NY | CA46: OH | CB46: OK | CC46: OR | CD46: PA | CE46: RI | CF46: SC | CG46: TN | CH46: TX | CI46: UT | CJ46: VA | CK46: VT | CL46: WA | CM46: WI | CN46: WY | CO46: WI
A47: 2007 | B47: 2 | G47: 1 | AE47: 1 | AU47: 2007 | AV47: 2 | BA47: 1 | BY47: 1
A48: 2008 | B48: 1 | AE48: 1 | AU48: 2008 | AV48: 1 | BY48: 1
A49: 2009 | B49: 2 | F49: 1 | J49: 1 | AU49: 2009 | AV49: 2 | AZ49: 1 | BD49: 1
A50: 2010 | B50: 10 | G50: 1 | J50: 2 | O50: 1 | AA50: 1 | AC50: 1 | AD50: 1 | AE50: 1 | AG50: 1 | AN50: 1 | AU50: 2010 | AV50: 10 | BA50: 1 | BD50: 2 | BI50: 1 | BU50: 1 | BW50: 1 | BX50: 1 | BY50: 1 | CA50: 1 | CH50: 1
A51: 2011 | B51: 29 | E51: 6 | F51: 8 | G51: 2 | I51: 1 | J51: 1 | AC51: 4 | AD51: 4 | AF51: 1 | AG51: 1 | AN51: 1 | AU51: 2011 | AV51: 29 | AY51: 6 | AZ51: 8 | BA51: 2 | BC51: 1 | BD51: 1 | BW51: 4 | BX51: 4 | BZ51: 1 | CA51: 1 | CH51: 1
A52: 2012 | B52: 41 | E52: 7 | F52: 12 | G52: 1 | I52: 1 | L52: 1 | O52: 1 | U52: 3 | AA52: 2 | AC52: 3 | AD52: 1 | AE52: 4 | AJ52: 1 | AM52: 1 | AN52: 3 | AU52: 2012 | AV52: 41 | AY52: 7 | AZ52: 12 | BA52: 1 | BC52: 1 | BF52: 1 | BI52: 1 | BO52: 3 | BU52: 2 | BW52: 3 | BX52: 1 | BY52: 4 | CD52: 1 | CG52: 1 | CH52: 3
A53: 2013 | B53: 38 | E53: 6 | F53: 18 | K53: 2 | P53: 4 | AA53: 1 | AC53: 2 | AD53: 2 | AE53: 1 | AN53: 2 | AU53: 2013 | AV53: 38 | AY53: 6 | AZ53: 18 | BE53: 2 | BJ53: 4 | BU53: 1 | BW53: 2 | BX53: 2 | BY53: 1 | CH53: 2
A54: 2014 | B54: 65 | E54: 7 | F54: 33 | K54: 1 | L54: 1 | P54: 2 | T54: 2 | AA54: 3 | AC54: 6 | AD54: 4 | AE54: 2 | AM54: 2 | AN54: 2 | AU54: 2014 | AV54: 65 | AY54: 7 | AZ54: 33 | BE54: 1 | BF54: 1 | BJ54: 2 | BN54: 2 | BU54: 3 | BW54: 6 | BX54: 4 | BY54: 2 | CG54: 2 | CH54: 2
A55: 2015 | B55: 87 | D55: 1 | E55: 4 | F55: 36 | G55: 1 | J55: 1 | K55: 6 | L55: 1 | P55: 3 | U55: 1 | AA55: 16 | AC55: 4 | AD55: 4 | AE55: 4 | AN55: 3 | AO55: 2 | AU55: 2015 | AV55: 87 | AX55: 1 | AY55: 4 | AZ55: 36 | BA55: 1 | BD55: 1 | BE55: 6 | BF55: 1 | BJ55: 3 | BO55: 1 | BU55: 16 | BW55: 4 | BX55: 4 | BY55: 4 | CH55: 3 | CI55: 2
A56: 2016 | B56: 146 | C56: 1 | E56: 6 | F56: 48 | G56: 7 | J56: 4 | K56: 14 | L56: 1 | N56: 2 | P56: 3 | R56: 1 | T56: 2 | U56: 3 | X56: 1 | AA56: 9 | AC56: 7 | AD56: 3 | AE56: 5 | AF56: 1 | AI56: 8 | AL56: 2 | AM56: 2 | AN56: 2 | AO56: 10 | AP56: 4 | AU56: 2016 | AV56: 145 | AW56: 1 | AY56: 6 | AZ56: 48 | BA56: 7 | BD56: 4 | BE56: 13 | BF56: 1 | BH56: 2 | BJ56: 3 | BL56: 1 | BN56: 2 | BO56: 3 | BR56: 1 | BU56: 9 | BW56: 7 | BX56: 3 | BY56: 5 | BZ56: 1 | CC56: 8 | CF56: 2 | CG56: 2 | CH56: 2 | CI56: 10 | CJ56: 4
A57: 2017 | B57: 163 | C57: 4 | E57: 3 | F57: 28 | G57: 1 | J57: 7 | L57: 3 | N57: 6 | P57: 3 | R57: 1 | T57: 3 | V57: 1 | W57: 2 | X57: 13 | Y57: 1 | Z57: 3 | AA57: 22 | AB57: 1 | AC57: 4 | AD57: 2 | AE57: 5 | AF57: 2 | AG57: 1 | AH57: 1 | AI57: 6 | AL57: 14 | AM57: 2 | AN57: 14 | AP57: 10 | AU57: 2017 | AV57: 163 | AW57: 4 | AY57: 3 | AZ57: 28 | BA57: 1 | BD57: 7 | BF57: 3 | BH57: 6 | BJ57: 3 | BL57: 1 | BN57: 3 | BP57: 1 | BQ57: 2 | BR57: 13 | BS57: 1 | BT57: 3 | BU57: 22 | BV57: 1 | BW57: 4 | BX57: 2 | BY57: 5 | BZ57: 2 | CA57: 1 | CB57: 1 | CC57: 6 | CF57: 14 | CG57: 2 | CH57: 14 | CJ57: 10
A58: 2018 | B58: 94 | C58: 1 | D58: 1 | E58: 2 | F58: 10 | G58: 1 | H58: 2 | J58: 13 | K58: 1 | L58: 1 | P58: 1 | U58: 2 | W58: 2 | X58: 1 | Y58: 1 | AA58: 9 | AC58: 6 | AD58: 4 | AE58: 1 | AF58: 1 | AH58: 1 | AI58: 9 | AL58: 5 | AM58: 2 | AN58: 10 | AP58: 4 | AQ58: 1 | AR58: 1 | AT58: 1 | AU58: 2018 | AV58: 94 | AW58: 1 | AX58: 1 | AY58: 2 | AZ58: 10 | BA58: 1 | BB58: 2 | BD58: 13 | BE58: 1 | BF58: 1 | BJ58: 1 | BO58: 2 | BQ58: 2 | BR58: 1 | BS58: 1 | BU58: 9 | BW58: 6 | BX58: 4 | BY58: 1 | BZ58: 1 | CB58: 1 | CC58: 9 | CF58: 5 | CG58: 2 | CH58: 10 | CJ58: 4 | CK58: 1 | CL58: 1 | CN58: 1
A59: 2019 | B59: 103 | D59: 2 | E59: 1 | F59: 12 | G59: 2 | H59: 1 | J59: 13 | K59: 4 | L59: 4 | P59: 3 | Q59: 1 | T59: 2 | U59: 1 | Z59: 1 | AA59: 7 | AC59: 3 | AD59: 6 | AE59: 5 | AF59: 5 | AG59: 2 | AI59: 4 | AJ59: 1 | AK59: 3 | AL59: 7 | AN59: 8 | AO59: 1 | AP59: 2 | AQ59: 2 | AU59: 2019 | AV59: 103 | AX59: 2 | AY59: 1 | AZ59: 12 | BA59: 2 | BB59: 1 | BD59: 13 | BE59: 4 | BF59: 4 | BJ59: 3 | BK59: 1 | BN59: 2 | BO59: 1 | BT59: 1 | BU59: 7 | BW59: 3 | BX59: 6 | BY59: 5 | BZ59: 5 | CA59: 2 | CC59: 4 | CD59: 1 | CE59: 3 | CF59: 7 | CH59: 8 | CI59: 1 | CJ59: 2 | CK59: 2
A60: 2020 | B60: 158 | D60: 1 | E60: 3 | F60: 19 | G60: 2 | H60: 1 | J60: 22 | K60: 6 | L60: 1 | P60: 3 | Q60: 1 | S60: 2 | T60: 1 | U60: 2 | V60: 1 | W60: 4 | AA60: 8 | AC60: 6 | AD60: 1 | AE60: 4 | AF60: 5 | AH60: 2 | AI60: 11 | AJ60: 4 | AL60: 12 | AN60: 16 | AO60: 3 | AP60: 14 | AS60: 3 | AU60: 2020 | AV60: 158 | AX60: 1 | AY60: 3 | AZ60: 19 | BA60: 2 | BB60: 1 | BD60: 22 | BE60: 6 | BF60: 1 | BJ60: 3 | BK60: 1 | BM60: 2 | BN60: 1 | BO60: 2 | BP60: 1 | BQ60: 4 | BU60: 8 | BW60: 6 | BX60: 1 | BY60: 4 | BZ60: 5 | CB60: 2 | CC60: 11 | CD60: 4 | CF60: 12 | CH60: 16 | CI60: 3 | CJ60: 14 | CM60: 3 | CO60: 3
A61: 2021 | B61: 128 | C61: 1 | D61: 1 | E61: 3 | F61: 10 | G61: 4 | H61: 2 | J61: 15 | K61: 8 | O61: 5 | P61: 8 | T61: 2 | U61: 1 | V61: 4 | W61: 2 | X61: 1 | Y61: 1 | AA61: 10 | AE61: 4 | AF61: 2 | AG61: 3 | AI61: 3 | AM61: 1 | AN61: 17 | AO61: 3 | AP61: 14 | AS61: 3 | AU61: 2021 | AV61: 128 | AW61: 1 | AX61: 1 | AY61: 3 | AZ61: 10 | BA61: 4 | BB61: 2 | BD61: 15 | BE61: 8 | BI61: 5 | BJ61: 8 | BN61: 2 | BO61: 1 | BP61: 4 | BQ61: 2 | BR61: 1 | BS61: 1 | BU61: 10 | BY61: 4 | BZ61: 2 | CA61: 3 | CC61: 3 | CG61: 1 | CH61: 17 | CI61: 3 | CJ61: 14 | CM61: 3 | CO61: 1
A62: 2022 | B62: 59 | C62: 1 | E62: 1 | F62: 3 | G62: 2 | J62: 13 | K62: 2 | M62: 3 | O62: 1 | P62: 1 | R62: 1 | U62: 1 | V62: 1 | W62: 1 | Y62: 1 | AC62: 1 | AF62: 4 | AJ62: 1 | AK62: 1 | AL62: 2 | AM62: 1 | AN62: 8 | AP62: 5 | AS62: 4 | AU62: 2022 | AV62: 59 | AW62: 1 | AY62: 1 | AZ62: 3 | BA62: 2 | BD62: 13 | BE62: 2 | BG62: 3 | BI62: 1 | BJ62: 1 | BL62: 1 | BO62: 1 | BP62: 1 | BQ62: 1 | BS62: 1 | BW62: 1 | BZ62: 4 | CD62: 1 | CE62: 1 | CF62: 2 | CG62: 1 | CH62: 8 | CJ62: 5 | CM62: 4 | CO62: 4

Sheet PV+Storage CapEx
A1: Installed Costs of Solar and Battery Projects
A2: Battery Costs of Hybrid Projects in $/kWh terms in the LBNL sample | H2: Battery cost adder relative to full project costs as a function of battery:PV capacity, 2018-2022 | M2: Battery cost adder relative to PV capacity as a function of battery:PV capacity, 2018-2022 | R2: Battery cost adder relative to PV capacity by battery installation year | W2: Battery cost adder relative to full project price by battery installation year
A23: Sources: Berkeley Lab (some data points suppressed to protect confidentiality), Energy Information Administration Note: Some of the PV-battery projects are retrofits to earlier PV projects: The solar online date of the 2018 battery projects ranged from 2016 to 2018, the solar online date of the 2019 battery projects ranged from 2017 to 2019, the solar online date of the 2020 battery projects ranged from 2019 to 2020, the solar online date of the 2021 battery projects ranged from 2016 to 2021, the solar online date of the 2022 battery projects ranged from 2016 to 2022.
A25: Sample with separate cost estimates for PV and storage components
B26: Battery Count | C26: Battery Capacity (MW) | D26: Battery Energy (MWh) | E26: Median Battery Capacity Ratio | F26: Median Battery Duration (h) | G26: Battery Price ($/kWh) Median | H26: Battery Price ($/kWh) 20th Percentile | I26: Battery Price ($/kWh) 80th Percentile | J26: Battery Price Contribution (Adder/Total) Median | K26: Battery Price Contribution (Adder/Total) 20th Percentile | L26: Battery Price Contribution (Adder/Total) 80th Percentile | M26: Battery Price Adder ($/WAC-PV) Median | N26: Battery Price Adder ($/WAC-PV) 20th Percentile | O26: Battery Price Adder ($/WAC-PV) 80th Percentile | P26: Battery Price Adder ($/WDC-PV) Median | Q26: Battery Price Adder ($/WDC-PV) 20th Percentile | R26: Battery Price Adder ($/WDC-PV) 80th Percentile
A27: 2017 | B27: 2 | C27: 14.6 | D27: 59.12 | E27: 0.5730769231 | F27: 3.1
A28: 2018 | B28: 6 | C28: 89 | D28: 232 | E28: 0.5714285714 | F28: 4 | G28: 475.7404135 | H28: 424.3731051 | I28: 684.2247528 | J28: 0.1747249318 | K28: 0.1035806221 | L28: 0.2823861631 | M28: 0.6022028987 | N28: 0.2476799699 | O28: 1.859025743 | P28: 0.4440345039 | Q28: 0.1500175427 | R28: 1.393217822
A29: 2019 | B29: 11 | C29: 48.8 | D29: 118.9 | E29: 0.599880024 | F29: 2.183333333 | G29: 570.7238944 | H29: 544.546041 | I29: 860.8288956 | J29: 0.2527956529 | K29: 0.1106557717 | L29: 0.4733167187 | M29: 0.9129756359 | N29: 0.4941981736 | O29: 1.426425342 | P29: 0.7163893193 | Q29: 0.2746094518 | R29: 1.229922955
A30: 2020 | B30: 3 | C30: 8.02 | D30: 17.9 | E30: 0.4399120176 | F30: 2.256410256 | G30: 894.2698446 | H30: 650.8353659 | I30: 989.124286 | J30: 0.2567281745 | K30: 0.2474509415 | L30: 0.2623323751 | M30: 0.8596685219 | N30: 0.8159474707 | O30: 0.9372800934 | P30: 0.7243811757 | Q30: 0.6362199023 | R30: 0.8393185511
A31: 2021 | B31: 21 | C31: 1647.07 | D31: 5426.2 | E31: 0.5737704918 | F31: 4 | G31: 757.4072585 | H31: 359.4519699 | I31: 1046.676923 | J31: 0.5 | K31: 0.1873965783 | L31: 0.5619804639 | M31: 1.396538005 | N31: 0.3051644189 | O31: 3.237178873 | P31: 0.993468928 | Q31: 0.2007660651 | R31: 2.372001465
A32: 2022 | B32: 3 | C32: 314 | D32: 1256 | E32: 0.8396946565 | F32: 4 | G32: 320.2972223 | H32: 320.2972223 | I32: 359.9054793 | J32: 0.1720580496 | K32: 0.1720580496 | L32: 0.1720580496 | M32: 1.075807464 | N32: 0.7554790404 | O32: 1.445024586 | P32: 0.859334011 | Q32: 0.6027733329 | R32: 1.09093655
A33: Total | B33: 46 | C33: 2121.49 | D33: 7110.12 | E33: 0.5868252579 | F33: 2.727538606
BD34: 2.121865525 | BG34: 0.2823861631
BD35: 1.859025743 | BG35: 0.5442384865
A36: Cost comparison of solar standalone projects vs. component costs of solar+storage projects | BC36: 0.5041636729 | BF36: 0.1719089306
A37: Storage COD Year | B37: Type | C37: Median ($/WAC-PV) - medians do not sum | F37: Mean ($/WAC-PV) | I37: Sample Count | BB37: 0.0433371974 | BE37: 0.02857042999
C38: PV | D38: Battery Adder | E38: Total | F38: PV | G38: Battery Adder | H38: Total | I38: PV | J38: Battery Adder | K38: Total | BC38: 0.9965499375
A39: 2018 | B39: PV only | C39: 2.055611565 | F39: 2.300394394 | I39: 94 | BB39: 0.06292608886 | BE39: 0.01649963536
B40: PV+Bat | C40: 2.224239247 | D40: 0.6022028987 | E40: 3.043976592 | F40: 2.842321552 | G40: 0.923041654 | H40: 3.765363206 | I40: 6 | J40: 6 | K40: 6 | BD40: 1.426425342 | BG40: 0.5015529187
A41: 2019 | B41: PV only | C41: 1.768210512 | F41: 1.979964967 | I41: 103 | BD41: 1.426425342 | BG41: 0.5015529187
B42: PV+Bat | C42: 2.505838006 | D42: 0.9129756359 | E42: 3.593921457 | F42: 2.385814452 | G42: 0.8879749396 | H42: 3.262931892 | I42: 10 | J42: 11 | K42: 10 | BC42: 0.9050485342 | BF42: 0.2444485227
A43: 2020 | B43: PV only | C43: 1.801165334 | F43: 1.991983681 | I43: 156 | BC43: 0.9129756359 | BF43: 0.2611427831
B44: PV+Bat | C44: 2.371335874 | D44: 0.8596685219 | E44: 3.231004396 | F44: 2.586510247 | G44: 0.8784965888 | H44: 3.465006835 | I44: 3 | J44: 3 | K44: 3 | BC44: 1.274360881 | BF44: 0.3169861918
A45: 2021 | B45: PV only | C45: 1.52385495 | F45: 1.656314951 | I45: 128 | BC45: 0.4941981736 | BF45: 0.1311771071
B46: PV+Bat | C46: 1.663250645 | D46: 1.396538005 | E46: 3.437516115 | F46: 2.060916833 | G46: 2.095476894 | H46: 4.152174615 | I46: 24 | J46: 21 | K46: 21 | BD46: 1.721313528 | BG46: 0.4662576687
A47: 2022 | B47: PV only | C47: 1.31885 | F47: 1.386439697 | I47: 59 | BD47: 0.8596685219 | BG47: 0.2660685089
B48: PV+Bat | E48: 2 | H48: 2.193664626 | I48: 7 | J48: 3 | K48: 11 | BC48: 0.7868001032 | BF48: 0.2567281745
A49: Note: Total system costs are at times based on a slightly different sample than individual component costs, e.g. in 2019 the storage average cost number is based on 11 datapoints while solar and total system costs are based on 10 datapoints, resulting in a slight mismatch of the sums. | BC49: 0.9890211411 | BF49: 0.2412661196
BD50: 2.974205828 | BG50: 0.5277436344
BC51: 0.6996967345 | BF51: 0.2035471867
BD52: 3.363297355 | BG52: 0.5619804639
BC53: 3.237178873 | BF53: 0.5271716668
BC56: 0.6636036368 | BF56: 0.1532440759
BC57: 0.3051644189 | BF57: 0.1873965783
BD59: 2.459024483 | BG59: 0.6245608398
BC60: 0.2848126564 | BF60: 0.1571576509
BC61: 2.791586753 | BF61: 0.4890167842
BD62: 5.62958686 | BG62: 0.5458764149
BB63: 0.09350016347 | BE63: 0.06473218734
BB64: 0.1161444183 | BE64: 0.09677351858
BC65: 1.697204413 | BF65: 0.5175403113
BC66: 0.2536233834 | BF66: 0.1875001977
BB67: 0.4321674218 | BE67: 0.1984127602
BD70: 2.09293526 | BG70: 0.6666666667
B71: Note: the sum of medians of component costs is not the same as the median of the sums | BC71: 1.396538005 | BF71: 0.5
BC72: 0.9087069688 | BF72: 0.2420374907
BC73: 1.084223463 | BF73: 0.5
BC75: 0.5419267579 | BF75: 0.1720580496
BD83: 1.075807464
BD84: 1.691169334

Sheet CSP CapEx
A1: Installed costs of individual CSP projects
A20: Solar Tech Sub | B20: Solar Capacity AC | C20: Solar COD | D20: Solar Price AC | E20: Core Size | H20: PV Median Cost | I20: Bubble Size
A21: Tower | B21: 370 | C21: 2014 | D21: 7.562767568 | E21: 1 | G21: 2010 | H21: 6.026453427 | I21: 10
A22: Tower | B22: 110 | C22: 2015 | D22: 10.77557383 | E22: 1 | G22: 2011 | H22: 5.284170821 | I22: 10
G23: 2012 | H23: 4.886876054 | I23: 10
G24: 2013 | H24: 4.35145263 | I24: 10
G25: 2014 | H25: 3.78969816 | I25: 10
A26: Solar Tech Sub | B26: Solar Capacity AC | C26: Solar COD | D26: Solar Price AC | E26: Core Size | G26: 2015 | H26: 3.314419152 | I26: 10
A27: Trough | B27: 68.5 | C27: 2007 | D27: 5.534889686 | E27: 1 | G27: 2016 | H27: 2.739083879 | I27: 10
A28: Trough | B28: 75 | C28: 2010 | D28: 7.018159895 | E28: 1 | G28: 2017 | H28: 2.536223359 | I28: 10
A29: Trough | B29: 250 | C29: 2013 | D29: 8.333218676 | E29: 1 | G29: 2018 | H29: 2.055611565 | I29: 10
A30: Trough | B30: 250 | C30: 2014 | D30: 6.310469598 | E30: 1 | G30: 2019 | H30: 1.768210512 | I30: 10
A31: Trough | B31: 250 | C31: 2014 | D31: 7.559994597 | E31: 1 | G31: 2020 | H31: 1.806236188 | I31: 10
G32: 2021 | H32: 1.52385495 | I32: 10
G33: 2022 | H33: 1.31885 | I33: 10

Sheet O&M Cost Time Trend
A1: PV Operation and Maintenance Costs over Time | P1: Project-Level Data
P2: Utility Name | Q2: Plant Name | R2: Commerical Operation Year | S2: Report Year | T2: Capacity (MW_AC) | U2: Net Generation (MWh) | V2: O&M Costs ($2022)
P3: Alabama Power Company | Q3: Anniston Army Dept | R3: 2017 | S3: 2019 | T3: 7.38 | U3: 8869.899 | V3: 271727.3051
P4: Alabama Power Company | Q4: Anniston Army Dept | R4: 2017 | S4: 2020 | T4: 7.38 | U4: 11736.089 | V4: 220052.7772
P5: Alabama Power Company | Q5: Fort Rucker | R5: 2017 | S5: 2019 | T5: 10.56 | U5: 14222.657 | V5: 391292.4392
P6: Alabama Power Company | Q6: Fort Rucker | R6: 2017 | S6: 2020 | T6: 10.56 | U6: 14919.265 | V6: 287041.2582
P7: Allete Inc | Q7: 12 | R7: 2016 | S7: 2021 | T7: 10 | U7: 17200.41 | V7: 105698.6087
P8: Allete Inc | Q8: Camp Ripley Solar Array | R8: 2016 | S8: 2022 | T8: 10 | U8: 16111.71 | V8: 67008
P9: Allete, Inc. | Q9: Camp Ripley Solar Array | R9: 2016 | S9: 2017 | T9: 10 | U9: 17065.75 | V9: 252713.9376
P10: Allete, Inc. | Q10: Camp Ripley Solar Array | R10: 2016 | S10: 2018 | T10: 10 | U10: 16678.3 | V10: 232853.7576
P11: Allete, Inc. | Q11: Camp Ripley Solar Array | R11: 2016 | S11: 2019 | T11: 10 | U11: 14011.8 | V11: 234437.4638
P12: Allete, Inc. | Q12: Camp Ripley Solar Array | R12: 2016 | S12: 2020 | T12: 10 | U12: 16164.64 | V12: 96246.18537
P13: Arizona Public Service Company | Q13: Total Solar Operation/Maint. | R13: 999 | S13: 2017 | T13: 237.02 | U13: 580142 | V13: 5960423.564
P14: Arizona Public Service Company | Q14: Total Solar Operation/Maint. | R14: 999 | S14: 2018 | T14: 237.88 | U14: 595043 | V14: 5753831.916
P15: Arizona Public Service Company | Q15: Total Solar Operation/Maint. | R15: 999 | S15: 2019 | T15: 240 | U15: 564463 | V15: 5195149.649
P16: Arizona Public Service Company | Q16: Total Solar Operation/Maint. | R16: 999 | S16: 2020 | T16: 245 | U16: 553376 | V16: 5169995.242
P17: Arizona Public Service Company | Q17: Total Solar Operation/Maint. | R17: 999 | S17: 2021 | T17: 247 | U17: 586981 | V17: 5415967.862
P18: Arizona Public Service Company | Q18: Total Solar Operation/Maint. | R18: 999 | S18: 2022 | T18: 264 | U18: 554913 | V18: 6641331
P19: Arizona Public Service Company | Q19: Total Solar Operation/Maintenance | R19: 999 | S19: 2011 | T19: 50.88 | U19: 33088 | V19: 630112.9439
P20: Arizona Public Service Company | Q20: Total Solar Operation/Maintenance | R20: 999 | S20: 2012 | T20: 95.75 | U20: 145283 | V20: 1558260.525
P21: Arizona Public Service Company | Q21: Total Solar Operation/Maintenance | R21: 999 | S21: 2013 | T21: 135.69 | U21: 265251 | V21: 3185001.096
A22: Sources: Berkeley Lab, FERC | P22: Arizona Public Service Company | Q22: Total Solar Operation/Maintenance | R22: 999 | S22: 2014 | T22: 167.69 | U22: 425840 | V22: 3457760.916
A23: Note: Included in cost scope are project supervision, engineering, maintenance, rents, and training. Excluded are payments for property taxes, insurance, land royalties, performance bonds, various admnistrative and other fees, and overhead. | P23: Arizona Public Service Company | Q23: Total Solar Operation/Maintenance | R23: 999 | S23: 2015 | T23: 190.76 | U23: 495570 | V23: 3950789.827
P24: Arizona Public Service Company | Q24: Total Solar Operation/Maintenance | R24: 999 | S24: 2016 | T24: 237.16 | U24: 501155 | V24: 4947751.483
P25: Dte Electric Company | Q25: Demille (Lapeer) | R25: 2017 | S25: 2018 | T25: 28.56 | U25: 39708 | V25: 671160.7444
P26: Dte Electric Company | Q26: Demille (Lapeer) | R26: 2017 | S26: 2019 | T26: 28.56 | U26: 40099 | V26: 758689.2954
B27: Project Count | C27: Capacity GW_AC | D27: Net Generation GWh | E27: $2022/kW_AC-yr 50th Percentile | F27: $2022/kW_AC-yr 20th Percentile | G27: $2022/kW_AC-yr 80th Percentile | H27: $2022/kW_AC-yr Mean | I27: $2022/MWh 50th Percentile | J27: $2022/MWh 20th Percentile | K27: $2022/MWh 80th Percentile | L27: $2022/MWh Mean | P27: Dte Electric Company | Q27: Demille (Lapeer) | R27: 2017 | S27: 2020 | T27: 28.56 | U27: 43186 | V27: 566696.2514
A28: 2011 | B28: 3 | C28: 0.08788 | D28: 103.776 | E28: 40.83428159 | F28: 23.76428981 | G28: 46.82571763 | H28: 34.6795284 | I28: 21.2658039 | J28: 19.93245086 | K28: 24.68846081 | L28: 22.42652827 | P28: Dte Electric Company | Q28: Demille (Lapeer) | R28: 2017 | S28: 2021 | T28: 28.56 | U28: 39369 | V28: 434121.9992
A29: 2012 | B29: 7 | C29: 0.19765 | D29: 338.086 | E29: 38.14148842 | F29: 24.1154916 | G29: 45.80054597 | H29: 34.8803339 | I29: 21.26894491 | J29: 13.78947764 | K29: 22.60611388 | L29: 19.18586493 | P29: Dte Electric Company | Q29: Demille (Lapeer) | R29: 2017 | S29: 2022 | T29: 28.56 | U29: 38302 | V29: 207722
A30: 2013 | B30: 12 | C30: 0.30469 | D30: 598.337056 | E30: 39.51498973 | F30: 21.20646783 | G30: 42.34081332 | H30: 33.96302939 | I30: 18.22610579 | J30: 12.30248973 | K30: 19.80310201 | L30: 17.90437097 | P30: Dte Electric Company | Q30: Turrill (Lapeer) | R30: 2017 | S30: 2018 | T30: 19.72 | U30: 26497 | V30: 983370.4169
A31: 2014 | B31: 18 | C31: 0.40619 | D31: 918.315 | E31: 40.92332448 | F31: 16.67997611 | G31: 40.97037454 | H31: 31.73660426 | I31: 17.59256147 | J31: 7.579854354 | K31: 19.14636616 | L31: 15.90567803 | P31: Dte Electric Company | Q31: Turrill (Lapeer) | R31: 2017 | S31: 2019 | T31: 19.72 | U31: 26777 | V31: 525931.6357
A32: 2015 | B32: 22 | C32: 0.48736 | D32: 1058.381694 | E32: 14.75300489 | F32: 11.7549004 | G32: 27.29323018 | H32: 17.92447004 | I32: 6.818216773 | J32: 5.114619176 | K32: 12.98794516 | L32: 8.892337893 | P32: Dte Electric Company | Q32: Turrill (Lapeer) | R32: 2017 | S32: 2020 | T32: 19.72 | U32: 27233 | V32: 390128.0686
A33: 2016 | B33: 26 | C33: 0.60466 | D33: 1230.571 | E33: 25.00938554 | F33: 12.60242791 | G33: 25.00952018 | H33: 22.14961105 | I33: 10.07321307 | J33: 8.513393214 | K33: 11.34139277 | L33: 10.94502158 | P33: Dte Electric Company | Q33: Turrill (Lapeer) | R33: 2017 | S33: 2021 | T33: 19.72 | U33: 26636 | V33: 298637.4393
A34: 2017 | B34: 31 | C34: 0.71012 | D34: 1494.31375 | E34: 22.57011202 | F34: 8.640937153 | G34: 22.86526906 | H34: 18.61166691 | I34: 9.035784263 | J34: 4.849444785 | K34: 12.15370752 | L34: 9.394879579 | P34: Dte Electric Company | Q34: Turrill (Lapeer) | R34: 2017 | S34: 2022 | T34: 19.72 | U34: 25994 | V34: 117912
A35: 2018 | B35: 41 | C35: 0.93662 | D35: 1918.439702 | E35: 21.21428344 | F35: 15.31446385 | G35: 23.35213601 | H35: 21.14513751 | I35: 9.327747653 | J35: 7.814235679 | K35: 15.29707769 | L35: 11.39011037 | P35: Florida Power & Light Company | Q35: Babcock | R35: 2016 | S35: 2019 | T35: 74.5 | U35: 161060 | V35: 597952.5337
A36: 2019 | B36: 60 | C36: 2.04779 | D36: 4152.406327 | E36: 18.90969088 | F36: 7.098994942 | G36: 26.58579324 | H36: 18.14748936 | I36: 7.938442057 | J36: 3.634745446 | K36: 17.32357654 | L36: 10.24659606 | P36: Florida Power & Light Company | Q36: Babcock Preserve Solar Energy Center | R36: 2020 | S36: 2021 | T36: 75 | U36: 168237 | V36: 166900.1994
A37: 2020 | B37: 79 | C37: 2.98417 | D37: 5960.827195 | E37: 19.2449763 | F37: 6.79543084 | G37: 21.12368281 | H37: 16.04201493 | I37: 8.018671149 | J37: 3.848369227 | K37: 12.10670142 | L37: 8.492864156 | P37: Florida Power & Light Company | Q37: Babcock Preserve Solar Energy Center | R37: 2020 | S37: 2022 | T37: 75 | U37: 165982.52 | V37: 182621
A38: 2021 | B38: 86 | C38: 3.9244 | D38: 7885.764099 | E38: 10.98627625 | F38: 3.892361958 | G38: 22.35836763 | H38: 13.94470673 | I38: 5.974653813 | J38: 1.932911374 | K38: 10.3034187 | L38: 7.684765691 | P38: Florida Power & Light Company | Q38: Babcock Ranch | R38: 2016 | S38: 2020 | T38: 74.5 | U38: 157073 | V38: 326464.8603
A39: 2022 | B39: 122 | C39: 6.35846 | D39: 12228.61077 | E39: 10.80332246 | F39: 4.283866667 | G39: 23.3238 | H39: 14.29235322 | I39: 6.277824774 | J39: 2.094196642 | K39: 12.20327496 | L39: 7.852972659 | P39: Florida Power & Light Company | Q39: Babcock Ranch Solar Energy Center | R39: 2016 | S39: 2022 | T39: 75 | U39: 155026.06 | V39: 413592
E40: =(E28-E39)/E28 -> 0.7354349817 | P40: Florida Power & Light Company | Q40: Babcock Solar Energy Center | R40: 2016 | S40: 2021 | T40: 75 | U40: 157960 | V40: 480920.6978
P41: Florida Power & Light Company | Q41: Barefoot Bay | R41: 2018 | S41: 2019 | T41: 74.5 | U41: 162477 | V41: 276795.0355
F42: Negative Error | G42: Positive Error | J42: Negative Error | K42: Positive Error | L42: x-axis | P42: Florida Power & Light Company | Q42: Barefoot Bay | R42: 2018 | S42: 2020 | T42: 74.5 | U42: 160660 | V42: 261453.2059
F43: =E28-F28 -> 17.06999179 | G43: =G28-E28 -> 5.991436033 | J43: =I28-J28 -> 1.333353037 | K43: =K28-I28 -> 3.422656912 | L43: 1.2 | P43: Florida Power & Light Company | Q43: Barefoot Bay Solar Energy Center | R43: 2018 | S43: 2021 | T43: 75 | U43: 166112 | V43: 233698.159
F44: =E29-F29 -> 14.02599682 | G44: =G29-E29 -> 7.659057556 | J44: =I29-J29 -> 7.479467275 | K44: =K29-I29 -> 1.337168971 | L44: =L43+1 -> 2.2 | P44: Florida Power & Light Company | Q44: Barefoot Bay Solar Energy Center | R44: 2018 | S44: 2022 | T44: 75 | U44: 160276 | V44: 326487
F45: 18.3085219 | G45: 2.825823594 | J45: 5.923616053 | K45: 1.57699622 | L45: =L44+1 -> 3.2 | P45: Florida Power & Light Company | Q45: Blue Cypress | R45: 2018 | S45: 2019 | T45: 74.5 | U45: 152835 | V45: 395777.9583
F46: 24.24334837 | G46: 0.04705006064 | J46: 10.01270711 | K46: 1.553804695 | L46: 4.2 | P46: Florida Power & Light Company | Q46: Blue Cypress | R46: 2018 | S46: 2020 | T46: 74.5 | U46: 157493 | V46: 275446.4099
F47: 2.998104485 | G47: 12.5402253 | J47: 1.703597597 | K47: 6.169728391 | L47: 5.2 | P47: Florida Power & Light Company | Q47: Blue Cypress Solar Energy Center | R47: 2018 | S47: 2021 | T47: 75 | U47: 159162 | V47: 357178.8821
F48: 12.40695762 | G48: 0.0001346411402 | J48: 1.559819859 | K48: 1.268179701 | L48: 6.2 | P48: Florida Power & Light Company | Q48: Blue Cypress Solar Energy Center | R48: 2018 | S48: 2022 | T48: 75 | U48: 149972.08 | V48: 269701
F49: 13.92917487 | G49: 0.295157042 | J49: 4.186339478 | K49: 3.11792326 | L49: 7.2 | P49: Florida Power & Light Company | Q49: Blue Heron Solar Energy Center | R49: 2020 | S49: 2021 | T49: 75 | U49: 167388 | V49: 285001.7741
F50: 5.899819593 | G50: 2.13785257 | J50: 1.513511974 | K50: 5.969330038 | L50: 8.2 | P50: Florida Power & Light Company | Q50: Blue Heron Solar Energy Center | R50: 2020 | S50: 2022 | T50: 75 | U50: 162995.32 | V50: 228328
F51: 11.81069594 | G51: 7.676102362 | J51: 4.303696611 | K51: 9.385134479 | L51: 9.2 | P51: Florida Power & Light Company | Q51: Blue Indigo Solar Energy Center | R51: 2020 | S51: 2022 | T51: 74.5 | U51: 164060.59 | V51: 454316
F52: 12.44954546 | G52: 1.878706511 | J52: 4.170301922 | K52: 4.088030267 | L52: 10.2 | P52: Florida Power & Light Company | Q52: Blue Springs Solar Energy Center | R52: 2021 | S52: 2022 | T52: 74.5 | U52: 150619.35 | V52: 190767
F53: 7.093914297 | G53: 11.37209138 | J53: 4.041742439 | K53: 4.32876489 | L53: 11.2 | P53: Florida Power & Light Company | Q53: Cattle Ranch Solar Energy Center | R53: 2020 | S53: 2021 | T53: 75 | U53: 160612 | V53: 287133.3165
F54: 6.519455793 | G54: 12.52047754 | J54: 4.183628132 | K54: 5.925450189 | L54: 12.2 | P54: Florida Power & Light Company | Q54: Cattle Ranch Solar Energy Center | R54: 2020 | S54: 2022 | T54: 75 | U54: 147633.79 | V54: 280213
P55: Florida Power & Light Company | Q55: Citrus | R55: 2016 | S55: 2019 | T55: 74.5 | U55: 163838 | V55: 415687.5461
P56: Florida Power & Light Company | Q56: Citrus | R56: 2016 | S56: 2020 | T56: 74.5 | U56: 155917 | V56: 384842.7409
P57: Florida Power & Light Company | Q57: Citrus Solar Energy Center | R57: 2016 | S57: 2021 | T57: 75 | U57: 159604 | V57: 412161.334
P58: Florida Power & Light Company | Q58: Citrus Solar Energy Center | R58: 2016 | S58: 2022 | T58: 75 | U58: 153528.58 | V58: 471148
P59: Florida Power & Light Company | Q59: Coral Farms | R59: 2018 | S59: 2019 | T59: 74.5 | U59: 154754 | V59: 271787.3386
P60: Florida Power & Light Company | Q60: Coral Farms | R60: 2018 | S60: 2020 | T60: 74.5 | U60: 149472 | V60: 322034.8903
P61: Florida Power & Light Company | Q61: Coral Farms Solar Energy Center | R61: 2018 | S61: 2021 | T61: 75 | U61: 137996 | V61: 329510.5627
P62: Florida Power & Light Company | Q62: Coral Farms Solar Energy Center | R62: 2018 | S62: 2022 | T62: 75 | U62: 145814.09 | V62: 429100
P63: Florida Power & Light Company | Q63: Cotton Creek Solar Energy Center | R63: 2021 | S63: 2022 | T63: 74.5 | U63: 153378.59 | V63: 379241
P64: Florida Power & Light Company | Q64: De Soto | R64: 2009 | S64: 2017 | T64: 22.5 | U64: 48199 | V64: 585796.5489
P65: Florida Power & Light Company | Q65: Desoto | R65: 2009 | S65: 2011 | T65: 27 | U65: 51845 | V65: 1102525.603
P66: Florida Power & Light Company | Q66: Desoto | R66: 2009 | S66: 2012 | T66: 27 | U66: 52025 | V66: 1029820.187
P67: Florida Power & Light Company | Q67: Desoto | R67: 2009 | S67: 2013 | T67: 27 | U67: 49829 | V67: 991057.6095
P68: Florida Power & Light Company | Q68: Desoto | R68: 2009 | S68: 2014 | T68: 23 | U68: 50714 | V68: 1055602.068
P69: Florida Power & Light Company | Q69: Desoto | R69: 2009 | S69: 2015 | T69: 23 | U69: 50003 | V69: 1090568.254
P70: Florida Power & Light Company | Q70: Desoto | R70: 2009 | S70: 2016 | T70: 23 | U70: 48651 | V70: 935687.2289
P71: Florida Power & Light Company | Q71: Desoto | R71: 2009 | S71: 2018 | T71: 22.5 | U71: 46881 | V71: 717142.2993
P72: Florida Power & Light Company | Q72: Desoto | R72: 2009 | S72: 2019 | T72: 22.5 | U72: 45754 | V72: 832831.7532
P73: Florida Power & Light Company | Q73: Desoto | R73: 2009 | S73: 2020 | T73: 23 | U73: 43355 | V73: 594896.2194
P74: Florida Power & Light Company | Q74: Desoto Solar Energy Center | R74: 2009 | S74: 2021 | T74: 23 | U74: 43744 | V74: 652069.0013
P75: Florida Power & Light Company | Q75: Desoto Solar Energy Center | R75: 2009 | S75: 2022 | T75: 23 | U75: 37524.56 | V75: 617016
P76: Florida Power & Light Company | Q76: Discovery Solar Energy Center | R76: 2021 | S76: 2022 | T76: 75 | U76: 149822.95 | V76: 142422
P77: Florida Power & Light Company | Q77: Echo River Solar Energy Center | R77: 2020 | S77: 2021 | T77: 75 | U77: 157043 | V77: 352865.5049
P78: Florida Power & Light Company | Q78: Echo River Solar Energy Center | R78: 2020 | S78: 2022 | T78: 75 | U78: 175986.87 | V78: 240307
P79: Florida Power & Light Company | Q79: Egret Solar Energy Center | R79: 2020 | S79: 2021 | T79: 75 | U79: 148907 | V79: 202011.7965
P80: Florida Power & Light Company | Q80: Egret Solar Energy Center | R80: 2020 | S80: 2022 | T80: 75 | U80: 148907 | V80: 203081
P81: Florida Power & Light Company | Q81: Fort Drum Solar Energy Center | R81: 2021 | S81: 2022 | T81: 75 | U81: 138412 | V81: 271326
P82: Florida Power & Light Company | Q82: Hammock | R82: 2018 | S82: 2019 | T82: 74.5 | U82: 157053 | V82: 316442.0397
P83: Florida Power & Light Company | Q83: Hammock | R83: 2018 | S83: 2020 | T83: 74.5 | U83: 159621 | V83: 323718.7709
P84: Florida Power & Light Company | Q84: Hammock Creek Solar Energy Center | R84: 2018 | S84: 2022 | T84: 75 | U84: 155227 | V84: 320023
P85: Florida Power & Light Company | Q85: Hammock Solar Energy Center | R85: 2018 | S85: 2021 | T85: 75 | U85: 159741 | V85: 228092.1596
P86: Florida Power & Light Company | Q86: Hibiscus Solar Energy Center | R86: 2020 | S86: 2021 | T86: 75 | U86: 160573 | V86: 105117.5708
P87: Florida Power & Light Company | Q87: Hibiscus Solar Energy Center | R87: 2020 | S87: 2022 | T87: 75 | U87: 137982.13 | V87: 218690
P88: Florida Power & Light Company | Q88: Horizon | R88: 2018 | S88: 2019 | T88: 74.5 | U88: 156045 | V88: 336506.8083
P89: Florida Power & Light Company | Q89: Horizon | R89: 2018 | S89: 2020 | T89: 74.5 | U89: 150955 | V89: 414025.5316
P90: Florida Power & Light Company | Q90: Horizon Solar Energy Center | R90: 2018 | S90: 2021 | T90: 75 | U90: 142500 | V90: 360933.6925
P91: Florida Power & Light Company | Q91: Horizon Solar Energy Center | R91: 2018 | S91: 2022 | T91: 75 | U91: 148251.16 | V91: 375002
P92: Florida Power & Light Company | Q92: Indian River | R92: 2018 | S92: 2019 | T92: 74.5 | U92: 157633 | V92: 289001.0842
P93: Florida Power & Light Company | Q93: Indian River | R93: 2018 | S93: 2020 | T93: 74.5 | U93: 157675 | V93: 271118.1884
P94: Florida Power & Light Company | Q94: Indian River Solar Energy Center | R94: 2018 | S94: 2021 | T94: 75 | U94: 160331 | V94: 202069.5793
P95: Florida Power & Light Company | Q95: Indian River Solar Energy Center | R95: 2018 | S95: 2022 | T95: 75 | U95: 152154.42 | V95: 244318
P96: Florida Power & Light Company | Q96: Interstate | R96: 2019 | S96: 2020 | T96: 74.5 | U96: 151909 | V96: 284840.8087
P97: Florida Power & Light Company | Q97: Interstate Solar Energy Center | R97: 2019 | S97: 2021 | T97: 75 | U97: 155105 | V97: 471200.3507
P98: Florida Power & Light Company | Q98: Interstate Solar Energy Center | R98: 2019 | S98: 2022 | T98: 75 | U98: 145853.39 | V98: 274899
P99: Florida Power & Light Company | Q99: Lakeside Solar Energy Center | R99: 2020 | S99: 2021 | T99: 75 | U99: 157993 | V99: 225742.3267
P100: Florida Power & Light Company | Q100: Lakeside Solar Energy Center | R100: 2020 | S100: 2022 | T100: 75 | U100: 151906 | V100: 300747
P101: Florida Power & Light Company | Q101: Loggerhead | R101: 2018 | S101: 2019 | T101: 74.5 | U101: 155527 | V101: 294887.7616
P102: Florida Power & Light Company | Q102: Loggerhead | R102: 2018 | S102: 2020 | T102: 74.5 | U102: 158223 | V102: 329324.9974
P103: Florida Power & Light Company | Q103: Loggerhead Solar Energy Center | R103: 2018 | S103: 2021 | T103: 75 | U103: 157382 | V103: 322601.2407
P104: Florida Power & Light Company | Q104: Loggerhead Solar Energy Center | R104: 2018 | S104: 2022 | T104: 75 | U104: 147558 | V104: 347709
P105: Florida Power & Light Company | Q105: Magnolia Springs Solar Energy Center | R105: 2021 | S105: 2022 | T105: 75 | U105: 158143 | V105: 330875
P106: Florida Power & Light Company | Q106: Manatee | R106: 2016 | S106: 2019 | T106: 74.5 | U106: 164300 | V106: 338293.087
P107: Florida Power & Light Company | Q107: Manatee | R107: 2016 | S107: 2020 | T107: 74.5 | U107: 161541 | V107: 313411.9907
P108: Florida Power & Light Company | Q108: Manatee Solar Energy Center | R108: 2016 | S108: 2021 | T108: 75 | U108: 161150 | V108: 291927.1468
P109: Florida Power & Light Company | Q109: Manatee Solar Energy Center | R109: 2016 | S109: 2022 | T109: 75 | U109: 96835.01 | V109: 384866
P110: Florida Power & Light Company | Q110: Miami-Dade | R110: 2019 | S110: 2020 | T110: 74.5 | U110: 153245 | V110: 299611.1023
P111: Florida Power & Light Company | Q111: Miami-Dade Solar Energy Center | R111: 2019 | S111: 2021 | T111: 75 | U111: 151774 | V111: 372184.2131
P112: Florida Power & Light Company | Q112: Miami-Dade Solar Energy Center | R112: 2019 | S112: 2022 | T112: 75 | U112: 144699.94 | V112: 365652
P113: Florida Power & Light Company | Q113: Nassau Solar Energy Center | R113: 2020 | S113: 2021 | T113: 75 | U113: 142627 | V113: 196717.1821
P114: Florida Power & Light Company | Q114: Nassau Solar Energy Center | R114: 2020 | S114: 2022 | T114: 75 | U114: 153691 | V114: 372338
P115: Florida Power & Light Company | Q115: Northern Preserve Solar Energy Center | R115: 2020 | S115: 2021 | T115: 75 | U115: 130104 | V115: 191159.335
P116: Florida Power & Light Company | Q116: Northern Preserve Solar Energy Center | R116: 2020 | S116: 2022 | T116: 75 | U116: 133987.38 | V116: 337201
P117: Florida Power & Light Company | Q117: Okeechobee Solar Energy Center | R117: 2020 | S117: 2021 | T117: 75 | U117: 172334 | V117: 164470.1126
P118: Florida Power & Light Company | Q118: Okeechobee Solar Energy Center | R118: 2020 | S118: 2022 | T118: 75 | U118: 162372.05 | V118: 260426
P119: Florida Power & Light Company | Q119: Orange Blossom Solar Energy Center | R119: 2021 | S119: 2022 | T119: 75 | U119: 155789 | V119: 188511
P120: Florida Power & Light Company | Q120: Palm Bay Solar Energy Center | R120: 2021 | S120: 2022 | T120: 75 | U120: 164037 | V120: 121748
P121: Florida Power & Light Company | Q121: Pelican Solar Energy Center | R121: 2021 | S121: 2022 | T121: 74.5 | U121: 159009 | V121: 104192
P122: Florida Power & Light Company | Q122: Pioneer Trail | R122: 2019 | S122: 2020 | T122: 74.5 | U122: 145362 | V122: 247297.8752
P123: Florida Power & Light Company | Q123: Pioneer Trail Solar Energy Center | R123: 2019 | S123: 2021 | T123: 75 | U123: 148209 | V123: 299198.1462
P124: Florida Power & Light Company | Q124: Pioneer Trail Solar Energy Center | R124: 2019 | S124: 2022 | T124: 75 | U124: 134814.91 | V124: 326358
P125: Florida Power & Light Company | Q125: Rodeo Solar Energy Center | R125: 2021 | S125: 2022 | T125: 75 | U125: 155964.5 | V125: 154206
P126: Florida Power & Light Company | Q126: Sabal Palm Solar Energy Center | R126: 2021 | S126: 2022 | T126: 75 | U126: 161637 | V126: 339757
P127: Florida Power & Light Company | Q127: Southfork Solar Energy Center | R127: 2020 | S127: 2021 | T127: 75 | U127: 179139 | V127: 430263.3938
P128: Florida Power & Light Company | Q128: Southfork Solar Energy Center | R128: 2020 | S128: 2022 | T128: 75 | U128: 179991.15 | V128: 305026
P129: Florida Power & Light Company | Q129: Space Coast | R129: 2010 | S129: 2011 | T129: 10 | U129: 18843 | V129: 508200.0832
P130: Florida Power & Light Company | Q130: Space Coast | R130: 2010 | S130: 2012 | T130: 10 | U130: 18509 | V130: 227441.6946
P131: Florida Power & Light Company | Q131: Space Coast | R131: 2010 | S131: 2013 | T131: 10 | U131: 18163 | V131: 206399.2741
P132: Florida Power & Light Company | Q132: Space Coast | R132: 2010 | S132: 2014 | T132: 10 | U132: 17552 | V132: 236076.7477
P133: Florida Power & Light Company | Q133: Space Coast | R133: 2010 | S133: 2015 | T133: 10 | U133: 17685 | V133: 292701.328
P134: Florida Power & Light Company | Q134: Space Coast | R134: 2010 | S134: 2016 | T134: 10 | U134: 18300 | V134: 260641.6423
P135: Florida Power & Light Company | Q135: Space Coast | R135: 2010 | S135: 2017 | T135: 10 | U135: 17555 | V135: 228652.6906
P136: Florida Power & Light Company | Q136: Space Coast | R136: 2010 | S136: 2018 | T136: 10 | U136: 17546 | V136: 331610.501
P137: Florida Power & Light Company | Q137: Space Coast | R137: 2010 | S137: 2019 | T137: 10 | U137: 16553 | V137: 283611.6651
P138: Florida Power & Light Company | Q138: Space Coast | R138: 2010 | S138: 2020 | T138: 10 | U138: 15937 | V138: 208429.976
P139: Florida Power & Light Company | Q139: Space Coast Solar Energy Center | R139: 2010 | S139: 2021 | T139: 10 | U139: 16431 | V139: 153234.5728
P140: Florida Power & Light Company | Q140: Space Coast Solar Energy Center | R140: 2010 | S140: 2022 | T140: 10 | U140: 14878.49 | V140: 127952
P141: Florida Power & Light Company | Q141: Sunshine Gateway | R141: 2019 | S141: 2020 | T141: 74.5 | U141: 152223 | V141: 252478.1001
P142: Florida Power & Light Company | Q142: Sunshine Gateway Solar Energy Center | R142: 2019 | S142: 2021 | T142: 75 | U142: 143807 | V142: 277966.186
P143: Florida Power & Light Company | Q143: Sunshine Gateway Solar Energy Center | R143: 2019 | S143: 2022 | T143: 75 | U143: 150502.76 | V143: 434259
P144: Florida Power & Light Company | Q144: Sweetbay Solar Energy Center | R144: 2020 | S144: 2021 | T144: 75 | U144: 144673 | V144: 370401.5075
P145: Florida Power & Light Company | Q145: Sweetbay Solar Energy Center | R145: 2020 | S145: 2022 | T145: 75 | U145: 137457.37 | V145: 299230
P146: Florida Power & Light Company | Q146: Trailside Solar Energy Center | R146: 2020 | S146: 2021 | T146: 75 | U146: 150410 | V146: 218717.4392
P147: Florida Power & Light Company | Q147: Trailside Solar Energy Center | R147: 2020 | S147: 2022 | T147: 75 | U147: 153540.55 | V147: 425347
P148: Florida Power & Light Company | Q148: Twin Lakes Solar Energy Center | R148: 2020 | S148: 2021 | T148: 75 | U148: 144119 | V148: 208621.5041
P149: Florida Power & Light Company | Q149: Twin Lakes Solar Energy Center | R149: 2020 | S149: 2022 | T149: 75 | U149: 145817.25 | V149: 265927
P150: Florida Power & Light Company | Q150: Union Springs Solar Energy Center | R150: 2020 | S150: 2021 | T150: 75 | U150: 146305 | V150: 275104.8685
P151: Florida Power & Light Company | Q151: Union Springs Solar Energy Center | R151: 2020 | S151: 2022 | T151: 75 | U151: 160493 | V151: 279176
P152: Florida Power & Light Company | Q152: Wildflower | R152: 2018 | S152: 2019 | T152: 74.5 | U152: 162578 | V152: 288683.9263
P153: Florida Power & Light Company | Q153: Wildflower | R153: 2018 | S153: 2020 | T153: 74.5 | U153: 158320 | V153: 309565.6765
P154: Florida Power & Light Company | Q154: Wildflower Solar Energy Center | R154: 2018 | S154: 2021 | T154: 75 | U154: 159204 | V154: 265215.4534
P155: Florida Power & Light Company | Q155: Wildflower Solar Energy Center | R155: 2018 | S155: 2022 | T155: 75 | U155: 148633 | V155: 332455
P156: Florida Power & Light Company | Q156: Willow Solar Energy Center | R156: 2021 | S156: 2022 | T156: 75 | U156: 166371.99 | V156: 202188
P157: Georgia Power Company | Q157: Dalton | R157: 2011 | S157: 2014 | T157: 8 | U157: 1623 | V157: 16070.25506
P158: Georgia Power Company | Q158: Dalton | R158: 2011 | S158: 2015 | T158: 8 | U158: 10823.694 | V158: 23293.61062
P159: Georgia Power Company | Q159: Fort Benning | R159: 2015 | S159: 2016 | T159: 30 | U159: 60634 | V159: 254740.0633
P160: Georgia Power Company | Q160: Fort Benning | R160: 2015 | S160: 2017 | T160: 30 | U160: 56460 | V160: 157393.4742
P161: Georgia Power Company | Q161: Fort Benning | R161: 2015 | S161: 2018 | T161: 30 | U161: 55294 | V161: 515768.4787
P162: Georgia Power Company | Q162: Fort Benning | R162: 2015 | S162: 2019 | T162: 30.01 | U162: 53291 | V162: 636139.4788
P163: Georgia Power Company | Q163: Fort Benning | R163: 2015 | S163: 2020 | T163: 30.01 | U163: 51095 | V163: 602847.1322
P164: Georgia Power Company | Q164: Fort Benning | R164: 2015 | S164: 2021 | T164: 30.01 | U164: 48077 | V164: 551886.5076
P165: Georgia Power Company | Q165: Fort Benning | R165: 2015 | S165: 2022 | T165: 30.01 | U165: 52960 | V165: 320064
P166: Georgia Power Company | Q166: Fort Gordon | R166: 2016 | S166: 2017 | T166: 30 | U166: 58891 | V166: 259228.1146
P167: Georgia Power Company | Q167: Fort Gordon | R167: 2016 | S167: 2018 | T167: 30 | U167: 56530 | V167: 337350.2683
P168: Georgia Power Company | Q168: Fort Gordon | R168: 2016 | S168: 2019 | T168: 30 | U168: 56554 | V168: 484193.6547
P169: Georgia Power Company | Q169: Fort Gordon | R169: 2016 | S169: 2020 | T169: 30 | U169: 53884 | V169: 619886.0803
P170: Georgia Power Company | Q170: Fort Gordon | R170: 2016 | S170: 2021 | T170: 30 | U170: 56403 | V170: 782245.0362
P171: Georgia Power Company | Q171: Fort Gordon | R171: 2016 | S171: 2022 | T171: 30 | U171: 57016 | V171: 328242
P172: Georgia Power Company | Q172: Fort Stewart | R172: 2016 | S172: 2017 | T172: 30 | U172: 58299 | V172: 307931.5356
P173: Georgia Power Company | Q173: Fort Stewart | R173: 2016 | S173: 2018 | T173: 30 | U173: 52716 | V173: 361099.1608
P174: Georgia Power Company | Q174: Fort Stewart | R174: 2016 | S174: 2019 | T174: 30 | U174: 54268 | V174: 465208.3557
P175: Georgia Power Company | Q175: Fort Stewart | R175: 2016 | S175: 2020 | T175: 30 | U175: 50513 | V175: 648305.1987
P176: Georgia Power Company | Q176: Fort Stewart | R176: 2016 | S176: 2021 | T176: 30 | U176: 47724 | V176: 660437.8734
P177: Georgia Power Company | Q177: Fort Stewart | R177: 2016 | S177: 2022 | T177: 30 | U177: 53215 | V177: 393136
P178: Georgia Power Company | Q178: King'S Bay | R178: 2016 | S178: 2017 | T178: 30 | U178: 59697 | V178: 109560.2631
P179: Georgia Power Company | Q179: King'S Bay | R179: 2016 | S179: 2018 | T179: 30.16 | U179: 55206 | V179: 562954.9465
P180: Georgia Power Company | Q180: King'S Bay | R180: 2016 | S180: 2019 | T180: 30.16 | U180: 59430 | V180: 553003.3288
P181: Georgia Power Company | Q181: King'S Bay | R181: 2016 | S181: 2020 | T181: 30.16 | U181: 55713 | V181: 727229.553
P182: Georgia Power Company | Q182: King'S Bay | R182: 2016 | S182: 2021 | T182: 30.16 | U182: 47450 | V182: 2598901.285
P183: Georgia Power Company | Q183: King'S Bay | R183: 2016 | S183: 2022 | T183: 30.16 | U183: 56817 | V183: 1256785
P184: Georgia Power Company | Q184: Moody Afb | R184: 2020 | S184: 2022 | T184: 49.5 | U184: 98807 | V184: 419711
P185: Georgia Power Company | Q185: Robins Afb | R185: 2021 | S185: 2022 | T185: 128 | U185: 255400 | V185: 1526481
P186: Indiana Michigan Power Company | Q186: St. Joseph | R186: 2020 | S186: 2021 | T186: 20 | U186: 27221 | V186: 284887.2786
P187: Indiana Michigan Power Company | Q187: St. Joseph | R187: 2020 | S187: 2022 | T187: 20 | U187: 24276 | V187: 681728
P188: Kentucky Utilities Company | Q188: Brown Solar | R188: 2016 | S188: 2017 | T188: 6.1 | U188: 10643 | V188: 144022.7037
P189: Kentucky Utilities Company | Q189: Brown Solar | R189: 2016 | S189: 2018 | T189: 6.1 | U189: 10389 | V189: 93418.22946
P190: Kentucky Utilities Company | Q190: Brown Solar | R190: 2016 | S190: 2019 | T190: 6.1 | U190: 10666.62 | V190: 105539.9582
P191: Kentucky Utilities Company | Q191: Brown Solar | R191: 2016 | S191: 2020 | T191: 6.1 | U191: 10128.88 | V191: 72354.31292
P192: Kentucky Utilities Company | Q192: Brown Solar | R192: 2016 | S192: 2021 | T192: 6.1 | U192: 10083 | V192: 63526.8124
P193: Kentucky Utilities Company | Q193: Brown Solar | R193: 2016 | S193: 2022 | T193: 6.1 | U193: 10396 | V193: 62215
P194: Liberty Utilities (Calpeco Electric) Llc | Q194: Luning Solar Facility | R194: 2017 | S194: 2018 | T194: 50 | U194: 129359 | V194: 1042964.606
P195: Liberty Utilities (Calpeco Electric) Llc | Q195: Luning Solar Facility | R195: 2017 | S195: 2019 | T195: 50 | U195: 129678 | V195: 1014503.202
P196: Liberty Utilities (Calpeco Electric) Llc | Q196: Luning Solar Facility | R196: 2017 | S196: 2020 | T196: 50 | U196: 137784 | V196: 1467465.015
P197: Liberty Utilities (Calpeco Electric) Llc | Q197: Turquoise Solar Facility | R197: 2019 | S197: 2020 | T197: 10 | U197: 16186 | V197: 381383.2944
P198: Madison Gas And Electric Company | Q198: Badger Hollow Solar Park | R198: 2021 | S198: 2022 | T198: 50 | U198: 98626.5 | V198: 814569
P199: Madison Gas And Electric Company | Q199: Dane County Pv Generation | R199: 2020 | S199: 2021 | T199: 34 | U199: 48310.7 | V199: 395480.3025
P200: Madison Gas And Electric Company | Q200: Dane County Pv Generation | R200: 2020 | S200: 2022 | T200: 34 | U200: 76914.4 | V200: 539972
... 309 more rows

Sheet O&M Cost by Project Age
A1: PV Operation and Maintenance Costs by project age
A22: Source: FERC, Berkeley Lab
L23: Note: Only projects with commercial operation date after 2010 are shown | S23: Note: Only projects with commercial operation date after 2010 are shown
A24: Note: Included in cost scope are project supervision, engineering, maintenance, rents, and training. Excluded are payments for property taxes, insurance, land royalties, performance bonds, various admnistrative and other fees, and overhead.
A28: Years post COD | B28: Median $/kW-AC | E28: Cost Sample Project Count | H28: Cost Sample Capacity (MW-AC) | L28: Years post COD | M28: $/kW-AC-year | P28: $/MWh | S28: Cost Sample
B29: 2011-2014 | C29: 2015-2017 | D29: 2018-2021 | E29: 2011-2014 | F29: 2015-2017 | G29: 2018-2021 | H29: 2011-2014 | I29: 2015-2017 | J29: 2018-2021 | M29: 50th Percentile | N29: 20th Percentile | O29: 80th Percentile | P29: 50th Percentile | Q29: 20th Percentile | R29: 80th Percentile | S29: Project Count | T29: Capacity (MW) | U29: $/kW-AC Range | V29: $/MWh Range
A30: 1 | B30: 40.93355276 | C30: 23.50002607 | D30: 5.201469519 | E30: 15 | F30: 15 | G30: 74 | H30: 223.6 | I30: 311.78 | J30: 4810.08 | L30: 1-2 | M30: 1 | N30: 1 | O30: 1 | P30: 1 | Q30: 1 | R30: 1 | U30: =O30-N30 -> 0 | V30: =R30-Q30 -> 0
A31: 2 | B31: 25.00952018 | C31: 22.57020058 | D31: 6.282671343 | E31: 17 | F31: 20 | G31: 55 | H31: 248.5 | I31: 386.88 | J31: 3397.56 | L31: 3 | M31: 0.9578039477 | N31: 0.8063966279 | O31: 1.32768233 | P31: 1.006740724 | Q31: 0.7279892133 | R31: 1.237230287 | S31: 65 | T31: 2303.82 | U31: 0.5212857021 | V31: =R31-Q31 -> 0.5092410735
A32: 3 | B32: 20.62444553 | C32: 21.21435761 | D32: 9.604441066 | E32: 18 | F32: 25 | G32: 28 | H32: 256.5 | I32: 645.18 | J32: 1668.44 | L32: 4 | M32: 0.8224978592 | N32: 0.4428527549 | O32: 1.345165146 | P32: 0.7957320132 | Q32: 0.4527096525 | R32: 1.410189337 | S32: 45 | T32: 1327.05 | U32: 0.902312391 | V32: 0.9574796843
A33: 4 | B33: 15.25571603 | C33: 18.90985 | D33: 5.36068 | E33: 18 | F33: 20 | G33: 14 | H33: 254.5 | I33: 539.85 | J33: 874 | L33: 5 | M33: 0.8610730723 | N33: 0.4072106942 | O33: 1.397986539 | P33: 0.7772038939 | Q33: 0.4415409767 | R33: 1.378667147 | S33: 30 | T33: 499.18 | U33: 0.9907758449 | V33: 0.9371261707
A34: 5 | B34: 18.90965941 | C34: 20.08820834 | E34: 17 | F34: 19 | H34: 246.5 | I34: 522.48 | L34: 6 | M34: 0.939834796 | N34: 0.390198137 | O34: 1.213341086 | P34: 0.9123230539 | Q34: 0.4471267042 | R34: 1.290146143 | S34: 29 | T34: 437.42 | U34: 0.8231429489 | V34: 0.8430194392
A35: 6 | B35: 18.90970976 | C35: 20.66761506 | E35: 17 | F35: 17 | H35: 246.5 | I35: 472.92 | L35: 7 | M35: 0.9804105245 | N35: 0.272622898 | O35: 1.167621021 | P35: 0.7757215951 | Q35: 0.330897519 | R35: 1.071708882 | S35: 21 | T35: 275.41 | U35: 0.8949981232 | V35: 0.7408113629
A36: 7 | B36: 16.86732095 | C36: 23.32389474 | E36: 20 | F36: 7 | H36: 279.89 | I36: 104.81 | L36: 8 | M36: 0.4877831676 | N36: 0.240902856 | O36: 1.218042662 | P36: 0.5282291827 | Q36: 0.2664432806 | R36: 0.9835749024 | S36: 16 | T36: 205.4 | U36: 0.9771398064 | V36: 0.7171316218
A37: 8 | B37: 15.17042806 | E37: 18 | H37: 265.39 | L37: 9 | M37: 0.5466042075 | N37: 0.2808788197 | O37: 1.101228736 | P37: 0.6778831748 | Q37: 0.3373341579 | R37: 1.196330555 | S37: 13 | T37: 182.4 | U37: 0.8203499161 | V37: 0.8589963973
A38: 9 | B38: 14.6874 | E38: 13 | H38: 182.4 | L38: 10 | M38: 0.3224593516 | N38: 0.2194603158 | O38: 1.137194932 | P38: 0.4147836703 | Q38: 0.2940349214 | R38: 0.8840293144 | S38: 8 | T38: 116 | U38: 0.9177346163 | V38: 0.589994393
A39: 10 | B39: 13.89015168 | E39: 8 | H39: 116 | L39: 11 | M39: 0.4943854566 | N39: 0.4585965831 | O39: 1.253856015 | P39: 0.8372497394 | Q39: 0.7314655767 | R39: 0.9326985274 | S39: 5 | T39: 66 | U39: 0.7952594314 | V39: 0.2012329507
A40: 11 | B40: 21.78893333 | E40: 5 | H40: 66

Sheet CF by GHI, Mount, ILR
A1: Cumulative capacity factor by resource strength, fixed-tilt vs. tracking, and inverter loading ratio
A24: Source: EIA, FERC, Berkeley Lab
D26: Median | H26: Individual Projects
A27: GHI | B27: Mount | C27: DC:AC (ILR) | D27: Capacity | E27: Sample | F27: Sample | I27: Capacity
A28: Quartile | B28: Type | C28: Quartile | D28: Factor | E28: Projects | F28: MW | H28: Bin | I28: Factor
A29: 1st Quartile GHI | B29: Fixed-Tilt | C29: 1 | D29: 0.1674492912 | E29: 53 | F29: 561.96 | H29: 1 | I29: 0.09573954124
C30: 2 | D30: 0.1848225726 | E30: 31 | F30: 382.217 | H30: 1 | I30: 0.1047017694
C31: 3 | D31: 0.1803431791 | E31: 26 | F31: 359.229 | H31: 1 | I31: 0.1321102414
C32: 4 | D32: 0.194237791 | E32: 19 | F32: 357.37 | H32: 1 | I32: 0.1321615132
B33: Tracking | C33: 1 | D33: 0.1928801063 | E33: 27 | F33: 786.64 | H33: 1 | I33: 0.141561998
C34: 2 | D34: 0.2156095792 | E34: 30 | F34: 1270 | H34: 1 | I34: 0.1452087883
C35: 3 | D35: 0.2163822685 | E35: 38 | F35: 1390.85 | H35: 1 | I35: 0.1478675389
C36: 4 | D36: 0.2246592483 | E36: 38 | F36: 1423.8 | H36: 1 | I36: 0.1496322038
A37: 2nd Quartile GHI | B37: Fixed-Tilt | C37: 1 | D37: 0.1891427105 | E37: 10 | F37: 221.562 | H37: 1 | I37: 0.152062237
C38: 2 | D38: 0.1992887184 | E38: 20 | F38: 507.553 | H38: 1 | I38: 0.1523723966
C39: 3 | D39: 0.205567288 | E39: 15 | F39: 748.9 | H39: 1 | I39: 0.1539639092
C40: 4 | D40: 0.2209917677 | E40: 28 | F40: 991.763 | H40: 1 | I40: 0.1550685241
B41: Tracking | C41: 1 | D41: 0.2194176207 | E41: 19 | F41: 1057.2 | H41: 1 | I41: 0.1551037589
C42: 2 | D42: 0.2385903928 | E42: 32 | F42: 1584.81 | H42: 1 | I42: 0.1559684919
C43: 3 | D43: 0.245437437 | E43: 50 | F43: 2196.15 | H43: 1 | I43: 0.1562462147
C44: 4 | D44: 0.2444966434 | E44: 87 | F44: 3066.905 | H44: 1 | I44: 0.1576698059
A45: 3rd Quartile GHI | B45: Fixed-Tilt | C45: 1 | D45: 0.2068576078 | E45: 10 | F45: 214.74 | H45: 1 | I45: 0.158645073
C46: 2 | D46: 0.2230657354 | E46: 12 | F46: 349.76 | H46: 1 | I46: 0.1605749487
C47: 3 | D47: 0.2114786344 | E47: 13 | F47: 526.7 | H47: 1 | I47: 0.1609049116
C48: 4 | D48: 0.2374275995 | E48: 23 | F48: 1659 | H48: 1 | I48: 0.1616912966
B49: Tracking | C49: 1 | D49: 0.2265269069 | E49: 49 | F49: 2040.636 | H49: 1 | I49: 0.1617522831
C50: 2 | D50: 0.2722577274 | E50: 62 | F50: 4261.085 | H50: 1 | I50: 0.1651038102
C51: 3 | D51: 0.2822531569 | E51: 55 | F51: 3252.988 | H51: 1 | I51: 0.165455401
C52: 4 | D52: 0.2784388265 | E52: 38 | F52: 2223.422 | H52: 1 | I52: 0.1657158939
A53: 4th Quartile GHI | B53: Fixed-Tilt | C53: 1 | D53: 0.228524275 | E53: 15 | F53: 761.5 | H53: 1 | I53: 0.166450735
C54: 2 | D54: 0.2491543154 | E54: 13 | F54: 1313.66 | H54: 1 | I54: 0.1664869498
C55: 3 | D55: 0.2719285324 | E55: 6 | F55: 1109.7 | H55: 1 | I55: 0.1674492912
C56: 4 | D56: 0.2709441125 | E56: 6 | F56: 501.49 | H56: 1 | I56: 0.1680611438
B57: Tracking | C57: 1 | D57: 0.2825774679 | E57: 73 | F57: 3544.178 | H57: 1 | I57: 0.1684332477
C58: 2 | D58: 0.3009549666 | E58: 66 | F58: 4977.776 | H58: 1 | I58: 0.1684727753
C59: 3 | D59: 0.3053940422 | E59: 60 | F59: 5061.16 | H59: 1 | I59: 0.1685235886
C60: 4 | D60: 0.3156748332 | E60: 23 | F60: 1908.64 | H60: 1 | I60: 0.1695366175
H61: 1 | I61: 0.1697181287
D62: Total: | E62: =SUM(E29:E60) -> 1047 | F62: =SUM(F29:F60) -> 50613.344 | H62: 1 | I62: 0.1714404317
H63: 1 | I63: 0.1718794369
H64: 1 | I64: 0.1724606175
H65: 1 | I65: 0.1725659334
H66: 1 | I66: 0.1733338312
H67: 1 | I67: 0.1747652279
H68: 1 | I68: 0.1750559054
H69: 1 | I69: 0.1752354452
H70: 1 | I70: 0.1763364847
H71: 1 | I71: 0.1768451992
H72: 1 | I72: 0.1775487161
H73: 1 | I73: 0.1792127186
H74: 1 | I74: 0.17949143
H75: 1 | I75: 0.1833021246
H76: 1 | I76: 0.1836285079
H77: 1 | I77: 0.1847488463
H78: 1 | I78: 0.1866346505
H79: 1 | I79: 0.187425704
H80: 1 | I80: 0.1917527723
H81: 1 | I81: 0.1975174358
H82: 2 | I82: 0.1372736877
H83: 2 | I83: 0.1427059551
H84: 2 | I84: 0.1541166794
H85: 2 | I85: 0.1621144132
H86: 2 | I86: 0.1643784511
H87: 2 | I87: 0.1657542579
H88: 2 | I88: 0.1668998674
H89: 2 | I89: 0.169143596
H90: 2 | I90: 0.1740377532
H91: 2 | I91: 0.176693608
H92: 2 | I92: 0.1773203398
H93: 2 | I93: 0.1775806942
H94: 2 | I94: 0.1777127924
H95: 2 | I95: 0.1799330188
H96: 2 | I96: 0.182371196
H97: 2 | I97: 0.1848225726
H98: 2 | I98: 0.1854257678
H99: 2 | I99: 0.1875190085
H100: 2 | I100: 0.1880866268
H101: 2 | I101: 0.1882215378
H102: 2 | I102: 0.1882446878
H103: 2 | I103: 0.189336893
H104: 2 | I104: 0.190900924
H105: 2 | I105: 0.1940247622
H106: 2 | I106: 0.1950876269
H107: 2 | I107: 0.2002838455
H108: 2 | I108: 0.2008709623
H109: 2 | I109: 0.2030165249
H110: 2 | I110: 0.2095051019
H111: 2 | I111: 0.2269085331
H112: 2 | I112: 0.2326783749
H113: 3 | I113: 0.1197203196
H114: 3 | I114: 0.1293721461
H115: 3 | I115: 0.1490082763
H116: 3 | I116: 0.1569351308
H117: 3 | I117: 0.1575544354
H118: 3 | I118: 0.1702285162
H119: 3 | I119: 0.1707686563
H120: 3 | I120: 0.1724551451
H121: 3 | I121: 0.1773016672
H122: 3 | I122: 0.1777461821
H123: 3 | I123: 0.1784316291
H124: 3 | I124: 0.1792891489
H125: 3 | I125: 0.1800065926
H126: 3 | I126: 0.1806797656
H127: 3 | I127: 0.184370895
H128: 3 | I128: 0.1868410348
H129: 3 | I129: 0.1871527882
H130: 3 | I130: 0.1882435383
H131: 3 | I131: 0.1902999157
H132: 3 | I132: 0.1962979415
H133: 3 | I133: 0.1984722983
H134: 3 | I134: 0.1986189244
H135: 3 | I135: 0.2031611396
H136: 3 | I136: 0.2041573504
H137: 3 | I137: 0.2117177954
H138: 3 | I138: 0.2324200913
H139: 4 | I139: 0.1641084873
H140: 4 | I140: 0.170835063
H141: 4 | I141: 0.1718388706
H142: 4 | I142: 0.1773152112
H143: 4 | I143: 0.1789403604
H144: 4 | I144: 0.1805745641
H145: 4 | I145: 0.1878350251
H146: 4 | I146: 0.1889994177
H147: 4 | I147: 0.1933415665
H148: 4 | I148: 0.194237791
H149: 4 | I149: 0.1984759533
H150: 4 | I150: 0.1993451077
H151: 4 | I151: 0.2017003371
H152: 4 | I152: 0.210071807
H153: 4 | I153: 0.2111558219
H154: 4 | I154: 0.2138663685
H155: 4 | I155: 0.2146598601
H156: 4 | I156: 0.2203256902
H157: 4 | I157: 0.2271018709
H158: 5 | I158: 0.1099559687
H159: 5 | I159: 0.1762113141
H160: 5 | I160: 0.1762293642
H161: 5 | I161: 0.1770909049
H162: 5 | I162: 0.1803032702
H163: 5 | I163: 0.1837805769
H164: 5 | I164: 0.1860549848
H165: 5 | I165: 0.186891172
H166: 5 | I166: 0.1874182634
H167: 5 | I167: 0.188590998
H168: 5 | I168: 0.1891939289
H169: 5 | I169: 0.1893064924
H170: 5 | I170: 0.1908872473
H171: 5 | I171: 0.1928801063
H172: 5 | I172: 0.1945261293
H173: 5 | I173: 0.1946316578
H174: 5 | I174: 0.1960927389
H175: 5 | I175: 0.1979058047
H176: 5 | I176: 0.198651009
H177: 5 | I177: 0.2001776041
H178: 5 | I178: 0.2005936073
H179: 5 | I179: 0.2016780822
H180: 5 | I180: 0.2084977386
H181: 5 | I181: 0.2106012177
H182: 5 | I182: 0.2181510131
H183: 5 | I183: 0.2197659817
H184: 5 | I184: 0.2214882256
H185: 6 | I185: 0.1339497717
H186: 6 | I186: 0.1502777778
H187: 6 | I187: 0.1908974094
H188: 6 | I188: 0.195284505
H189: 6 | I189: 0.1952886151
H190: 6 | I190: 0.1955323746
H191: 6 | I191: 0.1995025557
H192: 6 | I192: 0.2028660095
H193: 6 | I193: 0.2033295282
H194: 6 | I194: 0.2056544224
H195: 6 | I195: 0.2110887557
H196: 6 | I196: 0.2130684932
H197: 6 | I197: 0.2141108574
H198: 6 | I198: 0.2143838919
H199: 6 | I199: 0.2154461133
H200: 6 | I200: 0.2157730451
H201: 6 | I201: 0.2188583881
H202: 6 | I202: 0.2204639689
H203: 6 | I203: 0.2226358282
H204: 6 | I204: 0.2277524331
H205: 6 | I205: 0.2284229452
H206: 6 | I206: 0.2322374429
H207: 6 | I207: 0.233227812
H208: 6 | I208: 0.2342357034
H209: 6 | I209: 0.2350980136
H210: 6 | I210: 0.2360502283
H211: 6 | I211: 0.2415410959
H212: 6 | I212: 0.2417808219
H213: 6 | I213: 0.2427146119
H214: 6 | I214: 0.247260274
H215: 7 | I215: 0.139997719
H216: 7 | I216: 0.1628357877
H217: 7 | I217: 0.1642780121
H218: 7 | I218: 0.1705472186
H219: 7 | I219: 0.1843586602
H220: 7 | I220: 0.1861506971
H221: 7 | I221: 0.188122813
H222: 7 | I222: 0.195
H223: 7 | I223: 0.1971746575
... 852 more rows

Sheet CF by Region
A1: Cumulative capacity factor by region and fixed-tilt vs. tracking
A24: Source: EIA, FERC, Berkeley Lab
B26: Fixed-Tilt | C26: Fixed-Tilt | D26: Fixed-Tilt | F26: Tracking | G26: Tracking | H26: Tracking | J26: Fixed-Tilt | K26: Tracking
B27: Average | C27: # projects | D27: # MW | F27: Average | G27: # projects | H27: # MW | J27: Labels | K27: Labels
A28: NYISO | B28: 0.1801677433 | C28: 9 | D28: 127.9 | F28: 0.1758481378 | G28: 2 | H28: 27.7 | J28: =C28&" projects, "&TEXT(D28,"#,##0")&" MW" -> 9 projects, 128 MW | K28: =G28&" projects, "&TEXT(H28,"#,##0")&" MW" -> 2 projects, 28 MW
A29: ISO-NE | B29: 0.1675876019 | C29: 24 | D29: 433.327 | F29: 0.1876552976 | G29: 4 | H29: 85.8 | J29: =C29&" projects, "&TEXT(D29,"#,##0")&" MW" -> 24 projects, 433 MW | K29: =G29&" projects, "&TEXT(H29,"#,##0")&" MW" -> 4 projects, 86 MW
A30: Hawaii | B30: 0.2112058876 | C30: 6 | D30: 74 | F30: 0.2149079323 | G30: 6 | H30: 171.2 | J30: 6 projects, 74 MW | K30: 6 projects, 171 MW
A31: PJM | B31: 0.1786817133 | C31: 76 | D31: 905.391 | F31: 0.2157397791 | G31: 101 | H31: 4102.176 | J31: 76 projects, 905 MW | K31: 101 projects, 4,102 MW
A32: MISO | B32: 0.1763828049 | C32: 21 | D32: 358.097 | F32: 0.2174733286 | G32: 37 | H32: 1638.21 | J32: 21 projects, 358 MW | K32: 37 projects, 1,638 MW
A33: Southeast (non-ISO) | B33: 0.2137646457 | C33: 100 | D33: 4435.579 | F33: 0.2345049871 | G33: 136 | H33: 7010.531 | J33: 100 projects, 4,436 MW | K33: 136 projects, 7,011 MW
A34: ERCOT | B34: 0.2021849529 | C34: 2 | D34: 43.66 | F34: 0.2443802047 | G34: 77 | H34: 8717.989 | J34: 2 projects, 44 MW | K34: 77 projects, 8,718 MW
A35: SPP | B35: 0.2117511762 | C35: 3 | D35: 22.32 | F35: 0.2524125236 | G35: 11 | H35: 250.62 | J35: 3 projects, 22 MW | K35: 11 projects, 251 MW
A36: West (non-ISO) | B36: 0.2260350586 | C36: 23 | D36: 1005.74 | F36: 0.2812645057 | G36: 196 | H36: 7355.839 | J36: 23 projects, 1,006 MW | K36: 196 projects, 7,356 MW
A37: CAISO | B37: 0.2391956635 | C37: 36 | D37: 3161.09 | F37: 0.2876233552 | G37: 177 | H37: 10686.175 | J37: 36 projects, 3,161 MW | K37: 177 projects, 10,686 MW
A39: Total | C39: =SUM(C28:C37) -> 300 | D39: =SUM(D28:D37) -> 10567.104 | G39: =SUM(G28:G37) -> 747 | H39: =SUM(H28:H37) -> 40046.24

Sheet CF by Project Vintage
A1: Cumulative and 2022 capacity factor by project vintage: 2010-2021 projects | M1: 2022 capacity factor by project vintage: 2010-2021 projects
A24: Source: EIA, FERC, Berkeley Lab
D25: Average | E25: Average
D26: 2022 | E26: Cumulative
A27: Sample | B27: Sample | C27: Project | D27: Capacity | E27: Capacity | F27: Average | G27: Average | H27: % | O27: ILR | P27: GHI | Q27: Tracking
A28: GW | B28: Projects | C28: Vintage | D28: Factor | E28: Factor | F28: ILR | G28: GHI | H28: Tracking | O28: Index | P28: Index | Q28: Index
A29: 0.14422 | B29: 7 | C29: 2010 | D29: 0.1962139429 | E29: 0.210507932 | F29: 1.172742681 | G29: 4.968867352 | H29: 0.1428571429 | J29: =TEXT($F29,"#.#0")&" ILR; "&TEXT($H29,"#0%")&" tracking;" -> 1.17 ILR; 14% tracking; | M29: =TEXT($G29,"#.00")&" GHI" -> 4.97 GHI | O29: 100 | P29: 100 | Q29: 100
A30: 0.45 | B30: 31 | C30: 2011 | D30: 0.2090275091 | E30: 0.2238404053 | F30: 1.179743534 | G30: 5.100227714 | H30: 0.4838709677 | J30: 1.18 ILR; 48% tracking; | M30: =TEXT($G30,"#.00")&" GHI" -> 5.10 GHI | O30: =(F30-F29)*100+O29 -> 100.7000854 | P30: =(G30-G29)*100+P29 -> 113.1360362 | Q30: =(H30-H29)*100+Q29 -> 134.1013825
A31: 0.886284 | B31: 36 | C31: 2012 | D31: 0.2163252771 | E31: 0.2351725391 | F31: 1.230226119 | G31: 5.104070256 | H31: 0.5 | J31: 1.23 ILR; 50% tracking; | M31: 5.10 GHI | O31: =(F31-F30)*100+O30 -> 105.7483439 | P31: =(G31-G30)*100+P30 -> 113.5202905 | Q31: =(H31-H30)*100+Q30 -> 135.7142857
A32: 1.693889 | B32: 46 | C32: 2013 | D32: 0.2486565616 | E32: 0.2607476718 | F32: 1.28347756 | G32: 5.350353335 | H32: 0.5652173913 | J32: 1.28 ILR; 57% tracking; | M32: 5.35 GHI | O32: 111.0734879 | P32: 138.1485984 | Q32: 142.2360248
A33: 2.739213 | B33: 51 | C33: 2014 | D33: 0.2423871294 | E33: 0.2518646885 | F33: 1.290748104 | G33: 5.186956464 | H33: 0.6078431373 | J33: 1.29 ILR; 61% tracking; | M33: 5.19 GHI | O33: 111.8005423 | P33: 121.8089113 | Q33: 146.4985994
A34: 2.773177 | B34: 85 | C34: 2015 | D34: 0.243293527 | E34: 0.2512320436 | F34: 1.306901797 | G34: 5.098551453 | H34: 0.6470588235 | J34: 1.31 ILR; 65% tracking; | M34: 5.10 GHI | O34: 113.4159116 | P34: 112.9684102 | Q34: 150.4201681
A35: 7.520245 | B35: 149 | C35: 2016 | D35: 0.2477907495 | E35: 0.2533693608 | F35: 1.309418538 | G35: 5.011450314 | H35: 0.7248322148 | J35: 1.31 ILR; 72% tracking; | M35: 5.01 GHI | O35: 113.6675857 | P35: 104.2582963 | Q35: 158.1975072
A36: 3.833478 | B36: 146 | C36: 2017 | D36: 0.2291426376 | E36: 0.2312234929 | F36: 1.337213623 | G36: 4.734244733 | H36: 0.7671232877 | J36: 1.34 ILR; 77% tracking; | M36: 4.73 GHI | O36: 116.4470943 | P36: 76.53773816 | Q36: 162.4266145
A37: 3.933415 | B37: 93 | C37: 2018 | D37: 0.229945816 | E37: 0.2315493881 | F37: 1.35761812 | G37: 4.702417221 | H37: 0.6559139785 | J37: 1.36 ILR; 66% tracking; | M37: 4.70 GHI | O37: 118.4875439 | P37: 73.35498699 | Q37: 151.3056836
A38: 4.512275 | B38: 96 | C38: 2019 | D38: 0.2349565205 | E38: 0.2335231849 | F38: 1.307788108 | G38: 4.815469933 | H38: 0.78125 | J38: 1.31 ILR; 78% tracking; | M38: 4.82 GHI | O38: =(F38-F37)*100+O37 -> 113.5045427 | P38: =(G38-G37)*100+P37 -> 84.66025817 | Q38: =(H38-H37)*100+Q37 -> 163.8392857
A39: 9.55767 | B39: 155 | C39: 2020 | D39: 0.2422481651 | E39: 0.2428292228 | F39: 1.349019792 | G39: 4.734893835 | H39: 0.8322580645 | J39: 1.35 ILR; 83% tracking; | M39: 4.73 GHI | O39: 117.6277112 | P39: 76.60264837 | Q39: 168.9400922
A40: 12.309536 | B40: 131 | C40: 2021 | D40: 0.2409516689 | E40: 0.2407549484 | F40: 1.333006622 | G40: 4.645778702 | H40: 0.8091603053 | J40: 1.33 ILR; 81% tracking; | M40: 4.65 GHI | O40: 116.0263941 | P40: 67.69113507 | Q40: 166.6303162
C41: 2022 | F41: 1.319188653 | G41: 4.586467973 | H41: 0.8095238095 | J41: 1.32 ILR; 81% tracking; | M41: 4.59 GHI | O41: 114.6445972 | P41: 61.76006212 | Q41: 166.6666667

Sheet CF for CSP Plants
A1: Capacity factor of CSP projects (solar portion only) over time
A24: Source: EIA, FERC, Berkeley Lab
R26: Average
R27: PV in | T27: SEGS I&II | V27: SEGS III-IX
B28: SEGS I | C28: SEGS II | D28: SEGS III | E28: SEGS IV | F28: SEGS V | G28: SEGS VI | H28: SEGS VII | I28: SEGS VIII | J28: SEGS IX | K28: Nevada Solar One | L28: Genesis | M28: Solana | N28: Ivanpah | O28: Mojave | P28: Crescent Dunes | R28: CA/NV/AZ | T28: Min | U28: Add | V28: Min | W28: Add
A29: 2008 | B29: 0.08831109263 | C29: 0.1064055859 | D29: 0.2297238999 | E29: 0.2308090734 | F29: 0.2307358408 | G29: 0.2184361176 | H29: 0.2120251106 | I29: 0.1752825385 | J29: 0.1945194776 | K29: 0.2182359261 | R29: 0.3083257438 | T29: 0.08831109263 | U29: 0.01809449328 | V29: 0.06887695259 | W29: 0.05552653488
A30: 2009 | B30: 0.07472205678 | C30: 0.07090943683 | D30: 0.2101891906 | E30: 0.2121652114 | F30: 0.1996715533 | G30: 0.2046640574 | H30: 0.1922700587 | I30: 0.1705505396 | J30: 0.1812941054 | K30: 0.2114494826 | R30: 0.2760882801 | T30: 0.07090943683 | U30: 0.003812619946 | V30: 0.09582848286 | W30: 0.04161467171
A31: 2010 | B31: 0.08808153001 | C31: 0.08686834094 | D31: 0.2003691687 | E31: 0.2105663703 | F31: 0.1813399557 | G31: 0.2073581213 | H31: 0.1918982387 | I31: 0.2022792134 | J31: 0.212612858 | K31: 0.2216445022 | R31: 0.272606796 | T31: 0.08686834094 | U31: 0.001213189068 | V31: 0.09325842566 | W31: 0.03127290236
A32: 2011 | B32: 0.09234994375 | C32: 0.09968797565 | D32: 0.2047784988 | E32: 0.1925418569 | F32: 0.2017777511 | G32: 0.1934996738 | H32: 0.1871428571 | I32: 0.1977778643 | J32: 0.2082113948 | K32: 0.2137502916 | R32: 0.2723102074 | T32: 0.09234994375 | U32: 0.007338031897 | V32: 0.0874548815 | W32: 0.02106853763
A33: 2012 | B33: 0.09623887965 | C33: 0.0953476017 | D33: 0.1893294826 | E33: 0.2077607878 | F33: 0.2093020004 | G33: 0.1824160812 | H33: 0.1761221702 | I33: 0.1879023328 | J33: 0.2124252256 | K33: 0.2142831027 | R33: 0.261339478 | T33: 0.0953476017 | U33: 0.0008912779494 | V33: 0.07988329053 | W33: 0.03630305544
A34: 2013 | B34: 0.07778274105 | C34: 0.08817732116 | D34: 0.1896712863 | E34: 0.1946547304 | F34: 0.1927888595 | G34: 0.1713600783 | H34: 0.1571526419 | I34: 0.1833696555 | J34: 0.1998780614 | K34: 0.1879645369 | R34: 0.2752315595 | T34: 0.07778274105 | U34: 0.01039458011 | V34: 0.06897532072 | W34: 0.04272541956
A35: 2014 | B35: 0.07099960294 | C35: 0.02896118721 | D35: 0.1816036476 | E35: 0.1813165906 | F35: 0.188102486 | G35: 0.1648630137 | H35: 0.1525179387 | I35: 0.1887777605 | J35: 0.1918366023 | K35: 0.1936922974 | L35: 0.2873115074 | M35: 0.2756013699 | N35: 0.1268985502 | R35: 0.2861874014 | T35: 0.02896118721 | U35: 0.04203841572 | V35: 0.08151833574 | W35: 0.03931866364
A36: 2015 | B36: 0.103914367 | C36: - | D36: 0.1738130524 | E36: 0.1772977917 | F36: 0.1757256536 | G36: 0.1530887149 | H36: 0.1231930855 | I36: 0.1792094749 | J36: 0.1892162204 | K36: 0.1760690598 | L36: 0.2837689498 | M36: 0.3282388128 | N36: 0.1951558204 | O36: 0.229953021 | R36: 0.2839862706 | T36: 0.103914367 | U36: 0 | V36: 0.01927871844 | W36: 0.06602313497
A37: 2016 | B37: - | C37: - | D37: 0.1550599708 | E37: 0.1632220731 | F37: 0.1669103314 | G37: 0.1331088993 | H37: 0.09914129586 | I37: 0.1822127525 | J37: 0.1848233876 | K37: 0.1942599684 | L37: 0.2835705978 | M37: 0.2931102004 | N37: 0.2024947095 | O37: 0.2845654135 | P37: 0.1321071152 | R37: 0.2840540078 | T37: 0 | U37: 0 | V37: 0.09914129586 | W37: 0.0856820917
A38: 2017 | B38: - | C38: - | D38: 0.1472502604 | E38: 0.144136025 | F38: 0.1466461054 | G38: 0.1186562296 | H38: 0.1063307241 | I38: 0.1602597032 | J38: 0.1702833126 | K38: 0.1966886645 | L38: 0.2866808219 | M38: 0.3305780822 | N38: 0.2079923816 | O38: 0.2712465753 | P38: 0.04361664591 | R38: 0.2859421771 | T38: 0 | U38: 0 | V38: 0.1063307241 | W38: 0.06395258851
A39: 2018 | B39: - | C39: - | D39: 0.1463623862 | E39: 0.1482215814 | F39: 0.1581584288 | G39: 0.1117482061 | H39: 0.09118069145 | I39: 0.1723627543 | J39: 0.1784506019 | K39: 0.1839466053 | L39: 0.284539726 | M39: 0.3543438356 | N39: 0.2305781646 | O39: 0.2763378995 | P39: 0.2032067248 | R39: 0.2873720282 | T39: 0 | U39: 0 | V39: 0.09118069145 | W39: 0.08726991045
A40: 2019 | B40: - | C40: - | D40: 0.1276469332 | E40: 0.1397400465 | F40: 0.1382680445 | G40: - | H40: - | I40: 0.1563537775 | J40: 0.1613415836 | K40: 0.1837166283 | L40: 0.2817547945 | M40: 0.3614803653 | N40: 0.2239141625 | O40: 0.2349242009 | P40: 0.05206309672 | R40: 0.2774223611 | T40: 0 | U40: 0 | V40: 0.1276469332 | W40: 0.03369465048
A41: 2020 | B41: - | C41: - | D41: - | E41: - | F41: - | G41: - | H41: - | I41: 0.1481994639 | J41: 0.1578864982 | K41: 0.1784365735 | L41: 0.2773811475 | M41: 0.3532349727 | N41: 0.2463536911 | O41: 0.2542868852 | P41: - | R41: 0.2714703613 | T41: 0 | U41: 0 | V41: 0.1481994639 | W41: 0.009687034277
A42: 2021 | B42: - | C42: - | D42: - | E42: - | F42: - | G42: - | H42: - | I42: - | J42: 0.1504942403 | K42: 0.1594990501 | L42: 0.2459392694 | M42: 0.3171547945 | N42: 0.2136843986 | O42: 0.2684826484 | P42: 0.07754358655 | R42: 0.2734254842 | T42: 0 | U42: 0 | V42: 0.1504942403 | W42: 0.002
A43: 2022 | B43: - | C43: - | D43: - | E43: - | F43: - | G43: - | H43: - | I43: - | J43: 0.1571969697 | K43: 0.1529113755 | L43: 0.2802315068 | M43: 0.3176474886 | N43: 0.2176310817 | O43: 0.2720100457 | P43: 0.1044686592 | R43: 0.271211071 | T43: 0 | U43: 0 | V43: 0.1571969697 | W43: 0.002

Sheet PPA Price by Project (PV only)
A1: Levelized PPA prices by region, contract size, and PPA execution date: full sample (PV only--no PV+battery included here) | L1: Levelized PPA prices by region, contract size, and PPA execution date: recent sample (PV only) | W1: Levelized PPA prices by consolidated region, contract size, and PPA execution date: full sample (PV only) | AH1: Levelized PPA prices by consolidated region, contract size, and PPA execution date: recent sample (PV only) | AT1: Levelized PPA prices by region, contract size, and PPA execution date (with non-Hawaii time trend) -- PV only
A22: Source: Berkeley Lab, FERC | L22: Source: Berkeley Lab, FERC | W22: Source: Berkeley Lab, FERC | AH22: Source: Berkeley Lab, FERC
A24: PPA Execution Date | B24: Capacity (MW) | C24: CAISO | D24: West (non-ISO) | E24: MISO | F24: SPP | G24: ERCOT | H24: PJM | I24: NYISO | J24: ISO-NE | K24: Southeast (non-ISO) | L24: Hawaii | N24: Hawaii | O24: West | P24: Central | Q24: Northeast | R24: Southeast | S24: Note: Hawaii = Hawaii; West = CAISO, West (non-ISO); Central = MISO, SPP, ERCOT; Northeast = PJM, NYISO, ISO-NE; Southeast = Southeast (non-ISO)
A25: 2006-09-01 | B25: 7 | D25: 264.8675955 | O25: 264.8675955
A26: 2007-06-25 | B26: 5 | C26: 239.0285974 | O26: 239.0285974 | U26: Non-HI Gen-Wgtd Avg | X26: LevelTen National Avg
A27: 2008-07-01 | B27: 550 | C27: 161.7250296 | O27: 161.7250296 | U27: 2022 $/MWh | X27: 2022 $/MWh
A28: 2008-07-23 | B28: 210 | C28: 139.6715043 | O28: 139.6715043 | T28: 2009 | U28: 176.2587832
A29: 2008-12-19 | B29: 10 | C29: 185.7245611 | O29: 185.7245611 | T29: =T28+1 -> 2010 | U29: 144.2087688
A30: 2009-02-23 | B30: 30 | D30: 143.3688825 | O30: 143.3688825 | T30: =T29+1 -> 2011 | U30: 116.8738515
A31: 2009-03-01 | B31: 30 | G31: 170.0329153 | P31: 170.0329153 | T31: 2012 | U31: 90.73693013
A32: 2009-03-05 | B32: 19 | D32: 161.8360452 | O32: 161.8360452 | T32: 2013 | U32: 71.53479714
A33: 2009-05-01 | B33: 12.6 | K33: 221.763921 | R33: 221.763921 | T33: 2014 | U33: 58.12296441
A34: 2009-05-08 | B34: 230 | C34: 156.0165249 | O34: 156.0165249 | T34: 2015 | U34: 47.58665074
A35: 2009-06-01 | B35: 20 | D35: 138.2613145 | O35: 138.2613145 | T35: 2016 | U35: 38.56951773
A36: 2009-06-01 | B36: 14 | G36: 213.4139304 | P36: 213.4139304 | T36: 2017 | U36: 34.47814797
A37: 2009-06-01 | B37: 10.08 | H37: 244.6303866 | Q37: 244.6303866 | T37: 2018 | U37: 26.02649074 | X37: 28
A38: 2009-06-22 | B38: 48 | C38: 183.2741009 | O38: 183.2741009 | T38: 2019 | U38: 21.78479227 | X38: 25.97042185
A39: 2009-08-17 | B39: 250 | C39: 154.4019653 | O39: 154.4019653 | T39: 2020 | U39: 23.00468312 | X39: 26.29884236
A40: 2009-09-08 | B40: 250 | C40: 221.3473031 | O40: 221.3473031 | T40: 2021 | U40: 23.96036908 | X40: 28.51282406
A41: 2009-11-20 | B41: 21 | C41: 128.7856841 | O41: 128.7856841 | T41: 2022 | U41: 25.49260517 | X41: 35.20090068
A42: 2009-12-23 | B42: 50 | F42: 141.7717969 | P42: 141.7717969
A43: 2009-12-24 | B43: 6 | C43: 271.9345366 | O43: 271.9345366
A44: 2009-12-24 | B44: 19 | C44: 271.9345366 | O44: 271.9345366
A45: 2009-12-24 | B45: 20 | C45: 271.9345366 | O45: 271.9345366
A46: 2010-01-26 | B46: 50 | C46: 175.4311954 | O46: 175.4311954
A47: 2010-01-26 | B47: 20 | C47: 175.4311954 | O47: 175.4311954
A48: 2010-01-26 | B48: 20 | C48: 179.0386053 | O48: 179.0386053
A49: 2010-02-02 | B49: 50 | D49: 147.6640984 | O49: 147.6640984
A50: 2010-02-24 | B50: 300 | C50: 151.3530122 | O50: 151.3530122
A51: 2010-03-06 | B51: 40 | C51: 144.264905 | O51: 144.264905
A52: 2010-04-19 | B52: 29 | D52: 112.5399657 | O52: 112.5399657
A53: 2010-04-21 | B53: 66 | C53: 150.983456 | O53: 150.983456
A54: 2010-04-29 | B54: 25 | D54: 141.4619921 | O54: 141.4619921
A55: 2010-05-10 | B55: 125 | C55: 142.6196657 | O55: 142.6196657
A56: 2010-05-20 | B56: 25.8 | C56: 170.5380081 | O56: 170.5380081
A57: 2010-06-01 | B57: 32 | I57: 341.446708 | Q57: 341.446708
A58: 2010-06-01 | B58: 20 | D58: 141.4619921 | O58: 141.4619921
A59: 2010-06-24 | B59: 23 | D59: 138.5757471 | O59: 138.5757471
A60: 2010-06-30 | B60: 12 | D60: 107.3048243 | O60: 107.3048243
A61: 2010-06-30 | B61: 10 | D61: 107.2893941 | O61: 107.2893941
A62: 2010-07-26 | B62: 20 | D62: 142.7070616 | O62: 142.7070616
A63: 2010-07-29 | B63: 150 | C63: 168.9329386 | O63: 168.9329386
A64: 2010-07-29 | B64: 45 | C64: 138.0362144 | O64: 138.0362144
A65: 2010-08-10 | B65: 30 | D65: 142.5055296 | O65: 142.5055296
A66: 2010-08-10 | B66: 5.5 | K66: 208.0515752 | R66: 208.0515752
A67: 2010-08-24 | B67: 23 | D67: 120.8196881 | O67: 120.8196881
A68: 2010-09-20 | B68: 62.5 | C68: 137.5866318 | O68: 137.5866318
A69: 2010-11-10 | B69: 130 | C69: 139.6533372 | O69: 139.6533372
A70: 2010-11-15 | B70: 14 | C70: 85.32691337 | O70: 85.32691337
A71: 2010-11-15 | B71: 20 | C71: 82.66647963 | O71: 82.66647963
A72: 2010-12-01 | B72: 9 | D72: 148.1270875 | O72: 148.1270875
A73: 2010-12-01 | B73: 7.65 | K73: 156.401212 | R73: 156.401212
A74: 2010-12-21 | B74: 60 | C74: 141.792384 | O74: 141.792384
A75: 2010-12-30 | B75: 309 | C75: 120.6422595 | O75: 120.6422595
A76: 2010-12-30 | B76: 20 | C76: 159.0014766 | O76: 159.0014766
A77: 2011-01-05 | B77: 270 | C77: 120.8859558 | O77: 120.8859558
A78: 2011-01-07 | B78: 110 | C78: 136.2688126 | O78: 136.2688126
A79: 2011-01-25 | B79: 26 | C79: 143.8931571 | O79: 143.8931571
A80: 2011-02-07 | B80: 250 | D80: 126.7419753 | O80: 126.7419753
A81: 2011-02-11 | B81: 30 | D81: 121.1063179 | O81: 121.1063179
A82: 2011-02-11 | B82: 20 | D82: 124.2085914 | O82: 124.2085914
A83: 2011-03-08 | B83: 150 | C83: 99.8125198 | O83: 99.8125198
A84: 2011-06-03 | B84: 110 | C84: 126.8901015 | O84: 126.8901015
A85: 2011-06-03 | B85: 127 | D85: 117.8692557 | O85: 117.8692557
A86: 2011-06-21 | B86: 150 | C86: 113.6977605 | O86: 113.6977605
A87: 2011-07-08 | B87: 23 | C87: 132.0588236 | O87: 132.0588236
A88: 2011-07-14 | B88: 20 | C88: 106.6713797 | O88: 106.6713797
A89: 2011-07-18 | B89: 6 | L89: 209.5733217 | N89: 209.5733217
A90: 2011-07-21 | B90: 150 | C90: 125.6347248 | O90: 125.6347248
A91: 2011-09-29 | B91: 250 | C91: 90.5438917 | O91: 90.5438917
A92: 2011-10-01 | B92: 9 | D92: 146.9842492 | O92: 146.9842492
A93: 2011-12-01 | B93: 20 | H93: 241.0093199 | Q93: 241.0093199
A94: 2011-12-08 | B94: 19 | D94: 114.7416856 | O94: 114.7416856
A95: 2011-12-20 | B95: 20 | D95: 89.64618807 | O95: 89.64618807
A96: 2011-12-20 | B96: 30 | K96: 121.1749425 | R96: 121.1749425
A97: 2011-12-20 | B97: 20 | D97: 88.02468415 | O97: 88.02468415
A98: 2012-01-01 | B98: 15 | D98: 90.75597795 | O98: 90.75597795
A99: 2012-01-01 | B99: 15 | D99: 81.42450175 | O99: 81.42450175
A100: 2012-02-03 | B100: 200 | C100: 93.74935355 | O100: 93.74935355
A101: 2012-02-27 | B101: 20 | C101: 85.41686664 | O101: 85.41686664
A102: 2012-07-03 | B102: 20 | C102: 96.46932807 | O102: 96.46932807
A103: 2012-07-03 | B103: 20 | C103: 102.4509887 | O103: 102.4509887
A104: 2012-08-03 | B104: 20 | C104: 98.48890616 | O104: 98.48890616
A105: 2012-08-13 | B105: 20 | C105: 99.9852471 | O105: 99.9852471
A106: 2012-08-16 | B106: 102 | C106: 97.82343367 | O106: 97.82343367
A107: 2012-08-29 | B107: 20 | C107: 94.11481107 | O107: 94.11481107
A108: 2012-08-31 | B108: 250 | D108: 97.16838862 | O108: 97.16838862
A109: 2012-09-17 | B109: 20 | C109: 92.35761429 | O109: 92.35761429
A110: 2012-09-17 | B110: 20.8 | C110: 110.0162242 | O110: 110.0162242
A111: 2012-10-17 | B111: 10 | C111: 94.60674749 | O111: 94.60674749
A112: 2012-10-25 | B112: 50 | D112: 59.26702301 | O112: 59.26702301
A113: 2012-11-01 | B113: 20 | C113: 75.20581919 | O113: 75.20581919
A114: 2012-11-15 | B114: 20 | C114: 85.95363074 | O114: 85.95363074
A115: 2012-12-12 | B115: 250 | D115: 83.74292592 | O115: 83.74292592
A116: 2012-12-13 | B116: 20 | D116: 90.09899712 | O116: 90.09899712
A117: 2013-02-04 | B117: 28.8 | E117: 107.0684696 | P117: 107.0684696
A118: 2013-02-28 | B118: 45 | C118: 84.9047077 | O118: 84.9047077
A119: 2013-03-22 | B119: 20 | C119: 95.6495183 | O119: 95.6495183
A120: 2013-03-22 | B120: 20 | C120: 94.18030554 | O120: 94.18030554
A121: 2013-03-25 | B121: 20 | C121: 80.36953859 | O121: 80.36953859
A122: 2013-04-10 | B122: 20 | C122: 92.29431195 | O122: 92.29431195
A123: 2013-04-16 | B123: 20 | C123: 67.66834801 | O123: 67.66834801
A124: 2013-06-01 | B124: 20 | C124: 60.94415414 | O124: 60.94415414
A125: 2013-06-03 | B125: 48 | D125: 69.23732467 | O125: 69.23732467
A126: 2013-06-03 | B126: 40 | D126: 70.16536355 | O126: 70.16536355
A127: 2013-06-19 | B127: 12 | L127: 161.1553268 | N127: 161.1553268
A128: 2013-07-03 | B128: 50 | D128: 59.33883627 | O128: 59.33883627
A129: 2013-07-10 | B129: 40 | C129: 60.74100696 | O129: 60.74100696
A130: 2013-07-10 | B130: 20 | C130: 65.15725002 | O130: 65.15725002
A131: 2013-07-17 | B131: 20 | C131: 89.05991788 | O131: 89.05991788
A132: 2013-07-17 | B132: 12 | C132: 89.05991788 | O132: 89.05991788
A133: 2013-09-06 | B133: 15 | C133: 69.94268917 | O133: 69.94268917
A134: 2013-09-19 | B134: 20 | J134: 103.5647137 | Q134: 103.5647137
A135: 2013-09-27 | B135: 20 | C135: 66.76554826 | O135: 66.76554826
A136: 2013-10-09 | B136: 20 | C136: 69.59067136 | O136: 69.59067136
A137: 2013-10-22 | B137: 20 | C137: 67.00921815 | O137: 67.00921815
A138: 2013-12-01 | B138: 7.314 | C138: 85.25779425 | O138: 85.25779425
A139: 2013-12-06 | B139: 20 | K139: 69.87705636 | R139: 69.87705636
A140: 2013-12-19 | B140: 150 | C140: 57.70041944 | O140: 57.70041944
A141: 2014-01-30 | B141: 7 | C141: 72.34787328 | O141: 72.34787328
A142: 2014-02-20 | B142: 10.416 | D142: 51.0949133 | O142: 51.0949133
A143: 2014-03-17 | B143: 20 | C143: 66.28714693 | O143: 66.28714693
A144: 2014-03-26 | B144: 26.66 | C144: 61.95431876 | O144: 61.95431876
A145: 2014-04-01 | B145: 10.3 | H145: 68.52273253 | Q145: 68.52273253
A146: 2014-05-01 | B146: 157.5 | G146: 45.56303102 | P146: 45.56303102
A147: 2014-05-27 | B147: 30 | D147: 65.43142787 | O147: 65.43142787
A148: 2014-06-01 | B148: 20 | K148: 68.43114949 | R148: 68.43114949
A149: 2014-06-12 | B149: 30 | C149: 59.67659385 | O149: 59.67659385
A150: 2014-07-18 | B150: 93.6 | C150: 58.41756747 | O150: 58.41756747
A151: 2014-07-23 | B151: 75 | C151: 59.80147822 | O151: 59.80147822
A152: 2014-07-24 | B152: 56 | D152: 59.33883627 | O152: 59.33883627
A153: 2014-07-24 | B153: 56 | D153: 59.92336536 | O153: 59.92336536
A154: 2014-07-31 | B154: 200 | C154: 46.93081255 | O154: 46.93081255
A155: 2014-08-19 | B155: 105 | D155: 62.65421222 | O155: 62.65421222
A156: 2014-08-25 | B156: 60 | D156: 63.60219848 | O156: 63.60219848
A157: 2014-09-03 | B157: 60 | C157: 52.15399141 | O157: 52.15399141
A158: 2014-09-04 | B158: 52 | D158: 48.63650888 | O158: 48.63650888
A159: 2014-09-04 | B159: 120 | D159: 58.15253565 | O159: 58.15253565
A160: 2014-10-03 | B160: 30 | C160: 62.38028136 | O160: 62.38028136
A161: 2014-10-08 | B161: 101.3 | K161: 54.19920863 | R161: 54.19920863
A162: 2014-10-08 | B162: 51 | K162: 54.98559595 | R162: 54.98559595
A163: 2014-10-08 | B163: 76.5 | K163: 54.92732734 | R163: 54.92732734
A164: 2014-10-08 | B164: 30 | K164: 58.96877989 | R164: 58.96877989
A165: 2014-10-08 | B165: 80 | K165: 61.97051521 | R165: 61.97051521
A166: 2014-10-08 | B166: 103 | K166: 59.23188008 | R166: 59.23188008
A167: 2014-10-20 | B167: 40 | C167: 59.29008741 | O167: 59.29008741
A168: 2014-10-21 | B168: 11.4 | C168: 64.32538288 | O168: 64.32538288
A169: 2014-10-21 | B169: 20 | C169: 67.02323854 | O169: 67.02323854
A170: 2014-10-22 | B170: 20 | C170: 58.64655947 | O170: 58.64655947
A171: 2014-10-22 | B171: 20 | C171: 58.64655947 | O171: 58.64655947
A172: 2014-10-22 | B172: 15 | C172: 58.64655947 | O172: 58.64655947
A173: 2014-10-22 | B173: 20 | C173: 58.64655947 | O173: 58.64655947
A174: 2014-10-22 | B174: 20 | C174: 51.53129348 | O174: 51.53129348
A175: 2014-10-22 | B175: 14.7 | C175: 71.77932533 | O175: 71.77932533
A176: 2014-10-22 | B176: 19.5 | C176: 69.61259853 | O176: 69.61259853
A177: 2014-10-22 | B177: 19.5 | C177: 69.62993235 | O177: 69.62993235
A178: 2014-10-24 | B178: 100 | E178: 68.50389722 | P178: 68.50389722
A179: 2014-11-07 | B179: 40 | K179: 71.95189032 | R179: 71.95189032
A180: 2014-11-07 | B180: 50 | K180: 71.95189032 | R180: 71.95189032
A181: 2014-11-13 | B181: 30 | D181: 63.83240367 | O181: 63.83240367
A182: 2014-11-18 | B182: 45 | D182: 51.13493018 | O182: 51.13493018
A183: 2014-12-09 | B183: 130 | C183: 63.49898877 | O183: 63.49898877
A184: 2015-02-01 | B184: 80 | K184: 60.18737787 | R184: 60.18737787
A185: 2015-03-02 | B185: 6 | K185: 105.4777115 | R185: 105.4777115
A186: 2015-03-02 | B186: 25 | F186: 43.83968202 | P186: 43.83968202
A187: 2015-03-03 | B187: 62.25 | E187: 64.35014321 | P187: 64.35014321
A188: 2015-03-04 | B188: 70 | F188: 38.66991638 | P188: 38.66991638
A189: 2015-03-04 | B189: 70 | F189: 39.16162589 | P189: 39.16162589
A190: 2015-03-05 | B190: 10.5 | C190: 87.3291428 | O190: 87.3291428
A191: 2015-03-23 | B191: 20 | C191: 70.85819152 | O191: 70.85819152
A192: 2015-03-25 | B192: 30 | D192: 49.63578509 | O192: 49.63578509
A193: 2015-04-03 | B193: 81 | E193: 48.96725117 | P193: 48.96725117
A194: 2015-04-03 | B194: 54 | C194: 46.99065916 | O194: 46.99065916
A195: 2015-04-14 | B195: 6.8 | C195: 65.36869306 | O195: 65.36869306
A196: 2015-04-17 | B196: 20 | C196: 55.29874516 | O196: 55.29874516
A197: 2015-04-30 | B197: 50.6 | K197: 46.22415658 | R197: 46.22415658
A198: 2015-04-30 | B198: 52 | K198: 61.15931928 | R198: 61.15931928
A199: 2015-04-30 | B199: 80 | K199: 20.23108861 | R199: 20.23108861
A200: 2015-05-27 | B200: 4.9 | K200: 70.32897114 | R200: 70.32897114
A201: 2015-06-01 | B201: 3.6 | F201: 76.99760298 | P201: 76.99760298
A202: 2015-06-05 | B202: 100 | D202: 43.6645714 | O202: 43.6645714
A203: 2015-06-09 | B203: 80 | H203: 70.40299503 | Q203: 70.40299503
A204: 2015-06-19 | B204: 100 | D204: 45.50567439 | O204: 45.50567439
A205: 2015-06-23 | B205: 46 | D205: 50.18413906 | O205: 50.18413906
A206: 2015-06-25 | B206: 100.815 | C206: 57.12487961 | O206: 57.12487961
A207: 2015-06-30 | B207: 7.06 | K207: 63.29354092 | R207: 63.29354092
A208: 2015-07-01 | B208: 13 | K208: 66.44608691 | R208: 66.44608691
A209: 2015-07-01 | B209: 20 | E209: 67.84640239 | P209: 67.84640239
A210: 2015-07-01 | B210: 27.6 | L210: 135.4366339 | N210: 135.4366339
A211: 2015-07-15 | B211: 125 | C211: 54.28575892 | O211: 54.28575892
A212: 2015-07-16 | B212: 150 | C212: 50.68963234 | O212: 50.68963234
A213: 2015-07-16 | B213: 180 | C213: 51.10031268 | O213: 51.10031268
A214: 2015-07-21 | B214: 20 | K214: 46.93500334 | R214: 46.93500334
A215: 2015-08-05 | B215: 30 | D215: 47.08029286 | O215: 47.08029286
A216: 2015-08-09 | B216: 30 | D216: 42.32921097 | O216: 42.32921097
A217: 2015-08-12 | B217: 10 | C217: 52.19814742 | O217: 52.19814742
A218: 2015-08-28 | B218: 150 | D218: 52.82544051 | O218: 52.82544051
A219: 2015-09-03 | B219: 10.88 | D219: 77.07568253 | O219: 77.07568253
A220: 2015-09-23 | B220: 52 | E220: 44.39871972 | P220: 44.39871972
A221: 2015-09-23 | B221: 52 | K221: 48.57867359 | R221: 48.57867359
... 225 more rows

Sheet PPA Price for CSP Plants
A1: Levelized PPA prices for CSP and PV plants in AZ, CA, and NV (by PPA capacity and execution date)
A22: Source: Berkeley Lab, FERC
A24: PV plants in AZ, CA, and NV (for comparison) | E24: CSP plants in AZ, CA, and NV
A25: PPA Execution Date | B25: Capacity (MW) | C25: 2022 $/MWh | E25: PPA Execution Date | F25: Capacity (MW) | G25: 2022 $/MWh
A26: 2007-06-25 | B26: 5 | C26: 239.0285974 | E26: 2009-04-28 | F26: 377 | G26: 167.6474768 | H26: CSP tower, no storage
A27: 2008-07-01 | B27: 550 | C27: 161.7250296
A28: 2008-07-23 | B28: 210 | C28: 139.6715043 | E28: 2009-11-04 | F28: 110 | G28: 145.2012793 | H28: CSP tower, 10 hours storage
A29: 2008-12-19 | B29: 10 | C29: 185.7245611
A30: 2009-05-08 | B30: 230 | C30: 156.0165249 | E30: 2009-09-28 | F30: 250 | G30: 209.0605555 | H30: CSP trough, no storage
A31: 2009-06-01 | B31: 20 | C31: 138.2613145 | E31: 2011-07-15 | F31: 250 | G31: 215.3467053 | H31: CSP trough, no storage
A32: 2009-06-22 | B32: 48 | C32: 183.2741009
A33: 2009-08-17 | B33: 250 | C33: 154.4019653 | E33: 2010-12-15 | F33: 250 | G33: 143.3492771 | H33: CSP trough, 6 hours storage
A34: 2009-09-08 | B34: 250 | C34: 221.3473031
A35: 2009-11-20 | B35: 21 | C35: 128.7856841
A36: 2009-12-24 | B36: 6 | C36: 271.9345366
A37: 2009-12-24 | B37: 19 | C37: 271.9345366
A38: 2009-12-24 | B38: 20 | C38: 271.9345366
A39: 2010-01-26 | B39: 50 | C39: 175.4311954
A40: 2010-01-26 | B40: 20 | C40: 175.4311954
A41: 2010-01-26 | B41: 20 | C41: 179.0386053
A42: 2010-02-02 | B42: 50 | C42: 147.6640984
A43: 2010-02-24 | B43: 300 | C43: 151.3530122
A44: 2010-03-06 | B44: 40 | C44: 144.264905
A45: 2010-04-19 | B45: 29 | C45: 112.5399657
A46: 2010-04-21 | B46: 66 | C46: 150.983456
A47: 2010-04-29 | B47: 25 | C47: 141.4619921
A48: 2010-05-10 | B48: 125 | C48: 142.6196657
A49: 2010-05-20 | B49: 25.8 | C49: 170.5380081
A50: 2010-06-01 | B50: 20 | C50: 141.4619921
A51: 2010-07-26 | B51: 20 | C51: 142.7070616
A52: 2010-07-29 | B52: 150 | C52: 168.9329386
A53: 2010-07-29 | B53: 45 | C53: 138.0362144
A54: 2010-08-24 | B54: 23 | C54: 120.8196881
A55: 2010-09-20 | B55: 62.5 | C55: 137.5866318
A56: 2010-11-10 | B56: 130 | C56: 139.6533372
A57: 2010-11-15 | B57: 14 | C57: 85.32691337
A58: 2010-11-15 | B58: 20 | C58: 82.66647963
A59: 2010-12-01 | B59: 9 | C59: 148.1270875
A60: 2010-12-21 | B60: 60 | C60: 141.792384
A61: 2010-12-30 | B61: 309 | C61: 120.6422595
A62: 2010-12-30 | B62: 20 | C62: 159.0014766
A63: 2011-01-05 | B63: 270 | C63: 120.8859558
A64: 2011-01-07 | B64: 110 | C64: 136.2688126
A65: 2011-01-25 | B65: 26 | C65: 143.8931571
A66: 2011-02-07 | B66: 250 | C66: 126.7419753
A67: 2011-02-11 | B67: 30 | C67: 121.1063179
A68: 2011-02-11 | B68: 20 | C68: 124.2085914
A69: 2011-03-08 | B69: 150 | C69: 99.8125198
A70: 2011-06-03 | B70: 110 | C70: 126.8901015
A71: 2011-06-03 | B71: 127 | C71: 117.8692557
A72: 2011-06-21 | B72: 150 | C72: 113.6977605
A73: 2011-07-08 | B73: 23 | C73: 132.0588236
A74: 2011-07-14 | B74: 20 | C74: 106.6713797
A75: 2011-07-21 | B75: 150 | C75: 125.6347248
A76: 2011-09-29 | B76: 250 | C76: 90.5438917
A77: 2011-10-01 | B77: 9 | C77: 146.9842492
A78: 2011-12-08 | B78: 19 | C78: 114.7416856
A79: 2011-12-20 | B79: 20 | C79: 89.64618807
A80: 2011-12-20 | B80: 20 | C80: 88.02468415
A81: 2012-01-01 | B81: 15 | C81: 90.75597795
A82: 2012-01-01 | B82: 15 | C82: 81.42450175
A83: 2012-02-03 | B83: 200 | C83: 93.74935355
A84: 2012-02-27 | B84: 20 | C84: 85.41686664
A85: 2012-07-03 | B85: 20 | C85: 96.46932807
A86: 2012-07-03 | B86: 20 | C86: 102.4509887
A87: 2012-08-03 | B87: 20 | C87: 98.48890616
A88: 2012-08-13 | B88: 20 | C88: 99.9852471
A89: 2012-08-16 | B89: 102 | C89: 97.82343367
A90: 2012-08-29 | B90: 20 | C90: 94.11481107
A91: 2012-08-31 | B91: 250 | C91: 97.16838862
A92: 2012-09-17 | B92: 20 | C92: 92.35761429
A93: 2012-09-17 | B93: 20.8 | C93: 110.0162242
A94: 2012-10-17 | B94: 10 | C94: 94.60674749
A95: 2012-11-01 | B95: 20 | C95: 75.20581919
A96: 2012-11-15 | B96: 20 | C96: 85.95363074
A97: 2012-12-12 | B97: 250 | C97: 83.74292592
A98: 2012-12-13 | B98: 20 | C98: 90.09899712
A99: 2013-02-28 | B99: 45 | C99: 84.9047077
A100: 2013-03-22 | B100: 20 | C100: 95.6495183
A101: 2013-03-22 | B101: 20 | C101: 94.18030554
A102: 2013-03-25 | B102: 20 | C102: 80.36953859
A103: 2013-04-10 | B103: 20 | C103: 92.29431195
A104: 2013-04-16 | B104: 20 | C104: 67.66834801
A105: 2013-06-01 | B105: 20 | C105: 60.94415414
A106: 2013-06-03 | B106: 48 | C106: 69.23732467
A107: 2013-06-03 | B107: 40 | C107: 70.16536355
A108: 2013-07-03 | B108: 50 | C108: 59.33883627
A109: 2013-07-10 | B109: 40 | C109: 60.74100696
A110: 2013-07-10 | B110: 20 | C110: 65.15725002
A111: 2013-07-17 | B111: 20 | C111: 89.05991788
A112: 2013-07-17 | B112: 12 | C112: 89.05991788
A113: 2013-09-06 | B113: 15 | C113: 69.94268917
A114: 2013-09-27 | B114: 20 | C114: 66.76554826
A115: 2013-10-09 | B115: 20 | C115: 69.59067136
A116: 2013-10-22 | B116: 20 | C116: 67.00921815
A117: 2013-12-01 | B117: 7.314 | C117: 85.25779425
A118: 2013-12-19 | B118: 150 | C118: 57.70041944
A119: 2014-01-30 | B119: 7 | C119: 72.34787328
A120: 2014-03-17 | B120: 20 | C120: 66.28714693
A121: 2014-03-26 | B121: 26.66 | C121: 61.95431876
A122: 2014-05-27 | B122: 30 | C122: 65.43142787
A123: 2014-06-12 | B123: 30 | C123: 59.67659385
A124: 2014-07-18 | B124: 93.6 | C124: 58.41756747
A125: 2014-07-23 | B125: 75 | C125: 59.80147822
A126: 2014-07-24 | B126: 56 | C126: 59.33883627
A127: 2014-07-24 | B127: 56 | C127: 59.92336536
A128: 2014-07-31 | B128: 200 | C128: 46.93081255
A129: 2014-08-19 | B129: 105 | C129: 62.65421222
A130: 2014-08-25 | B130: 60 | C130: 63.60219848
A131: 2014-09-03 | B131: 60 | C131: 52.15399141
A132: 2014-10-03 | B132: 30 | C132: 62.38028136
A133: 2014-10-20 | B133: 40 | C133: 59.29008741
A134: 2014-10-21 | B134: 11.4 | C134: 64.32538288
A135: 2014-10-21 | B135: 20 | C135: 67.02323854
A136: 2014-10-22 | B136: 20 | C136: 58.64655947
A137: 2014-10-22 | B137: 20 | C137: 58.64655947
A138: 2014-10-22 | B138: 15 | C138: 58.64655947
A139: 2014-10-22 | B139: 20 | C139: 58.64655947
A140: 2014-10-22 | B140: 20 | C140: 51.53129348
A141: 2014-10-22 | B141: 14.7 | C141: 71.77932533
A142: 2014-10-22 | B142: 19.5 | C142: 69.61259853
A143: 2014-10-22 | B143: 19.5 | C143: 69.62993235
A144: 2014-11-13 | B144: 30 | C144: 63.83240367
A145: 2014-11-18 | B145: 45 | C145: 51.13493018
A146: 2014-12-09 | B146: 130 | C146: 63.49898877
A147: 2015-03-05 | B147: 10.5 | C147: 87.3291428
A148: 2015-03-23 | B148: 20 | C148: 70.85819152
A149: 2015-04-03 | B149: 54 | C149: 46.99065916
A150: 2015-04-14 | B150: 6.8 | C150: 65.36869306
A151: 2015-04-17 | B151: 20 | C151: 55.29874516
A152: 2015-06-05 | B152: 100 | C152: 43.6645714
A153: 2015-06-19 | B153: 100 | C153: 45.50567439
A154: 2015-06-23 | B154: 46 | C154: 50.18413906
A155: 2015-06-25 | B155: 100.815 | C155: 57.12487961
A156: 2015-07-15 | B156: 125 | C156: 54.28575892
A157: 2015-07-16 | B157: 150 | C157: 50.68963234
A158: 2015-07-16 | B158: 180 | C158: 51.10031268
A159: 2015-08-05 | B159: 30 | C159: 47.08029286
A160: 2015-08-12 | B160: 10 | C160: 52.19814742
A161: 2015-08-28 | B161: 150 | C161: 52.82544051
A162: 2015-09-03 | B162: 10.88 | C162: 77.07568253
A163: 2015-10-08 | B163: 55 | C163: 51.02110245
A164: 2015-10-09 | B164: 154.272 | C164: 43.50254212
A165: 2015-10-09 | B165: 103.5 | C165: 39.5401472
A166: 2015-10-15 | B166: 125 | C166: 44.64124061
A167: 2015-11-05 | B167: 85 | C167: 53.62199214
A168: 2015-11-06 | B168: 54 | C168: 46.41733786
A169: 2015-11-20 | B169: 86 | C169: 45.29042657
A170: 2015-11-30 | B170: 50 | C170: 47.7144849
A171: 2015-12-17 | B171: 90 | C171: 42.37100683
A172: 2015-12-17 | B172: 20 | C172: 69.14527349
A173: 2015-12-18 | B173: 20 | C173: 54.47622783
A174: 2015-12-18 | B174: 20 | C174: 54.46007462
A175: 2015-12-18 | B175: 20 | C175: 54.5481573
A176: 2015-12-18 | B176: 20 | C176: 52.66881405
A177: 2016-01-06 | B177: 26 | C177: 29.28452499
A178: 2016-05-19 | B178: 100 | C178: 35.35084301
A179: 2016-08-02 | B179: 128 | C179: 31.86029863
A180: 2016-08-04 | B180: 20 | C180: 42.22619063
A181: 2016-09-15 | B181: 100 | C181: 43.12742498
A182: 2016-09-23 | B182: 40 | C182: 37.10079162
A183: 2016-09-23 | B183: 20 | C183: 37.10079162
A184: 2016-09-23 | B184: 50 | C184: 37.10079162
A185: 2016-09-23 | B185: 50 | C185: 37.10079162
A186: 2016-11-15 | B186: 105 | C186: 39.77409776
A187: 2016-11-18 | B187: 80 | C187: 34.76607361
A188: 2016-11-18 | B188: 125 | C188: 29.14074743
A189: 2016-12-15 | B189: 200 | C189: 32.39713915
A190: 2017-01-17 | B190: 60 | C190: 40.49378787
A191: 2017-03-23 | B191: 17 | C191: 33.1105463
A192: 2017-05-22 | B192: 130 | C192: 21.80202125
A193: 2017-07-17 | B193: 40 | C193: 27.38246531
A194: 2017-08-08 | B194: 252.32 | C194: 49.40504128
A195: 2017-08-25 | B195: 100 | C195: 28.17928538
A196: 2017-09-23 | B196: 200 | C196: 30.34254611
A197: 2017-09-26 | B197: 62.5 | C197: 29.0523819
A198: 2017-09-26 | B198: 50 | C198: 28.52600912
A199: 2017-10-06 | B199: 25 | C199: 27.99801258
A200: 2017-10-06 | B200: 25 | C200: 27.99801258
A201: 2017-10-30 | B201: 50 | C201: 30.52168024
A202: 2017-11-08 | B202: 5 | C202: 30.45398155
A203: 2017-11-14 | B203: 15 | C203: 30.45398155
A204: 2017-12-08 | B204: 45 | C204: 19.68804022
A205: 2018-01-09 | B205: 30 | C205: 28.52628573
A206: 2018-01-26 | B206: 100 | C206: 24.61803984
A207: 2018-02-21 | B207: 106.688 | C207: 46.79115526
A208: 2018-05-07 | B208: 100 | C208: 31.01915494
A209: 2018-05-30 | B209: 300 | C209: 18.48356979
A210: 2018-05-30 | B210: 250 | C210: 21.70316426
A211: 2018-05-30 | B211: 50 | C211: 24.46960807
A212: 2018-05-30 | B212: 101 | C212: 21.11098782
A213: 2018-05-30 | B213: 200 | C213: 21.11895423
A214: 2018-05-30 | B214: 100 | C214: 23.86736585
A215: 2018-06-08 | B215: 30 | C215: 21.84703376
A216: 2018-09-09 | B216: 100 | C216: 27.64843542
A217: 2018-09-11 | B217: 100 | C217: 20.04886924
A218: 2018-09-20 | B218: 100 | C218: 21.67799336
A219: 2018-10-18 | B219: 13 | C219: 36.83949023
A220: 2018-10-25 | B220: 128 | C220: 24.40033862
A221: 2019-03-21 | B221: 160 | C221: 27.02568424
... 29 more rows

Sheet Annual Average PPA Price
A1: Generation-weighted average levelized wind PPA prices by PPA execution date and region | J1: Generation-weighted average levelized wind PPA prices by PPA execution date and consolidated region
A22: Source: Berkeley Lab, FERC
A23: Note: Averages shown only if there are two or more PPAs in a given region-year.
A25: PPA | B25: Lower 48 | C25: Hawaii | D25: CAISO | E25: West (non-ISO) | F25: MISO | G25: SPP | H25: ERCOT | I25: PJM | J25: NYISO | K25: ISO-NE | L25: Southeast (non-ISO) | N25: PPA | O25: Nationwide | Q25: Hawaii | S25: CAISO | U25: West (non-ISO) | W25: MISO | Y25: SPP | AA25: ERCOT | AC25: PJM | AE25: NYISO | AG25: ISO-NE | AI25: Southeast (non-ISO)
A26: Execution | B26: Average PPA | C26: Average PPA | D26: Average PPA | E26: Average PPA | F26: Average PPA | G26: Average PPA | H26: Average PPA | I26: Average PPA | J26: Average PPA | K26: Average PPA | L26: Average PPA | N26: Execution | O26: Sample | Q26: Sample | S26: Sample | U26: Sample | W26: Sample | Y26: Sample | AA26: Sample | AC26: Sample | AE26: Sample | AG26: Sample | AI26: Sample
A27: Year | B27: 2022 $/MWh | C27: 2022 $/MWh | D27: 2022 $/MWh | E27: 2022 $/MWh | F27: 2022 $/MWh | G27: 2022 $/MWh | H27: 2022 $/MWh | I27: 2022 $/MWh | J27: 2022 $/MWh | K27: 2022 $/MWh | L27: 2022 $/MWh | N27: Year | O27: MW | P27: Plants | Q27: MW | R27: Plants | S27: MW | T27: Plants | U27: MW | V27: Plants | W27: MW | X27: Plants | Y27: MW | Z27: Plants | AA27: MW | AB27: Plants | AC27: MW | AD27: Plants | AE27: MW | AF27: Plants | AG27: MW | AH27: Plants | AI27: MW | AJ27: Plants
A28: 2006 | N28: 2006 | O28: 7 | P28: 1 | Q28: 0 | R28: 0 | S28: 0 | T28: 0 | U28: 7 | V28: 1 | W28: 0 | X28: 0 | Y28: 0 | Z28: 0 | AA28: 0 | AB28: 0 | AC28: 0 | AD28: 0 | AE28: 0 | AF28: 0 | AG28: 0 | AH28: 0 | AI28: 0 | AJ28: 0
A29: 2007 | N29: 2007 | O29: 5 | P29: 1 | Q29: 0 | R29: 0 | S29: 5 | T29: 1 | U29: 0 | V29: 0 | W29: 0 | X29: 0 | Y29: 0 | Z29: 0 | AA29: 0 | AB29: 0 | AC29: 0 | AD29: 0 | AE29: 0 | AF29: 0 | AG29: 0 | AH29: 0 | AI29: 0 | AJ29: 0
A30: 2008 | B30: 155.4418661 | D30: 155.4418661 | N30: 2008 | O30: 770 | P30: 3 | Q30: 0 | R30: 0 | S30: 770 | T30: 3 | U30: 0 | V30: 0 | W30: 0 | X30: 0 | Y30: 0 | Z30: 0 | AA30: 0 | AB30: 0 | AC30: 0 | AD30: 0 | AE30: 0 | AF30: 0 | AG30: 0 | AH30: 0 | AI30: 0 | AJ30: 0
A31: 2009 | B31: 176.2587832 | D31: 179.0496115 | E31: 147.7074039 | H31: 182.6772671 | N31: 2009 | O31: 1030 | P31: 16 | Q31: 0 | R31: 0 | S31: 844 | T31: 8 | U31: 69 | V31: 3 | W31: 0 | X31: 0 | Y31: 50 | Z31: 1 | AA31: 44 | AB31: 2 | AC31: 10.08 | AD31: 1 | AE31: 0 | AF31: 0 | AG31: 0 | AH31: 0 | AI31: 12.6 | AJ31: 1
A32: 2010 | B32: 144.2087688 | D32: 142.7596053 | E32: 134.4788271 | H32: =NA() ->  | L32: 178.07618 | N32: 2010 | O32: 1753 | P32: 31 | Q32: 0 | R32: 0 | S32: 1457.3 | T32: 17 | U32: 251 | V32: 11 | W32: 0 | X32: 0 | Y32: 0 | Z32: 0 | AA32: 0 | AB32: 0 | AC32: 0 | AD32: 0 | AE32: 32 | AF32: 1 | AG32: 0 | AH32: 0 | AI32: 13.15 | AJ32: 2
A33: 2011 | B33: 116.8738515 | D33: 113.6853559 | E33: 121.2256867 | H33: =NA() ->  | N33: 2011 | O33: 1810 | P33: 21 | Q33: 6 | R33: 1 | S33: 1259 | T33: 10 | U33: 495 | V33: 8 | W33: 0 | X33: 0 | Y33: 0 | Z33: 0 | AA33: 0 | AB33: 0 | AC33: 20 | AD33: 1 | AE33: 0 | AF33: 0 | AG33: 0 | AH33: 0 | AI33: 30 | AJ33: 1
A34: 2012 | B34: 90.73693013 | D34: 94.66729398 | E34: 87.22914699 | H34: =NA() ->  | N34: 2012 | O34: 1113 | P34: 19 | Q34: 0 | R34: 0 | S34: 512.8 | T34: 13 | U34: 600 | V34: 6 | W34: 0 | X34: 0 | Y34: 0 | Z34: 0 | AA34: 0 | AB34: 0 | AC34: 0 | AD34: 0 | AE34: 0 | AF34: 0 | AG34: 0 | AH34: 0 | AI34: 0 | AJ34: 0
A35: 2013 | B35: 71.53479714 | D35: 70.70581218 | E35: 65.91991261 | H35: =NA() ->  | N35: 2013 | O35: 708 | P35: 24 | Q35: 12 | R35: 1 | S35: 489.314 | T35: 17 | U35: 138 | V35: 3 | W35: 28.8 | X35: 1 | Y35: 0 | Z35: 0 | AA35: 0 | AB35: 0 | AC35: 0 | AD35: 0 | AE35: 0 | AF35: 0 | AG35: 20 | AH35: 1 | AI35: 20 | AJ35: 1
A36: 2014 | B36: 58.12296441 | D36: 57.91888474 | E36: 58.89654097 | H36: =NA() ->  | L36: 59.98294578 | N36: 2014 | O36: 2276 | P36: 43 | Q36: 0 | R36: 0 | S36: 892.36 | T36: 21 | U36: 564.416 | V36: 10 | W36: 100 | X36: 1 | Y36: 0 | Z36: 0 | AA36: 157.5 | AB36: 1 | AC36: 10.3 | AD36: 1 | AE36: 0 | AF36: 0 | AG36: 0 | AH36: 0 | AI36: 551.8 | AJ36: 9
A37: 2015 | B37: 47.58665074 | D37: 50.59769834 | E37: 44.21499186 | F37: 53.76787524 | G37: 40.26970656 | H37: 36.82283154 | L37: 50.2324845 | N37: 2015 | O37: 3613 | P37: 60 | Q37: 27.6 | R37: 1 | S37: 1353.887 | T37: 21 | U37: 865.48 | V37: 14 | W37: 215.25 | X37: 4 | Y37: 168.6 | Z37: 4 | AA37: 318.5 | AB37: 3 | AC37: 80 | AD37: 1 | AE37: 0 | AF37: 0 | AG37: 0 | AH37: 0 | AI37: 583.56 | AJ37: 12
A38: 2016 | B38: 38.56951773 | D38: 36.0502159 | E38: 34.08757871 | F38: =NA() ->  | H38: =NA() ->  | I38: 46.51851746 | L38: 48.1444016 | N38: 2016 | O38: 1451 | P38: 22 | Q38: 0 | R38: 0 | S38: 744 | T38: 11 | U38: 323.8 | V38: 4 | W38: 0 | X38: 0 | Y38: 0 | Z38: 0 | AA38: 150 | AB38: 1 | AC38: 180 | AD38: 3 | AE38: 24.9 | AF38: 1 | AG38: 0 | AH38: 0 | AI38: 28.56 | AJ38: 2
A39: 2017 | B39: 34.47814797 | C39: 95.72039286 | D39: 35.25947359 | E39: 29.90215628 | F39: 31.70867355 | H39: 22.35322452 | I39: 84.93710992 | K39: 76.31042579 | L39: 28.93189837 | N39: 2017 | O39: 2773 | P39: 45 | Q39: 109.6 | R39: 3 | S39: 846.82 | T39: 11 | U39: 336 | V39: 6 | W39: 299 | X39: 3 | Y39: 0 | Z39: 0 | AA39: 170 | AB39: 2 | AC39: 16.8 | AD39: 2 | AE39: 0 | AF39: 0 | AG39: 255.47 | AH39: 8 | AI39: 739.6 | AJ39: 10
A40: 2018 | B40: 26.02649074 | D40: 32.52578266 | E40: 21.98617941 | F40: 36.12742437 | I40: 31.96742162 | L40: 26.77702205 | N40: 2018 | O40: 4013 | P40: 50 | Q40: 0 | R40: 0 | S40: 434.688 | T40: 4 | U40: 2058 | V40: 22 | W40: 299.5 | X40: 8 | Y40: 5.681481481 | Z40: 1 | AA40: 144 | AB40: 1 | AC40: 236 | AD40: 3 | AE40: 6.3 | AF40: 1 | AG40: 0 | AH40: 0 | AI40: 829 | AJ40: 10
A41: 2019 | B41: 21.78479227 | D41: 20.06304648 | E41: 18.48962893 | F41: 38.34280611 | I41: 30.41786146 | L41: 21.08577418 | N41: 2019 | O41: 3716 | P41: 41 | Q41: 0 | R41: 0 | S41: 972.33 | T41: 9 | U41: 1472 | V41: 13 | W41: 269.3076923 | X41: 5 | Y41: 4.6 | Z41: 1 | AA41: 0 | AB41: 0 | AC41: 365.5 | AD41: 6 | AE41: 0 | AF41: 0 | AG41: 50 | AH41: 1 | AI41: 582 | AJ41: 6
A42: 2020 | B42: 23.00468312 | D42: 22.31671148 | E42: 20.17438961 | F42: =NA() ->  | I42: 29.56628769 | L42: 20.51181771 | N42: 2020 | O42: 2223 | P42: 22 | Q42: 0 | R42: 0 | S42: 783 | T42: 8 | U42: 1027.86 | V42: 7 | W42: 79 | X42: 1 | Y42: 0 | Z42: 0 | AA42: 0 | AB42: 0 | AC42: 172.5 | AD42: 2 | AE42: 22.9 | AF42: 1 | AG42: 50 | AH42: 1 | AI42: 87.5 | AJ42: 2
A43: 2021 | B43: 23.96036908 | D43: 22.26293628 | E43: 18.9076982 | F43: 36.75391024 | J43: 40.71716713 | N43: 2021 | O43: 2925 | P43: 19 | Q43: 0 | R43: 0 | S43: 280 | T43: 4 | U43: 1770 | V43: 9 | W43: 255 | X43: 3 | Y43: 30 | Z43: 1 | AA43: 0 | AB43: 0 | AC43: 0 | AD43: 0 | AE43: 590 | AF43: 2 | AG43: 0 | AH43: 0 | AI43: 0 | AJ43: 0
A44: 2022 | B44: 25.49260517 | E44: 25.49260517 | N44: 2022 | O44: 236 | P44: 3 | Q44: 0 | R44: 0 | S44: 0 | T44: 0 | U44: 236 | V44: 3 | W44: 0 | X44: 0 | Y44: 0 | Z44: 0 | AA44: 0 | AB44: 0 | AC44: 0 | AD44: 0 | AE44: 0 | AF44: 0 | AG44: 0 | AH44: 0 | AI44: 0 | AJ44: 0
A45: 2023(P) | N45: 2023(P) | O45: 139 | P45: 1 | Q45: 0 | R45: 0 | S45: 0 | T45: 0 | U45: 0 | V45: 0 | W45: 0 | X45: 0 | Y45: 0 | Z45: 0 | AA45: 0 | AB45: 0 | AC45: 0 | AD45: 0 | AE45: 0 | AF45: 0 | AG45: 0 | AH45: 0 | AI45: 138.8 | AJ45: 1
A47: PPA | B47: Lower 48 | C47: Hawaii | D47: West | E47: Central | F47: Northeast | G47: Southeast | H47: LevelTen | N47: PPA | O47: Nationwide | Q47: Hawaii | S47: West | U47: Central | W47: Northeast | Y47: Southeast
A48: Execution | B48: Average PPA | C48: Average PPA | D48: Average PPA | E48: Average PPA | F48: Average PPA | G48: Average PPA | H48: Price Data | N48: Execution | O48: Sample | Q48: Sample | S48: Sample | U48: Sample | W48: Sample | Y48: Sample
A49: Year | B49: 2022 $/MWh | C49: 2022 $/MWh | D49: 2022 $/MWh | E49: 2022 $/MWh | F49: 2022 $/MWh | G49: 2022 $/MWh | H49: 2022 $/MWh | N49: Year | O49: MW | P49: Plants | Q49: MW | R49: Plants | S49: MW | T49: Plants | U49: MW | V49: Plants | W49: MW | X49: Plants | Y49: MW | Z49: Plants
A50: 2006 | N50: 2006 | O50: =Q50+S50+U50+W50+Y50 -> 7 | P50: =R50+T50+V50+X50+Z50 -> 1 | Q50: =Q28 -> 0 | R50: 0 | S50: =S28+U28 -> 7 | T50: =T28+V28 -> 1 | U50: =W28+Y28+AA28 -> 0 | V50: =X28+Z28+AB28 -> 0 | W50: =AC28+AE28+AG28 -> 0 | X50: =AD28+AF28+AH28 -> 0 | Y50: =AI28 -> 0 | Z50: =AJ28 -> 0
A51: 2007 | N51: 2007 | O51: =Q51+S51+U51+W51+Y51 -> 5 | P51: 1 | Q51: 0 | R51: 0 | S51: 5 | T51: 1 | U51: 0 | V51: 0 | W51: 0 | X51: 0 | Y51: 0 | Z51: 0
A52: 2008 | B52: 155.4418661 | D52: 155.4418661 | N52: 2008 | O52: 770 | P52: 3 | Q52: 0 | R52: 0 | S52: 770 | T52: 3 | U52: 0 | V52: 0 | W52: 0 | X52: 0 | Y52: 0 | Z52: 0
A53: 2009 | B53: 176.2587832 | D53: 176.7508526 | E53: 159.958749 | N53: 2009 | O53: 1029.68 | P53: 16 | Q53: 0 | R53: 0 | S53: 913 | T53: 11 | U53: 94 | V53: 3 | W53: 10.08 | X53: 1 | Y53: 12.6 | Z53: 1
A54: 2010 | B54: 144.2087688 | D54: 141.5643147 | E54: =NA() ->  | G54: 178.07618 | N54: 2010 | O54: 1753.45 | P54: 31 | Q54: 0 | R54: 0 | S54: 1708.3 | T54: 28 | U54: 0 | V54: 0 | W54: 32 | X54: 1 | Y54: 13.15 | Z54: 2
A55: 2011 | B55: 116.8738515 | D55: 115.8307434 | E55: =NA() ->  | G55: =NA() ->  | N55: 2011 | O55: 1810 | P55: 21 | Q55: 6 | R55: 1 | S55: 1754 | T55: 18 | U55: 0 | V55: 0 | W55: 20 | X55: 1 | Y55: 30 | Z55: 1
A56: 2012 | B56: 90.73693013 | D56: 90.73693013 | E56: =NA() ->  | G56: =NA() ->  | N56: 2012 | O56: 1112.8 | P56: 19 | Q56: 0 | R56: 0 | S56: 1112.8 | T56: 19 | U56: 0 | V56: 0 | W56: 0 | X56: 0 | Y56: 0 | Z56: 0
A57: 2013 | B57: 71.53479714 | D57: 69.77004961 | E57: =NA() ->  | G57: =NA() ->  | N57: 2013 | O57: 708.114 | P57: 24 | Q57: 12 | R57: 1 | S57: 627.314 | T57: 20 | U57: 28.8 | V57: 1 | W57: 20 | X57: 1 | Y57: 20 | Z57: 1
A58: 2014 | B58: 58.12296441 | D58: 58.30370067 | E58: 53.3316955 | G58: 59.98294578 | N58: 2014 | O58: 2276.376 | P58: 43 | Q58: 0 | R58: 0 | S58: 1456.776 | T58: 31 | U58: 257.5 | V58: 2 | W58: 10.3 | X58: 1 | Y58: 551.8 | Z58: 9
A59: 2015 | B59: 47.58665074 | D59: 48.0690515 | E59: 42.10776298 | G59: 50.2324845 | N59: 2015 | O59: 3612.877 | P59: 60 | Q59: 27.6 | R59: 1 | S59: 2219.367 | T59: 35 | U59: 702.35 | V59: 11 | W59: 80 | X59: 1 | Y59: 583.56 | Z59: 12
A60: 2016 | B60: 38.56951773 | D60: 35.39353752 | E60: =NA() ->  | F60: 58.52042787 | G60: 48.1444016 | N60: 2016 | O60: 1451.26 | P60: 22 | Q60: 0 | R60: 0 | S60: 1067.8 | T60: 15 | U60: 150 | V60: 1 | W60: 204.9 | X60: 4 | Y60: 28.56 | Z60: 2
A61: 2017 | B61: 34.47814797 | C61: 95.72039286 | D61: 33.78975327 | E61: 27.77120961 | F61: 76.89714488 | G61: 28.93189837 | N61: 2017 | O61: 2773.29 | P61: 45 | Q61: 109.6 | R61: 3 | S61: 1182.82 | T61: 17 | U61: 469 | V61: 5 | W61: 272.27 | X61: 10 | Y61: 739.6 | Z61: 10
A62: 2018 | B62: 26.02649074 | D62: 23.84486941 | E62: 34.80380105 | F62: 34.94506111 | G62: 26.77702205 | H62: 28 | N62: 2018 | O62: 4013.169481 | P62: 50 | Q62: 0 | R62: 0 | S62: 2492.688 | T62: 26 | U62: 449.1814815 | V62: 10 | W62: 242.3 | X62: 4 | Y62: 829 | Z62: 10
A63: 2019 | B63: 21.78479227 | D63: 19.14372514 | E63: 38.4572415 | F63: 31.75758158 | G63: 21.08577418 | H63: 25.97042185 | N63: 2019 | O63: 3715.737692 | P63: 41 | Q63: 0 | R63: 0 | S63: 2444.33 | T63: 22 | U63: 273.9076923 | V63: 6 | W63: 415.5 | X63: 7 | Y63: 582 | Z63: 6
A64: 2020 | B64: 23.00468312 | D64: 21.08877346 | E64: =NA() ->  | F64: 39.81514336 | G64: 20.51181771 | H64: 26.29884236 | N64: 2020 | O64: 2222.76 | P64: 22 | Q64: 0 | R64: 0 | S64: 1810.86 | T64: 15 | U64: 79 | V64: 1 | W64: 245.4 | X64: 4 | Y64: 87.5 | Z64: 2
A65: 2021 | B65: 23.96036908 | D65: 19.40601267 | E65: 34.89985639 | F65: 40.71716713 | H65: 28.51282406 | N65: 2021 | O65: =Q65+S65+U65+W65+Y65 -> 2925 | P65: =R65+T65+V65+X65+Z65 -> 19 | Q65: 0 | R65: 0 | S65: 2050 | T65: 13 | U65: 285 | V65: 4 | W65: 590 | X65: 2 | Y65: 0 | Z65: 0
A66: 2022 | B66: 25.49260517 | D66: 25.49260517 | H66: 35.20090068 | N66: 2022 | O66: =Q66+S66+U66+W66+Y66 -> 236 | P66: =R66+T66+V66+X66+Z66 -> 3 | Q66: 0 | R66: 0 | S66: 236 | T66: 3 | U66: 0 | V66: 0 | W66: 0 | X66: 0 | Y66: 0 | Z66: 0
A67: 2023(P) | H67: 41.53879748 | N67: 2023(P) | O67: =Q67+S67+U67+W67+Y67 -> 138.8 | P67: =R67+T67+V67+X67+Z67 -> 1 | Q67: =Q45 -> 0 | R67: 0 | S67: =S45+U45 -> 0 | T67: =T45+V45 -> 0 | U67: =W45+Y45+AA45 -> 0 | V67: =X45+Z45+AB45 -> 0 | W67: =AC45+AE45+AG45 -> 0 | X67: =AD45+AF45+AH45 -> 0 | Y67: =AI45 -> 138.8 | Z67: =AJ45 -> 1
A69: Note: West = CAISO, West (non-ISO); Central = MISO, SPP, ERCOT; Northeast = PJM, NYISO, ISO-NE; Southeast = Southeast (non-ISO)

Sheet LevelTen Solar PPA Prices
A1: LevelTen Energy solar PPA price indices
A21: Source: LevelTen Energy
B23: LevelTen PPA Price Index (25th percentile of first-year offer price) | Y23: Average | AA23: Average | AB23: Average | AC23: Average | AD23: Average | AE23: Average
B24: nominal $/MWh | Y24: previous | AA24: calendar | AB24: calendar | AC24: calendar | AD24: calendar | AE24: calendar
A25: Region | B25: 3Q18 | C25: 4Q18 | D25: 1Q19 | E25: 2Q19 | F25: 3Q19 | G25: 4Q19 | H25: 1Q20 | I25: 2Q20 | J25: 3Q20 | K25: 4Q20 | L25: 1Q21 | M25: 2Q21 | N25: 3Q21 | O25: 4Q21 | P25: 1Q22 | Q25: 2Q22 | R25: 3Q22 | S25: 4Q22 | T25: 1Q23 | U25: 2Q23 | V25: 3Q23 | W25: 4Q23 | Y25: four quarters | AA25: year 2019 | AB25: year 2020 | AC25: year 2021 | AD25: year 2022 | AE25: year 2023
A26: CAISO | B26: 26.4 | C26: 26.4 | D26: 23 | E26: 24.3 | F26: 24.2 | G26: 23.9 | H26: 22 | I26: 25.9 | J26: 25.1 | K26: 25.1 | L26: 28.8 | M26: 27.5 | N26: 29.5 | O26: 28.3 | P26: 30.2 | Q26: 34 | R26: 34 | S26: 40.3 | T26: 42.75 | U26: 42.63 | Y26: =AVERAGE(R26:U26) -> 39.92 | AA26: =AVERAGE(D26:G26) -> 23.85 | AB26: =AVERAGE(H26:K26) -> 24.525 | AC26: =AVERAGE(L26:O26) -> 28.525 | AD26: =AVERAGE(P26:S26) -> 34.625 | AE26: =AVERAGE(T26:W26) -> 42.69
A27: ERCOT | B27: 25 | C27: 25.5 | D27: 24.1 | E27: 24.4 | F27: 24.4 | G27: 24.2 | H27: 24.2 | I27: 24.7 | J27: 26 | K27: 26.7 | L27: 26.5 | M27: 27.2 | N27: 28 | O27: 28.3 | P27: 32 | Q27: 33 | R27: 40 | S27: 40 | T27: 42.75 | U27: 48.67 | Y27: =AVERAGE(R27:U27) -> 42.855 | AA27: =AVERAGE(D27:G27) -> 24.275 | AB27: =AVERAGE(H27:K27) -> 25.4 | AC27: 27.5 | AD27: =AVERAGE(P27:S27) -> 36.25 | AE27: =AVERAGE(T27:W27) -> 45.71
A28: SPP | B28: 28.9 | C28: 24.9 | D28: 24.5 | E28: 24.9 | F28: 24.7 | G28: 24.5 | H28: 24.7 | I28: 27.2 | J28: 28.1 | K28: 30.5 | L28: 30.9 | M28: 31.5 | N28: 31.9 | O28: 36.7 | P28: 44 | Q28: 44.5 | R28: 44 | T28: 47.2 | U28: 40.88 | Y28: =AVERAGE(R28,T28,U28) -> 44.02666667 | AA28: 24.65 | AB28: 27.625 | AC28: 32.75 | AD28: =AVERAGE(P28:R28) -> 44.16666667 | AE28: 44.04
A29: MISO | B29: 31.7 | C29: 32.4 | D29: 33.4 | E29: 32.4 | F29: 31.3 | G29: 30 | H29: 31.6 | I29: 30.4 | J29: 31.2 | K29: 33.7 | L29: 34.6 | M29: 35.3 | N29: 35 | O29: 36.1 | P29: 39.6 | Q29: 45.8 | R29: 51.0212 | S29: 52 | T29: 58.69 | U29: 57.23 | Y29: 54.7353 | AA29: 31.775 | AB29: 31.725 | AC29: 35.25 | AD29: 47.1053 | AE29: 57.96
A30: PJM | B30: 33.9 | C30: 34.5 | D30: 33.5 | E30: 33.5 | F30: 34 | G30: 34.9 | H30: 34.9 | I30: 34.9 | J30: 36.8 | K30: 37.5 | L30: 36 | M30: 35.9 | N30: 37.5 | O30: 43.1 | P30: 44 | Q30: 47 | R30: 55 | S30: 63 | T30: 65.75 | U30: 64.41 | Y30: 62.04 | AA30: =AVERAGE(D30:G30) -> 33.975 | AB30: =AVERAGE(H30:K30) -> 36.025 | AC30: 38.125 | AD30: 52.25 | AE30: 65.08
A31: National | B31: 29.2 | C31: 28.8 | D31: 27.7 | E31: 27.8 | F31: 27.7 | G31: 27.5 | H31: 27.2 | I31: 28.6 | J31: 29.3 | K31: 30.6 | L31: 31.4 | M31: 31.4 | N31: 32.4 | O31: 34 | P31: 36.31 | Q31: 39.26 | R31: 42.21 | S31: 45.66 | T31: 49.52 | U31: 49.09 | Y31: 46.62 | AA31: 27.675 | AB31: 28.925 | AC31: 32.3 | AD31: 40.86 | AE31: 49.305
B35: LevelTen PPA Price Index (Levelized 2022 $/MWh)
A36: CAISO | B36: 25.52414793 | C36: 25.52414793 | D36: 21.58336775 | E36: 22.80329723 | F36: 22.7094565 | G36: 22.42793431 | H36: 20.00257673 | I36: 23.54848806 | J36: 22.82112163 | K36: 22.82112163 | L36: 25.42319916 | M36: 24.2756242 | N36: 26.04112414 | O36: 24.98182417 | P36: 26.01730789 | Q36: 29.29100888 | R36: 29.29100888 | S36: 34.71846053 | T36: 36.01629839 | U36: 35.91520001 | Y36: =AVERAGE(R36:U36) -> 33.98524196 | AA36: =AVERAGE(D36:G36) -> 22.38101395 | AB36: =AVERAGE(H36:K36) -> 22.29832701 | AC36: =AVERAGE(L36:O36) -> 25.18044292 | AD36: =AVERAGE(P36:S36) -> 29.82944655 | AE36: =AVERAGE(T36:W36) -> 35.9657492
A37: ERCOT | B37: 24.17059463 | C37: 24.65400652 | D37: 22.61561577 | E37: 22.89713796 | F37: 22.89713796 | G37: 22.7094565 | H37: 22.0028344 | I37: 22.45743842 | J37: 23.63940886 | K37: 24.27585449 | L37: 23.39287423 | M37: 24.01079921 | N37: 24.71699918 | O37: 24.98182417 | P37: 27.56800836 | Q37: 28.42950862 | R37: 34.46001045 | S37: 34.46001045 | T37: 36.01629839 | U37: 41.00381855 | Y37: 36.48503446 | AA37: 22.77983705 | AB37: 23.09388404 | AC37: 24.2756242 | AD37: 31.22938447 | AE37: 38.51005847
A38: SPP | B38: 27.94120739 | C38: 24.07391225 | D38: 22.99097869 | E38: 23.36634161 | F38: 23.17866015 | G38: 22.99097869 | H38: 22.45743842 | I38: 24.7304585 | J38: 25.54874573 | K38: 27.73084501 | L38: 27.2769741 | M38: 27.80662408 | N38: 28.15972407 | O38: 32.39692393 | P38: 37.9060115 | Q38: 38.33676163 | R38: 37.9060115 | T38: 39.76536337 | U38: 34.44084862 | Y38: =AVERAGE(R38,T38,U38) -> 37.37074116 | AA38: 23.13173978 | AB38: 25.11687192 | AC38: 28.91006155 | AD38: =AVERAGE(P38:R38) -> 38.04959487 | AE38: 37.10310599
A39: MISO | B39: 30.64831399 | C39: 31.32509064 | D39: 31.3428036 | E39: 30.40439631 | F39: 29.37214829 | G39: 28.1522188 | H39: 28.73097385 | I39: 27.63992421 | J39: 28.36729064 | K39: 30.64031072 | L39: 30.54314899 | M39: 31.16107397 | N39: 30.89624898 | O39: 31.86727395 | P39: 34.11541035 | Q39: 39.45671197 | R39: 43.95477713 | S39: 44.79801359 | T39: 49.4455334 | U39: 48.21550309 | Y39: 46.6034568 | AA39: 29.81789175 | AB39: 28.84462485 | AC39: 31.11693647 | AD39: 40.58122826 | AE39: 48.83051824
A40: PJM | B40: 32.77532631 | C40: 33.35542059 | D40: 31.43664433 | E40: 31.43664433 | F40: 31.90584798 | G40: 32.75041454 | H40: 31.73136036 | I40: 31.73136036 | J40: 33.45885562 | K40: 34.09530125 | L40: 31.77899895 | M40: 31.69072395 | N40: 33.10312391 | O40: 38.04652374 | P40: 37.9060115 | Q40: 40.49051228 | R40: 47.38251437 | S40: 54.27451646 | T40: 55.39348817 | U40: 54.26455625 | Y40: 52.82876881 | AA40: =AVERAGE(D40:G40) -> 31.8823878 | AB40: =AVERAGE(H40:K40) -> 32.7542194 | AC40: 33.65484264 | AD40: 45.01338865 | AE40: 54.82902221
A41: National | B41: 28.23125452 | C41: 27.84452501 | D41: 25.99388203 | E41: 26.08772276 | F41: 25.99388203 | G41: 25.80620057 | H41: 24.7304585 | I41: 26.00334975 | J41: 26.63979537 | K41: 27.82176582 | L41: 27.71834908 | M41: 27.71834908 | N41: 28.60109906 | O41: 30.01349901 | P41: 31.28107449 | Q41: 33.82250026 | R41: 36.36392603 | S41: 39.33610193 | T41: 41.71993208 | U41: 41.35766288 | Y41: 39.69440573 | AA41: 25.97042185 | AB41: 26.29884236 | AC41: 28.51282406 | AD41: 35.20090068 | AE41: 41.53879748
A43: LevelTen Energy PPA price data are reported in nominal dollars (the top table shows as-reported nominal prices).
A44: In the bottom table, we convert the as-reported nominal dollar data to levelized real (2022) dollar terms.
A45: The conversion to levelized, real dollar terms assumes that LevelTen’s reported prices in each quarter are for 12-year, flat-priced (in nominal dollars) PPAs that commence in the following calendar year.
A46: In each quarter, we deflate the 12-year nominal dollar price series to 2022 dollars using the GDP deflator (actual deflators historically, along with projected future deflators from the EIA’s Annual Energy Outlook 2023), and then levelize the resulting 12-year real-dollar price series using a 4% real discount rate.

Sheet PV+Battery Hybrid PPA Price
A1: Levelized price of PV+battery PPAs in the LBNL sample (bubble size represents battery:PV capacity) | H1: Levelized price of PV+battery PPAs in the LBNL sample (bubble size represents PV capacity) | N1: Levelized price of PV+battery PPAs in the LBNL sample (bubble size represents battery capacity) | R1: Levelized storage adder time trend in $/MW-month | Z1: Levelized storage adder time trend in $/MWh-stored (assuming 1 full cycle per day) | AJ1: Levelized storage adder time trend in $/MWh-PV | AT1: Levelized storage adder in $/MWh-PV as a function of battery:PV capacity
S21: for graphs | V21: for graphs | W21: for graphs | X21: for graphs | Y21: for graphs
S22: $/MWh-PV | V22: Greenfield | W22: Greenfield | X22: Retrofit | Y22: Retrofit
A23: State | B23: Plant_Name | C23: EIA_Plant_ID | D23: PV MW-AC | E23: BESS MW-AC | F23: BESS MWh | G23: BESS Duration | H23: BESS:PV Ratio | I23: PPA_Execution | J23: Plant_COD | K23: Retrofit_Execution | L23: Retrofit_COD | M23: PV_$_per_MWh_real | N23: BESS_$_per_MWh-PV_real | O23: BESS_$_per_MWh-stored_real | P23: BESS_$_per_MW-month_real | Q23: PV+BESS_$_per_MWh-PV_real | S23: HI | T23: Non-HI | V23: PPA_Execution | W23: BESS:PV Ratio | X23: ESA_Execution | Y23: BESS:PV Ratio
A24: AZ | B24: Pinal_Central_Energy_Center | C24: 61678 | D24: 20 | E24: 10 | F24: 40 | G24: 4 | H24: 0.5 | I24: 2017-04-14 | J24: 2018-04-23 | Q24: 76.30929074 | S24: =IF($A24="HI",Q24,NA()) ->  | T24: =IF($A24="HI",NA(),Q24) -> 76.30929074 | V24: 2017-04-14 | W24: =H24 -> 0.5
A25: AZ | B25: Wilmot | C25: 64426 | D25: 100 | E25: 30 | F25: 120 | G25: 4 | H25: 0.3 | I25: 2017-05-22 | J25: 2021-04-30 | M25: 21.80202125 | N25: 12.7348255 | O25: 81.50839541 | P25: 9922.976029 | Q25: 34.53684675 | S25: =IF($A25="HI",Q25,NA()) ->  | T25: =IF($A25="HI",NA(),Q25) -> 34.53684675 | V25: 2017-05-22 | W25: =H25 -> 0.3
A26: AZ | B26: Mesquite_4 | C26: 65962 | D26: 52.5 | E26: 10 | F26: 40 | G26: 4 | H26: 0.1904761905 | I26: 2020-02-11 | Q26: 19.80735434 | T26: 19.80735434 | V26: 2020-02-11 | W26: 0.1904761905
A27: CA | B27: Desert_Sunlight_250 | C27: 58542 | D27: 250 | E27: 230 | F27: 920 | G27: 4 | H27: 0.92 | I27: 2009-08-17 | J27: 2014-10-22 | K27: 2021-10-18 | L27: 2022-08-28 | M27: 138.7725091 | N27: 55.25043269 | O27: 100.1593668 | P27: 12197.11028 | Q27: 194.0229418 | T27: 194.0229418 | X27: 2021-10-18 | Y27: =H27 -> 0.92
A28: CA | B28: Blythe_110 | C28: 60093 | D28: 110 | E28: 63 | F28: 252 | G28: 4 | H28: 0.5727272727 | J28: 2016-04-30 | K28: 2020-05-13 | L28: 2021-10-01 | N28: 17.39708159 | O28: 52.81662905 | P28: 6430.429778 | Q28: 17.39708159 | T28: 17.39708159 | X28: 2020-05-13 | Y28: =H28 -> 0.5727272727
A29: CA | B29: RE_Tranquillity | C29: 59939 | D29: 200 | E29: 72 | F29: 288 | G29: 4 | H29: 0.36 | I29: 2014-07-31 | J29: 2016-07-28 | K29: 2020-04-22 | L29: 2022-03-31 | M29: 43.33399777 | N29: 11.7097973 | O29: 45.17199095 | P29: 5499.553068 | Q29: 55.04379507 | T29: 55.04379507 | X29: 2020-04-22 | Y29: 0.36
A30: CA | B30: Blythe_II | C30: 60092 | D30: 125 | E30: 115 | F30: 460 | G30: 4 | H30: 0.92 | I30: 2015-07-15 | J30: 2016-11-01 | K30: 2020-04-09 | L30: 2021-03-31 | M30: 49.15834655 | N30: 34.88657866 | O30: 68.70398404 | P30: 8364.71681 | Q30: 84.04492521 | T30: 84.04492521 | X30: 2020-04-09 | Y30: 0.92
A31: CA | B31: McCoy | C31: 58462 | D31: 250 | E31: 230 | F31: 920 | G31: 4 | H31: 0.92 | I31: 2011-09-29 | J31: 2016-11-30 | K31: 2020-04-09 | L31: 2021-07-31 | M31: 81.99947711 | N31: 33.88579196 | O31: 68.70398404 | P31: 8364.71681 | Q31: 115.8852691 | T31: 115.8852691 | X31: 2020-04-09 | Y31: 0.92
A32: CA | B32: RE_Garland | C32: 60233 | D32: 180 | E32: 88 | F32: 352 | G32: 4 | H32: 0.4888888889 | I32: 2015-07-16 | J32: 2016-11-30 | K32: 2020-04-22 | L32: 2021-09-01 | M32: 46.18606661 | N32: 17.02689356 | O32: 61.92496657 | P32: 7539.177103 | Q32: 63.21296016 | T32: 63.21296016 | X32: 2020-04-22 | Y32: 0.4888888889
A33: CA | B33: CA_Flats_130 | C33: 60033 | D33: 130 | E33: 60 | F33: 240 | G33: 4 | H33: 0.4615384615 | I33: 2014-12-09 | J33: 2017-11-28 | K33: 2020-05-29 | L33: 2021-09-01 | M33: 63.60293054 | N33: 23.57716863 | O33: 89.49773001 | P33: 10896.83713 | Q33: 87.18009918 | T33: 87.18009918 | X33: 2020-05-29 | Y33: 0.4615384615
A34: CA | B34: Blythe_III | C34: 60094 | D34: 125 | E34: 115 | F34: 460 | G34: 4 | H34: 0.92 | I34: 2015-10-15 | J34: 2020-05-20 | K34: 2020-04-09 | L34: 2021-05-31 | M34: 45.20132249 | N34: 34.02309234 | O34: 68.70398404 | P34: 8364.71681 | Q34: 79.22441483 | T34: 79.22441483 | X34: 2020-04-09 | Y34: 0.92
A35: CA | B35: Blythe_IV | C35: 60095 | D35: 62.5 | E35: 47 | F35: 188 | G35: 4 | H35: 0.752 | I35: 2019-12-20 | J35: 2020-09-11 | K35: 2021-11-19 | L35: 2022-10-01 | M35: 24.53235433 | N35: 21.4095872 | O35: 57.16393056 | P35: 6960.113879 | Q35: 45.94194153 | T35: 45.94194153 | X35: 2021-11-19 | Y35: 0.752
A36: CA | B36: RE_Slate_SVCE/CCCE | C36: 63727 | D36: 160.5 | E36: 80.25 | F36: 321 | G36: 4 | H36: 0.5 | I36: 2020-02-14 | J36: 2021-06-30 | M36: 23.25826173 | N36: 9.981296991 | O36: 37.08340919 | P36: 4514.689845 | Q36: 33.23955872 | T36: 33.23955872 | V36: 2020-02-14 | W36: =H36 -> 0.5
A37: CA | B37: RE_Slate_PWRPA | C37: 63727 | D37: 26 | E37: 10 | F37: 40 | G37: 4 | H37: 0.3846153846 | I37: 2020-11-05 | J37: 2021-06-30 | M37: 22.13859125 | N37: 9.455050873 | O37: 45.4432942 | P37: 5532.583417 | Q37: 31.59364213 | T37: 31.59364213 | V37: 2020-11-05 | W37: 0.3846153846
A38: CA | B38: RE_Slate_Stanford | C38: 63727 | D38: 63 | E38: 50 | F38: 200 | G38: 4 | H38: 0.7936507937 | I38: 2020-11-02 | J38: 2021-06-30 | M38: 17.51017028 | N38: 17.2620857 | O38: 39.91528811 | P38: 4859.510404 | Q38: 34.77225597 | T38: 34.77225597 | V38: 2020-11-02 | W38: 0.7936507937
A39: CA | B39: Maverick_6 | C39: 64105 | D39: 100 | E39: 50 | F39: 200 | G39: 4 | H39: 0.5 | I39: 2019-12-05 | J39: 2021-11-30 | M39: 22.83222858 | N39: 12.80857909 | O39: 48.83458481 | P39: 5945.462776 | Q39: 35.64080767 | T39: 35.64080767 | V39: 2019-12-05 | W39: 0.5
A40: CA | B40: Daggett_3_MCE | C40: 64852 | D40: 110 | E40: 60 | F40: 240 | G40: 4 | H40: 0.5454545455 | I40: 2020-09-25 | J40: 2023-06-30 | M40: 22.69063441 | N40: 12.41862779 | O40: 47.1107186 | P40: 5736.258029 | Q40: 35.1092622 | T40: 35.1092622 | V40: 2020-09-25 | W40: 0.5454545455
A41: CA | B41: Daggett_3_CPA | C41: 64852 | D41: 123 | E41: 61.5 | F41: 246 | G41: 4 | H41: 0.5 | I41: 2020-10-02 | J41: 2023-06-30 | M41: 23.75746351 | N41: 13.02861599 | O41: 53.91784676 | P41: 6565.102179 | Q41: 36.7860795 | T41: 36.7860795 | V41: 2020-10-02 | W41: 0.5
A42: CA | B42: Daggett_3_EBCE | C42: 64852 | D42: 50 | E42: 12.5 | F42: 50 | G42: 4 | H42: 0.25 | I42: 2021-09-29 | J42: 2023-06-30 | M42: 20.31078487 | N42: 5.58501357 | O42: 46.84112937 | P42: 5703.432518 | Q42: 25.89579844 | T42: 25.89579844 | V42: 2021-09-29 | W42: 0.25
A43: CA | B43: BigBeau | C43: 64993 | D43: 128 | E43: 40 | F43: 160 | G43: 4 | H43: 0.3125 | I43: 2018-10-25 | J43: 2022-02-28 | M43: 24.40033862 | N43: 6.660034886 | O43: 40.69548734 | P43: 4954.552313 | Q43: 31.06037351 | T43: 31.06037351 | V43: 2018-10-25 | W43: 0.3125
A44: CA | B44: Arlington_Energy_Center_II | C44: 64481 | D44: 233 | E44: 132 | F44: 528 | G44: 4 | H44: 0.5665236052 | I44: 2020-10-02 | J44: 2022-03-21 | M44: 21.24737697 | N44: 14.13900262 | O44: 50.72600096 | P44: 6176.172769 | Q44: 35.38637959 | T44: 35.38637959 | V44: 2020-10-02 | W44: 0.5665236052
A45: CA | B45: Rabbitbrush | C45: 64630 | D45: 100 | E45: 20 | F45: 50 | G45: 2.5 | H45: 0.2 | I45: 2020-04-08 | J45: 2022-10-31 | M45: 22.13688011 | N45: 3.967990178 | O45: 55.46777931 | P45: 4220.944161 | Q45: 26.10487029 | T45: 26.10487029 | V45: 2020-04-08 | W45: 0.2
A46: CA | B46: Gaskell_West_2 | C46: 61446 | D46: 29 | E46: 20 | F46: 80 | G46: 4 | H46: 0.6896551724 | I46: 2017-10-27 | J46: 2023-05-05 | M46: 21.32791892 | N46: 16.30803964 | O46: 43.70239471 | P46: 5321.976016 | Q46: 37.63595856 | T46: 37.63595856 | V46: 2017-10-27 | W46: 0.6896551724
A47: CA | B47: Resurgence_Solar_I | C47: 64489 | D47: 90 | E47: 75 | F47: 300 | G47: 4 | H47: 0.8333333333 | I47: 2021-01-21 | J47: 2023-06-09 | M47: 25.66763188 | N47: 19.31077205 | O47: 45.87025267 | P47: 5586.074073 | Q47: 44.97840393 | T47: 44.97840393 | V47: 2021-01-21 | W47: 0.8333333333
A48: CA | B48: Eland | C48: 61168 | D48: 400 | E48: 300 | F48: 1200 | G48: 4 | H48: 0.75 | I48: 2019-07-01 | M48: 15.19134593 | N48: 14.94791926 | O48: 39.45867564 | P48: 4804.560207 | Q48: 30.13926519 | T48: 30.13926519 | V48: 2019-07-01 | W48: 0.75
A49: CA | B49: Camino | C49: 63508 | D49: 44 | E49: 11 | F49: 44 | G49: 4 | H49: 0.25 | I49: 2019-11-26 | M49: 23.59138045 | N49: 4.872146397 | O49: 45.32463254 | P49: 5518.850011 | Q49: 28.46352684 | T49: 28.46352684 | V49: 2019-11-26 | W49: 0.25
A50: CA | B50: Deer_Creek | D50: 50 | E50: 50 | F50: 200 | G50: 4 | H50: 1 | I50: 2021-02-23 | J50: 2023-07-01 | M50: 20.50161424 | N50: 17.53647948 | O50: 45.33321835 | P50: 5519.665372 | Q50: 38.03809372 | T50: 38.03809372 | V50: 2021-02-23 | W50: 1
A51: CA | B51: Jacumba_Valley | D51: 90 | E51: 70 | F51: 280 | G51: 4 | H51: 0.7777777778 | I51: 2021-06-01 | M51: 17.34751974 | N51: 19.81538408 | O51: 50.19034889 | P51: 6111.058091 | Q51: 37.16290382 | T51: 37.16290382 | V51: 2021-06-01 | W51: 0.7777777778
A52: CA | B52: Sacramento_Valley_Energy_Center | C52: 65808 | D52: 200 | E52: 100 | F52: 400 | G52: 4 | H52: 0.5 | I52: 2021-06-17 | M52: 24.45183985 | N52: 15.04657169 | O52: 51.2939388 | P52: 6245.530178 | Q52: 39.49841154 | T52: 39.49841154 | V52: 2021-06-17 | W52: 0.5
A53: CO | B53: CO_Buffalo_Flats | C53: 63722 | D53: 22 | E53: 1 | F53: 2 | G53: 2 | H53: 0.04545454545 | I53: 2019-02-14 | J53: 2020-12-01 | Q53: 27.59212191 | T53: 27.59212191 | V53: 2019-02-14 | W53: 0.04545454545
A54: CO | B54: Thunder_Wolf | C54: 63776 | D54: 248 | E54: 100 | F54: 400 | G54: 4 | H54: 0.4032258065 | I54: 2019-02-05 | J54: 2023-06-02 | Q54: 24.56464701 | T54: 24.56464701 | V54: 2019-02-05 | W54: 0.4032258065
A55: CO | B55: Neptune | C55: 63731 | D55: 325 | E55: 125 | F55: 500 | G55: 4 | H55: 0.3846153846 | I55: 2019-02-05 | J55: 2023-06-16 | Q55: 24.85827915 | T55: 24.85827915 | V55: 2019-02-05 | W55: 0.3846153846
A56: FL | B56: FL_Solar_6 | D56: 50 | E56: 12 | F56: 24 | G56: 2 | H56: 0.24 | I56: 2020-05-01 | Q56: 27.37379762 | T56: 27.37379762 | V56: 2020-05-01 | W56: 0.24
A57: GA | B57: Hickory_Park | C57: 63522 | D57: 195.5 | E57: 40 | F57: 80 | G57: 2 | H57: 0.2046035806 | I57: 2019-10-01 | J57: 2021-09-01 | Q57: 24.14937762 | T57: 24.14937762 | V57: 2019-10-01 | W57: 0.2046035806
A58: GA | B58: Cool_Springs | C58: 63721 | D58: 213 | E58: 40 | F58: 80 | G58: 2 | H58: 0.1877934272 | I58: 2019-10-01 | J58: 2021-12-07 | Q58: 24.87374421 | T58: 24.87374421 | V58: 2019-10-01 | W58: 0.1877934272
A59: HI | B59: SC_KIUC | C59: 60546 | D59: 13 | E59: 13 | F59: 52 | G59: 4 | H59: 1 | I59: 2015-09-09 | J59: 2017-03-31 | Q59: 130.8423763 | S59: 130.8423763 | V59: 2015-09-09 | W59: 1
A60: HI | B60: AES_Lawai | C60: 61068 | D60: 20 | E60: 20 | F60: 100 | G60: 5 | H60: 1 | I60: 2016-12-30 | J60: 2018-10-01 | Q60: 95.94081891 | S60: 95.94081891 | V60: 2016-12-30 | W60: 1
A61: HI | B61: AES_Kekaha | C61: 63280 | D61: 14 | E61: 14 | F61: 70 | G61: 5 | H61: 1 | I61: 2017-09-29 | J61: 2019-09-01 | Q61: 91.40516101 | S61: 91.40516101 | V61: 2017-09-29 | W61: 1
A62: HI | B62: Mililani I Solar | C62: 57242 | D62: 39 | E62: 39 | F62: 156 | G62: 4 | H62: 1 | I62: 2018-12-29 | J62: 2022-07-31 | Q62: 72.79844275 | S62: 72.79844275 | V62: 2018-12-29 | W62: 1
A63: HI | B63: Waiawa Solar | C63: 65058 | D63: 36 | E63: 36 | F63: 144 | G63: 4 | H63: 1 | I63: 2018-12-29 | J63: 2023-01-31 | Q63: 79.21150544 | S63: 79.21150544 | V63: 2018-12-29 | W63: 1
A64: HI | B64: Waikoloa Solar | C64: 63900 | D64: 30 | E64: 30 | F64: 120 | G64: 4 | H64: 1 | I64: 2018-12-28 | J64: 2023-04-30 | Q64: 63.29717835 | S64: 63.29717835 | V64: 2018-12-28 | W64: 1
A65: HI | B65: Hoohana Solar 1 | C65: 63723 | D65: 52 | E65: 52 | F65: 208 | G65: 4 | H65: 1 | I65: 2018-12-27 | Q65: 81.63285761 | S65: 81.63285761 | V65: 2018-12-27 | W65: 1
A66: HI | B66: Hale Kuawehi | C66: 62529 | D66: 30 | E66: 30 | F66: 120 | G66: 4 | H66: 1 | I66: 2018-12-27 | Q66: 69.62578089 | S66: 69.62578089 | V66: 2018-12-27 | W66: 1
A67: HI | B67: Paeahu | C67: 62534 | D67: 15 | E67: 15 | F67: 60 | G67: 4 | H67: 1 | I67: 2018-12-27 | Q67: 93.08377999 | S67: 93.08377999 | V67: 2018-12-27 | W67: 1
A68: HI | B68: Kuihelani Solar | C68: 64256 | D68: 60 | E68: 60 | F68: 240 | G68: 4 | H68: 1 | I68: 2018-12-28 | Q68: 61.97350746 | S68: 61.97350746 | V68: 2018-12-28 | W68: 1
A69: HI | B69: West Oahu | C69: 64656 | D69: 12.5 | E69: 12.5 | F69: 50 | G69: 4 | H69: 1 | I69: 2019-02-28 | Q69: 84.14007096 | S69: 84.14007096 | V69: 2019-02-28 | W69: 1
A70: HI | B70: Kahana | C70: 64095 | D70: 20 | E70: 20 | F70: 80 | G70: 4 | H70: 1 | I70: 2020-09-01 | Q70: 68.06729623 | S70: 68.06729623 | V70: 2020-09-01 | W70: 1
A71: HI | B71: Pulehu | D71: 40 | E71: 40 | F71: 160 | G71: 4 | H71: 1 | I71: 2020-09-01 | Q71: 69.98760483 | S71: 69.98760483 | V71: 2020-09-01 | W71: 1
A72: HI | B72: Kupehau | C72: 63799 | D72: 60 | E72: 60 | F72: 240 | G72: 4 | H72: 1 | I72: 2020-09-01 | Q72: 102.9132854 | S72: 102.9132854 | V72: 2020-09-01 | W72: 1
A73: HI | B73: Barbers Point | C73: 64094 | D73: 15 | E73: 15 | F73: 60 | G73: 4 | H73: 1 | I73: 2020-09-01 | Q73: 85.08490286 | S73: 85.08490286 | V73: 2020-09-01 | W73: 1
A74: HI | B74: Mahi | D74: 120 | E74: 120 | F74: 480 | G74: 4 | H74: 1 | I74: 2020-09-01 | Q74: 73.82366082 | S74: 73.82366082 | V74: 2020-09-01 | W74: 1
A75: HI | B75: Mountain View | C75: 66002 | D75: 7 | E75: 7 | F75: 35 | G75: 5 | H75: 1 | I75: 2020-09-01 | Q75: 99.17889199 | S75: 99.17889199 | V75: 2020-09-01 | W75: 1
A76: HI | B76: Waiawa Phase 2 | C76: 66066 | D76: 30 | E76: 30 | F76: 240 | G76: 8 | H76: 1 | I76: 2020-09-01 | Q76: 97.93210617 | S76: 97.93210617 | V76: 2020-09-01 | W76: 1
A77: HI | B77: Puako | D77: 60 | E77: 60 | F77: 240 | G77: 4 | H77: 1 | I77: 2020-10-20 | Q77: 69.7449769 | S77: 69.7449769 | V77: 2020-10-20 | W77: 1
A78: HI | B78: Kamaole | D78: 40 | E78: 40 | F78: 160 | G78: 4 | H78: 1 | I78: 2020-12-23 | Q78: 63.40113376 | S78: 63.40113376 | V78: 2020-12-23 | W78: 1
A79: HI | B79: West_Kaua'i | D79: 35 | E79: 35 | F79: 70 | G79: 2 | H79: 1 | I79: 2020-12-30 | Q79: 61.61737709 | S79: 61.61737709 | V79: 2020-12-30 | W79: 1
A80: HI | B80: Kupono | D80: 42 | E80: 42 | F80: 168 | G80: 4 | H80: 1 | I80: 2020-12-01 | Q80: 97.61875476 | S80: 97.61875476 | V80: 2020-12-01 | W80: 1
A81: NM | B81: Jicarilla_1 | C81: 66163 | D81: 50 | E81: 20 | F81: 80 | G81: 4 | H81: 0.4 | I81: 2019-06-27 | M81: 16.29221952 | N81: 15.07856175 | O81: 67.6223348 | P81: 8232.814427 | Q81: 31.37078128 | T81: 31.37078128 | V81: 2019-06-27 | W81: 0.4
A82: NM | B82: Arroyo | C82: 63172 | D82: 300 | E82: 150 | F82: 600 | G82: 4 | H82: 0.5 | I82: 2019-06-27 | M82: 15.037447 | N82: 13.203612 | O82: 49.40344957 | P82: 6014.978799 | Q82: 28.24105899 | T82: 28.24105899 | V82: 2019-06-27 | W82: 0.5
A83: NM | B83: Buena_Vista | C83: 66408 | D83: 100 | E83: 50 | F83: 200 | G83: 4 | H83: 0.5 | I83: 2019-10-17 | M83: 16.92418297 | N83: 7.846164311 | O83: 36.15855692 | P83: 4402.383946 | Q83: 24.77034728 | T83: 24.77034728 | V83: 2019-10-17 | W83: 0.5
A84: NM | B84: Rockmont | C84: 64216 | D84: 100 | E84: 30 | F84: 120 | G84: 4 | H84: 0.3 | I84: 2020-09-23 | M84: 22.0522346 | N84: 7.928765135 | O84: 52.31732595 | P84: 6369.749666 | Q84: 29.98099974 | T84: 29.98099974 | V84: 2020-09-23 | W84: 0.3
A85: NM | B85: San_Juan_Solar_1 | C85: 66574 | D85: 200 | E85: 100 | F85: 400 | G85: 4 | H85: 0.5 | I85: 2020-09-25 | M85: 21.21368528 | N85: 13.11089641 | O85: 50.99283668 | P85: 6208.490181 | Q85: 34.32458169 | T85: 34.32458169 | V85: 2020-09-25 | W85: 0.5
A86: NM | B86: Sky_Ranch | D86: 190 | E86: 50 | F86: 200 | G86: 4 | H86: 0.2631578947 | I86: 2021-02-01 | M86: 16.27512761 | N86: 5.823142265 | O86: 42.74274873 | P86: 5204.255922 | Q86: 22.09826988 | T86: 22.09826988 | V86: 2021-02-01 | W86: 0.2631578947
A87: NM | B87: Jicarilla_Solar_Energy_Center_I | D87: 150 | E87: 40 | F87: 160 | G87: 4 | H87: 0.2666666667 | I87: 2021-04-01 | M87: 11.74111677 | N87: 7.769194932 | O87: 49.54273149 | P87: 6032.205728 | Q87: 19.5103117 | T87: 19.5103117 | V87: 2021-04-01 | W87: 0.2666666667
A88: NM | B88: Atrisco | D88: 300 | E88: 150 | F88: 600 | G88: 4 | H88: 0.5 | I88: 2021-04-01 | M88: 15.08445694 | N88: 11.15344749 | O88: 43.26084266 | P88: 5267.337812 | Q88: 26.23790443 | S88: =IF($A88="HI",Q88,NA()) ->  | T88: =IF($A88="HI",NA(),Q88) -> 26.23790443 | V88: 2021-04-01 | W88: 0.5
A89: NM | B89: Carne | D89: 130 | E89: 65 | F89: 260 | G89: 4 | H89: 0.5 | I89: 2022-05-13 | M89: 22.93410928 | N89: 17.11372637 | O89: 69.08830542 | P89: 8412.745695 | Q89: 40.04783565 | T89: 40.04783565 | V89: 2022-05-13 | W89: 0.5
A90: NV | B90: Battle Mountain | C90: 61098 | D90: 101 | E90: 25 | F90: 100 | G90: 4 | H90: 0.2475247525 | I90: 2018-05-30 | J90: 2021-06-01 | M90: 23.82780571 | N90: 7.165761371 | O90: 57.28043256 | P90: 6973.005029 | Q90: 30.99356708 | S90: =IF($A90="HI",Q90,NA()) ->  | T90: =IF($A90="HI",NA(),Q90) -> 30.99356708 | V90: 2018-05-30 | W90: 0.2475247525
A91: NV | B91: Dodge_Flat | C91: 63913 | D91: 200 | E91: 50 | F91: 200 | G91: 4 | H91: 0.25 | I91: 2018-05-30 | J91: 2022-03-02 | M91: 22.79019965 | N91: 6.353217692 | O91: 48.40417172 | P91: 5893.287189 | Q91: 29.14341735 | T91: 29.14341735 | V91: 2018-05-30 | W91: 0.25
A92: NV | B92: Fish_Springs_Ranch | C92: 64148 | D92: 100 | E92: 25 | F92: 100 | G92: 4 | H92: 0.25 | I92: 2018-05-30 | J92: 2022-03-15 | M92: 25.75610644 | N92: 6.840363531 | O92: 49.11716279 | P92: 5980.09502 | Q92: 32.59646997 | T92: 32.59646997 | V92: 2018-05-30 | W92: 0.25
A93: NV | B93: Arrow_Canyon | C93: 62248 | D93: 200 | E93: 75 | F93: 375 | G93: 5 | H93: 0.375 | I93: 2019-06-24 | J93: 2023-07-01 | Q93: 24.80368924 | T93: 24.80368924 | V93: 2019-06-24 | W93: 0.375
A94: NV | B94: Southern_Bighorn | C94: 63113 | D94: 300 | E94: 135 | F94: 540 | G94: 4 | H94: 0.45 | I94: 2019-06-24 | Q94: 25.07366851 | T94: 25.07366851 | V94: 2019-06-24 | W94: 0.45
A95: NV | B95: Gemini | C95: 63352 | D95: 690 | E95: 380 | F95: 1416 | G95: 3.726315789 | H95: 0.5507246377 | I95: 2019-06-24 | Q95: 28.4686579 | T95: 28.4686579 | V95: 2019-06-24 | W95: =H95 -> 0.5507246377
A96: NV | B96: Chuckwalla | C96: 64558 | D96: 200 | E96: 180 | F96: 720 | G96: 4 | H96: 0.9 | I96: 2020-03-25 | M96: 18.14133402 | N96: 18.55863965 | O96: 43.83588542 | P96: 5337.51455 | Q96: 36.69997367 | T96: 36.69997367 | V96: 2020-03-25 | W96: 0.9
A97: NV | B97: Boulder_3 | C97: 65141 | D97: 127.86 | E97: 58 | F97: 232 | G97: 4 | H97: 0.4536211481 | I97: 2020-04-08 | M97: 18.9138222 | N97: 10.21151051 | O97: 47.05173865 | P97: 5728.908283 | Q97: 29.12533271 | T97: 29.12533271 | V97: 2020-04-08 | W97: 0.4536211481
A98: NV | B98: Hot_Pot | C98: 65419 | D98: 350 | E98: 280 | F98: 1120 | G98: 4 | H98: 0.8 | I98: 2021-06-01 | M98: 18.59147854 | N98: 17.02671454 | O98: 41.55465567 | P98: 5058.905725 | Q98: 35.61819308 | T98: 35.61819308 | V98: 2021-06-01 | W98: 0.8
A99: NV | B99: Iron_Point | C99: 65377 | D99: 250 | E99: 200 | F99: 800 | G99: 4 | H99: 0.8 | I99: 2021-06-01 | M99: 19.67191817 | N99: 17.55596412 | O99: 42.48307714 | P99: 5172.816842 | Q99: 37.22788229 | T99: 37.22788229 | V99: 2021-06-01 | W99: 0.8
A100: NV | B100: Yellow Pine | C100: 66357 | D100: 125 | E100: 65 | F100: 260 | G100: 4 | H100: 0.52 | I100: 2022-10-20 | J100: 2023-08-01 | M100: 18.91102154 | N100: 12.74593307 | O100: 52.3029039 | P100: 6370.365276 | Q100: 31.65695461 | T100: 31.65695461 | V100: 2022-10-20 | W100: 0.52
A101: NY | B101: Moraine | D101: 94 | E101: 5 | F101: 20 | G101: 4 | H101: 0.05319148936 | I101: 2021-01-15 | Q101: 46.38884483 | T101: 46.38884483 | V101: 2021-01-15 | W101: 0.05319148936
A102: NY | B102: Tracy | C102: 65051 | D102: 119 | E102: 5 | F102: 20 | G102: 4 | H102: 0.04201680672 | I102: 2021-01-15 | Q102: 47.85549878 | T102: 47.85549878 | V102: 2021-01-15 | W102: 0.04201680672
A103: OR | B103: Wheatridge | C103: 62745 | D103: 50 | E103: 30 | F103: 120 | G103: 4 | H103: 0.6 | I103: 2019-02-11 | J103: 2022-03-22 | M103: 32.86354271 | N103: 14.64388759 | O103: 39.54244853 | P103: 4814.173331 | Q103: 47.50743029 | T103: 47.50743029 | V103: 2019-02-11 | W103: 0.6

Sheet LCOE of Utility-Scale PV
A1: Estimated levelized cost of energy by commercial operation date, region, and project
A22: Source: Berkeley Lab | K22: Source: Berkeley Lab | V22: Source: Berkeley Lab
A24: GW-AC: | B24: 53.8498855 | C24: 9.715853 | D24: 0.248085 | E24: 2.5397285 | F24: 8.67038 | G24: 5.229211 | H24: 0.508834 | I24: 14.078704 | J24: 12.616185 | K24: 0.175 | L24: 0.242905 | Q24: Project-Level | R24: COD
A25: Projects: | B25: 1101 | C25: 86 | D25: 14 | E25: 70 | F25: 228 | G25: 182 | H25: 32 | I25: 215 | J25: 255 | K25: 7 | L25: 19 | O25: Plant | P25: COD | Q25: LCOE | R25: Year
B26: Lower 48 | C26: ERCOT | D26: SPP | E26: MISO | F26: West (non-ISO) | G26: PJM | H26: ISO-NE | I26: CAISO | J26: Southeast (non-ISO) | K26: Hawaii | L26: NYISO | O26: MW | P26: Year | Q26: 2022 $/MWh | R26: Code
A27: 2010 | B27: 243.283434 | F27: 189.8661072 | G27: 402.4846405 | J27: 348.6970456 | O27: 19 | P27: 2010 | Q27: 201.5820348 | R27: 1
A28: 2011 | B28: 225.7754021 | F28: 195.2286356 | G28: 304.703495 | I28: 231.2259264 | O28: 10 | P28: 2010 | Q28: 402.0388457 | R28: 1
A29: 2012 | B29: 164.4336677 | C29: 270.3308317 | F29: 179.0663105 | G29: 263.9885651 | I29: 129.5043656 | J29: 211.6654033 | O29: 12.6 | P29: 2010 | Q29: 339.4298958 | R29: 1
A30: 2013 | B30: 151.7178447 | C30: 306.1807781 | E30: 199.3940178 | F30: 142.577727 | G30: 293.9283707 | I30: 146.4723294 | J30: 192.8862648 | O30: 8.25 | P30: 2010 | Q30: 471.7491446 | R30: 1
A31: 2014 | B31: 145.2600211 | E31: 187.4885434 | F31: 116.957175 | G31: 161.7329229 | H31: 281.0851682 | I31: 146.5147556 | J31: 138.0668409 | O31: 17.5 | P31: 2010 | Q31: 327.7550098 | R31: 1
A32: 2015 | B32: 109.3440626 | C32: 107.3907791 | E32: 176.905288 | F32: 88.55902211 | G32: 123.6429817 | I32: 117.2300882 | J32: 110.5628547 | O32: 5.1 | P32: 2010 | Q32: 312.0187861 | R32: 1
A33: 2016 | B33: 82.48464698 | C33: 81.41769869 | D33: 70.64362343 | E33: 104.2003741 | F33: 74.96018881 | G33: 122.7012726 | H33: 335.2106501 | I33: 81.2737911 | J33: 89.8558526 | O33: 30.64 | P33: 2010 | Q33: 181.341717 | R33: 1
A34: 2017 | B34: 80.41865106 | C34: 71.50286773 | D34: 82.78428016 | E34: 105.3046345 | F34: 69.42815522 | G34: 88.38572479 | H34: 130.5613866 | I34: 89.11465899 | J34: 82.07787612 | K34: 141.0397914 | L34: 128.3706992 | O34: 48 | P34: 2010 | Q34: 162.9508885 | R34: 1
A35: 2018 | B35: 65.14202734 | C35: 53.58958715 | D35: 71.95904826 | E35: 50.03477704 | F35: 63.71664413 | G35: 86.29577338 | H35: 97.21672763 | I35: 73.29674476 | J35: 59.22319991 | O35: 10.08 | P35: 2010 | Q35: 382.8853715 | R35: 1
A36: 2019 | B36: 55.64215401 | C36: 53.68900915 | D36: 50.37187765 | E36: 71.39462234 | F36: 49.56162588 | G36: 69.78876721 | H36: 95.05254413 | I36: 57.37611 | J36: 51.59630646 | K36: 108.7011001 | L36: 91.83864549 | O36: 13.9 | P36: 2010 | Q36: 289.1550441 | R36: 1
A37: 2020 | B37: 47.84511306 | C37: 40.80948935 | D37: 48.76891882 | E37: 59.00543399 | F37: 47.29466441 | G37: 68.05715894 | H37: 83.29795553 | I37: 44.94459533 | J37: 47.56675076 | L37: 92.22110069 | O37: 17.6 | P37: 2011 | Q37: 197.9130658 | R37: 2
A38: 2021 | B38: 41.31134863 | C38: 40.4544151 | E38: 46.81192265 | F38: 34.46890624 | G38: 47.73450257 | H38: 73.98610048 | I38: 37.04131157 | J38: 43.15678866 | O38: 15 | P38: 2011 | Q38: 255.595222 | R38: 2
A39: 2022 | B39: 38.78812095 | C39: 31.65824694 | E39: 52.20365673 | F39: 33.23366132 | G39: 50.08795924 | H39: 63.3863643 | I39: 41.02530436 | J39: 37.82124981 | L39: 48.9702156 | O39: 20 | P39: 2011 | Q39: 173.7855647 | R39: 2
O40: 17 | P40: 2011 | Q40: 226.8297986 | R40: 2
O41: 16 | P41: 2011 | Q41: 197.5305032 | R41: 2
B42: =B39/B27-1 -> -0.8405640684 | O42: 10.4 | P42: 2011 | Q42: 176.876078 | R42: 2
B43: =(B39/B27)^(1/12)-1 -> -0.1418783674 | O43: 6 | P43: 2011 | Q43: 254.3392966 | R43: 2
O44: 15 | P44: 2011 | Q44: 246.9646168 | R44: 2
O45: 8.91 | P45: 2011 | Q45: 224.4317889 | R45: 2
O46: 19 | P46: 2011 | Q46: 235.7789389 | R46: 2
O47: 18 | P47: 2011 | Q47: 219.6258874 | R47: 2
O48: 20 | P48: 2011 | Q48: 200.1787 | R48: 2
O49: 20 | P49: 2011 | Q49: 242.3453394 | R49: 2
O50: 15 | P50: 2011 | Q50: 225.0524748 | R50: 2
O51: 5.2 | P51: 2011 | Q51: 312.5549947 | R51: 2
O52: 30.4 | P52: 2011 | Q52: 180.6096492 | R52: 2
O53: 10 | P53: 2011 | Q53: 279.3667556 | R53: 2
O54: 5.5 | P54: 2011 | Q54: 256.2643541 | R54: 2
O55: 8 | P55: 2011 | Q55: 286.1745598 | R55: 2
O56: 12 | P56: 2011 | Q56: 357.6276345 | R56: 2
O57: 10 | P57: 2011 | Q57: 331.8267535 | R57: 2
O58: 18 | P58: 2011 | Q58: 314.5456517 | R58: 2
O59: 9 | P59: 2011 | Q59: 156.6739456 | R59: 2
O60: 7 | P60: 2011 | Q60: 177.6634627 | R60: 2
O61: 20.16 | P61: 2011 | Q61: 158.5479913 | R61: 2
O62: 31.5 | P62: 2011 | Q62: 317.8902105 | R62: 2
O63: 8.08 | P63: 2011 | Q63: 220.7250327 | R63: 2
O64: 30 | P64: 2011 | Q64: 218.2206591 | R64: 2
O65: 5.1 | P65: 2012 | Q65: 118.7714087 | R65: 3
O66: 9 | P66: 2012 | Q66: 164.3720024 | R66: 3
O67: 19 | P67: 2012 | Q67: 194.2768045 | R67: 3
O68: 20 | P68: 2012 | Q68: 150.5833074 | R68: 3
O69: 170 | P69: 2012 | Q69: 124.4262746 | R69: 3
O70: 26.46 | P70: 2012 | Q70: 159.367408 | R70: 3
O71: 19 | P71: 2012 | Q71: 166.437646 | R71: 3
O72: 50 | P72: 2012 | Q72: 160.4701584 | R72: 3
O73: 20 | P73: 2012 | Q73: 160.932903 | R73: 3
O74: 20 | P74: 2012 | Q74: 155.0640757 | R74: 3
O75: 10 | P75: 2012 | Q75: 190.0904581 | R75: 3
O76: 20 | P76: 2012 | Q76: 190.3852997 | R76: 3
O77: 23 | P77: 2012 | Q77: 213.0688998 | R77: 3
O78: 10 | P78: 2012 | Q78: 354.5209185 | R78: 3
O79: 25.8 | P79: 2012 | Q79: 179.3248365 | R79: 3
O80: 30 | P80: 2012 | Q80: 174.1567756 | R80: 3
O81: 11.12 | P81: 2012 | Q81: 184.4276882 | R81: 3
O82: 14.85 | P82: 2012 | Q82: 199.3113293 | R82: 3
O83: 14.85 | P83: 2012 | Q83: 194.4169913 | R83: 3
O84: 12 | P84: 2012 | Q84: 246.0956342 | R84: 3
O85: 20 | P85: 2012 | Q85: 242.1033987 | R85: 3
O86: 5.5 | P86: 2012 | Q86: 247.4314807 | R86: 3
O87: 20 | P87: 2012 | Q87: 230.1483637 | R87: 3
O88: 13 | P88: 2012 | Q88: 304.276526 | R88: 3
O89: 20 | P89: 2012 | Q89: 220.436992 | R89: 3
O90: 12.5 | P90: 2012 | Q90: 188.5873131 | R90: 3
O91: 5.5 | P91: 2012 | Q91: 317.7091176 | R91: 3
O92: 5.5 | P92: 2012 | Q92: 198.9952599 | R92: 3
O93: 15.904 | P93: 2012 | Q93: 292.5415793 | R93: 3
O94: 12 | P94: 2012 | Q94: 170.0561432 | R94: 3
O95: 20 | P95: 2012 | Q95: 197.8546248 | R95: 3
O96: 92 | P96: 2012 | Q96: 76.35642868 | R96: 3
O97: 52 | P97: 2012 | Q97: 163.0097144 | R97: 3
O98: 21.8 | P98: 2012 | Q98: 189.8895044 | R98: 3
O99: 10 | P99: 2012 | Q99: 330.598766 | R99: 3
O100: 7.6 | P100: 2012 | Q100: 224.5511995 | R100: 3
O101: 9.9 | P101: 2012 | Q101: 263.9162957 | R101: 3
O102: 9.9 | P102: 2012 | Q102: 278.0299916 | R102: 3
O103: 10.6 | P103: 2012 | Q103: 269.4739714 | R103: 3
O104: 37.44 | P104: 2013 | Q104: 138.1312547 | R104: 4
O105: 129 | P105: 2013 | Q105: 148.2055459 | R105: 4
O106: 15 | P106: 2013 | Q106: 124.2768314 | R106: 4
O107: 14 | P107: 2013 | Q107: 163.810123 | R107: 4
O108: 14.8 | P108: 2013 | Q108: 122.0572974 | R108: 4
O109: 9 | P109: 2013 | Q109: 90.558292 | R109: 4
O110: 130 | P110: 2013 | Q110: 170.2638567 | R110: 4
O111: 66 | P111: 2013 | Q111: 159.4162497 | R111: 4
O112: 20.2 | P112: 2013 | Q112: 206.9586196 | R112: 4
O113: 26 | P113: 2013 | Q113: 144.3929921 | R113: 4
O114: 250 | P114: 2013 | Q114: 146.4559909 | R114: 4
O115: 147.4 | P115: 2013 | Q115: 131.1812932 | R115: 4
O116: 110 | P116: 2013 | Q116: 120.8336369 | R116: 4
O117: 20 | P117: 2013 | Q117: 131.2783664 | R117: 4
O118: 20 | P118: 2013 | Q118: 210.3524764 | R118: 4
O119: 20 | P119: 2013 | Q119: 214.6129585 | R119: 4
O120: 12 | P120: 2013 | Q120: 111.3077688 | R120: 4
O121: 8.5 | P121: 2013 | Q121: 121.9638555 | R121: 4
O122: 8.5 | P122: 2013 | Q122: 484.0075069 | R122: 4
O123: 20 | P123: 2013 | Q123: 142.5889396 | R123: 4
O124: 20 | P124: 2013 | Q124: 126.0186067 | R124: 4
O125: 20 | P125: 2013 | Q125: 135.0858029 | R125: 4
O126: 10 | P126: 2013 | Q126: 175.5165264 | R126: 4
O127: 20 | P127: 2013 | Q127: 133.0074172 | R127: 4
O128: 7.65 | P128: 2013 | Q128: 205.9721415 | R128: 4
O129: 16 | P129: 2013 | Q129: 170.6236475 | R129: 4
O130: 10 | P130: 2013 | Q130: 228.2439606 | R130: 4
O131: 10.1 | P131: 2013 | Q131: 184.4223677 | R131: 4
O132: 10.1 | P132: 2013 | Q132: 186.1005178 | R132: 4
O133: 8.6 | P133: 2013 | Q133: 199.8886207 | R133: 4
O134: 20 | P134: 2013 | Q134: 204.8007146 | R134: 4
O135: 9.8 | P135: 2013 | Q135: 236.1808344 | R135: 4
O136: 7.5 | P136: 2013 | Q136: 373.7496995 | R136: 4
O137: 8 | P137: 2013 | Q137: 112.3206315 | R137: 4
O138: 7.5 | P138: 2013 | Q138: 102.4787042 | R138: 4
O139: 30 | P139: 2013 | Q139: 129.2627542 | R139: 4
O140: 9.999 | P140: 2013 | Q140: 159.4307343 | R140: 4
O141: 40.7 | P141: 2013 | Q141: 417.7663845 | R141: 4
O142: 290 | P142: 2014 | Q142: 158.094152 | R142: 5
O143: 37.12 | P143: 2014 | Q143: 108.0372009 | R143: 5
O144: 29 | P144: 2014 | Q144: 159.0461961 | R144: 5
O145: 12.6 | P145: 2014 | Q145: 120.9736034 | R145: 5
O146: 17.7 | P146: 2014 | Q146: 104.4503028 | R146: 5
O147: 6 | P147: 2014 | Q147: 157.338465 | R147: 5
O148: 13.624 | P148: 2014 | Q148: 238.2484897 | R148: 5
O149: 19.568 | P149: 2014 | Q149: 188.7250054 | R149: 5
O150: 241.5 | P150: 2014 | Q150: 179.8469881 | R150: 5
O151: 19.7 | P151: 2014 | Q151: 122.2613625 | R151: 5
O152: 18.5 | P152: 2014 | Q152: 99.88590097 | R152: 5
O153: 170 | P153: 2014 | Q153: 123.7395969 | R153: 5
O154: 19.76 | P154: 2014 | Q154: 133.8415346 | R154: 5
O155: 249.7 | P155: 2014 | Q155: 171.4112991 | R155: 5
O156: 313.7 | P156: 2014 | Q156: 148.8237187 | R156: 5
O157: 10 | P157: 2014 | Q157: 120.0999281 | R157: 5
O158: 10 | P158: 2014 | Q158: 93.29857614 | R158: 5
O159: 20 | P159: 2014 | Q159: 89.07567374 | R159: 5
O160: 206.72 | P160: 2014 | Q160: 185.3009514 | R160: 5
O161: 6 | P161: 2014 | Q161: 158.8470931 | R161: 5
O162: 12 | P162: 2014 | Q162: 143.9380887 | R162: 5
O163: 8 | P163: 2014 | Q163: 137.434624 | R163: 5
O164: 19 | P164: 2014 | Q164: 120.1304461 | R164: 5
O165: 45 | P165: 2014 | Q165: 100.3952683 | R165: 5
O166: 15 | P166: 2014 | Q166: 109.4338146 | R166: 5
O167: 10 | P167: 2014 | Q167: 111.3719321 | R167: 5
O168: 20 | P168: 2014 | Q168: 120.6330513 | R168: 5
O169: 19.406 | P169: 2014 | Q169: 116.0742343 | R169: 5
O170: 19.65 | P170: 2014 | Q170: 123.0407473 | R170: 5
O171: 17.5 | P171: 2014 | Q171: 164.9996971 | R171: 5
O172: 20 | P172: 2014 | Q172: 97.55418688 | R172: 5
O173: 20 | P173: 2014 | Q173: 107.3471125 | R173: 5
O174: 60 | P174: 2014 | Q174: 137.9799223 | R174: 5
O175: 155.1 | P175: 2014 | Q175: 155.4530917 | R175: 5
O176: 6.49 | P176: 2014 | Q176: 117.0404006 | R176: 5
O177: 585.9 | P177: 2014 | Q177: 132.2101638 | R177: 5
O178: 19.945 | P178: 2014 | Q178: 88.1923243 | R178: 5
O179: 18 | P179: 2014 | Q179: 109.4910451 | R179: 5
O180: 20 | P180: 2014 | Q180: 93.1900348 | R180: 5
O181: 30 | P181: 2014 | Q181: 160.0670917 | R181: 5
O182: 8.8205 | P182: 2014 | Q182: 136.6627268 | R182: 5
O183: 7.892 | P183: 2014 | Q183: 252.8397308 | R183: 5
O184: 6.25 | P184: 2014 | Q184: 336.5145875 | R184: 5
O185: 14 | P185: 2014 | Q185: 262.0208582 | R185: 5
O186: 19.946 | P186: 2014 | Q186: 125.7961015 | R186: 5
O187: 19.79 | P187: 2014 | Q187: 147.9363454 | R187: 5
O188: 19.646 | P188: 2014 | Q188: 168.7756344 | R188: 5
O189: 8 | P189: 2014 | Q189: 169.9377803 | R189: 5
O190: 7 | P190: 2014 | Q190: 239.8491934 | R190: 5
O191: 5.34 | P191: 2014 | Q191: 173.2428334 | R191: 5
O192: 7.726 | P192: 2014 | Q192: 241.2693249 | R192: 5
O193: 8 | P193: 2014 | Q193: 159.2538671 | R193: 5
O194: 7 | P194: 2014 | Q194: 153.4411778 | R194: 5
O195: 7.6 | P195: 2014 | Q195: 72.98451899 | R195: 5
O196: 52.2 | P196: 2014 | Q196: 91.68798475 | R196: 5
O197: 9.12 | P197: 2014 | Q197: 73.03146018 | R197: 5
O198: 6.08 | P198: 2014 | Q198: 81.77938879 | R198: 5
O199: 20 | P199: 2014 | Q199: 102.0723085 | R199: 5
O200: 17.494 | P200: 2014 | Q200: 141.7498244 | R200: 5
O201: 15.84 | P201: 2014 | Q201: 118.1372924 | R201: 5
O202: 15.84 | P202: 2014 | Q202: 114.7487009 | R202: 5
O203: 39.6 | P203: 2014 | Q203: 200.8129288 | R203: 5
O204: 10.416 | P204: 2014 | Q204: 82.20351785 | R204: 5
O205: 12.5 | P205: 2015 | Q205: 116.4587467 | R205: 6
O206: 11.2 | P206: 2015 | Q206: 90.6397109 | R206: 6
O207: 11.2 | P207: 2015 | Q207: 84.91663676 | R207: 6
O208: 55 | P208: 2015 | Q208: 87.41909269 | R208: 6
O209: 45 | P209: 2015 | Q209: 70.68110055 | R209: 6
O210: 12 | P210: 2015 | Q210: 141.6185118 | R210: 6
O211: 20.004 | P211: 2015 | Q211: 130.8792047 | R211: 6
O212: 18.7 | P212: 2015 | Q212: 107.0646121 | R212: 6
O213: 18.4 | P213: 2015 | Q213: 114.7909637 | R213: 6
O214: 20.02 | P214: 2015 | Q214: 114.659481 | R214: 6
O215: 19.75 | P215: 2015 | Q215: 111.5992078 | R215: 6
O216: 20 | P216: 2015 | Q216: 132.939445 | R216: 6
O217: 20 | P217: 2015 | Q217: 114.4866397 | R217: 6
O218: 12 | P218: 2015 | Q218: 136.9810968 | R218: 6
O219: 26.656 | P219: 2015 | Q219: 93.14162276 | R219: 6
O220: 20.007 | P220: 2015 | Q220: 128.0441973 | R220: 6
O221: 20 | P221: 2015 | Q221: 78.95477762 | R221: 6
... 906 more rows

Sheet LCOE vs. PPA Price
A1: Average levelized cost of energy versus average levelized PPA price, by commercial operation date
A22: Source: Berkeley Lab | I22: Source: Berkeley Lab | R22: Source: Berkeley Lab
D25: No ITC | E25: No ITC | F25: No ITC | G25: 30% ITC | H25: 30% ITC | I25: 30% ITC
A26: LCOE | B26: LCOE | D26: Median | E26: Cap-Wgtd Avg | F26: Gen-Wgtd Avg | G26: Median | H26: Cap-Wgtd Avg | I26: Gen-Wgtd Avg | K26: Median | L26: Cap-Wgtd Avg | M26: Gen-Wgtd Avg
A27: Sample | B27: Sample | D27: LCOE | E27: LCOE | F27: LCOE | G27: LCOE | H27: LCOE | I27: LCOE | K27: PPA Price | L27: PPA Price | M27: PPA Price
A28: Capacity | B28: Plants | C28: Plant | D28: by COD | E28: by COD | F28: by COD | G28: by COD | H28: by COD | I28: by COD | K28: by COD | L28: by COD | M28: by COD
A29: (MW-AC) | B29: (#) | C29: COD | D29: (2022 $/MWh) | E29: (2022 $/MWh) | F29: (2022 $/MWh) | G29: (2022 $/MWh) | H29: (2022 $/MWh) | I29: (2022 $/MWh) | K29: (2022 $/MWh) | L29: (2022 $/MWh) | M29: (2022 $/MWh)
A30: 175.07 | B30: 10 | C30: 2010 | D30: 319.8868979 | E30: 254.7717784 | F30: 243.283434 | G30: 211.4609213 | H30: 169.2933305 | I30: 161.8426283 | K30: 213.4139304 | L30: 184.7140604 | M30: 180.8002394
A31: 422.75 | B31: 28 | C31: =C30+1 -> 2011 | D31: 225.9411367 | E31: 233.2635281 | F31: 225.7754021 | G31: 151.6292556 | H31: 155.5877222 | I31: 150.6075303 | K31: 189.0422452 | L31: 198.7845396 | M31: 191.3039386
A32: 893.884 | B32: 39 | C32: =C31+1 -> 2012 | D32: 194.2768045 | E32: 172.7456798 | F32: 164.4336677 | G32: 129.3688706 | H32: 116.5521211 | I32: 111.0748281 | K32: 144.2231206 | L32: 151.0321678 | M32: 149.1550699
A33: 1343.789 | B33: 38 | C33: 2013 | D33: 153.8108978 | E33: 161.0427039 | F33: 151.7178447 | G33: 102.4829845 | H33: 108.0986623 | I33: 101.8473329 | K33: 139.6624208 | L33: 137.8033584 | M33: 138.284524
A34: 3165.7835 | B34: 63 | C34: 2014 | D34: 132.2101638 | E34: 147.4004579 | F34: 145.2600211 | G34: 89.96031415 | H34: 99.07952071 | I34: 97.57651148 | K34: 108.343802 | L34: 140.1687232 | M34: 139.4225327
A35: 2839.682 | B35: 85 | C35: 2015 | D35: 109.2754582 | E35: 111.7802148 | F35: 109.3440626 | G35: 75.44673125 | H35: 76.39840664 | I35: 74.58687484 | K35: 88.02468415 | L35: 103.0544371 | M35: 103.5163066
A36: 7377.194 | B36: 145 | C36: 2016 | D36: 86.68953154 | E36: 86.00937079 | F36: 82.48464698 | G36: 60.56610243 | H36: 59.63707085 | I36: 57.21729521 | K36: 59.33883627 | L36: 63.8696596 | M36: 63.90587424
A37: 3995.823 | B37: 160 | C37: 2017 | D37: 83.80440318 | E37: 82.51574051 | F37: 80.41865106 | G37: 58.61969679 | H37: 57.5700168 | I37: 56.08462721 | K37: 52.44674595 | L37: 52.55413589 | M37: 51.96737819
A38: 3929.416 | B38: 93 | C38: 2018 | D38: 67.86252269 | E38: 65.77208879 | F38: 65.14202734 | G38: 50.15667318 | H38: 48.36455546 | I38: 47.83533098 | K38: 50.18413906 | L38: 49.49946265 | M38: 47.77835225
A39: 4400.81 | B39: 99 | C39: 2019 | D39: 59.71511821 | E39: 56.9079192 | F39: 55.64215401 | G39: 44.17914881 | H39: 41.88768317 | I39: 40.95603252 | K39: 38.93567188 | L39: 39.08463403 | M39: 38.09121295
A40: 9480.943 | B40: 159 | C40: 2020 | D40: 54.94491353 | E40: 49.45916451 | F40: 47.84511306 | G40: 40.53273189 | H40: 36.50046542 | I40: 35.3272888 | K40: 28.52600912 | L40: 30.4904371 | M40: 30.13782659
A41: 11203.24 | B41: 123 | C41: 2021 | D41: 42.89292532 | E41: 42.33878781 | F41: 41.31134863 | G41: 32.0440881 | H41: 31.35747034 | I41: 30.5840709 | K41: 24.47077827 | L41: 24.91636746 | M41: 24.40914038
A42: 4621.501 | B42: 59 | C42: 2022 | D42: 42.05169993 | E42: 39.39056644 | F42: 38.78812095 | G42: 31.60094748 | H42: 29.34227168 | I42: 28.92225836 | K42: 22.09455736 | L42: 22.265237 | M42: 21.65755857
A43: TBD | B43: TBD | C43: 2023 | K43: 24.20881429 | L43: 22.66535607 | M43: 21.64537224

Sheet PV & Wind PPAs vs. Gas
A1: Levelized PV and wind PPA prices and levelized gas price projections | K1: Levelized PV and wind PPA prices
A22: Sources: Berkeley Lab, FERC, Energy Information Administration
A23: Note: Smallest bubble sizes reflect smallest-volume PPAs (<5 MW), whereas largest reflect largest-volume PPAs (>500 MW)
